Workbook

Sheet Control
A1: Sheets | B1: Text File Names | C1: Description | E1: Notes: 50 sheets maximum
A2: O2Depth | B2: O2_Depth.txt | C2: Depth to which oxygen can diffuse before it is fully consumed | E2: Referenced text files must be in same root folder as this spreadsheet

Sheet PlotControl
A2: Model Name: | B2: Plant Site Version 6.0
A4: Plot: | B4: Annual Max | C4: =B2 & " Model " & IF(B4="Annual Max", "Annual Maximum", B4) & " of Result Statistics " & "O2 Diffusion Depth in the " & B8 -> Plant Site Version 6.0 Model Annual Maximum of Result Statistics O2 Diffusion Depth in the South Beach | V4: Directory to save PDFs to: | W4: P:\Mpls\23 MN\69\2369862\WorkFiles\APA\Support Docs\Surface WQ\Workfiles\Models\GoldSim\Tailings Basin\2012 MODEL\Base Model\Output_Data\FTB\Unsat_Zones\plots
C5: =B2 & " Model Monthly Result Statistics O2 Diffusion Depth in the " & B8 -> Plant Site Version 6.0 Model Monthly Result Statistics O2 Diffusion Depth in the South Beach | V5: Starting figure caption | W5: Figure A-1-0001
V7: Note: This loops through the plot and location drop down menus.
A8: Location to Plot (dropdown): | B8: South Beach | C8: =MATCH(B8,$A$15:$A$22,0) -> 5
A10: Initial Time for Monthly Plot (yr): | B10: 10
B11: =B10+20 -> 30
A12: Standard | B12: =VLOOKUP($B$6,$A$25:$B$52,2,FALSE) -> 
A14: Locations
A15: North Beach
A16: North Dam
A17: East Beach
A18: East Dam
A19: South Beach
A20: South Dam
A21: Closure Beach
A23: Locations | I23: Annual Project Results | S23: Monthly Project Results
A24: Annual Average | H24: Time | I24: P10 | J24: P50 | K24: P90 | L24: Mean | R24: Time | S24: P10 | T24: P50 | U24: P90 | V24: Mean
A25: Annual Max | H25: 0 | I25: =IF(OR(LEFT($B$8,1)="E",LEFT($B$8,1)="S",LEFT($B$8,1)="C"),#N/A,IF($B$4="Annual Average", AVERAGE(OFFSET(O2Depth!$A$10,$H25*12,4*($C$8-1)+2,12,1)), MAX(OFFSET(O2Depth!$A$10,$H25*12,4*($C$8-1)+2,12,1))) / 0.3048) ->  | J25: =IF(OR(LEFT($B$8,1)="E",LEFT($B$8,1)="S",LEFT($B$8,1)="C"),#N/A,IF($B$4="Annual Average", AVERAGE(OFFSET(O2Depth!$A$10,$H25*12,4*($C$8-1)+3,12,1)), MAX(OFFSET(O2Depth!$A$10,$H25*12,4*($C$8-1)+3,12,1))) / 0.3048) ->  | K25: =IF(OR(LEFT($B$8,1)="E",LEFT($B$8,1)="S",LEFT($B$8,1)="C"),#N/A,IF($B$4="Annual Average", AVERAGE(OFFSET(O2Depth!$A$10,$H25*12,4*($C$8-1)+4,12,1)), MAX(OFFSET(O2Depth!$A$10,$H25*12,4*($C$8-1)+4,12,1))) / 0.3048) ->  | L25: =IF(OR(LEFT($B$8,1)="E",LEFT($B$8,1)="S",LEFT($B$8,1)="C"),#N/A,IF($B$4="Annual Average", AVERAGE(OFFSET(O2Depth!$A$10,$H25*12,4*($C$8-1)+1,12,1)), MAX(OFFSET(O2Depth!$A$10,$H25*12,4*($C$8-1)+1,12,1))) / 0.3048) ->  | R25: =B10 -> 10 | S25: =IF(OR(LEFT($B$8,1)="C"),#N/A,VLOOKUP($R25,O2Depth!$A$10:$AG$2410,4*($C$8-1)+3) / 0.3048) -> 20.66568241 | T25: =IF(OR(LEFT($B$8,1)="C"),#N/A,VLOOKUP($R25,O2Depth!$A$10:$AG$2410,4*($C$8-1)+4) / 0.3048) -> 24.01049869 | U25: =IF(OR(LEFT($B$8,1)="C"),#N/A,VLOOKUP($R25,O2Depth!$A$10:$AG$2410,4*($C$8-1)+5) / 0.3048) -> 28.35104987 | V25: =IF(OR(LEFT($B$8,1)="C"),#N/A,VLOOKUP($R25,O2Depth!$A$10:$AG$2410,4*($C$8-1)+2) / 0.3048) -> 24.27198163
H26: 1 | I26: =IF(OR(LEFT($B$8,1)="E",LEFT($B$8,1)="S",LEFT($B$8,1)="C"),#N/A,IF($B$4="Annual Average", AVERAGE(OFFSET(O2Depth!$A$10,$H26*12,4*($C$8-1)+2,12,1)), MAX(OFFSET(O2Depth!$A$10,$H26*12,4*($C$8-1)+2,12,1))) / 0.3048) ->  | J26: =IF(OR(LEFT($B$8,1)="E",LEFT($B$8,1)="S",LEFT($B$8,1)="C"),#N/A,IF($B$4="Annual Average", AVERAGE(OFFSET(O2Depth!$A$10,$H26*12,4*($C$8-1)+3,12,1)), MAX(OFFSET(O2Depth!$A$10,$H26*12,4*($C$8-1)+3,12,1))) / 0.3048) ->  | K26: =IF(OR(LEFT($B$8,1)="E",LEFT($B$8,1)="S",LEFT($B$8,1)="C"),#N/A,IF($B$4="Annual Average", AVERAGE(OFFSET(O2Depth!$A$10,$H26*12,4*($C$8-1)+4,12,1)), MAX(OFFSET(O2Depth!$A$10,$H26*12,4*($C$8-1)+4,12,1))) / 0.3048) ->  | L26: =IF(OR(LEFT($B$8,1)="E",LEFT($B$8,1)="S",LEFT($B$8,1)="C"),#N/A,IF($B$4="Annual Average", AVERAGE(OFFSET(O2Depth!$A$10,$H26*12,4*($C$8-1)+1,12,1)), MAX(OFFSET(O2Depth!$A$10,$H26*12,4*($C$8-1)+1,12,1))) / 0.3048) ->  | R26: =R25+1/12 -> 10.08333333 | S26: =IF(OR(LEFT($B$8,1)="C"),#N/A,VLOOKUP($R26,O2Depth!$A$10:$AG$2410,4*($C$8-1)+3) / 0.3048) -> 21.82185039 | T26: =IF(OR(LEFT($B$8,1)="C"),#N/A,VLOOKUP($R26,O2Depth!$A$10:$AG$2410,4*($C$8-1)+4) / 0.3048) -> 25.45111549 | U26: =IF(OR(LEFT($B$8,1)="C"),#N/A,VLOOKUP($R26,O2Depth!$A$10:$AG$2410,4*($C$8-1)+5) / 0.3048) -> 29.94455381 | V26: =IF(OR(LEFT($B$8,1)="C"),#N/A,VLOOKUP($R26,O2Depth!$A$10:$AG$2410,4*($C$8-1)+2) / 0.3048) -> 25.66240157
H27: 2 | I27: =IF(OR(LEFT($B$8,1)="E",LEFT($B$8,1)="S",LEFT($B$8,1)="C"),#N/A,IF($B$4="Annual Average", AVERAGE(OFFSET(O2Depth!$A$10,$H27*12,4*($C$8-1)+2,12,1)), MAX(OFFSET(O2Depth!$A$10,$H27*12,4*($C$8-1)+2,12,1))) / 0.3048) ->  | J27: =IF(OR(LEFT($B$8,1)="E",LEFT($B$8,1)="S",LEFT($B$8,1)="C"),#N/A,IF($B$4="Annual Average", AVERAGE(OFFSET(O2Depth!$A$10,$H27*12,4*($C$8-1)+3,12,1)), MAX(OFFSET(O2Depth!$A$10,$H27*12,4*($C$8-1)+3,12,1))) / 0.3048) ->  | K27: =IF(OR(LEFT($B$8,1)="E",LEFT($B$8,1)="S",LEFT($B$8,1)="C"),#N/A,IF($B$4="Annual Average", AVERAGE(OFFSET(O2Depth!$A$10,$H27*12,4*($C$8-1)+4,12,1)), MAX(OFFSET(O2Depth!$A$10,$H27*12,4*($C$8-1)+4,12,1))) / 0.3048) ->  | L27: =IF(OR(LEFT($B$8,1)="E",LEFT($B$8,1)="S",LEFT($B$8,1)="C"),#N/A,IF($B$4="Annual Average", AVERAGE(OFFSET(O2Depth!$A$10,$H27*12,4*($C$8-1)+1,12,1)), MAX(OFFSET(O2Depth!$A$10,$H27*12,4*($C$8-1)+1,12,1))) / 0.3048) ->  | R27: =R26+1/12 -> 10.16666667 | S27: =IF(OR(LEFT($B$8,1)="C"),#N/A,VLOOKUP($R27,O2Depth!$A$10:$AG$2410,4*($C$8-1)+3) / 0.3048) -> 21.82185039 | T27: =IF(OR(LEFT($B$8,1)="C"),#N/A,VLOOKUP($R27,O2Depth!$A$10:$AG$2410,4*($C$8-1)+4) / 0.3048) -> 25.45111549 | U27: =IF(OR(LEFT($B$8,1)="C"),#N/A,VLOOKUP($R27,O2Depth!$A$10:$AG$2410,4*($C$8-1)+5) / 0.3048) -> 29.94455381 | V27: =IF(OR(LEFT($B$8,1)="C"),#N/A,VLOOKUP($R27,O2Depth!$A$10:$AG$2410,4*($C$8-1)+2) / 0.3048) -> 25.66240157
H28: 3 | I28: =IF(OR(LEFT($B$8,1)="E",LEFT($B$8,1)="S",LEFT($B$8,1)="C"),#N/A,IF($B$4="Annual Average", AVERAGE(OFFSET(O2Depth!$A$10,$H28*12,4*($C$8-1)+2,12,1)), MAX(OFFSET(O2Depth!$A$10,$H28*12,4*($C$8-1)+2,12,1))) / 0.3048) ->  | J28: =IF(OR(LEFT($B$8,1)="E",LEFT($B$8,1)="S",LEFT($B$8,1)="C"),#N/A,IF($B$4="Annual Average", AVERAGE(OFFSET(O2Depth!$A$10,$H28*12,4*($C$8-1)+3,12,1)), MAX(OFFSET(O2Depth!$A$10,$H28*12,4*($C$8-1)+3,12,1))) / 0.3048) ->  | K28: =IF(OR(LEFT($B$8,1)="E",LEFT($B$8,1)="S",LEFT($B$8,1)="C"),#N/A,IF($B$4="Annual Average", AVERAGE(OFFSET(O2Depth!$A$10,$H28*12,4*($C$8-1)+4,12,1)), MAX(OFFSET(O2Depth!$A$10,$H28*12,4*($C$8-1)+4,12,1))) / 0.3048) ->  | L28: =IF(OR(LEFT($B$8,1)="E",LEFT($B$8,1)="S",LEFT($B$8,1)="C"),#N/A,IF($B$4="Annual Average", AVERAGE(OFFSET(O2Depth!$A$10,$H28*12,4*($C$8-1)+1,12,1)), MAX(OFFSET(O2Depth!$A$10,$H28*12,4*($C$8-1)+1,12,1))) / 0.3048) ->  | R28: 10.25 | S28: =IF(OR(LEFT($B$8,1)="C"),#N/A,VLOOKUP($R28,O2Depth!$A$10:$AG$2410,4*($C$8-1)+3) / 0.3048) -> 22.9980315 | T28: =IF(OR(LEFT($B$8,1)="C"),#N/A,VLOOKUP($R28,O2Depth!$A$10:$AG$2410,4*($C$8-1)+4) / 0.3048) -> 26.79724409 | U28: =IF(OR(LEFT($B$8,1)="C"),#N/A,VLOOKUP($R28,O2Depth!$A$10:$AG$2410,4*($C$8-1)+5) / 0.3048) -> 31.47637795 | V28: =IF(OR(LEFT($B$8,1)="C"),#N/A,VLOOKUP($R28,O2Depth!$A$10:$AG$2410,4*($C$8-1)+2) / 0.3048) -> 27.00688976
H29: 4 | I29: =IF(OR(LEFT($B$8,1)="E",LEFT($B$8,1)="S",LEFT($B$8,1)="C"),#N/A,IF($B$4="Annual Average", AVERAGE(OFFSET(O2Depth!$A$10,$H29*12,4*($C$8-1)+2,12,1)), MAX(OFFSET(O2Depth!$A$10,$H29*12,4*($C$8-1)+2,12,1))) / 0.3048) ->  | J29: =IF(OR(LEFT($B$8,1)="E",LEFT($B$8,1)="S",LEFT($B$8,1)="C"),#N/A,IF($B$4="Annual Average", AVERAGE(OFFSET(O2Depth!$A$10,$H29*12,4*($C$8-1)+3,12,1)), MAX(OFFSET(O2Depth!$A$10,$H29*12,4*($C$8-1)+3,12,1))) / 0.3048) ->  | K29: =IF(OR(LEFT($B$8,1)="E",LEFT($B$8,1)="S",LEFT($B$8,1)="C"),#N/A,IF($B$4="Annual Average", AVERAGE(OFFSET(O2Depth!$A$10,$H29*12,4*($C$8-1)+4,12,1)), MAX(OFFSET(O2Depth!$A$10,$H29*12,4*($C$8-1)+4,12,1))) / 0.3048) ->  | L29: =IF(OR(LEFT($B$8,1)="E",LEFT($B$8,1)="S",LEFT($B$8,1)="C"),#N/A,IF($B$4="Annual Average", AVERAGE(OFFSET(O2Depth!$A$10,$H29*12,4*($C$8-1)+1,12,1)), MAX(OFFSET(O2Depth!$A$10,$H29*12,4*($C$8-1)+1,12,1))) / 0.3048) ->  | R29: 10.33333333 | S29: =IF(OR(LEFT($B$8,1)="C"),#N/A,VLOOKUP($R29,O2Depth!$A$10:$AG$2410,4*($C$8-1)+3) / 0.3048) -> 23.46194226 | T29: =IF(OR(LEFT($B$8,1)="C"),#N/A,VLOOKUP($R29,O2Depth!$A$10:$AG$2410,4*($C$8-1)+4) / 0.3048) -> 27.417979 | U29: =IF(OR(LEFT($B$8,1)="C"),#N/A,VLOOKUP($R29,O2Depth!$A$10:$AG$2410,4*($C$8-1)+5) / 0.3048) -> 32.14009186 | V29: =IF(OR(LEFT($B$8,1)="C"),#N/A,VLOOKUP($R29,O2Depth!$A$10:$AG$2410,4*($C$8-1)+2) / 0.3048) -> 27.60793963
H30: 5 | I30: =IF(OR(LEFT($B$8,1)="E",LEFT($B$8,1)="S",LEFT($B$8,1)="C"),#N/A,IF($B$4="Annual Average", AVERAGE(OFFSET(O2Depth!$A$10,$H30*12,4*($C$8-1)+2,12,1)), MAX(OFFSET(O2Depth!$A$10,$H30*12,4*($C$8-1)+2,12,1))) / 0.3048) ->  | J30: =IF(OR(LEFT($B$8,1)="E",LEFT($B$8,1)="S",LEFT($B$8,1)="C"),#N/A,IF($B$4="Annual Average", AVERAGE(OFFSET(O2Depth!$A$10,$H30*12,4*($C$8-1)+3,12,1)), MAX(OFFSET(O2Depth!$A$10,$H30*12,4*($C$8-1)+3,12,1))) / 0.3048) ->  | K30: =IF(OR(LEFT($B$8,1)="E",LEFT($B$8,1)="S",LEFT($B$8,1)="C"),#N/A,IF($B$4="Annual Average", AVERAGE(OFFSET(O2Depth!$A$10,$H30*12,4*($C$8-1)+4,12,1)), MAX(OFFSET(O2Depth!$A$10,$H30*12,4*($C$8-1)+4,12,1))) / 0.3048) ->  | L30: =IF(OR(LEFT($B$8,1)="E",LEFT($B$8,1)="S",LEFT($B$8,1)="C"),#N/A,IF($B$4="Annual Average", AVERAGE(OFFSET(O2Depth!$A$10,$H30*12,4*($C$8-1)+1,12,1)), MAX(OFFSET(O2Depth!$A$10,$H30*12,4*($C$8-1)+1,12,1))) / 0.3048) ->  | R30: 10.41666667 | S30: =IF(OR(LEFT($B$8,1)="C"),#N/A,VLOOKUP($R30,O2Depth!$A$10:$AG$2410,4*($C$8-1)+3) / 0.3048) -> 23.46194226 | T30: =IF(OR(LEFT($B$8,1)="C"),#N/A,VLOOKUP($R30,O2Depth!$A$10:$AG$2410,4*($C$8-1)+4) / 0.3048) -> 27.417979 | U30: =IF(OR(LEFT($B$8,1)="C"),#N/A,VLOOKUP($R30,O2Depth!$A$10:$AG$2410,4*($C$8-1)+5) / 0.3048) -> 32.14009186 | V30: =IF(OR(LEFT($B$8,1)="C"),#N/A,VLOOKUP($R30,O2Depth!$A$10:$AG$2410,4*($C$8-1)+2) / 0.3048) -> 27.60793963
H31: 6 | I31: =IF(OR(LEFT($B$8,1)="E",LEFT($B$8,1)="S",LEFT($B$8,1)="C"),#N/A,IF($B$4="Annual Average", AVERAGE(OFFSET(O2Depth!$A$10,$H31*12,4*($C$8-1)+2,12,1)), MAX(OFFSET(O2Depth!$A$10,$H31*12,4*($C$8-1)+2,12,1))) / 0.3048) ->  | J31: =IF(OR(LEFT($B$8,1)="E",LEFT($B$8,1)="S",LEFT($B$8,1)="C"),#N/A,IF($B$4="Annual Average", AVERAGE(OFFSET(O2Depth!$A$10,$H31*12,4*($C$8-1)+3,12,1)), MAX(OFFSET(O2Depth!$A$10,$H31*12,4*($C$8-1)+3,12,1))) / 0.3048) ->  | K31: =IF(OR(LEFT($B$8,1)="E",LEFT($B$8,1)="S",LEFT($B$8,1)="C"),#N/A,IF($B$4="Annual Average", AVERAGE(OFFSET(O2Depth!$A$10,$H31*12,4*($C$8-1)+4,12,1)), MAX(OFFSET(O2Depth!$A$10,$H31*12,4*($C$8-1)+4,12,1))) / 0.3048) ->  | L31: =IF(OR(LEFT($B$8,1)="E",LEFT($B$8,1)="S",LEFT($B$8,1)="C"),#N/A,IF($B$4="Annual Average", AVERAGE(OFFSET(O2Depth!$A$10,$H31*12,4*($C$8-1)+1,12,1)), MAX(OFFSET(O2Depth!$A$10,$H31*12,4*($C$8-1)+1,12,1))) / 0.3048) ->  | R31: 10.5 | S31: =IF(OR(LEFT($B$8,1)="C"),#N/A,VLOOKUP($R31,O2Depth!$A$10:$AG$2410,4*($C$8-1)+3) / 0.3048) -> 24.06135171 | T31: =IF(OR(LEFT($B$8,1)="C"),#N/A,VLOOKUP($R31,O2Depth!$A$10:$AG$2410,4*($C$8-1)+4) / 0.3048) -> 28.07185039 | U31: =IF(OR(LEFT($B$8,1)="C"),#N/A,VLOOKUP($R31,O2Depth!$A$10:$AG$2410,4*($C$8-1)+5) / 0.3048) -> 33.09383202 | V31: =IF(OR(LEFT($B$8,1)="C"),#N/A,VLOOKUP($R31,O2Depth!$A$10:$AG$2410,4*($C$8-1)+2) / 0.3048) -> 28.34284777
H32: 7 | I32: =IF(OR(LEFT($B$8,1)="C"),#N/A,IF($B$4="Annual Average", AVERAGE(OFFSET(O2Depth!$A$10,$H32*12,4*($C$8-1)+2,12,1)), MAX(OFFSET(O2Depth!$A$10,$H32*12,4*($C$8-1)+2,12,1))) / 0.3048) -> 29.3421916 | J32: =IF(OR(LEFT($B$8,1)="C"),#N/A,IF($B$4="Annual Average", AVERAGE(OFFSET(O2Depth!$A$10,$H32*12,4*($C$8-1)+3,12,1)), MAX(OFFSET(O2Depth!$A$10,$H32*12,4*($C$8-1)+3,12,1))) / 0.3048) -> 34.60301837 | K32: =IF(OR(LEFT($B$8,1)="C"),#N/A,IF($B$4="Annual Average", AVERAGE(OFFSET(O2Depth!$A$10,$H32*12,4*($C$8-1)+4,12,1)), MAX(OFFSET(O2Depth!$A$10,$H32*12,4*($C$8-1)+4,12,1))) / 0.3048) -> 40.87270341 | L32: =IF(OR(LEFT($B$8,1)="C"),#N/A,IF($B$4="Annual Average", AVERAGE(OFFSET(O2Depth!$A$10,$H32*12,4*($C$8-1)+1,12,1)), MAX(OFFSET(O2Depth!$A$10,$H32*12,4*($C$8-1)+1,12,1))) / 0.3048) -> 34.88188976 | R32: 10.58333333 | S32: =IF(OR(LEFT($B$8,1)="C"),#N/A,VLOOKUP($R32,O2Depth!$A$10:$AG$2410,4*($C$8-1)+3) / 0.3048) -> 23.13156168 | T32: =IF(OR(LEFT($B$8,1)="C"),#N/A,VLOOKUP($R32,O2Depth!$A$10:$AG$2410,4*($C$8-1)+4) / 0.3048) -> 27.22572178 | U32: =IF(OR(LEFT($B$8,1)="C"),#N/A,VLOOKUP($R32,O2Depth!$A$10:$AG$2410,4*($C$8-1)+5) / 0.3048) -> 32.4261811 | V32: =IF(OR(LEFT($B$8,1)="C"),#N/A,VLOOKUP($R32,O2Depth!$A$10:$AG$2410,4*($C$8-1)+2) / 0.3048) -> 27.51148294
H33: 8 | I33: =IF(OR(LEFT($B$8,1)="C"),#N/A,IF($B$4="Annual Average", AVERAGE(OFFSET(O2Depth!$A$10,$H33*12,4*($C$8-1)+2,12,1)), MAX(OFFSET(O2Depth!$A$10,$H33*12,4*($C$8-1)+2,12,1))) / 0.3048) -> 25.29232283 | J33: =IF(OR(LEFT($B$8,1)="C"),#N/A,IF($B$4="Annual Average", AVERAGE(OFFSET(O2Depth!$A$10,$H33*12,4*($C$8-1)+3,12,1)), MAX(OFFSET(O2Depth!$A$10,$H33*12,4*($C$8-1)+3,12,1))) / 0.3048) -> 29.71194226 | K33: =IF(OR(LEFT($B$8,1)="C"),#N/A,IF($B$4="Annual Average", AVERAGE(OFFSET(O2Depth!$A$10,$H33*12,4*($C$8-1)+4,12,1)), MAX(OFFSET(O2Depth!$A$10,$H33*12,4*($C$8-1)+4,12,1))) / 0.3048) -> 34.93766404 | L33: =IF(OR(LEFT($B$8,1)="C"),#N/A,IF($B$4="Annual Average", AVERAGE(OFFSET(O2Depth!$A$10,$H33*12,4*($C$8-1)+1,12,1)), MAX(OFFSET(O2Depth!$A$10,$H33*12,4*($C$8-1)+1,12,1))) / 0.3048) -> 29.89862205 | R33: 10.66666667 | S33: =IF(OR(LEFT($B$8,1)="C"),#N/A,VLOOKUP($R33,O2Depth!$A$10:$AG$2410,4*($C$8-1)+3) / 0.3048) -> 23.13156168 | T33: =IF(OR(LEFT($B$8,1)="C"),#N/A,VLOOKUP($R33,O2Depth!$A$10:$AG$2410,4*($C$8-1)+4) / 0.3048) -> 27.22572178 | U33: =IF(OR(LEFT($B$8,1)="C"),#N/A,VLOOKUP($R33,O2Depth!$A$10:$AG$2410,4*($C$8-1)+5) / 0.3048) -> 32.4261811 | V33: =IF(OR(LEFT($B$8,1)="C"),#N/A,VLOOKUP($R33,O2Depth!$A$10:$AG$2410,4*($C$8-1)+2) / 0.3048) -> 27.51148294
H34: 9 | I34: =IF(OR(LEFT($B$8,1)="C"),#N/A,IF($B$4="Annual Average", AVERAGE(OFFSET(O2Depth!$A$10,$H34*12,4*($C$8-1)+2,12,1)), MAX(OFFSET(O2Depth!$A$10,$H34*12,4*($C$8-1)+2,12,1))) / 0.3048) -> 23.93864829 | J34: =IF(OR(LEFT($B$8,1)="C"),#N/A,IF($B$4="Annual Average", AVERAGE(OFFSET(O2Depth!$A$10,$H34*12,4*($C$8-1)+3,12,1)), MAX(OFFSET(O2Depth!$A$10,$H34*12,4*($C$8-1)+3,12,1))) / 0.3048) -> 28.12368766 | K34: =IF(OR(LEFT($B$8,1)="C"),#N/A,IF($B$4="Annual Average", AVERAGE(OFFSET(O2Depth!$A$10,$H34*12,4*($C$8-1)+4,12,1)), MAX(OFFSET(O2Depth!$A$10,$H34*12,4*($C$8-1)+4,12,1))) / 0.3048) -> 33.23818898 | L34: =IF(OR(LEFT($B$8,1)="C"),#N/A,IF($B$4="Annual Average", AVERAGE(OFFSET(O2Depth!$A$10,$H34*12,4*($C$8-1)+1,12,1)), MAX(OFFSET(O2Depth!$A$10,$H34*12,4*($C$8-1)+1,12,1))) / 0.3048) -> 28.5144357 | R34: 10.75 | S34: =IF(OR(LEFT($B$8,1)="C"),#N/A,VLOOKUP($R34,O2Depth!$A$10:$AG$2410,4*($C$8-1)+3) / 0.3048) -> 21.92716535 | T34: =IF(OR(LEFT($B$8,1)="C"),#N/A,VLOOKUP($R34,O2Depth!$A$10:$AG$2410,4*($C$8-1)+4) / 0.3048) -> 25.62664042 | U34: =IF(OR(LEFT($B$8,1)="C"),#N/A,VLOOKUP($R34,O2Depth!$A$10:$AG$2410,4*($C$8-1)+5) / 0.3048) -> 30.11811024 | V34: =IF(OR(LEFT($B$8,1)="C"),#N/A,VLOOKUP($R34,O2Depth!$A$10:$AG$2410,4*($C$8-1)+2) / 0.3048) -> 25.86548556
H35: 10 | I35: =IF(OR(LEFT($B$8,1)="C"),#N/A,IF($B$4="Annual Average", AVERAGE(OFFSET(O2Depth!$A$10,$H35*12,4*($C$8-1)+2,12,1)), MAX(OFFSET(O2Depth!$A$10,$H35*12,4*($C$8-1)+2,12,1))) / 0.3048) -> 24.06135171 | J35: =IF(OR(LEFT($B$8,1)="C"),#N/A,IF($B$4="Annual Average", AVERAGE(OFFSET(O2Depth!$A$10,$H35*12,4*($C$8-1)+3,12,1)), MAX(OFFSET(O2Depth!$A$10,$H35*12,4*($C$8-1)+3,12,1))) / 0.3048) -> 28.07185039 | K35: =IF(OR(LEFT($B$8,1)="C"),#N/A,IF($B$4="Annual Average", AVERAGE(OFFSET(O2Depth!$A$10,$H35*12,4*($C$8-1)+4,12,1)), MAX(OFFSET(O2Depth!$A$10,$H35*12,4*($C$8-1)+4,12,1))) / 0.3048) -> 33.09383202 | L35: =IF(OR(LEFT($B$8,1)="C"),#N/A,IF($B$4="Annual Average", AVERAGE(OFFSET(O2Depth!$A$10,$H35*12,4*($C$8-1)+1,12,1)), MAX(OFFSET(O2Depth!$A$10,$H35*12,4*($C$8-1)+1,12,1))) / 0.3048) -> 28.34284777 | R35: 10.83333333 | S35: =IF(OR(LEFT($B$8,1)="C"),#N/A,VLOOKUP($R35,O2Depth!$A$10:$AG$2410,4*($C$8-1)+3) / 0.3048) -> 21.40485564 | T35: =IF(OR(LEFT($B$8,1)="C"),#N/A,VLOOKUP($R35,O2Depth!$A$10:$AG$2410,4*($C$8-1)+4) / 0.3048) -> 25.00918635 | U35: =IF(OR(LEFT($B$8,1)="C"),#N/A,VLOOKUP($R35,O2Depth!$A$10:$AG$2410,4*($C$8-1)+5) / 0.3048) -> 29.37795276 | V35: =IF(OR(LEFT($B$8,1)="C"),#N/A,VLOOKUP($R35,O2Depth!$A$10:$AG$2410,4*($C$8-1)+2) / 0.3048) -> 25.23064304
H36: 11 | I36: =IF(OR(LEFT($B$8,1)="C"),#N/A,IF($B$4="Annual Average", AVERAGE(OFFSET(O2Depth!$A$10,$H36*12,4*($C$8-1)+2,12,1)), MAX(OFFSET(O2Depth!$A$10,$H36*12,4*($C$8-1)+2,12,1))) / 0.3048) -> 24.08595801 | J36: =IF(OR(LEFT($B$8,1)="C"),#N/A,IF($B$4="Annual Average", AVERAGE(OFFSET(O2Depth!$A$10,$H36*12,4*($C$8-1)+3,12,1)), MAX(OFFSET(O2Depth!$A$10,$H36*12,4*($C$8-1)+3,12,1))) / 0.3048) -> 28.16469816 | K36: =IF(OR(LEFT($B$8,1)="C"),#N/A,IF($B$4="Annual Average", AVERAGE(OFFSET(O2Depth!$A$10,$H36*12,4*($C$8-1)+4,12,1)), MAX(OFFSET(O2Depth!$A$10,$H36*12,4*($C$8-1)+4,12,1))) / 0.3048) -> 33.01509186 | L36: =IF(OR(LEFT($B$8,1)="C"),#N/A,IF($B$4="Annual Average", AVERAGE(OFFSET(O2Depth!$A$10,$H36*12,4*($C$8-1)+1,12,1)), MAX(OFFSET(O2Depth!$A$10,$H36*12,4*($C$8-1)+1,12,1))) / 0.3048) -> 28.37729659 | R36: 10.91666667 | S36: =IF(OR(LEFT($B$8,1)="C"),#N/A,VLOOKUP($R36,O2Depth!$A$10:$AG$2410,4*($C$8-1)+3) / 0.3048) -> 21.40485564 | T36: =IF(OR(LEFT($B$8,1)="C"),#N/A,VLOOKUP($R36,O2Depth!$A$10:$AG$2410,4*($C$8-1)+4) / 0.3048) -> 25.00918635 | U36: =IF(OR(LEFT($B$8,1)="C"),#N/A,VLOOKUP($R36,O2Depth!$A$10:$AG$2410,4*($C$8-1)+5) / 0.3048) -> 29.37795276 | V36: =IF(OR(LEFT($B$8,1)="C"),#N/A,VLOOKUP($R36,O2Depth!$A$10:$AG$2410,4*($C$8-1)+2) / 0.3048) -> 25.23064304
H37: 12 | I37: =IF(OR(LEFT($B$8,1)="C"),#N/A,IF($B$4="Annual Average", AVERAGE(OFFSET(O2Depth!$A$10,$H37*12,4*($C$8-1)+2,12,1)), MAX(OFFSET(O2Depth!$A$10,$H37*12,4*($C$8-1)+2,12,1))) / 0.3048) -> 23.89238845 | J37: =IF(OR(LEFT($B$8,1)="C"),#N/A,IF($B$4="Annual Average", AVERAGE(OFFSET(O2Depth!$A$10,$H37*12,4*($C$8-1)+3,12,1)), MAX(OFFSET(O2Depth!$A$10,$H37*12,4*($C$8-1)+3,12,1))) / 0.3048) -> 27.87368766 | K37: =IF(OR(LEFT($B$8,1)="C"),#N/A,IF($B$4="Annual Average", AVERAGE(OFFSET(O2Depth!$A$10,$H37*12,4*($C$8-1)+4,12,1)), MAX(OFFSET(O2Depth!$A$10,$H37*12,4*($C$8-1)+4,12,1))) / 0.3048) -> 32.87401575 | L37: =IF(OR(LEFT($B$8,1)="C"),#N/A,IF($B$4="Annual Average", AVERAGE(OFFSET(O2Depth!$A$10,$H37*12,4*($C$8-1)+1,12,1)), MAX(OFFSET(O2Depth!$A$10,$H37*12,4*($C$8-1)+1,12,1))) / 0.3048) -> 28.30150919 | R37: 11 | S37: =IF(OR(LEFT($B$8,1)="C"),#N/A,VLOOKUP($R37,O2Depth!$A$10:$AG$2410,4*($C$8-1)+3) / 0.3048) -> 20.66010499 | T37: =IF(OR(LEFT($B$8,1)="C"),#N/A,VLOOKUP($R37,O2Depth!$A$10:$AG$2410,4*($C$8-1)+4) / 0.3048) -> 24.04363517 | U37: =IF(OR(LEFT($B$8,1)="C"),#N/A,VLOOKUP($R37,O2Depth!$A$10:$AG$2410,4*($C$8-1)+5) / 0.3048) -> 28.02985564 | V37: =IF(OR(LEFT($B$8,1)="C"),#N/A,VLOOKUP($R37,O2Depth!$A$10:$AG$2410,4*($C$8-1)+2) / 0.3048) -> 24.1843832
H38: 13 | I38: =IF(OR(LEFT($B$8,1)="C"),#N/A,IF($B$4="Annual Average", AVERAGE(OFFSET(O2Depth!$A$10,$H38*12,4*($C$8-1)+2,12,1)), MAX(OFFSET(O2Depth!$A$10,$H38*12,4*($C$8-1)+2,12,1))) / 0.3048) -> 24.0941601 | J38: =IF(OR(LEFT($B$8,1)="C"),#N/A,IF($B$4="Annual Average", AVERAGE(OFFSET(O2Depth!$A$10,$H38*12,4*($C$8-1)+3,12,1)), MAX(OFFSET(O2Depth!$A$10,$H38*12,4*($C$8-1)+3,12,1))) / 0.3048) -> 28.00032808 | K38: =IF(OR(LEFT($B$8,1)="C"),#N/A,IF($B$4="Annual Average", AVERAGE(OFFSET(O2Depth!$A$10,$H38*12,4*($C$8-1)+4,12,1)), MAX(OFFSET(O2Depth!$A$10,$H38*12,4*($C$8-1)+4,12,1))) / 0.3048) -> 33.49409449 | L38: =IF(OR(LEFT($B$8,1)="C"),#N/A,IF($B$4="Annual Average", AVERAGE(OFFSET(O2Depth!$A$10,$H38*12,4*($C$8-1)+1,12,1)), MAX(OFFSET(O2Depth!$A$10,$H38*12,4*($C$8-1)+1,12,1))) / 0.3048) -> 28.43667979 | R38: 11.08333333 | S38: =IF(OR(LEFT($B$8,1)="C"),#N/A,VLOOKUP($R38,O2Depth!$A$10:$AG$2410,4*($C$8-1)+3) / 0.3048) -> 21.88713911 | T38: =IF(OR(LEFT($B$8,1)="C"),#N/A,VLOOKUP($R38,O2Depth!$A$10:$AG$2410,4*($C$8-1)+4) / 0.3048) -> 25.35761155 | U38: =IF(OR(LEFT($B$8,1)="C"),#N/A,VLOOKUP($R38,O2Depth!$A$10:$AG$2410,4*($C$8-1)+5) / 0.3048) -> 29.57250656 | V38: =IF(OR(LEFT($B$8,1)="C"),#N/A,VLOOKUP($R38,O2Depth!$A$10:$AG$2410,4*($C$8-1)+2) / 0.3048) -> 25.58989501
H39: 14 | I39: =IF(OR(LEFT($B$8,1)="C"),#N/A,IF($B$4="Annual Average", AVERAGE(OFFSET(O2Depth!$A$10,$H39*12,4*($C$8-1)+2,12,1)), MAX(OFFSET(O2Depth!$A$10,$H39*12,4*($C$8-1)+2,12,1))) / 0.3048) -> 24.17946194 | J39: =IF(OR(LEFT($B$8,1)="C"),#N/A,IF($B$4="Annual Average", AVERAGE(OFFSET(O2Depth!$A$10,$H39*12,4*($C$8-1)+3,12,1)), MAX(OFFSET(O2Depth!$A$10,$H39*12,4*($C$8-1)+3,12,1))) / 0.3048) -> 28.03116798 | K39: =IF(OR(LEFT($B$8,1)="C"),#N/A,IF($B$4="Annual Average", AVERAGE(OFFSET(O2Depth!$A$10,$H39*12,4*($C$8-1)+4,12,1)), MAX(OFFSET(O2Depth!$A$10,$H39*12,4*($C$8-1)+4,12,1))) / 0.3048) -> 33.0019685 | L39: =IF(OR(LEFT($B$8,1)="C"),#N/A,IF($B$4="Annual Average", AVERAGE(OFFSET(O2Depth!$A$10,$H39*12,4*($C$8-1)+1,12,1)), MAX(OFFSET(O2Depth!$A$10,$H39*12,4*($C$8-1)+1,12,1))) / 0.3048) -> 28.39173228 | R39: 11.16666667 | S39: =IF(OR(LEFT($B$8,1)="C"),#N/A,VLOOKUP($R39,O2Depth!$A$10:$AG$2410,4*($C$8-1)+3) / 0.3048) -> 21.88713911 | T39: =IF(OR(LEFT($B$8,1)="C"),#N/A,VLOOKUP($R39,O2Depth!$A$10:$AG$2410,4*($C$8-1)+4) / 0.3048) -> 25.35761155 | U39: =IF(OR(LEFT($B$8,1)="C"),#N/A,VLOOKUP($R39,O2Depth!$A$10:$AG$2410,4*($C$8-1)+5) / 0.3048) -> 29.57250656 | V39: =IF(OR(LEFT($B$8,1)="C"),#N/A,VLOOKUP($R39,O2Depth!$A$10:$AG$2410,4*($C$8-1)+2) / 0.3048) -> 25.58989501
H40: 15 | I40: =IF(OR(LEFT($B$8,1)="C"),#N/A,IF($B$4="Annual Average", AVERAGE(OFFSET(O2Depth!$A$10,$H40*12,4*($C$8-1)+2,12,1)), MAX(OFFSET(O2Depth!$A$10,$H40*12,4*($C$8-1)+2,12,1))) / 0.3048) -> 23.9058399 | J40: =IF(OR(LEFT($B$8,1)="C"),#N/A,IF($B$4="Annual Average", AVERAGE(OFFSET(O2Depth!$A$10,$H40*12,4*($C$8-1)+3,12,1)), MAX(OFFSET(O2Depth!$A$10,$H40*12,4*($C$8-1)+3,12,1))) / 0.3048) -> 28.09350394 | K40: =IF(OR(LEFT($B$8,1)="C"),#N/A,IF($B$4="Annual Average", AVERAGE(OFFSET(O2Depth!$A$10,$H40*12,4*($C$8-1)+4,12,1)), MAX(OFFSET(O2Depth!$A$10,$H40*12,4*($C$8-1)+4,12,1))) / 0.3048) -> 33.89107612 | L40: =IF(OR(LEFT($B$8,1)="C"),#N/A,IF($B$4="Annual Average", AVERAGE(OFFSET(O2Depth!$A$10,$H40*12,4*($C$8-1)+1,12,1)), MAX(OFFSET(O2Depth!$A$10,$H40*12,4*($C$8-1)+1,12,1))) / 0.3048) -> 28.49868766 | R40: 11.25 | S40: =IF(OR(LEFT($B$8,1)="C"),#N/A,VLOOKUP($R40,O2Depth!$A$10:$AG$2410,4*($C$8-1)+3) / 0.3048) -> 23.04363517 | T40: =IF(OR(LEFT($B$8,1)="C"),#N/A,VLOOKUP($R40,O2Depth!$A$10:$AG$2410,4*($C$8-1)+4) / 0.3048) -> 26.71817585 | U40: =IF(OR(LEFT($B$8,1)="C"),#N/A,VLOOKUP($R40,O2Depth!$A$10:$AG$2410,4*($C$8-1)+5) / 0.3048) -> 31.13976378 | V40: =IF(OR(LEFT($B$8,1)="C"),#N/A,VLOOKUP($R40,O2Depth!$A$10:$AG$2410,4*($C$8-1)+2) / 0.3048) -> 26.95570866
H41: 16 | I41: =IF(OR(LEFT($B$8,1)="C"),#N/A,IF($B$4="Annual Average", AVERAGE(OFFSET(O2Depth!$A$10,$H41*12,4*($C$8-1)+2,12,1)), MAX(OFFSET(O2Depth!$A$10,$H41*12,4*($C$8-1)+2,12,1))) / 0.3048) -> 24.31922572 | J41: =IF(OR(LEFT($B$8,1)="C"),#N/A,IF($B$4="Annual Average", AVERAGE(OFFSET(O2Depth!$A$10,$H41*12,4*($C$8-1)+3,12,1)), MAX(OFFSET(O2Depth!$A$10,$H41*12,4*($C$8-1)+3,12,1))) / 0.3048) -> 28.41535433 | K41: =IF(OR(LEFT($B$8,1)="C"),#N/A,IF($B$4="Annual Average", AVERAGE(OFFSET(O2Depth!$A$10,$H41*12,4*($C$8-1)+4,12,1)), MAX(OFFSET(O2Depth!$A$10,$H41*12,4*($C$8-1)+4,12,1))) / 0.3048) -> 33.03805774 | L41: =IF(OR(LEFT($B$8,1)="C"),#N/A,IF($B$4="Annual Average", AVERAGE(OFFSET(O2Depth!$A$10,$H41*12,4*($C$8-1)+1,12,1)), MAX(OFFSET(O2Depth!$A$10,$H41*12,4*($C$8-1)+1,12,1))) / 0.3048) -> 28.64271654 | R41: 11.33333333 | S41: =IF(OR(LEFT($B$8,1)="C"),#N/A,VLOOKUP($R41,O2Depth!$A$10:$AG$2410,4*($C$8-1)+3) / 0.3048) -> 23.60629921 | T41: =IF(OR(LEFT($B$8,1)="C"),#N/A,VLOOKUP($R41,O2Depth!$A$10:$AG$2410,4*($C$8-1)+4) / 0.3048) -> 27.30216535 | U41: =IF(OR(LEFT($B$8,1)="C"),#N/A,VLOOKUP($R41,O2Depth!$A$10:$AG$2410,4*($C$8-1)+5) / 0.3048) -> 31.82020997 | V41: =IF(OR(LEFT($B$8,1)="C"),#N/A,VLOOKUP($R41,O2Depth!$A$10:$AG$2410,4*($C$8-1)+2) / 0.3048) -> 27.56692913
H42: 17 | I42: =IF(OR(LEFT($B$8,1)="C"),#N/A,IF($B$4="Annual Average", AVERAGE(OFFSET(O2Depth!$A$10,$H42*12,4*($C$8-1)+2,12,1)), MAX(OFFSET(O2Depth!$A$10,$H42*12,4*($C$8-1)+2,12,1))) / 0.3048) -> 24.49015748 | J42: =IF(OR(LEFT($B$8,1)="C"),#N/A,IF($B$4="Annual Average", AVERAGE(OFFSET(O2Depth!$A$10,$H42*12,4*($C$8-1)+3,12,1)), MAX(OFFSET(O2Depth!$A$10,$H42*12,4*($C$8-1)+3,12,1))) / 0.3048) -> 28.48031496 | K42: =IF(OR(LEFT($B$8,1)="C"),#N/A,IF($B$4="Annual Average", AVERAGE(OFFSET(O2Depth!$A$10,$H42*12,4*($C$8-1)+4,12,1)), MAX(OFFSET(O2Depth!$A$10,$H42*12,4*($C$8-1)+4,12,1))) / 0.3048) -> 33.93372703 | L42: =IF(OR(LEFT($B$8,1)="C"),#N/A,IF($B$4="Annual Average", AVERAGE(OFFSET(O2Depth!$A$10,$H42*12,4*($C$8-1)+1,12,1)), MAX(OFFSET(O2Depth!$A$10,$H42*12,4*($C$8-1)+1,12,1))) / 0.3048) -> 28.83497375 | R42: 11.41666667 | S42: =IF(OR(LEFT($B$8,1)="C"),#N/A,VLOOKUP($R42,O2Depth!$A$10:$AG$2410,4*($C$8-1)+3) / 0.3048) -> 23.60629921 | T42: =IF(OR(LEFT($B$8,1)="C"),#N/A,VLOOKUP($R42,O2Depth!$A$10:$AG$2410,4*($C$8-1)+4) / 0.3048) -> 27.30216535 | U42: =IF(OR(LEFT($B$8,1)="C"),#N/A,VLOOKUP($R42,O2Depth!$A$10:$AG$2410,4*($C$8-1)+5) / 0.3048) -> 31.82020997 | V42: =IF(OR(LEFT($B$8,1)="C"),#N/A,VLOOKUP($R42,O2Depth!$A$10:$AG$2410,4*($C$8-1)+2) / 0.3048) -> 27.56692913
H43: 18 | I43: =IF($B$4="Annual Average", AVERAGE(OFFSET(O2Depth!$A$10,$H43*12,4*($C$8-1)+2,12,1)), MAX(OFFSET(O2Depth!$A$10,$H43*12,4*($C$8-1)+2,12,1))) / 0.3048 -> 25.48818898 | J43: =IF($B$4="Annual Average", AVERAGE(OFFSET(O2Depth!$A$10,$H43*12,4*($C$8-1)+3,12,1)), MAX(OFFSET(O2Depth!$A$10,$H43*12,4*($C$8-1)+3,12,1))) / 0.3048 -> 30.10498688 | K43: =IF($B$4="Annual Average", AVERAGE(OFFSET(O2Depth!$A$10,$H43*12,4*($C$8-1)+4,12,1)), MAX(OFFSET(O2Depth!$A$10,$H43*12,4*($C$8-1)+4,12,1))) / 0.3048 -> 35.37073491 | L43: =IF($B$4="Annual Average", AVERAGE(OFFSET(O2Depth!$A$10,$H43*12,4*($C$8-1)+1,12,1)), MAX(OFFSET(O2Depth!$A$10,$H43*12,4*($C$8-1)+1,12,1))) / 0.3048 -> 30.2992126 | R43: 11.5 | S43: =IF(OR(LEFT($B$8,1)="C"),#N/A,VLOOKUP($R43,O2Depth!$A$10:$AG$2410,4*($C$8-1)+3) / 0.3048) -> 24.03116798 | T43: =IF(OR(LEFT($B$8,1)="C"),#N/A,VLOOKUP($R43,O2Depth!$A$10:$AG$2410,4*($C$8-1)+4) / 0.3048) -> 28.16469816 | U43: =IF(OR(LEFT($B$8,1)="C"),#N/A,VLOOKUP($R43,O2Depth!$A$10:$AG$2410,4*($C$8-1)+5) / 0.3048) -> 33.01509186 | V43: =IF(OR(LEFT($B$8,1)="C"),#N/A,VLOOKUP($R43,O2Depth!$A$10:$AG$2410,4*($C$8-1)+2) / 0.3048) -> 28.37729659
H44: 19 | I44: =IF($B$4="Annual Average", AVERAGE(OFFSET(O2Depth!$A$10,$H44*12,4*($C$8-1)+2,12,1)), MAX(OFFSET(O2Depth!$A$10,$H44*12,4*($C$8-1)+2,12,1))) / 0.3048 -> 26.33628609 | J44: =IF($B$4="Annual Average", AVERAGE(OFFSET(O2Depth!$A$10,$H44*12,4*($C$8-1)+3,12,1)), MAX(OFFSET(O2Depth!$A$10,$H44*12,4*($C$8-1)+3,12,1))) / 0.3048 -> 31.00853018 | K44: =IF($B$4="Annual Average", AVERAGE(OFFSET(O2Depth!$A$10,$H44*12,4*($C$8-1)+4,12,1)), MAX(OFFSET(O2Depth!$A$10,$H44*12,4*($C$8-1)+4,12,1))) / 0.3048 -> 36.44685039 | L44: =IF($B$4="Annual Average", AVERAGE(OFFSET(O2Depth!$A$10,$H44*12,4*($C$8-1)+1,12,1)), MAX(OFFSET(O2Depth!$A$10,$H44*12,4*($C$8-1)+1,12,1))) / 0.3048 -> 31.27952756 | R44: 11.58333333 | S44: =IF(OR(LEFT($B$8,1)="C"),#N/A,VLOOKUP($R44,O2Depth!$A$10:$AG$2410,4*($C$8-1)+3) / 0.3048) -> 23.375 | T44: =IF(OR(LEFT($B$8,1)="C"),#N/A,VLOOKUP($R44,O2Depth!$A$10:$AG$2410,4*($C$8-1)+4) / 0.3048) -> 27.50426509 | U44: =IF(OR(LEFT($B$8,1)="C"),#N/A,VLOOKUP($R44,O2Depth!$A$10:$AG$2410,4*($C$8-1)+5) / 0.3048) -> 32.4160105 | V44: =IF(OR(LEFT($B$8,1)="C"),#N/A,VLOOKUP($R44,O2Depth!$A$10:$AG$2410,4*($C$8-1)+2) / 0.3048) -> 27.68208661
H45: 20 | I45: =IF($B$4="Annual Average", AVERAGE(OFFSET(O2Depth!$A$10,$H45*12,4*($C$8-1)+2,12,1)), MAX(OFFSET(O2Depth!$A$10,$H45*12,4*($C$8-1)+2,12,1))) / 0.3048 -> 0.4031167979 | J45: =IF($B$4="Annual Average", AVERAGE(OFFSET(O2Depth!$A$10,$H45*12,4*($C$8-1)+3,12,1)), MAX(OFFSET(O2Depth!$A$10,$H45*12,4*($C$8-1)+3,12,1))) / 0.3048 -> 0.481496063 | K45: =IF($B$4="Annual Average", AVERAGE(OFFSET(O2Depth!$A$10,$H45*12,4*($C$8-1)+4,12,1)), MAX(OFFSET(O2Depth!$A$10,$H45*12,4*($C$8-1)+4,12,1))) / 0.3048 -> 0.5843175853 | L45: =IF($B$4="Annual Average", AVERAGE(OFFSET(O2Depth!$A$10,$H45*12,4*($C$8-1)+1,12,1)), MAX(OFFSET(O2Depth!$A$10,$H45*12,4*($C$8-1)+1,12,1))) / 0.3048 -> 0.4905511811 | R45: 11.66666667 | S45: =IF(OR(LEFT($B$8,1)="C"),#N/A,VLOOKUP($R45,O2Depth!$A$10:$AG$2410,4*($C$8-1)+3) / 0.3048) -> 23.375 | T45: =IF(OR(LEFT($B$8,1)="C"),#N/A,VLOOKUP($R45,O2Depth!$A$10:$AG$2410,4*($C$8-1)+4) / 0.3048) -> 27.50426509 | U45: =IF(OR(LEFT($B$8,1)="C"),#N/A,VLOOKUP($R45,O2Depth!$A$10:$AG$2410,4*($C$8-1)+5) / 0.3048) -> 32.4160105 | V45: =IF(OR(LEFT($B$8,1)="C"),#N/A,VLOOKUP($R45,O2Depth!$A$10:$AG$2410,4*($C$8-1)+2) / 0.3048) -> 27.68208661
H46: 21 | I46: =IF($B$4="Annual Average", AVERAGE(OFFSET(O2Depth!$A$10,$H46*12,4*($C$8-1)+2,12,1)), MAX(OFFSET(O2Depth!$A$10,$H46*12,4*($C$8-1)+2,12,1))) / 0.3048 -> 0.4447506562 | J46: =IF($B$4="Annual Average", AVERAGE(OFFSET(O2Depth!$A$10,$H46*12,4*($C$8-1)+3,12,1)), MAX(OFFSET(O2Depth!$A$10,$H46*12,4*($C$8-1)+3,12,1))) / 0.3048 -> 0.5315288714 | K46: =IF($B$4="Annual Average", AVERAGE(OFFSET(O2Depth!$A$10,$H46*12,4*($C$8-1)+4,12,1)), MAX(OFFSET(O2Depth!$A$10,$H46*12,4*($C$8-1)+4,12,1))) / 0.3048 -> 0.6534448819 | L46: =IF($B$4="Annual Average", AVERAGE(OFFSET(O2Depth!$A$10,$H46*12,4*($C$8-1)+1,12,1)), MAX(OFFSET(O2Depth!$A$10,$H46*12,4*($C$8-1)+1,12,1))) / 0.3048 -> 0.5442913386 | R46: 11.75 | S46: =IF(OR(LEFT($B$8,1)="C"),#N/A,VLOOKUP($R46,O2Depth!$A$10:$AG$2410,4*($C$8-1)+3) / 0.3048) -> 22.04855643 | T46: =IF(OR(LEFT($B$8,1)="C"),#N/A,VLOOKUP($R46,O2Depth!$A$10:$AG$2410,4*($C$8-1)+4) / 0.3048) -> 25.80479003 | U46: =IF(OR(LEFT($B$8,1)="C"),#N/A,VLOOKUP($R46,O2Depth!$A$10:$AG$2410,4*($C$8-1)+5) / 0.3048) -> 30.10203412 | V46: =IF(OR(LEFT($B$8,1)="C"),#N/A,VLOOKUP($R46,O2Depth!$A$10:$AG$2410,4*($C$8-1)+2) / 0.3048) -> 25.96489501
H47: 22 | I47: =IF($B$4="Annual Average", AVERAGE(OFFSET(O2Depth!$A$10,$H47*12,4*($C$8-1)+2,12,1)), MAX(OFFSET(O2Depth!$A$10,$H47*12,4*($C$8-1)+2,12,1))) / 0.3048 -> 0.462664042 | J47: =IF($B$4="Annual Average", AVERAGE(OFFSET(O2Depth!$A$10,$H47*12,4*($C$8-1)+3,12,1)), MAX(OFFSET(O2Depth!$A$10,$H47*12,4*($C$8-1)+3,12,1))) / 0.3048 -> 0.5566272966 | K47: =IF($B$4="Annual Average", AVERAGE(OFFSET(O2Depth!$A$10,$H47*12,4*($C$8-1)+4,12,1)), MAX(OFFSET(O2Depth!$A$10,$H47*12,4*($C$8-1)+4,12,1))) / 0.3048 -> 0.6896653543 | L47: =IF($B$4="Annual Average", AVERAGE(OFFSET(O2Depth!$A$10,$H47*12,4*($C$8-1)+1,12,1)), MAX(OFFSET(O2Depth!$A$10,$H47*12,4*($C$8-1)+1,12,1))) / 0.3048 -> 0.5658464567 | R47: 11.83333333 | S47: =IF(OR(LEFT($B$8,1)="C"),#N/A,VLOOKUP($R47,O2Depth!$A$10:$AG$2410,4*($C$8-1)+3) / 0.3048) -> 21.53740157 | T47: =IF(OR(LEFT($B$8,1)="C"),#N/A,VLOOKUP($R47,O2Depth!$A$10:$AG$2410,4*($C$8-1)+4) / 0.3048) -> 25.10925197 | U47: =IF(OR(LEFT($B$8,1)="C"),#N/A,VLOOKUP($R47,O2Depth!$A$10:$AG$2410,4*($C$8-1)+5) / 0.3048) -> 29.31364829 | V47: =IF(OR(LEFT($B$8,1)="C"),#N/A,VLOOKUP($R47,O2Depth!$A$10:$AG$2410,4*($C$8-1)+2) / 0.3048) -> 25.32250656
H48: 23 | I48: =IF($B$4="Annual Average", AVERAGE(OFFSET(O2Depth!$A$10,$H48*12,4*($C$8-1)+2,12,1)), MAX(OFFSET(O2Depth!$A$10,$H48*12,4*($C$8-1)+2,12,1))) / 0.3048 -> 0.4693897638 | J48: =IF($B$4="Annual Average", AVERAGE(OFFSET(O2Depth!$A$10,$H48*12,4*($C$8-1)+3,12,1)), MAX(OFFSET(O2Depth!$A$10,$H48*12,4*($C$8-1)+3,12,1))) / 0.3048 -> 0.5633858268 | K48: =IF($B$4="Annual Average", AVERAGE(OFFSET(O2Depth!$A$10,$H48*12,4*($C$8-1)+4,12,1)), MAX(OFFSET(O2Depth!$A$10,$H48*12,4*($C$8-1)+4,12,1))) / 0.3048 -> 0.6952427822 | L48: =IF($B$4="Annual Average", AVERAGE(OFFSET(O2Depth!$A$10,$H48*12,4*($C$8-1)+1,12,1)), MAX(OFFSET(O2Depth!$A$10,$H48*12,4*($C$8-1)+1,12,1))) / 0.3048 -> 0.5722112861 | R48: 11.91666667 | S48: =IF(OR(LEFT($B$8,1)="C"),#N/A,VLOOKUP($R48,O2Depth!$A$10:$AG$2410,4*($C$8-1)+3) / 0.3048) -> 21.53740157 | T48: =IF(OR(LEFT($B$8,1)="C"),#N/A,VLOOKUP($R48,O2Depth!$A$10:$AG$2410,4*($C$8-1)+4) / 0.3048) -> 25.10925197 | U48: =IF(OR(LEFT($B$8,1)="C"),#N/A,VLOOKUP($R48,O2Depth!$A$10:$AG$2410,4*($C$8-1)+5) / 0.3048) -> 29.31364829 | V48: =IF(OR(LEFT($B$8,1)="C"),#N/A,VLOOKUP($R48,O2Depth!$A$10:$AG$2410,4*($C$8-1)+2) / 0.3048) -> 25.32250656
H49: 24 | I49: =IF($B$4="Annual Average", AVERAGE(OFFSET(O2Depth!$A$10,$H49*12,4*($C$8-1)+2,12,1)), MAX(OFFSET(O2Depth!$A$10,$H49*12,4*($C$8-1)+2,12,1))) / 0.3048 -> 0.4713254593 | J49: =IF($B$4="Annual Average", AVERAGE(OFFSET(O2Depth!$A$10,$H49*12,4*($C$8-1)+3,12,1)), MAX(OFFSET(O2Depth!$A$10,$H49*12,4*($C$8-1)+3,12,1))) / 0.3048 -> 0.5682086614 | K49: =IF($B$4="Annual Average", AVERAGE(OFFSET(O2Depth!$A$10,$H49*12,4*($C$8-1)+4,12,1)), MAX(OFFSET(O2Depth!$A$10,$H49*12,4*($C$8-1)+4,12,1))) / 0.3048 -> 0.6907152231 | L49: =IF($B$4="Annual Average", AVERAGE(OFFSET(O2Depth!$A$10,$H49*12,4*($C$8-1)+1,12,1)), MAX(OFFSET(O2Depth!$A$10,$H49*12,4*($C$8-1)+1,12,1))) / 0.3048 -> 0.5737204724 | R49: 12 | S49: =IF(OR(LEFT($B$8,1)="C"),#N/A,VLOOKUP($R49,O2Depth!$A$10:$AG$2410,4*($C$8-1)+3) / 0.3048) -> 20.50853018 | T49: =IF(OR(LEFT($B$8,1)="C"),#N/A,VLOOKUP($R49,O2Depth!$A$10:$AG$2410,4*($C$8-1)+4) / 0.3048) -> 23.88681102 | U49: =IF(OR(LEFT($B$8,1)="C"),#N/A,VLOOKUP($R49,O2Depth!$A$10:$AG$2410,4*($C$8-1)+5) / 0.3048) -> 27.85826772 | V49: =IF(OR(LEFT($B$8,1)="C"),#N/A,VLOOKUP($R49,O2Depth!$A$10:$AG$2410,4*($C$8-1)+2) / 0.3048) -> 24.09645669
H50: 25 | I50: =IF($B$4="Annual Average", AVERAGE(OFFSET(O2Depth!$A$10,$H50*12,4*($C$8-1)+2,12,1)), MAX(OFFSET(O2Depth!$A$10,$H50*12,4*($C$8-1)+2,12,1))) / 0.3048 -> 0.4789698163 | J50: =IF($B$4="Annual Average", AVERAGE(OFFSET(O2Depth!$A$10,$H50*12,4*($C$8-1)+3,12,1)), MAX(OFFSET(O2Depth!$A$10,$H50*12,4*($C$8-1)+3,12,1))) / 0.3048 -> 0.5716535433 | K50: =IF($B$4="Annual Average", AVERAGE(OFFSET(O2Depth!$A$10,$H50*12,4*($C$8-1)+4,12,1)), MAX(OFFSET(O2Depth!$A$10,$H50*12,4*($C$8-1)+4,12,1))) / 0.3048 -> 0.7094488189 | L50: =IF($B$4="Annual Average", AVERAGE(OFFSET(O2Depth!$A$10,$H50*12,4*($C$8-1)+1,12,1)), MAX(OFFSET(O2Depth!$A$10,$H50*12,4*($C$8-1)+1,12,1))) / 0.3048 -> 0.5802821522 | R50: 12.08333333 | S50: =IF(OR(LEFT($B$8,1)="C"),#N/A,VLOOKUP($R50,O2Depth!$A$10:$AG$2410,4*($C$8-1)+3) / 0.3048) -> 21.70341207 | T50: =IF(OR(LEFT($B$8,1)="C"),#N/A,VLOOKUP($R50,O2Depth!$A$10:$AG$2410,4*($C$8-1)+4) / 0.3048) -> 25.22440945 | U50: =IF(OR(LEFT($B$8,1)="C"),#N/A,VLOOKUP($R50,O2Depth!$A$10:$AG$2410,4*($C$8-1)+5) / 0.3048) -> 29.47178478 | V50: =IF(OR(LEFT($B$8,1)="C"),#N/A,VLOOKUP($R50,O2Depth!$A$10:$AG$2410,4*($C$8-1)+2) / 0.3048) -> 25.4917979
H51: 26 | I51: =IF($B$4="Annual Average", AVERAGE(OFFSET(O2Depth!$A$10,$H51*12,4*($C$8-1)+2,12,1)), MAX(OFFSET(O2Depth!$A$10,$H51*12,4*($C$8-1)+2,12,1))) / 0.3048 -> 0.4769028871 | J51: =IF($B$4="Annual Average", AVERAGE(OFFSET(O2Depth!$A$10,$H51*12,4*($C$8-1)+3,12,1)), MAX(OFFSET(O2Depth!$A$10,$H51*12,4*($C$8-1)+3,12,1))) / 0.3048 -> 0.576476378 | K51: =IF($B$4="Annual Average", AVERAGE(OFFSET(O2Depth!$A$10,$H51*12,4*($C$8-1)+4,12,1)), MAX(OFFSET(O2Depth!$A$10,$H51*12,4*($C$8-1)+4,12,1))) / 0.3048 -> 0.7041010499 | L51: =IF($B$4="Annual Average", AVERAGE(OFFSET(O2Depth!$A$10,$H51*12,4*($C$8-1)+1,12,1)), MAX(OFFSET(O2Depth!$A$10,$H51*12,4*($C$8-1)+1,12,1))) / 0.3048 -> 0.5835629921 | R51: 12.16666667 | S51: =IF(OR(LEFT($B$8,1)="C"),#N/A,VLOOKUP($R51,O2Depth!$A$10:$AG$2410,4*($C$8-1)+3) / 0.3048) -> 21.70341207 | T51: =IF(OR(LEFT($B$8,1)="C"),#N/A,VLOOKUP($R51,O2Depth!$A$10:$AG$2410,4*($C$8-1)+4) / 0.3048) -> 25.22440945 | U51: =IF(OR(LEFT($B$8,1)="C"),#N/A,VLOOKUP($R51,O2Depth!$A$10:$AG$2410,4*($C$8-1)+5) / 0.3048) -> 29.47178478 | V51: =IF(OR(LEFT($B$8,1)="C"),#N/A,VLOOKUP($R51,O2Depth!$A$10:$AG$2410,4*($C$8-1)+2) / 0.3048) -> 25.4917979
H52: 27 | I52: =IF($B$4="Annual Average", AVERAGE(OFFSET(O2Depth!$A$10,$H52*12,4*($C$8-1)+2,12,1)), MAX(OFFSET(O2Depth!$A$10,$H52*12,4*($C$8-1)+2,12,1))) / 0.3048 -> 0.4793635171 | J52: =IF($B$4="Annual Average", AVERAGE(OFFSET(O2Depth!$A$10,$H52*12,4*($C$8-1)+3,12,1)), MAX(OFFSET(O2Depth!$A$10,$H52*12,4*($C$8-1)+3,12,1))) / 0.3048 -> 0.5701771654 | K52: =IF($B$4="Annual Average", AVERAGE(OFFSET(O2Depth!$A$10,$H52*12,4*($C$8-1)+4,12,1)), MAX(OFFSET(O2Depth!$A$10,$H52*12,4*($C$8-1)+4,12,1))) / 0.3048 -> 0.7001312336 | L52: =IF($B$4="Annual Average", AVERAGE(OFFSET(O2Depth!$A$10,$H52*12,4*($C$8-1)+1,12,1)), MAX(OFFSET(O2Depth!$A$10,$H52*12,4*($C$8-1)+1,12,1))) / 0.3048 -> 0.5791666667 | R52: 12.25 | S52: =IF(OR(LEFT($B$8,1)="C"),#N/A,VLOOKUP($R52,O2Depth!$A$10:$AG$2410,4*($C$8-1)+3) / 0.3048) -> 22.91666667 | T52: =IF(OR(LEFT($B$8,1)="C"),#N/A,VLOOKUP($R52,O2Depth!$A$10:$AG$2410,4*($C$8-1)+4) / 0.3048) -> 26.46259843 | U52: =IF(OR(LEFT($B$8,1)="C"),#N/A,VLOOKUP($R52,O2Depth!$A$10:$AG$2410,4*($C$8-1)+5) / 0.3048) -> 31.00065617 | V52: =IF(OR(LEFT($B$8,1)="C"),#N/A,VLOOKUP($R52,O2Depth!$A$10:$AG$2410,4*($C$8-1)+2) / 0.3048) -> 26.84350394
H53: 28 | I53: =IF($B$4="Annual Average", AVERAGE(OFFSET(O2Depth!$A$10,$H53*12,4*($C$8-1)+2,12,1)), MAX(OFFSET(O2Depth!$A$10,$H53*12,4*($C$8-1)+2,12,1))) / 0.3048 -> 0.4790682415 | J53: =IF($B$4="Annual Average", AVERAGE(OFFSET(O2Depth!$A$10,$H53*12,4*($C$8-1)+3,12,1)), MAX(OFFSET(O2Depth!$A$10,$H53*12,4*($C$8-1)+3,12,1))) / 0.3048 -> 0.5715223097 | K53: =IF($B$4="Annual Average", AVERAGE(OFFSET(O2Depth!$A$10,$H53*12,4*($C$8-1)+4,12,1)), MAX(OFFSET(O2Depth!$A$10,$H53*12,4*($C$8-1)+4,12,1))) / 0.3048 -> 0.7077755906 | L53: =IF($B$4="Annual Average", AVERAGE(OFFSET(O2Depth!$A$10,$H53*12,4*($C$8-1)+1,12,1)), MAX(OFFSET(O2Depth!$A$10,$H53*12,4*($C$8-1)+1,12,1))) / 0.3048 -> 0.5802493438 | R53: 12.33333333 | S53: =IF(OR(LEFT($B$8,1)="C"),#N/A,VLOOKUP($R53,O2Depth!$A$10:$AG$2410,4*($C$8-1)+3) / 0.3048) -> 23.42552493 | T53: =IF(OR(LEFT($B$8,1)="C"),#N/A,VLOOKUP($R53,O2Depth!$A$10:$AG$2410,4*($C$8-1)+4) / 0.3048) -> 27.07053806 | U53: =IF(OR(LEFT($B$8,1)="C"),#N/A,VLOOKUP($R53,O2Depth!$A$10:$AG$2410,4*($C$8-1)+5) / 0.3048) -> 31.7355643 | V53: =IF(OR(LEFT($B$8,1)="C"),#N/A,VLOOKUP($R53,O2Depth!$A$10:$AG$2410,4*($C$8-1)+2) / 0.3048) -> 27.44816273
H54: 29 | I54: =IF($B$4="Annual Average", AVERAGE(OFFSET(O2Depth!$A$10,$H54*12,4*($C$8-1)+2,12,1)), MAX(OFFSET(O2Depth!$A$10,$H54*12,4*($C$8-1)+2,12,1))) / 0.3048 -> 0.4777230971 | J54: =IF($B$4="Annual Average", AVERAGE(OFFSET(O2Depth!$A$10,$H54*12,4*($C$8-1)+3,12,1)), MAX(OFFSET(O2Depth!$A$10,$H54*12,4*($C$8-1)+3,12,1))) / 0.3048 -> 0.574343832 | K54: =IF($B$4="Annual Average", AVERAGE(OFFSET(O2Depth!$A$10,$H54*12,4*($C$8-1)+4,12,1)), MAX(OFFSET(O2Depth!$A$10,$H54*12,4*($C$8-1)+4,12,1))) / 0.3048 -> 0.6942585302 | L54: =IF($B$4="Annual Average", AVERAGE(OFFSET(O2Depth!$A$10,$H54*12,4*($C$8-1)+1,12,1)), MAX(OFFSET(O2Depth!$A$10,$H54*12,4*($C$8-1)+1,12,1))) / 0.3048 -> 0.5828412073 | R54: 12.41666667 | S54: =IF(OR(LEFT($B$8,1)="C"),#N/A,VLOOKUP($R54,O2Depth!$A$10:$AG$2410,4*($C$8-1)+3) / 0.3048) -> 23.42552493 | T54: =IF(OR(LEFT($B$8,1)="C"),#N/A,VLOOKUP($R54,O2Depth!$A$10:$AG$2410,4*($C$8-1)+4) / 0.3048) -> 27.07053806 | U54: =IF(OR(LEFT($B$8,1)="C"),#N/A,VLOOKUP($R54,O2Depth!$A$10:$AG$2410,4*($C$8-1)+5) / 0.3048) -> 31.7355643 | V54: =IF(OR(LEFT($B$8,1)="C"),#N/A,VLOOKUP($R54,O2Depth!$A$10:$AG$2410,4*($C$8-1)+2) / 0.3048) -> 27.44816273
H55: 30 | I55: =IF($B$4="Annual Average", AVERAGE(OFFSET(O2Depth!$A$10,$H55*12,4*($C$8-1)+2,12,1)), MAX(OFFSET(O2Depth!$A$10,$H55*12,4*($C$8-1)+2,12,1))) / 0.3048 -> 0.4789370079 | J55: =IF($B$4="Annual Average", AVERAGE(OFFSET(O2Depth!$A$10,$H55*12,4*($C$8-1)+3,12,1)), MAX(OFFSET(O2Depth!$A$10,$H55*12,4*($C$8-1)+3,12,1))) / 0.3048 -> 0.5715223097 | K55: =IF($B$4="Annual Average", AVERAGE(OFFSET(O2Depth!$A$10,$H55*12,4*($C$8-1)+4,12,1)), MAX(OFFSET(O2Depth!$A$10,$H55*12,4*($C$8-1)+4,12,1))) / 0.3048 -> 0.6934055118 | L55: =IF($B$4="Annual Average", AVERAGE(OFFSET(O2Depth!$A$10,$H55*12,4*($C$8-1)+1,12,1)), MAX(OFFSET(O2Depth!$A$10,$H55*12,4*($C$8-1)+1,12,1))) / 0.3048 -> 0.5787401575 | R55: 12.5 | S55: =IF(OR(LEFT($B$8,1)="C"),#N/A,VLOOKUP($R55,O2Depth!$A$10:$AG$2410,4*($C$8-1)+3) / 0.3048) -> 23.78641732 | T55: =IF(OR(LEFT($B$8,1)="C"),#N/A,VLOOKUP($R55,O2Depth!$A$10:$AG$2410,4*($C$8-1)+4) / 0.3048) -> 27.87368766 | U55: =IF(OR(LEFT($B$8,1)="C"),#N/A,VLOOKUP($R55,O2Depth!$A$10:$AG$2410,4*($C$8-1)+5) / 0.3048) -> 32.87401575 | V55: =IF(OR(LEFT($B$8,1)="C"),#N/A,VLOOKUP($R55,O2Depth!$A$10:$AG$2410,4*($C$8-1)+2) / 0.3048) -> 28.30150919
H56: 31 | I56: =IF($B$4="Annual Average", AVERAGE(OFFSET(O2Depth!$A$10,$H56*12,4*($C$8-1)+2,12,1)), MAX(OFFSET(O2Depth!$A$10,$H56*12,4*($C$8-1)+2,12,1))) / 0.3048 -> 0.4782480315 | J56: =IF($B$4="Annual Average", AVERAGE(OFFSET(O2Depth!$A$10,$H56*12,4*($C$8-1)+3,12,1)), MAX(OFFSET(O2Depth!$A$10,$H56*12,4*($C$8-1)+3,12,1))) / 0.3048 -> 0.5697506562 | K56: =IF($B$4="Annual Average", AVERAGE(OFFSET(O2Depth!$A$10,$H56*12,4*($C$8-1)+4,12,1)), MAX(OFFSET(O2Depth!$A$10,$H56*12,4*($C$8-1)+4,12,1))) / 0.3048 -> 0.7050853018 | L56: =IF($B$4="Annual Average", AVERAGE(OFFSET(O2Depth!$A$10,$H56*12,4*($C$8-1)+1,12,1)), MAX(OFFSET(O2Depth!$A$10,$H56*12,4*($C$8-1)+1,12,1))) / 0.3048 -> 0.5801509186 | R56: 12.58333333 | S56: =IF(OR(LEFT($B$8,1)="C"),#N/A,VLOOKUP($R56,O2Depth!$A$10:$AG$2410,4*($C$8-1)+3) / 0.3048) -> 23.31266404 | T56: =IF(OR(LEFT($B$8,1)="C"),#N/A,VLOOKUP($R56,O2Depth!$A$10:$AG$2410,4*($C$8-1)+4) / 0.3048) -> 27.55511811 | U56: =IF(OR(LEFT($B$8,1)="C"),#N/A,VLOOKUP($R56,O2Depth!$A$10:$AG$2410,4*($C$8-1)+5) / 0.3048) -> 32.63254593 | V56: =IF(OR(LEFT($B$8,1)="C"),#N/A,VLOOKUP($R56,O2Depth!$A$10:$AG$2410,4*($C$8-1)+2) / 0.3048) -> 27.65419948
H57: 32 | I57: =IF($B$4="Annual Average", AVERAGE(OFFSET(O2Depth!$A$10,$H57*12,4*($C$8-1)+2,12,1)), MAX(OFFSET(O2Depth!$A$10,$H57*12,4*($C$8-1)+2,12,1))) / 0.3048 -> 0.4762467192 | J57: =IF($B$4="Annual Average", AVERAGE(OFFSET(O2Depth!$A$10,$H57*12,4*($C$8-1)+3,12,1)), MAX(OFFSET(O2Depth!$A$10,$H57*12,4*($C$8-1)+3,12,1))) / 0.3048 -> 0.5685367454 | K57: =IF($B$4="Annual Average", AVERAGE(OFFSET(O2Depth!$A$10,$H57*12,4*($C$8-1)+4,12,1)), MAX(OFFSET(O2Depth!$A$10,$H57*12,4*($C$8-1)+4,12,1))) / 0.3048 -> 0.7120406824 | L57: =IF($B$4="Annual Average", AVERAGE(OFFSET(O2Depth!$A$10,$H57*12,4*($C$8-1)+1,12,1)), MAX(OFFSET(O2Depth!$A$10,$H57*12,4*($C$8-1)+1,12,1))) / 0.3048 -> 0.5793963255 | R57: 12.66666667 | S57: =IF(OR(LEFT($B$8,1)="C"),#N/A,VLOOKUP($R57,O2Depth!$A$10:$AG$2410,4*($C$8-1)+3) / 0.3048) -> 23.31266404 | T57: =IF(OR(LEFT($B$8,1)="C"),#N/A,VLOOKUP($R57,O2Depth!$A$10:$AG$2410,4*($C$8-1)+4) / 0.3048) -> 27.55511811 | U57: =IF(OR(LEFT($B$8,1)="C"),#N/A,VLOOKUP($R57,O2Depth!$A$10:$AG$2410,4*($C$8-1)+5) / 0.3048) -> 32.63254593 | V57: =IF(OR(LEFT($B$8,1)="C"),#N/A,VLOOKUP($R57,O2Depth!$A$10:$AG$2410,4*($C$8-1)+2) / 0.3048) -> 27.65419948
H58: 33 | I58: =IF($B$4="Annual Average", AVERAGE(OFFSET(O2Depth!$A$10,$H58*12,4*($C$8-1)+2,12,1)), MAX(OFFSET(O2Depth!$A$10,$H58*12,4*($C$8-1)+2,12,1))) / 0.3048 -> 0.475656168 | J58: =IF($B$4="Annual Average", AVERAGE(OFFSET(O2Depth!$A$10,$H58*12,4*($C$8-1)+3,12,1)), MAX(OFFSET(O2Depth!$A$10,$H58*12,4*($C$8-1)+3,12,1))) / 0.3048 -> 0.5710958005 | K58: =IF($B$4="Annual Average", AVERAGE(OFFSET(O2Depth!$A$10,$H58*12,4*($C$8-1)+4,12,1)), MAX(OFFSET(O2Depth!$A$10,$H58*12,4*($C$8-1)+4,12,1))) / 0.3048 -> 0.687335958 | L58: =IF($B$4="Annual Average", AVERAGE(OFFSET(O2Depth!$A$10,$H58*12,4*($C$8-1)+1,12,1)), MAX(OFFSET(O2Depth!$A$10,$H58*12,4*($C$8-1)+1,12,1))) / 0.3048 -> 0.5765091864 | R58: 12.75 | S58: =IF(OR(LEFT($B$8,1)="C"),#N/A,VLOOKUP($R58,O2Depth!$A$10:$AG$2410,4*($C$8-1)+3) / 0.3048) -> 21.95866142 | T58: =IF(OR(LEFT($B$8,1)="C"),#N/A,VLOOKUP($R58,O2Depth!$A$10:$AG$2410,4*($C$8-1)+4) / 0.3048) -> 25.69127297 | U58: =IF(OR(LEFT($B$8,1)="C"),#N/A,VLOOKUP($R58,O2Depth!$A$10:$AG$2410,4*($C$8-1)+5) / 0.3048) -> 30.26738845 | V58: =IF(OR(LEFT($B$8,1)="C"),#N/A,VLOOKUP($R58,O2Depth!$A$10:$AG$2410,4*($C$8-1)+2) / 0.3048) -> 25.89862205
H59: 34 | I59: =IF($B$4="Annual Average", AVERAGE(OFFSET(O2Depth!$A$10,$H59*12,4*($C$8-1)+2,12,1)), MAX(OFFSET(O2Depth!$A$10,$H59*12,4*($C$8-1)+2,12,1))) / 0.3048 -> 0.4746062992 | J59: =IF($B$4="Annual Average", AVERAGE(OFFSET(O2Depth!$A$10,$H59*12,4*($C$8-1)+3,12,1)), MAX(OFFSET(O2Depth!$A$10,$H59*12,4*($C$8-1)+3,12,1))) / 0.3048 -> 0.5736220472 | K59: =IF($B$4="Annual Average", AVERAGE(OFFSET(O2Depth!$A$10,$H59*12,4*($C$8-1)+4,12,1)), MAX(OFFSET(O2Depth!$A$10,$H59*12,4*($C$8-1)+4,12,1))) / 0.3048 -> 0.707316273 | L59: =IF($B$4="Annual Average", AVERAGE(OFFSET(O2Depth!$A$10,$H59*12,4*($C$8-1)+1,12,1)), MAX(OFFSET(O2Depth!$A$10,$H59*12,4*($C$8-1)+1,12,1))) / 0.3048 -> 0.5842519685 | R59: 12.83333333 | S59: =IF(OR(LEFT($B$8,1)="C"),#N/A,VLOOKUP($R59,O2Depth!$A$10:$AG$2410,4*($C$8-1)+3) / 0.3048) -> 21.39665354 | T59: =IF(OR(LEFT($B$8,1)="C"),#N/A,VLOOKUP($R59,O2Depth!$A$10:$AG$2410,4*($C$8-1)+4) / 0.3048) -> 25.02690289 | U59: =IF(OR(LEFT($B$8,1)="C"),#N/A,VLOOKUP($R59,O2Depth!$A$10:$AG$2410,4*($C$8-1)+5) / 0.3048) -> 29.45997375 | V59: =IF(OR(LEFT($B$8,1)="C"),#N/A,VLOOKUP($R59,O2Depth!$A$10:$AG$2410,4*($C$8-1)+2) / 0.3048) -> 25.25065617
H60: 35 | I60: =IF($B$4="Annual Average", AVERAGE(OFFSET(O2Depth!$A$10,$H60*12,4*($C$8-1)+2,12,1)), MAX(OFFSET(O2Depth!$A$10,$H60*12,4*($C$8-1)+2,12,1))) / 0.3048 -> 0.476476378 | J60: =IF($B$4="Annual Average", AVERAGE(OFFSET(O2Depth!$A$10,$H60*12,4*($C$8-1)+3,12,1)), MAX(OFFSET(O2Depth!$A$10,$H60*12,4*($C$8-1)+3,12,1))) / 0.3048 -> 0.5708989501 | K60: =IF($B$4="Annual Average", AVERAGE(OFFSET(O2Depth!$A$10,$H60*12,4*($C$8-1)+4,12,1)), MAX(OFFSET(O2Depth!$A$10,$H60*12,4*($C$8-1)+4,12,1))) / 0.3048 -> 0.7156496063 | L60: =IF($B$4="Annual Average", AVERAGE(OFFSET(O2Depth!$A$10,$H60*12,4*($C$8-1)+1,12,1)), MAX(OFFSET(O2Depth!$A$10,$H60*12,4*($C$8-1)+1,12,1))) / 0.3048 -> 0.5836286089 | R60: 12.91666667 | S60: =IF(OR(LEFT($B$8,1)="C"),#N/A,VLOOKUP($R60,O2Depth!$A$10:$AG$2410,4*($C$8-1)+3) / 0.3048) -> 21.39665354 | T60: =IF(OR(LEFT($B$8,1)="C"),#N/A,VLOOKUP($R60,O2Depth!$A$10:$AG$2410,4*($C$8-1)+4) / 0.3048) -> 25.02690289 | U60: =IF(OR(LEFT($B$8,1)="C"),#N/A,VLOOKUP($R60,O2Depth!$A$10:$AG$2410,4*($C$8-1)+5) / 0.3048) -> 29.45997375 | V60: =IF(OR(LEFT($B$8,1)="C"),#N/A,VLOOKUP($R60,O2Depth!$A$10:$AG$2410,4*($C$8-1)+2) / 0.3048) -> 25.25065617
H61: 36 | I61: =IF($B$4="Annual Average", AVERAGE(OFFSET(O2Depth!$A$10,$H61*12,4*($C$8-1)+2,12,1)), MAX(OFFSET(O2Depth!$A$10,$H61*12,4*($C$8-1)+2,12,1))) / 0.3048 -> 0.4726706037 | J61: =IF($B$4="Annual Average", AVERAGE(OFFSET(O2Depth!$A$10,$H61*12,4*($C$8-1)+3,12,1)), MAX(OFFSET(O2Depth!$A$10,$H61*12,4*($C$8-1)+3,12,1))) / 0.3048 -> 0.5792322835 | K61: =IF($B$4="Annual Average", AVERAGE(OFFSET(O2Depth!$A$10,$H61*12,4*($C$8-1)+4,12,1)), MAX(OFFSET(O2Depth!$A$10,$H61*12,4*($C$8-1)+4,12,1))) / 0.3048 -> 0.6970144357 | L61: =IF($B$4="Annual Average", AVERAGE(OFFSET(O2Depth!$A$10,$H61*12,4*($C$8-1)+1,12,1)), MAX(OFFSET(O2Depth!$A$10,$H61*12,4*($C$8-1)+1,12,1))) / 0.3048 -> 0.581660105 | R61: 13 | S61: =IF(OR(LEFT($B$8,1)="C"),#N/A,VLOOKUP($R61,O2Depth!$A$10:$AG$2410,4*($C$8-1)+3) / 0.3048) -> 20.57808399 | T61: =IF(OR(LEFT($B$8,1)="C"),#N/A,VLOOKUP($R61,O2Depth!$A$10:$AG$2410,4*($C$8-1)+4) / 0.3048) -> 23.97211286 | U61: =IF(OR(LEFT($B$8,1)="C"),#N/A,VLOOKUP($R61,O2Depth!$A$10:$AG$2410,4*($C$8-1)+5) / 0.3048) -> 28.27066929 | V61: =IF(OR(LEFT($B$8,1)="C"),#N/A,VLOOKUP($R61,O2Depth!$A$10:$AG$2410,4*($C$8-1)+2) / 0.3048) -> 24.20669291
H62: 37 | I62: =IF($B$4="Annual Average", AVERAGE(OFFSET(O2Depth!$A$10,$H62*12,4*($C$8-1)+2,12,1)), MAX(OFFSET(O2Depth!$A$10,$H62*12,4*($C$8-1)+2,12,1))) / 0.3048 -> 0.4710629921 | J62: =IF($B$4="Annual Average", AVERAGE(OFFSET(O2Depth!$A$10,$H62*12,4*($C$8-1)+3,12,1)), MAX(OFFSET(O2Depth!$A$10,$H62*12,4*($C$8-1)+3,12,1))) / 0.3048 -> 0.5697834646 | K62: =IF($B$4="Annual Average", AVERAGE(OFFSET(O2Depth!$A$10,$H62*12,4*($C$8-1)+4,12,1)), MAX(OFFSET(O2Depth!$A$10,$H62*12,4*($C$8-1)+4,12,1))) / 0.3048 -> 0.694488189 | L62: =IF($B$4="Annual Average", AVERAGE(OFFSET(O2Depth!$A$10,$H62*12,4*($C$8-1)+1,12,1)), MAX(OFFSET(O2Depth!$A$10,$H62*12,4*($C$8-1)+1,12,1))) / 0.3048 -> 0.5773622047 | R62: 13.08333333 | S62: =IF(OR(LEFT($B$8,1)="C"),#N/A,VLOOKUP($R62,O2Depth!$A$10:$AG$2410,4*($C$8-1)+3) / 0.3048) -> 21.79461942 | T62: =IF(OR(LEFT($B$8,1)="C"),#N/A,VLOOKUP($R62,O2Depth!$A$10:$AG$2410,4*($C$8-1)+4) / 0.3048) -> 25.40551181 | U62: =IF(OR(LEFT($B$8,1)="C"),#N/A,VLOOKUP($R62,O2Depth!$A$10:$AG$2410,4*($C$8-1)+5) / 0.3048) -> 29.89566929 | V62: =IF(OR(LEFT($B$8,1)="C"),#N/A,VLOOKUP($R62,O2Depth!$A$10:$AG$2410,4*($C$8-1)+2) / 0.3048) -> 25.60728346
H63: 38 | I63: =IF($B$4="Annual Average", AVERAGE(OFFSET(O2Depth!$A$10,$H63*12,4*($C$8-1)+2,12,1)), MAX(OFFSET(O2Depth!$A$10,$H63*12,4*($C$8-1)+2,12,1))) / 0.3048 -> 0.4766732283 | J63: =IF($B$4="Annual Average", AVERAGE(OFFSET(O2Depth!$A$10,$H63*12,4*($C$8-1)+3,12,1)), MAX(OFFSET(O2Depth!$A$10,$H63*12,4*($C$8-1)+3,12,1))) / 0.3048 -> 0.5721784777 | K63: =IF($B$4="Annual Average", AVERAGE(OFFSET(O2Depth!$A$10,$H63*12,4*($C$8-1)+4,12,1)), MAX(OFFSET(O2Depth!$A$10,$H63*12,4*($C$8-1)+4,12,1))) / 0.3048 -> 0.7056102362 | L63: =IF($B$4="Annual Average", AVERAGE(OFFSET(O2Depth!$A$10,$H63*12,4*($C$8-1)+1,12,1)), MAX(OFFSET(O2Depth!$A$10,$H63*12,4*($C$8-1)+1,12,1))) / 0.3048 -> 0.5800524934 | R63: 13.16666667 | S63: =IF(OR(LEFT($B$8,1)="C"),#N/A,VLOOKUP($R63,O2Depth!$A$10:$AG$2410,4*($C$8-1)+3) / 0.3048) -> 21.79461942 | T63: =IF(OR(LEFT($B$8,1)="C"),#N/A,VLOOKUP($R63,O2Depth!$A$10:$AG$2410,4*($C$8-1)+4) / 0.3048) -> 25.40551181 | U63: =IF(OR(LEFT($B$8,1)="C"),#N/A,VLOOKUP($R63,O2Depth!$A$10:$AG$2410,4*($C$8-1)+5) / 0.3048) -> 29.89566929 | V63: =IF(OR(LEFT($B$8,1)="C"),#N/A,VLOOKUP($R63,O2Depth!$A$10:$AG$2410,4*($C$8-1)+2) / 0.3048) -> 25.60728346
H64: 39 | I64: =IF($B$4="Annual Average", AVERAGE(OFFSET(O2Depth!$A$10,$H64*12,4*($C$8-1)+2,12,1)), MAX(OFFSET(O2Depth!$A$10,$H64*12,4*($C$8-1)+2,12,1))) / 0.3048 -> 0.4765419948 | J64: =IF($B$4="Annual Average", AVERAGE(OFFSET(O2Depth!$A$10,$H64*12,4*($C$8-1)+3,12,1)), MAX(OFFSET(O2Depth!$A$10,$H64*12,4*($C$8-1)+3,12,1))) / 0.3048 -> 0.5668963255 | K64: =IF($B$4="Annual Average", AVERAGE(OFFSET(O2Depth!$A$10,$H64*12,4*($C$8-1)+4,12,1)), MAX(OFFSET(O2Depth!$A$10,$H64*12,4*($C$8-1)+4,12,1))) / 0.3048 -> 0.7045275591 | L64: =IF($B$4="Annual Average", AVERAGE(OFFSET(O2Depth!$A$10,$H64*12,4*($C$8-1)+1,12,1)), MAX(OFFSET(O2Depth!$A$10,$H64*12,4*($C$8-1)+1,12,1))) / 0.3048 -> 0.5811351706 | R64: 13.25 | S64: =IF(OR(LEFT($B$8,1)="C"),#N/A,VLOOKUP($R64,O2Depth!$A$10:$AG$2410,4*($C$8-1)+3) / 0.3048) -> 23.00754593 | T64: =IF(OR(LEFT($B$8,1)="C"),#N/A,VLOOKUP($R64,O2Depth!$A$10:$AG$2410,4*($C$8-1)+4) / 0.3048) -> 26.72178478 | U64: =IF(OR(LEFT($B$8,1)="C"),#N/A,VLOOKUP($R64,O2Depth!$A$10:$AG$2410,4*($C$8-1)+5) / 0.3048) -> 31.51345144 | V64: =IF(OR(LEFT($B$8,1)="C"),#N/A,VLOOKUP($R64,O2Depth!$A$10:$AG$2410,4*($C$8-1)+2) / 0.3048) -> 26.96030184
H65: 40 | I65: =IF($B$4="Annual Average", AVERAGE(OFFSET(O2Depth!$A$10,$H65*12,4*($C$8-1)+2,12,1)), MAX(OFFSET(O2Depth!$A$10,$H65*12,4*($C$8-1)+2,12,1))) / 0.3048 -> 0.4770997375 | J65: =IF($B$4="Annual Average", AVERAGE(OFFSET(O2Depth!$A$10,$H65*12,4*($C$8-1)+3,12,1)), MAX(OFFSET(O2Depth!$A$10,$H65*12,4*($C$8-1)+3,12,1))) / 0.3048 -> 0.5670275591 | K65: =IF($B$4="Annual Average", AVERAGE(OFFSET(O2Depth!$A$10,$H65*12,4*($C$8-1)+4,12,1)), MAX(OFFSET(O2Depth!$A$10,$H65*12,4*($C$8-1)+4,12,1))) / 0.3048 -> 0.7096456693 | L65: =IF($B$4="Annual Average", AVERAGE(OFFSET(O2Depth!$A$10,$H65*12,4*($C$8-1)+1,12,1)), MAX(OFFSET(O2Depth!$A$10,$H65*12,4*($C$8-1)+1,12,1))) / 0.3048 -> 0.5814304462 | R65: 13.33333333 | S65: =IF(OR(LEFT($B$8,1)="C"),#N/A,VLOOKUP($R65,O2Depth!$A$10:$AG$2410,4*($C$8-1)+3) / 0.3048) -> 23.51148294 | T65: =IF(OR(LEFT($B$8,1)="C"),#N/A,VLOOKUP($R65,O2Depth!$A$10:$AG$2410,4*($C$8-1)+4) / 0.3048) -> 27.33661417 | U65: =IF(OR(LEFT($B$8,1)="C"),#N/A,VLOOKUP($R65,O2Depth!$A$10:$AG$2410,4*($C$8-1)+5) / 0.3048) -> 32.25295276 | V65: =IF(OR(LEFT($B$8,1)="C"),#N/A,VLOOKUP($R65,O2Depth!$A$10:$AG$2410,4*($C$8-1)+2) / 0.3048) -> 27.5656168
H66: 41 | I66: =IF($B$4="Annual Average", AVERAGE(OFFSET(O2Depth!$A$10,$H66*12,4*($C$8-1)+2,12,1)), MAX(OFFSET(O2Depth!$A$10,$H66*12,4*($C$8-1)+2,12,1))) / 0.3048 -> 0.4766732283 | J66: =IF($B$4="Annual Average", AVERAGE(OFFSET(O2Depth!$A$10,$H66*12,4*($C$8-1)+3,12,1)), MAX(OFFSET(O2Depth!$A$10,$H66*12,4*($C$8-1)+3,12,1))) / 0.3048 -> 0.5682742782 | K66: =IF($B$4="Annual Average", AVERAGE(OFFSET(O2Depth!$A$10,$H66*12,4*($C$8-1)+4,12,1)), MAX(OFFSET(O2Depth!$A$10,$H66*12,4*($C$8-1)+4,12,1))) / 0.3048 -> 0.700328084 | L66: =IF($B$4="Annual Average", AVERAGE(OFFSET(O2Depth!$A$10,$H66*12,4*($C$8-1)+1,12,1)), MAX(OFFSET(O2Depth!$A$10,$H66*12,4*($C$8-1)+1,12,1))) / 0.3048 -> 0.5796259843 | R66: 13.41666667 | S66: =IF(OR(LEFT($B$8,1)="C"),#N/A,VLOOKUP($R66,O2Depth!$A$10:$AG$2410,4*($C$8-1)+3) / 0.3048) -> 23.51148294 | T66: =IF(OR(LEFT($B$8,1)="C"),#N/A,VLOOKUP($R66,O2Depth!$A$10:$AG$2410,4*($C$8-1)+4) / 0.3048) -> 27.33661417 | U66: =IF(OR(LEFT($B$8,1)="C"),#N/A,VLOOKUP($R66,O2Depth!$A$10:$AG$2410,4*($C$8-1)+5) / 0.3048) -> 32.25295276 | V66: =IF(OR(LEFT($B$8,1)="C"),#N/A,VLOOKUP($R66,O2Depth!$A$10:$AG$2410,4*($C$8-1)+2) / 0.3048) -> 27.5656168
H67: 42 | I67: =IF($B$4="Annual Average", AVERAGE(OFFSET(O2Depth!$A$10,$H67*12,4*($C$8-1)+2,12,1)), MAX(OFFSET(O2Depth!$A$10,$H67*12,4*($C$8-1)+2,12,1))) / 0.3048 -> 0.4733267717 | J67: =IF($B$4="Annual Average", AVERAGE(OFFSET(O2Depth!$A$10,$H67*12,4*($C$8-1)+3,12,1)), MAX(OFFSET(O2Depth!$A$10,$H67*12,4*($C$8-1)+3,12,1))) / 0.3048 -> 0.5746062992 | K67: =IF($B$4="Annual Average", AVERAGE(OFFSET(O2Depth!$A$10,$H67*12,4*($C$8-1)+4,12,1)), MAX(OFFSET(O2Depth!$A$10,$H67*12,4*($C$8-1)+4,12,1))) / 0.3048 -> 0.7147637795 | L67: =IF($B$4="Annual Average", AVERAGE(OFFSET(O2Depth!$A$10,$H67*12,4*($C$8-1)+1,12,1)), MAX(OFFSET(O2Depth!$A$10,$H67*12,4*($C$8-1)+1,12,1))) / 0.3048 -> 0.5821194226 | R67: 13.5 | S67: =IF(OR(LEFT($B$8,1)="C"),#N/A,VLOOKUP($R67,O2Depth!$A$10:$AG$2410,4*($C$8-1)+3) / 0.3048) -> 24.0941601 | T67: =IF(OR(LEFT($B$8,1)="C"),#N/A,VLOOKUP($R67,O2Depth!$A$10:$AG$2410,4*($C$8-1)+4) / 0.3048) -> 28.00032808 | U67: =IF(OR(LEFT($B$8,1)="C"),#N/A,VLOOKUP($R67,O2Depth!$A$10:$AG$2410,4*($C$8-1)+5) / 0.3048) -> 33.49409449 | V67: =IF(OR(LEFT($B$8,1)="C"),#N/A,VLOOKUP($R67,O2Depth!$A$10:$AG$2410,4*($C$8-1)+2) / 0.3048) -> 28.43667979
H68: 43 | I68: =IF($B$4="Annual Average", AVERAGE(OFFSET(O2Depth!$A$10,$H68*12,4*($C$8-1)+2,12,1)), MAX(OFFSET(O2Depth!$A$10,$H68*12,4*($C$8-1)+2,12,1))) / 0.3048 -> 0.4777230971 | J68: =IF($B$4="Annual Average", AVERAGE(OFFSET(O2Depth!$A$10,$H68*12,4*($C$8-1)+3,12,1)), MAX(OFFSET(O2Depth!$A$10,$H68*12,4*($C$8-1)+3,12,1))) / 0.3048 -> 0.5752624672 | K68: =IF($B$4="Annual Average", AVERAGE(OFFSET(O2Depth!$A$10,$H68*12,4*($C$8-1)+4,12,1)), MAX(OFFSET(O2Depth!$A$10,$H68*12,4*($C$8-1)+4,12,1))) / 0.3048 -> 0.6953740157 | L68: =IF($B$4="Annual Average", AVERAGE(OFFSET(O2Depth!$A$10,$H68*12,4*($C$8-1)+1,12,1)), MAX(OFFSET(O2Depth!$A$10,$H68*12,4*($C$8-1)+1,12,1))) / 0.3048 -> 0.5797244094 | R68: 13.58333333 | S68: =IF(OR(LEFT($B$8,1)="C"),#N/A,VLOOKUP($R68,O2Depth!$A$10:$AG$2410,4*($C$8-1)+3) / 0.3048) -> 23.38287402 | T68: =IF(OR(LEFT($B$8,1)="C"),#N/A,VLOOKUP($R68,O2Depth!$A$10:$AG$2410,4*($C$8-1)+4) / 0.3048) -> 27.65059055 | U68: =IF(OR(LEFT($B$8,1)="C"),#N/A,VLOOKUP($R68,O2Depth!$A$10:$AG$2410,4*($C$8-1)+5) / 0.3048) -> 32.89370079 | V68: =IF(OR(LEFT($B$8,1)="C"),#N/A,VLOOKUP($R68,O2Depth!$A$10:$AG$2410,4*($C$8-1)+2) / 0.3048) -> 27.85170604
H69: 44 | I69: =IF($B$4="Annual Average", AVERAGE(OFFSET(O2Depth!$A$10,$H69*12,4*($C$8-1)+2,12,1)), MAX(OFFSET(O2Depth!$A$10,$H69*12,4*($C$8-1)+2,12,1))) / 0.3048 -> 0.4731299213 | J69: =IF($B$4="Annual Average", AVERAGE(OFFSET(O2Depth!$A$10,$H69*12,4*($C$8-1)+3,12,1)), MAX(OFFSET(O2Depth!$A$10,$H69*12,4*($C$8-1)+3,12,1))) / 0.3048 -> 0.5709645669 | K69: =IF($B$4="Annual Average", AVERAGE(OFFSET(O2Depth!$A$10,$H69*12,4*($C$8-1)+4,12,1)), MAX(OFFSET(O2Depth!$A$10,$H69*12,4*($C$8-1)+4,12,1))) / 0.3048 -> 0.6927821522 | L69: =IF($B$4="Annual Average", AVERAGE(OFFSET(O2Depth!$A$10,$H69*12,4*($C$8-1)+1,12,1)), MAX(OFFSET(O2Depth!$A$10,$H69*12,4*($C$8-1)+1,12,1))) / 0.3048 -> 0.5782480315 | R69: 13.66666667 | S69: =IF(OR(LEFT($B$8,1)="C"),#N/A,VLOOKUP($R69,O2Depth!$A$10:$AG$2410,4*($C$8-1)+3) / 0.3048) -> 23.38287402 | T69: =IF(OR(LEFT($B$8,1)="C"),#N/A,VLOOKUP($R69,O2Depth!$A$10:$AG$2410,4*($C$8-1)+4) / 0.3048) -> 27.65059055 | U69: =IF(OR(LEFT($B$8,1)="C"),#N/A,VLOOKUP($R69,O2Depth!$A$10:$AG$2410,4*($C$8-1)+5) / 0.3048) -> 32.89370079 | V69: =IF(OR(LEFT($B$8,1)="C"),#N/A,VLOOKUP($R69,O2Depth!$A$10:$AG$2410,4*($C$8-1)+2) / 0.3048) -> 27.85170604
H70: 45 | I70: =IF($B$4="Annual Average", AVERAGE(OFFSET(O2Depth!$A$10,$H70*12,4*($C$8-1)+2,12,1)), MAX(OFFSET(O2Depth!$A$10,$H70*12,4*($C$8-1)+2,12,1))) / 0.3048 -> 0.475984252 | J70: =IF($B$4="Annual Average", AVERAGE(OFFSET(O2Depth!$A$10,$H70*12,4*($C$8-1)+3,12,1)), MAX(OFFSET(O2Depth!$A$10,$H70*12,4*($C$8-1)+3,12,1))) / 0.3048 -> 0.567847769 | K70: =IF($B$4="Annual Average", AVERAGE(OFFSET(O2Depth!$A$10,$H70*12,4*($C$8-1)+4,12,1)), MAX(OFFSET(O2Depth!$A$10,$H70*12,4*($C$8-1)+4,12,1))) / 0.3048 -> 0.6982939633 | L70: =IF($B$4="Annual Average", AVERAGE(OFFSET(O2Depth!$A$10,$H70*12,4*($C$8-1)+1,12,1)), MAX(OFFSET(O2Depth!$A$10,$H70*12,4*($C$8-1)+1,12,1))) / 0.3048 -> 0.5786089239 | R70: 13.75 | S70: =IF(OR(LEFT($B$8,1)="C"),#N/A,VLOOKUP($R70,O2Depth!$A$10:$AG$2410,4*($C$8-1)+3) / 0.3048) -> 22.04986877 | T70: =IF(OR(LEFT($B$8,1)="C"),#N/A,VLOOKUP($R70,O2Depth!$A$10:$AG$2410,4*($C$8-1)+4) / 0.3048) -> 25.65748031 | U70: =IF(OR(LEFT($B$8,1)="C"),#N/A,VLOOKUP($R70,O2Depth!$A$10:$AG$2410,4*($C$8-1)+5) / 0.3048) -> 30.37368766 | V70: =IF(OR(LEFT($B$8,1)="C"),#N/A,VLOOKUP($R70,O2Depth!$A$10:$AG$2410,4*($C$8-1)+2) / 0.3048) -> 26.03608924
H71: 46 | I71: =IF($B$4="Annual Average", AVERAGE(OFFSET(O2Depth!$A$10,$H71*12,4*($C$8-1)+2,12,1)), MAX(OFFSET(O2Depth!$A$10,$H71*12,4*($C$8-1)+2,12,1))) / 0.3048 -> 0.475656168 | J71: =IF($B$4="Annual Average", AVERAGE(OFFSET(O2Depth!$A$10,$H71*12,4*($C$8-1)+3,12,1)), MAX(OFFSET(O2Depth!$A$10,$H71*12,4*($C$8-1)+3,12,1))) / 0.3048 -> 0.5753608924 | K71: =IF($B$4="Annual Average", AVERAGE(OFFSET(O2Depth!$A$10,$H71*12,4*($C$8-1)+4,12,1)), MAX(OFFSET(O2Depth!$A$10,$H71*12,4*($C$8-1)+4,12,1))) / 0.3048 -> 0.7038385827 | L71: =IF($B$4="Annual Average", AVERAGE(OFFSET(O2Depth!$A$10,$H71*12,4*($C$8-1)+1,12,1)), MAX(OFFSET(O2Depth!$A$10,$H71*12,4*($C$8-1)+1,12,1))) / 0.3048 -> 0.5817585302 | R71: 13.83333333 | S71: =IF(OR(LEFT($B$8,1)="C"),#N/A,VLOOKUP($R71,O2Depth!$A$10:$AG$2410,4*($C$8-1)+3) / 0.3048) -> 21.50032808 | T71: =IF(OR(LEFT($B$8,1)="C"),#N/A,VLOOKUP($R71,O2Depth!$A$10:$AG$2410,4*($C$8-1)+4) / 0.3048) -> 25.00787402 | U71: =IF(OR(LEFT($B$8,1)="C"),#N/A,VLOOKUP($R71,O2Depth!$A$10:$AG$2410,4*($C$8-1)+5) / 0.3048) -> 29.56824147 | V71: =IF(OR(LEFT($B$8,1)="C"),#N/A,VLOOKUP($R71,O2Depth!$A$10:$AG$2410,4*($C$8-1)+2) / 0.3048) -> 25.375
H72: 47 | I72: =IF($B$4="Annual Average", AVERAGE(OFFSET(O2Depth!$A$10,$H72*12,4*($C$8-1)+2,12,1)), MAX(OFFSET(O2Depth!$A$10,$H72*12,4*($C$8-1)+2,12,1))) / 0.3048 -> 0.4776246719 | J72: =IF($B$4="Annual Average", AVERAGE(OFFSET(O2Depth!$A$10,$H72*12,4*($C$8-1)+3,12,1)), MAX(OFFSET(O2Depth!$A$10,$H72*12,4*($C$8-1)+3,12,1))) / 0.3048 -> 0.5718832021 | K72: =IF($B$4="Annual Average", AVERAGE(OFFSET(O2Depth!$A$10,$H72*12,4*($C$8-1)+4,12,1)), MAX(OFFSET(O2Depth!$A$10,$H72*12,4*($C$8-1)+4,12,1))) / 0.3048 -> 0.7005249344 | L72: =IF($B$4="Annual Average", AVERAGE(OFFSET(O2Depth!$A$10,$H72*12,4*($C$8-1)+1,12,1)), MAX(OFFSET(O2Depth!$A$10,$H72*12,4*($C$8-1)+1,12,1))) / 0.3048 -> 0.5812335958 | R72: 13.91666667 | S72: =IF(OR(LEFT($B$8,1)="C"),#N/A,VLOOKUP($R72,O2Depth!$A$10:$AG$2410,4*($C$8-1)+3) / 0.3048) -> 21.50032808 | T72: =IF(OR(LEFT($B$8,1)="C"),#N/A,VLOOKUP($R72,O2Depth!$A$10:$AG$2410,4*($C$8-1)+4) / 0.3048) -> 25.00787402 | U72: =IF(OR(LEFT($B$8,1)="C"),#N/A,VLOOKUP($R72,O2Depth!$A$10:$AG$2410,4*($C$8-1)+5) / 0.3048) -> 29.56824147 | V72: =IF(OR(LEFT($B$8,1)="C"),#N/A,VLOOKUP($R72,O2Depth!$A$10:$AG$2410,4*($C$8-1)+2) / 0.3048) -> 25.375
H73: 48 | I73: =IF($B$4="Annual Average", AVERAGE(OFFSET(O2Depth!$A$10,$H73*12,4*($C$8-1)+2,12,1)), MAX(OFFSET(O2Depth!$A$10,$H73*12,4*($C$8-1)+2,12,1))) / 0.3048 -> 0.4750984252 | J73: =IF($B$4="Annual Average", AVERAGE(OFFSET(O2Depth!$A$10,$H73*12,4*($C$8-1)+3,12,1)), MAX(OFFSET(O2Depth!$A$10,$H73*12,4*($C$8-1)+3,12,1))) / 0.3048 -> 0.5714895013 | K73: =IF($B$4="Annual Average", AVERAGE(OFFSET(O2Depth!$A$10,$H73*12,4*($C$8-1)+4,12,1)), MAX(OFFSET(O2Depth!$A$10,$H73*12,4*($C$8-1)+4,12,1))) / 0.3048 -> 0.7064304462 | L73: =IF($B$4="Annual Average", AVERAGE(OFFSET(O2Depth!$A$10,$H73*12,4*($C$8-1)+1,12,1)), MAX(OFFSET(O2Depth!$A$10,$H73*12,4*($C$8-1)+1,12,1))) / 0.3048 -> 0.5815616798 | R73: 14 | S73: =IF(OR(LEFT($B$8,1)="C"),#N/A,VLOOKUP($R73,O2Depth!$A$10:$AG$2410,4*($C$8-1)+3) / 0.3048) -> 20.73031496 | T73: =IF(OR(LEFT($B$8,1)="C"),#N/A,VLOOKUP($R73,O2Depth!$A$10:$AG$2410,4*($C$8-1)+4) / 0.3048) -> 24.00688976 | U73: =IF(OR(LEFT($B$8,1)="C"),#N/A,VLOOKUP($R73,O2Depth!$A$10:$AG$2410,4*($C$8-1)+5) / 0.3048) -> 28.06167979 | V73: =IF(OR(LEFT($B$8,1)="C"),#N/A,VLOOKUP($R73,O2Depth!$A$10:$AG$2410,4*($C$8-1)+2) / 0.3048) -> 24.19094488
H74: 49 | I74: =IF($B$4="Annual Average", AVERAGE(OFFSET(O2Depth!$A$10,$H74*12,4*($C$8-1)+2,12,1)), MAX(OFFSET(O2Depth!$A$10,$H74*12,4*($C$8-1)+2,12,1))) / 0.3048 -> 0.4737860892 | J74: =IF($B$4="Annual Average", AVERAGE(OFFSET(O2Depth!$A$10,$H74*12,4*($C$8-1)+3,12,1)), MAX(OFFSET(O2Depth!$A$10,$H74*12,4*($C$8-1)+3,12,1))) / 0.3048 -> 0.5708661417 | K74: =IF($B$4="Annual Average", AVERAGE(OFFSET(O2Depth!$A$10,$H74*12,4*($C$8-1)+4,12,1)), MAX(OFFSET(O2Depth!$A$10,$H74*12,4*($C$8-1)+4,12,1))) / 0.3048 -> 0.7079396325 | L74: =IF($B$4="Annual Average", AVERAGE(OFFSET(O2Depth!$A$10,$H74*12,4*($C$8-1)+1,12,1)), MAX(OFFSET(O2Depth!$A$10,$H74*12,4*($C$8-1)+1,12,1))) / 0.3048 -> 0.581167979 | R74: 14.08333333 | S74: =IF(OR(LEFT($B$8,1)="C"),#N/A,VLOOKUP($R74,O2Depth!$A$10:$AG$2410,4*($C$8-1)+3) / 0.3048) -> 21.95045932 | T74: =IF(OR(LEFT($B$8,1)="C"),#N/A,VLOOKUP($R74,O2Depth!$A$10:$AG$2410,4*($C$8-1)+4) / 0.3048) -> 25.40485564 | U74: =IF(OR(LEFT($B$8,1)="C"),#N/A,VLOOKUP($R74,O2Depth!$A$10:$AG$2410,4*($C$8-1)+5) / 0.3048) -> 29.58792651 | V74: =IF(OR(LEFT($B$8,1)="C"),#N/A,VLOOKUP($R74,O2Depth!$A$10:$AG$2410,4*($C$8-1)+2) / 0.3048) -> 25.5902231
H75: 50 | I75: =IF($B$4="Annual Average", AVERAGE(OFFSET(O2Depth!$A$10,$H75*12,4*($C$8-1)+2,12,1)), MAX(OFFSET(O2Depth!$A$10,$H75*12,4*($C$8-1)+2,12,1))) / 0.3048 -> 0.4765748031 | J75: =IF($B$4="Annual Average", AVERAGE(OFFSET(O2Depth!$A$10,$H75*12,4*($C$8-1)+3,12,1)), MAX(OFFSET(O2Depth!$A$10,$H75*12,4*($C$8-1)+3,12,1))) / 0.3048 -> 0.5766732283 | K75: =IF($B$4="Annual Average", AVERAGE(OFFSET(O2Depth!$A$10,$H75*12,4*($C$8-1)+4,12,1)), MAX(OFFSET(O2Depth!$A$10,$H75*12,4*($C$8-1)+4,12,1))) / 0.3048 -> 0.6985892388 | L75: =IF($B$4="Annual Average", AVERAGE(OFFSET(O2Depth!$A$10,$H75*12,4*($C$8-1)+1,12,1)), MAX(OFFSET(O2Depth!$A$10,$H75*12,4*($C$8-1)+1,12,1))) / 0.3048 -> 0.5789698163 | R75: 14.16666667 | S75: =IF(OR(LEFT($B$8,1)="C"),#N/A,VLOOKUP($R75,O2Depth!$A$10:$AG$2410,4*($C$8-1)+3) / 0.3048) -> 21.95045932 | T75: =IF(OR(LEFT($B$8,1)="C"),#N/A,VLOOKUP($R75,O2Depth!$A$10:$AG$2410,4*($C$8-1)+4) / 0.3048) -> 25.40485564 | U75: =IF(OR(LEFT($B$8,1)="C"),#N/A,VLOOKUP($R75,O2Depth!$A$10:$AG$2410,4*($C$8-1)+5) / 0.3048) -> 29.58792651 | V75: =IF(OR(LEFT($B$8,1)="C"),#N/A,VLOOKUP($R75,O2Depth!$A$10:$AG$2410,4*($C$8-1)+2) / 0.3048) -> 25.5902231
H76: 51 | I76: =IF($B$4="Annual Average", AVERAGE(OFFSET(O2Depth!$A$10,$H76*12,4*($C$8-1)+2,12,1)), MAX(OFFSET(O2Depth!$A$10,$H76*12,4*($C$8-1)+2,12,1))) / 0.3048 -> 0.4759186352 | J76: =IF($B$4="Annual Average", AVERAGE(OFFSET(O2Depth!$A$10,$H76*12,4*($C$8-1)+3,12,1)), MAX(OFFSET(O2Depth!$A$10,$H76*12,4*($C$8-1)+3,12,1))) / 0.3048 -> 0.5758530184 | K76: =IF($B$4="Annual Average", AVERAGE(OFFSET(O2Depth!$A$10,$H76*12,4*($C$8-1)+4,12,1)), MAX(OFFSET(O2Depth!$A$10,$H76*12,4*($C$8-1)+4,12,1))) / 0.3048 -> 0.7004593176 | L76: =IF($B$4="Annual Average", AVERAGE(OFFSET(O2Depth!$A$10,$H76*12,4*($C$8-1)+1,12,1)), MAX(OFFSET(O2Depth!$A$10,$H76*12,4*($C$8-1)+1,12,1))) / 0.3048 -> 0.5802493438 | R76: 14.25 | S76: =IF(OR(LEFT($B$8,1)="C"),#N/A,VLOOKUP($R76,O2Depth!$A$10:$AG$2410,4*($C$8-1)+3) / 0.3048) -> 23.07742782 | T76: =IF(OR(LEFT($B$8,1)="C"),#N/A,VLOOKUP($R76,O2Depth!$A$10:$AG$2410,4*($C$8-1)+4) / 0.3048) -> 26.74934383 | U76: =IF(OR(LEFT($B$8,1)="C"),#N/A,VLOOKUP($R76,O2Depth!$A$10:$AG$2410,4*($C$8-1)+5) / 0.3048) -> 31.12171916 | V76: =IF(OR(LEFT($B$8,1)="C"),#N/A,VLOOKUP($R76,O2Depth!$A$10:$AG$2410,4*($C$8-1)+2) / 0.3048) -> 26.92880577
H77: 52 | I77: =IF($B$4="Annual Average", AVERAGE(OFFSET(O2Depth!$A$10,$H77*12,4*($C$8-1)+2,12,1)), MAX(OFFSET(O2Depth!$A$10,$H77*12,4*($C$8-1)+2,12,1))) / 0.3048 -> 0.4762467192 | J77: =IF($B$4="Annual Average", AVERAGE(OFFSET(O2Depth!$A$10,$H77*12,4*($C$8-1)+3,12,1)), MAX(OFFSET(O2Depth!$A$10,$H77*12,4*($C$8-1)+3,12,1))) / 0.3048 -> 0.5742782152 | K77: =IF($B$4="Annual Average", AVERAGE(OFFSET(O2Depth!$A$10,$H77*12,4*($C$8-1)+4,12,1)), MAX(OFFSET(O2Depth!$A$10,$H77*12,4*($C$8-1)+4,12,1))) / 0.3048 -> 0.7047244094 | L77: =IF($B$4="Annual Average", AVERAGE(OFFSET(O2Depth!$A$10,$H77*12,4*($C$8-1)+1,12,1)), MAX(OFFSET(O2Depth!$A$10,$H77*12,4*($C$8-1)+1,12,1))) / 0.3048 -> 0.5827755906 | R77: 14.33333333 | S77: =IF(OR(LEFT($B$8,1)="C"),#N/A,VLOOKUP($R77,O2Depth!$A$10:$AG$2410,4*($C$8-1)+3) / 0.3048) -> 23.57513123 | T77: =IF(OR(LEFT($B$8,1)="C"),#N/A,VLOOKUP($R77,O2Depth!$A$10:$AG$2410,4*($C$8-1)+4) / 0.3048) -> 27.3648294 | U77: =IF(OR(LEFT($B$8,1)="C"),#N/A,VLOOKUP($R77,O2Depth!$A$10:$AG$2410,4*($C$8-1)+5) / 0.3048) -> 31.83595801 | V77: =IF(OR(LEFT($B$8,1)="C"),#N/A,VLOOKUP($R77,O2Depth!$A$10:$AG$2410,4*($C$8-1)+2) / 0.3048) -> 27.52362205
H78: 53 | I78: =IF($B$4="Annual Average", AVERAGE(OFFSET(O2Depth!$A$10,$H78*12,4*($C$8-1)+2,12,1)), MAX(OFFSET(O2Depth!$A$10,$H78*12,4*($C$8-1)+2,12,1))) / 0.3048 -> 0.4776574803 | J78: =IF($B$4="Annual Average", AVERAGE(OFFSET(O2Depth!$A$10,$H78*12,4*($C$8-1)+3,12,1)), MAX(OFFSET(O2Depth!$A$10,$H78*12,4*($C$8-1)+3,12,1))) / 0.3048 -> 0.5677493438 | K78: =IF($B$4="Annual Average", AVERAGE(OFFSET(O2Depth!$A$10,$H78*12,4*($C$8-1)+4,12,1)), MAX(OFFSET(O2Depth!$A$10,$H78*12,4*($C$8-1)+4,12,1))) / 0.3048 -> 0.6902230971 | L78: =IF($B$4="Annual Average", AVERAGE(OFFSET(O2Depth!$A$10,$H78*12,4*($C$8-1)+1,12,1)), MAX(OFFSET(O2Depth!$A$10,$H78*12,4*($C$8-1)+1,12,1))) / 0.3048 -> 0.5773293963 | R78: 14.41666667 | S78: =IF(OR(LEFT($B$8,1)="C"),#N/A,VLOOKUP($R78,O2Depth!$A$10:$AG$2410,4*($C$8-1)+3) / 0.3048) -> 23.57513123 | T78: =IF(OR(LEFT($B$8,1)="C"),#N/A,VLOOKUP($R78,O2Depth!$A$10:$AG$2410,4*($C$8-1)+4) / 0.3048) -> 27.3648294 | U78: =IF(OR(LEFT($B$8,1)="C"),#N/A,VLOOKUP($R78,O2Depth!$A$10:$AG$2410,4*($C$8-1)+5) / 0.3048) -> 31.83595801 | V78: =IF(OR(LEFT($B$8,1)="C"),#N/A,VLOOKUP($R78,O2Depth!$A$10:$AG$2410,4*($C$8-1)+2) / 0.3048) -> 27.52362205
H79: 54 | I79: =IF($B$4="Annual Average", AVERAGE(OFFSET(O2Depth!$A$10,$H79*12,4*($C$8-1)+2,12,1)), MAX(OFFSET(O2Depth!$A$10,$H79*12,4*($C$8-1)+2,12,1))) / 0.3048 -> 0.4761811024 | J79: =IF($B$4="Annual Average", AVERAGE(OFFSET(O2Depth!$A$10,$H79*12,4*($C$8-1)+3,12,1)), MAX(OFFSET(O2Depth!$A$10,$H79*12,4*($C$8-1)+3,12,1))) / 0.3048 -> 0.5801509186 | K79: =IF($B$4="Annual Average", AVERAGE(OFFSET(O2Depth!$A$10,$H79*12,4*($C$8-1)+4,12,1)), MAX(OFFSET(O2Depth!$A$10,$H79*12,4*($C$8-1)+4,12,1))) / 0.3048 -> 0.6992454068 | L79: =IF($B$4="Annual Average", AVERAGE(OFFSET(O2Depth!$A$10,$H79*12,4*($C$8-1)+1,12,1)), MAX(OFFSET(O2Depth!$A$10,$H79*12,4*($C$8-1)+1,12,1))) / 0.3048 -> 0.5829724409 | R79: 14.5 | S79: =IF(OR(LEFT($B$8,1)="C"),#N/A,VLOOKUP($R79,O2Depth!$A$10:$AG$2410,4*($C$8-1)+3) / 0.3048) -> 24.17946194 | T79: =IF(OR(LEFT($B$8,1)="C"),#N/A,VLOOKUP($R79,O2Depth!$A$10:$AG$2410,4*($C$8-1)+4) / 0.3048) -> 28.03116798 | U79: =IF(OR(LEFT($B$8,1)="C"),#N/A,VLOOKUP($R79,O2Depth!$A$10:$AG$2410,4*($C$8-1)+5) / 0.3048) -> 33.0019685 | V79: =IF(OR(LEFT($B$8,1)="C"),#N/A,VLOOKUP($R79,O2Depth!$A$10:$AG$2410,4*($C$8-1)+2) / 0.3048) -> 28.39173228
H80: 55 | I80: =IF($B$4="Annual Average", AVERAGE(OFFSET(O2Depth!$A$10,$H80*12,4*($C$8-1)+2,12,1)), MAX(OFFSET(O2Depth!$A$10,$H80*12,4*($C$8-1)+2,12,1))) / 0.3048 -> 0.4732939633 | J80: =IF($B$4="Annual Average", AVERAGE(OFFSET(O2Depth!$A$10,$H80*12,4*($C$8-1)+3,12,1)), MAX(OFFSET(O2Depth!$A$10,$H80*12,4*($C$8-1)+3,12,1))) / 0.3048 -> 0.568996063 | K80: =IF($B$4="Annual Average", AVERAGE(OFFSET(O2Depth!$A$10,$H80*12,4*($C$8-1)+4,12,1)), MAX(OFFSET(O2Depth!$A$10,$H80*12,4*($C$8-1)+4,12,1))) / 0.3048 -> 0.7018372703 | L80: =IF($B$4="Annual Average", AVERAGE(OFFSET(O2Depth!$A$10,$H80*12,4*($C$8-1)+1,12,1)), MAX(OFFSET(O2Depth!$A$10,$H80*12,4*($C$8-1)+1,12,1))) / 0.3048 -> 0.5792650919 | R80: 14.58333333 | S80: =IF(OR(LEFT($B$8,1)="C"),#N/A,VLOOKUP($R80,O2Depth!$A$10:$AG$2410,4*($C$8-1)+3) / 0.3048) -> 23.66666667 | T80: =IF(OR(LEFT($B$8,1)="C"),#N/A,VLOOKUP($R80,O2Depth!$A$10:$AG$2410,4*($C$8-1)+4) / 0.3048) -> 27.46686352 | U80: =IF(OR(LEFT($B$8,1)="C"),#N/A,VLOOKUP($R80,O2Depth!$A$10:$AG$2410,4*($C$8-1)+5) / 0.3048) -> 32.7664042 | V80: =IF(OR(LEFT($B$8,1)="C"),#N/A,VLOOKUP($R80,O2Depth!$A$10:$AG$2410,4*($C$8-1)+2) / 0.3048) -> 27.91765092
H81: 56 | I81: =IF($B$4="Annual Average", AVERAGE(OFFSET(O2Depth!$A$10,$H81*12,4*($C$8-1)+2,12,1)), MAX(OFFSET(O2Depth!$A$10,$H81*12,4*($C$8-1)+2,12,1))) / 0.3048 -> 0.475164042 | J81: =IF($B$4="Annual Average", AVERAGE(OFFSET(O2Depth!$A$10,$H81*12,4*($C$8-1)+3,12,1)), MAX(OFFSET(O2Depth!$A$10,$H81*12,4*($C$8-1)+3,12,1))) / 0.3048 -> 0.5740485564 | K81: =IF($B$4="Annual Average", AVERAGE(OFFSET(O2Depth!$A$10,$H81*12,4*($C$8-1)+4,12,1)), MAX(OFFSET(O2Depth!$A$10,$H81*12,4*($C$8-1)+4,12,1))) / 0.3048 -> 0.706988189 | L81: =IF($B$4="Annual Average", AVERAGE(OFFSET(O2Depth!$A$10,$H81*12,4*($C$8-1)+1,12,1)), MAX(OFFSET(O2Depth!$A$10,$H81*12,4*($C$8-1)+1,12,1))) / 0.3048 -> 0.581660105 | R81: 14.66666667 | S81: =IF(OR(LEFT($B$8,1)="C"),#N/A,VLOOKUP($R81,O2Depth!$A$10:$AG$2410,4*($C$8-1)+3) / 0.3048) -> 23.66666667 | T81: =IF(OR(LEFT($B$8,1)="C"),#N/A,VLOOKUP($R81,O2Depth!$A$10:$AG$2410,4*($C$8-1)+4) / 0.3048) -> 27.46686352 | U81: =IF(OR(LEFT($B$8,1)="C"),#N/A,VLOOKUP($R81,O2Depth!$A$10:$AG$2410,4*($C$8-1)+5) / 0.3048) -> 32.7664042 | V81: =IF(OR(LEFT($B$8,1)="C"),#N/A,VLOOKUP($R81,O2Depth!$A$10:$AG$2410,4*($C$8-1)+2) / 0.3048) -> 27.91765092
H82: 57 | I82: =IF($B$4="Annual Average", AVERAGE(OFFSET(O2Depth!$A$10,$H82*12,4*($C$8-1)+2,12,1)), MAX(OFFSET(O2Depth!$A$10,$H82*12,4*($C$8-1)+2,12,1))) / 0.3048 -> 0.4790682415 | J82: =IF($B$4="Annual Average", AVERAGE(OFFSET(O2Depth!$A$10,$H82*12,4*($C$8-1)+3,12,1)), MAX(OFFSET(O2Depth!$A$10,$H82*12,4*($C$8-1)+3,12,1))) / 0.3048 -> 0.5695866142 | K82: =IF($B$4="Annual Average", AVERAGE(OFFSET(O2Depth!$A$10,$H82*12,4*($C$8-1)+4,12,1)), MAX(OFFSET(O2Depth!$A$10,$H82*12,4*($C$8-1)+4,12,1))) / 0.3048 -> 0.706496063 | L82: =IF($B$4="Annual Average", AVERAGE(OFFSET(O2Depth!$A$10,$H82*12,4*($C$8-1)+1,12,1)), MAX(OFFSET(O2Depth!$A$10,$H82*12,4*($C$8-1)+1,12,1))) / 0.3048 -> 0.5846784777 | R82: 14.75 | S82: =IF(OR(LEFT($B$8,1)="C"),#N/A,VLOOKUP($R82,O2Depth!$A$10:$AG$2410,4*($C$8-1)+3) / 0.3048) -> 22.32545932 | T82: =IF(OR(LEFT($B$8,1)="C"),#N/A,VLOOKUP($R82,O2Depth!$A$10:$AG$2410,4*($C$8-1)+4) / 0.3048) -> 25.7273622 | U82: =IF(OR(LEFT($B$8,1)="C"),#N/A,VLOOKUP($R82,O2Depth!$A$10:$AG$2410,4*($C$8-1)+5) / 0.3048) -> 30.22145669 | V82: =IF(OR(LEFT($B$8,1)="C"),#N/A,VLOOKUP($R82,O2Depth!$A$10:$AG$2410,4*($C$8-1)+2) / 0.3048) -> 26.05446194
H83: 58 | I83: =IF($B$4="Annual Average", AVERAGE(OFFSET(O2Depth!$A$10,$H83*12,4*($C$8-1)+2,12,1)), MAX(OFFSET(O2Depth!$A$10,$H83*12,4*($C$8-1)+2,12,1))) / 0.3048 -> 0.475328084 | J83: =IF($B$4="Annual Average", AVERAGE(OFFSET(O2Depth!$A$10,$H83*12,4*($C$8-1)+3,12,1)), MAX(OFFSET(O2Depth!$A$10,$H83*12,4*($C$8-1)+3,12,1))) / 0.3048 -> 0.5734580052 | K83: =IF($B$4="Annual Average", AVERAGE(OFFSET(O2Depth!$A$10,$H83*12,4*($C$8-1)+4,12,1)), MAX(OFFSET(O2Depth!$A$10,$H83*12,4*($C$8-1)+4,12,1))) / 0.3048 -> 0.7063648294 | L83: =IF($B$4="Annual Average", AVERAGE(OFFSET(O2Depth!$A$10,$H83*12,4*($C$8-1)+1,12,1)), MAX(OFFSET(O2Depth!$A$10,$H83*12,4*($C$8-1)+1,12,1))) / 0.3048 -> 0.5818569554 | R83: 14.83333333 | S83: =IF(OR(LEFT($B$8,1)="C"),#N/A,VLOOKUP($R83,O2Depth!$A$10:$AG$2410,4*($C$8-1)+3) / 0.3048) -> 21.79790026 | T83: =IF(OR(LEFT($B$8,1)="C"),#N/A,VLOOKUP($R83,O2Depth!$A$10:$AG$2410,4*($C$8-1)+4) / 0.3048) -> 25.09383202 | U83: =IF(OR(LEFT($B$8,1)="C"),#N/A,VLOOKUP($R83,O2Depth!$A$10:$AG$2410,4*($C$8-1)+5) / 0.3048) -> 29.40387139 | V83: =IF(OR(LEFT($B$8,1)="C"),#N/A,VLOOKUP($R83,O2Depth!$A$10:$AG$2410,4*($C$8-1)+2) / 0.3048) -> 25.39829396
H84: 59 | I84: =IF($B$4="Annual Average", AVERAGE(OFFSET(O2Depth!$A$10,$H84*12,4*($C$8-1)+2,12,1)), MAX(OFFSET(O2Depth!$A$10,$H84*12,4*($C$8-1)+2,12,1))) / 0.3048 -> 0.4755249344 | J84: =IF($B$4="Annual Average", AVERAGE(OFFSET(O2Depth!$A$10,$H84*12,4*($C$8-1)+3,12,1)), MAX(OFFSET(O2Depth!$A$10,$H84*12,4*($C$8-1)+3,12,1))) / 0.3048 -> 0.5760826772 | K84: =IF($B$4="Annual Average", AVERAGE(OFFSET(O2Depth!$A$10,$H84*12,4*($C$8-1)+4,12,1)), MAX(OFFSET(O2Depth!$A$10,$H84*12,4*($C$8-1)+4,12,1))) / 0.3048 -> 0.7060695538 | L84: =IF($B$4="Annual Average", AVERAGE(OFFSET(O2Depth!$A$10,$H84*12,4*($C$8-1)+1,12,1)), MAX(OFFSET(O2Depth!$A$10,$H84*12,4*($C$8-1)+1,12,1))) / 0.3048 -> 0.5832677165 | R84: 14.91666667 | S84: =IF(OR(LEFT($B$8,1)="C"),#N/A,VLOOKUP($R84,O2Depth!$A$10:$AG$2410,4*($C$8-1)+3) / 0.3048) -> 21.79790026 | T84: =IF(OR(LEFT($B$8,1)="C"),#N/A,VLOOKUP($R84,O2Depth!$A$10:$AG$2410,4*($C$8-1)+4) / 0.3048) -> 25.09383202 | U84: =IF(OR(LEFT($B$8,1)="C"),#N/A,VLOOKUP($R84,O2Depth!$A$10:$AG$2410,4*($C$8-1)+5) / 0.3048) -> 29.40387139 | V84: =IF(OR(LEFT($B$8,1)="C"),#N/A,VLOOKUP($R84,O2Depth!$A$10:$AG$2410,4*($C$8-1)+2) / 0.3048) -> 25.39829396
H85: 60 | I85: =IF($B$4="Annual Average", AVERAGE(OFFSET(O2Depth!$A$10,$H85*12,4*($C$8-1)+2,12,1)), MAX(OFFSET(O2Depth!$A$10,$H85*12,4*($C$8-1)+2,12,1))) / 0.3048 -> 0.4745406824 | J85: =IF($B$4="Annual Average", AVERAGE(OFFSET(O2Depth!$A$10,$H85*12,4*($C$8-1)+3,12,1)), MAX(OFFSET(O2Depth!$A$10,$H85*12,4*($C$8-1)+3,12,1))) / 0.3048 -> 0.5719160105 | K85: =IF($B$4="Annual Average", AVERAGE(OFFSET(O2Depth!$A$10,$H85*12,4*($C$8-1)+4,12,1)), MAX(OFFSET(O2Depth!$A$10,$H85*12,4*($C$8-1)+4,12,1))) / 0.3048 -> 0.7070866142 | L85: =IF($B$4="Annual Average", AVERAGE(OFFSET(O2Depth!$A$10,$H85*12,4*($C$8-1)+1,12,1)), MAX(OFFSET(O2Depth!$A$10,$H85*12,4*($C$8-1)+1,12,1))) / 0.3048 -> 0.5837926509 | R85: 15 | S85: =IF(OR(LEFT($B$8,1)="C"),#N/A,VLOOKUP($R85,O2Depth!$A$10:$AG$2410,4*($C$8-1)+3) / 0.3048) -> 20.375 | T85: =IF(OR(LEFT($B$8,1)="C"),#N/A,VLOOKUP($R85,O2Depth!$A$10:$AG$2410,4*($C$8-1)+4) / 0.3048) -> 23.90026247 | U85: =IF(OR(LEFT($B$8,1)="C"),#N/A,VLOOKUP($R85,O2Depth!$A$10:$AG$2410,4*($C$8-1)+5) / 0.3048) -> 28.70636483 | V85: =IF(OR(LEFT($B$8,1)="C"),#N/A,VLOOKUP($R85,O2Depth!$A$10:$AG$2410,4*($C$8-1)+2) / 0.3048) -> 24.25065617
H86: 61 | I86: =IF($B$4="Annual Average", AVERAGE(OFFSET(O2Depth!$A$10,$H86*12,4*($C$8-1)+2,12,1)), MAX(OFFSET(O2Depth!$A$10,$H86*12,4*($C$8-1)+2,12,1))) / 0.3048 -> 0.4734908136 | J86: =IF($B$4="Annual Average", AVERAGE(OFFSET(O2Depth!$A$10,$H86*12,4*($C$8-1)+3,12,1)), MAX(OFFSET(O2Depth!$A$10,$H86*12,4*($C$8-1)+3,12,1))) / 0.3048 -> 0.5725721785 | K86: =IF($B$4="Annual Average", AVERAGE(OFFSET(O2Depth!$A$10,$H86*12,4*($C$8-1)+4,12,1)), MAX(OFFSET(O2Depth!$A$10,$H86*12,4*($C$8-1)+4,12,1))) / 0.3048 -> 0.6970144357 | L86: =IF($B$4="Annual Average", AVERAGE(OFFSET(O2Depth!$A$10,$H86*12,4*($C$8-1)+1,12,1)), MAX(OFFSET(O2Depth!$A$10,$H86*12,4*($C$8-1)+1,12,1))) / 0.3048 -> 0.579691601 | R86: 15.08333333 | S86: =IF(OR(LEFT($B$8,1)="C"),#N/A,VLOOKUP($R86,O2Depth!$A$10:$AG$2410,4*($C$8-1)+3) / 0.3048) -> 21.5062336 | T86: =IF(OR(LEFT($B$8,1)="C"),#N/A,VLOOKUP($R86,O2Depth!$A$10:$AG$2410,4*($C$8-1)+4) / 0.3048) -> 25.29068241 | U86: =IF(OR(LEFT($B$8,1)="C"),#N/A,VLOOKUP($R86,O2Depth!$A$10:$AG$2410,4*($C$8-1)+5) / 0.3048) -> 30.29954068 | V86: =IF(OR(LEFT($B$8,1)="C"),#N/A,VLOOKUP($R86,O2Depth!$A$10:$AG$2410,4*($C$8-1)+2) / 0.3048) -> 25.64862205
H87: 62 | I87: =IF($B$4="Annual Average", AVERAGE(OFFSET(O2Depth!$A$10,$H87*12,4*($C$8-1)+2,12,1)), MAX(OFFSET(O2Depth!$A$10,$H87*12,4*($C$8-1)+2,12,1))) / 0.3048 -> 0.4842847769 | J87: =IF($B$4="Annual Average", AVERAGE(OFFSET(O2Depth!$A$10,$H87*12,4*($C$8-1)+3,12,1)), MAX(OFFSET(O2Depth!$A$10,$H87*12,4*($C$8-1)+3,12,1))) / 0.3048 -> 0.5730971129 | K87: =IF($B$4="Annual Average", AVERAGE(OFFSET(O2Depth!$A$10,$H87*12,4*($C$8-1)+4,12,1)), MAX(OFFSET(O2Depth!$A$10,$H87*12,4*($C$8-1)+4,12,1))) / 0.3048 -> 0.7162729659 | L87: =IF($B$4="Annual Average", AVERAGE(OFFSET(O2Depth!$A$10,$H87*12,4*($C$8-1)+1,12,1)), MAX(OFFSET(O2Depth!$A$10,$H87*12,4*($C$8-1)+1,12,1))) / 0.3048 -> 0.5841207349 | R87: 15.16666667 | S87: =IF(OR(LEFT($B$8,1)="C"),#N/A,VLOOKUP($R87,O2Depth!$A$10:$AG$2410,4*($C$8-1)+3) / 0.3048) -> 21.5062336 | T87: =IF(OR(LEFT($B$8,1)="C"),#N/A,VLOOKUP($R87,O2Depth!$A$10:$AG$2410,4*($C$8-1)+4) / 0.3048) -> 25.29068241 | U87: =IF(OR(LEFT($B$8,1)="C"),#N/A,VLOOKUP($R87,O2Depth!$A$10:$AG$2410,4*($C$8-1)+5) / 0.3048) -> 30.29954068 | V87: =IF(OR(LEFT($B$8,1)="C"),#N/A,VLOOKUP($R87,O2Depth!$A$10:$AG$2410,4*($C$8-1)+2) / 0.3048) -> 25.64862205
H88: 63 | I88: =IF($B$4="Annual Average", AVERAGE(OFFSET(O2Depth!$A$10,$H88*12,4*($C$8-1)+2,12,1)), MAX(OFFSET(O2Depth!$A$10,$H88*12,4*($C$8-1)+2,12,1))) / 0.3048 -> 0.4768700787 | J88: =IF($B$4="Annual Average", AVERAGE(OFFSET(O2Depth!$A$10,$H88*12,4*($C$8-1)+3,12,1)), MAX(OFFSET(O2Depth!$A$10,$H88*12,4*($C$8-1)+3,12,1))) / 0.3048 -> 0.5761154856 | K88: =IF($B$4="Annual Average", AVERAGE(OFFSET(O2Depth!$A$10,$H88*12,4*($C$8-1)+4,12,1)), MAX(OFFSET(O2Depth!$A$10,$H88*12,4*($C$8-1)+4,12,1))) / 0.3048 -> 0.6977362205 | L88: =IF($B$4="Annual Average", AVERAGE(OFFSET(O2Depth!$A$10,$H88*12,4*($C$8-1)+1,12,1)), MAX(OFFSET(O2Depth!$A$10,$H88*12,4*($C$8-1)+1,12,1))) / 0.3048 -> 0.5809055118 | R88: 15.25 | S88: =IF(OR(LEFT($B$8,1)="C"),#N/A,VLOOKUP($R88,O2Depth!$A$10:$AG$2410,4*($C$8-1)+3) / 0.3048) -> 22.66896325 | T88: =IF(OR(LEFT($B$8,1)="C"),#N/A,VLOOKUP($R88,O2Depth!$A$10:$AG$2410,4*($C$8-1)+4) / 0.3048) -> 26.61515748 | U88: =IF(OR(LEFT($B$8,1)="C"),#N/A,VLOOKUP($R88,O2Depth!$A$10:$AG$2410,4*($C$8-1)+5) / 0.3048) -> 31.91830709 | V88: =IF(OR(LEFT($B$8,1)="C"),#N/A,VLOOKUP($R88,O2Depth!$A$10:$AG$2410,4*($C$8-1)+2) / 0.3048) -> 26.98917323
H89: 64 | I89: =IF($B$4="Annual Average", AVERAGE(OFFSET(O2Depth!$A$10,$H89*12,4*($C$8-1)+2,12,1)), MAX(OFFSET(O2Depth!$A$10,$H89*12,4*($C$8-1)+2,12,1))) / 0.3048 -> 0.4802821522 | J89: =IF($B$4="Annual Average", AVERAGE(OFFSET(O2Depth!$A$10,$H89*12,4*($C$8-1)+3,12,1)), MAX(OFFSET(O2Depth!$A$10,$H89*12,4*($C$8-1)+3,12,1))) / 0.3048 -> 0.5701115486 | K89: =IF($B$4="Annual Average", AVERAGE(OFFSET(O2Depth!$A$10,$H89*12,4*($C$8-1)+4,12,1)), MAX(OFFSET(O2Depth!$A$10,$H89*12,4*($C$8-1)+4,12,1))) / 0.3048 -> 0.7062664042 | L89: =IF($B$4="Annual Average", AVERAGE(OFFSET(O2Depth!$A$10,$H89*12,4*($C$8-1)+1,12,1)), MAX(OFFSET(O2Depth!$A$10,$H89*12,4*($C$8-1)+1,12,1))) / 0.3048 -> 0.5818569554 | R89: 15.33333333 | S89: =IF(OR(LEFT($B$8,1)="C"),#N/A,VLOOKUP($R89,O2Depth!$A$10:$AG$2410,4*($C$8-1)+3) / 0.3048) -> 23.17847769 | T89: =IF(OR(LEFT($B$8,1)="C"),#N/A,VLOOKUP($R89,O2Depth!$A$10:$AG$2410,4*($C$8-1)+4) / 0.3048) -> 27.18471129 | U89: =IF(OR(LEFT($B$8,1)="C"),#N/A,VLOOKUP($R89,O2Depth!$A$10:$AG$2410,4*($C$8-1)+5) / 0.3048) -> 32.61942257 | V89: =IF(OR(LEFT($B$8,1)="C"),#N/A,VLOOKUP($R89,O2Depth!$A$10:$AG$2410,4*($C$8-1)+2) / 0.3048) -> 27.58300525
H90: 65 | I90: =IF($B$4="Annual Average", AVERAGE(OFFSET(O2Depth!$A$10,$H90*12,4*($C$8-1)+2,12,1)), MAX(OFFSET(O2Depth!$A$10,$H90*12,4*($C$8-1)+2,12,1))) / 0.3048 -> 0.4780839895 | J90: =IF($B$4="Annual Average", AVERAGE(OFFSET(O2Depth!$A$10,$H90*12,4*($C$8-1)+3,12,1)), MAX(OFFSET(O2Depth!$A$10,$H90*12,4*($C$8-1)+3,12,1))) / 0.3048 -> 0.5710301837 | K90: =IF($B$4="Annual Average", AVERAGE(OFFSET(O2Depth!$A$10,$H90*12,4*($C$8-1)+4,12,1)), MAX(OFFSET(O2Depth!$A$10,$H90*12,4*($C$8-1)+4,12,1))) / 0.3048 -> 0.6974737533 | L90: =IF($B$4="Annual Average", AVERAGE(OFFSET(O2Depth!$A$10,$H90*12,4*($C$8-1)+1,12,1)), MAX(OFFSET(O2Depth!$A$10,$H90*12,4*($C$8-1)+1,12,1))) / 0.3048 -> 0.5795931759 | R90: 15.41666667 | S90: =IF(OR(LEFT($B$8,1)="C"),#N/A,VLOOKUP($R90,O2Depth!$A$10:$AG$2410,4*($C$8-1)+3) / 0.3048) -> 23.17847769 | T90: =IF(OR(LEFT($B$8,1)="C"),#N/A,VLOOKUP($R90,O2Depth!$A$10:$AG$2410,4*($C$8-1)+4) / 0.3048) -> 27.18471129 | U90: =IF(OR(LEFT($B$8,1)="C"),#N/A,VLOOKUP($R90,O2Depth!$A$10:$AG$2410,4*($C$8-1)+5) / 0.3048) -> 32.61942257 | V90: =IF(OR(LEFT($B$8,1)="C"),#N/A,VLOOKUP($R90,O2Depth!$A$10:$AG$2410,4*($C$8-1)+2) / 0.3048) -> 27.58300525
H91: 66 | I91: =IF($B$4="Annual Average", AVERAGE(OFFSET(O2Depth!$A$10,$H91*12,4*($C$8-1)+2,12,1)), MAX(OFFSET(O2Depth!$A$10,$H91*12,4*($C$8-1)+2,12,1))) / 0.3048 -> 0.4816929134 | J91: =IF($B$4="Annual Average", AVERAGE(OFFSET(O2Depth!$A$10,$H91*12,4*($C$8-1)+3,12,1)), MAX(OFFSET(O2Depth!$A$10,$H91*12,4*($C$8-1)+3,12,1))) / 0.3048 -> 0.5718503937 | K91: =IF($B$4="Annual Average", AVERAGE(OFFSET(O2Depth!$A$10,$H91*12,4*($C$8-1)+4,12,1)), MAX(OFFSET(O2Depth!$A$10,$H91*12,4*($C$8-1)+4,12,1))) / 0.3048 -> 0.6993766404 | L91: =IF($B$4="Annual Average", AVERAGE(OFFSET(O2Depth!$A$10,$H91*12,4*($C$8-1)+1,12,1)), MAX(OFFSET(O2Depth!$A$10,$H91*12,4*($C$8-1)+1,12,1))) / 0.3048 -> 0.5802821522 | R91: =R90+1/12 -> 15.5 | S91: =IF(OR(LEFT($B$8,1)="C"),#N/A,VLOOKUP($R91,O2Depth!$A$10:$AG$2410,4*($C$8-1)+3) / 0.3048) -> 23.9058399 | T91: =IF(OR(LEFT($B$8,1)="C"),#N/A,VLOOKUP($R91,O2Depth!$A$10:$AG$2410,4*($C$8-1)+4) / 0.3048) -> 28.09350394 | U91: =IF(OR(LEFT($B$8,1)="C"),#N/A,VLOOKUP($R91,O2Depth!$A$10:$AG$2410,4*($C$8-1)+5) / 0.3048) -> 33.89107612 | V91: =IF(OR(LEFT($B$8,1)="C"),#N/A,VLOOKUP($R91,O2Depth!$A$10:$AG$2410,4*($C$8-1)+2) / 0.3048) -> 28.49868766
H92: 67 | I92: =IF($B$4="Annual Average", AVERAGE(OFFSET(O2Depth!$A$10,$H92*12,4*($C$8-1)+2,12,1)), MAX(OFFSET(O2Depth!$A$10,$H92*12,4*($C$8-1)+2,12,1))) / 0.3048 -> 0.4797572178 | J92: =IF($B$4="Annual Average", AVERAGE(OFFSET(O2Depth!$A$10,$H92*12,4*($C$8-1)+3,12,1)), MAX(OFFSET(O2Depth!$A$10,$H92*12,4*($C$8-1)+3,12,1))) / 0.3048 -> 0.5714238845 | K92: =IF($B$4="Annual Average", AVERAGE(OFFSET(O2Depth!$A$10,$H92*12,4*($C$8-1)+4,12,1)), MAX(OFFSET(O2Depth!$A$10,$H92*12,4*($C$8-1)+4,12,1))) / 0.3048 -> 0.7047572178 | L92: =IF($B$4="Annual Average", AVERAGE(OFFSET(O2Depth!$A$10,$H92*12,4*($C$8-1)+1,12,1)), MAX(OFFSET(O2Depth!$A$10,$H92*12,4*($C$8-1)+1,12,1))) / 0.3048 -> 0.5817257218 | R92: 15.58333333 | S92: =IF(OR(LEFT($B$8,1)="C"),#N/A,VLOOKUP($R92,O2Depth!$A$10:$AG$2410,4*($C$8-1)+3) / 0.3048) -> 23.39730971 | T92: =IF(OR(LEFT($B$8,1)="C"),#N/A,VLOOKUP($R92,O2Depth!$A$10:$AG$2410,4*($C$8-1)+4) / 0.3048) -> 27.61154856 | U92: =IF(OR(LEFT($B$8,1)="C"),#N/A,VLOOKUP($R92,O2Depth!$A$10:$AG$2410,4*($C$8-1)+5) / 0.3048) -> 33.2808399 | V92: =IF(OR(LEFT($B$8,1)="C"),#N/A,VLOOKUP($R92,O2Depth!$A$10:$AG$2410,4*($C$8-1)+2) / 0.3048) -> 28.06430446
H93: 68 | I93: =IF($B$4="Annual Average", AVERAGE(OFFSET(O2Depth!$A$10,$H93*12,4*($C$8-1)+2,12,1)), MAX(OFFSET(O2Depth!$A$10,$H93*12,4*($C$8-1)+2,12,1))) / 0.3048 -> 0.4733267717 | J93: =IF($B$4="Annual Average", AVERAGE(OFFSET(O2Depth!$A$10,$H93*12,4*($C$8-1)+3,12,1)), MAX(OFFSET(O2Depth!$A$10,$H93*12,4*($C$8-1)+3,12,1))) / 0.3048 -> 0.5723097113 | K93: =IF($B$4="Annual Average", AVERAGE(OFFSET(O2Depth!$A$10,$H93*12,4*($C$8-1)+4,12,1)), MAX(OFFSET(O2Depth!$A$10,$H93*12,4*($C$8-1)+4,12,1))) / 0.3048 -> 0.7077099738 | L93: =IF($B$4="Annual Average", AVERAGE(OFFSET(O2Depth!$A$10,$H93*12,4*($C$8-1)+1,12,1)), MAX(OFFSET(O2Depth!$A$10,$H93*12,4*($C$8-1)+1,12,1))) / 0.3048 -> 0.5815616798 | R93: 15.66666667 | S93: =IF(OR(LEFT($B$8,1)="C"),#N/A,VLOOKUP($R93,O2Depth!$A$10:$AG$2410,4*($C$8-1)+3) / 0.3048) -> 23.39730971 | T93: =IF(OR(LEFT($B$8,1)="C"),#N/A,VLOOKUP($R93,O2Depth!$A$10:$AG$2410,4*($C$8-1)+4) / 0.3048) -> 27.61154856 | U93: =IF(OR(LEFT($B$8,1)="C"),#N/A,VLOOKUP($R93,O2Depth!$A$10:$AG$2410,4*($C$8-1)+5) / 0.3048) -> 33.2808399 | V93: =IF(OR(LEFT($B$8,1)="C"),#N/A,VLOOKUP($R93,O2Depth!$A$10:$AG$2410,4*($C$8-1)+2) / 0.3048) -> 28.06430446
H94: 69 | I94: =IF($B$4="Annual Average", AVERAGE(OFFSET(O2Depth!$A$10,$H94*12,4*($C$8-1)+2,12,1)), MAX(OFFSET(O2Depth!$A$10,$H94*12,4*($C$8-1)+2,12,1))) / 0.3048 -> 0.4770669291 | J94: =IF($B$4="Annual Average", AVERAGE(OFFSET(O2Depth!$A$10,$H94*12,4*($C$8-1)+3,12,1)), MAX(OFFSET(O2Depth!$A$10,$H94*12,4*($C$8-1)+3,12,1))) / 0.3048 -> 0.5718175853 | K94: =IF($B$4="Annual Average", AVERAGE(OFFSET(O2Depth!$A$10,$H94*12,4*($C$8-1)+4,12,1)), MAX(OFFSET(O2Depth!$A$10,$H94*12,4*($C$8-1)+4,12,1))) / 0.3048 -> 0.695144357 | L94: =IF($B$4="Annual Average", AVERAGE(OFFSET(O2Depth!$A$10,$H94*12,4*($C$8-1)+1,12,1)), MAX(OFFSET(O2Depth!$A$10,$H94*12,4*($C$8-1)+1,12,1))) / 0.3048 -> 0.5794619423 | R94: 15.75 | S94: =IF(OR(LEFT($B$8,1)="C"),#N/A,VLOOKUP($R94,O2Depth!$A$10:$AG$2410,4*($C$8-1)+3) / 0.3048) -> 22.00688976 | T94: =IF(OR(LEFT($B$8,1)="C"),#N/A,VLOOKUP($R94,O2Depth!$A$10:$AG$2410,4*($C$8-1)+4) / 0.3048) -> 25.80905512 | U94: =IF(OR(LEFT($B$8,1)="C"),#N/A,VLOOKUP($R94,O2Depth!$A$10:$AG$2410,4*($C$8-1)+5) / 0.3048) -> 30.79330709 | V94: =IF(OR(LEFT($B$8,1)="C"),#N/A,VLOOKUP($R94,O2Depth!$A$10:$AG$2410,4*($C$8-1)+2) / 0.3048) -> 26.16371391
H95: 70 | I95: =IF($B$4="Annual Average", AVERAGE(OFFSET(O2Depth!$A$10,$H95*12,4*($C$8-1)+2,12,1)), MAX(OFFSET(O2Depth!$A$10,$H95*12,4*($C$8-1)+2,12,1))) / 0.3048 -> 0.473851706 | J95: =IF($B$4="Annual Average", AVERAGE(OFFSET(O2Depth!$A$10,$H95*12,4*($C$8-1)+3,12,1)), MAX(OFFSET(O2Depth!$A$10,$H95*12,4*($C$8-1)+3,12,1))) / 0.3048 -> 0.575492126 | K95: =IF($B$4="Annual Average", AVERAGE(OFFSET(O2Depth!$A$10,$H95*12,4*($C$8-1)+4,12,1)), MAX(OFFSET(O2Depth!$A$10,$H95*12,4*($C$8-1)+4,12,1))) / 0.3048 -> 0.7122047244 | L95: =IF($B$4="Annual Average", AVERAGE(OFFSET(O2Depth!$A$10,$H95*12,4*($C$8-1)+1,12,1)), MAX(OFFSET(O2Depth!$A$10,$H95*12,4*($C$8-1)+1,12,1))) / 0.3048 -> 0.5830052493 | R95: 15.83333333 | S95: =IF(OR(LEFT($B$8,1)="C"),#N/A,VLOOKUP($R95,O2Depth!$A$10:$AG$2410,4*($C$8-1)+3) / 0.3048) -> 21.51607612 | T95: =IF(OR(LEFT($B$8,1)="C"),#N/A,VLOOKUP($R95,O2Depth!$A$10:$AG$2410,4*($C$8-1)+4) / 0.3048) -> 25.18405512 | U95: =IF(OR(LEFT($B$8,1)="C"),#N/A,VLOOKUP($R95,O2Depth!$A$10:$AG$2410,4*($C$8-1)+5) / 0.3048) -> 29.99868766 | V95: =IF(OR(LEFT($B$8,1)="C"),#N/A,VLOOKUP($R95,O2Depth!$A$10:$AG$2410,4*($C$8-1)+2) / 0.3048) -> 25.50131234
H96: 71 | I96: =IF($B$4="Annual Average", AVERAGE(OFFSET(O2Depth!$A$10,$H96*12,4*($C$8-1)+2,12,1)), MAX(OFFSET(O2Depth!$A$10,$H96*12,4*($C$8-1)+2,12,1))) / 0.3048 -> 0.4825459318 | J96: =IF($B$4="Annual Average", AVERAGE(OFFSET(O2Depth!$A$10,$H96*12,4*($C$8-1)+3,12,1)), MAX(OFFSET(O2Depth!$A$10,$H96*12,4*($C$8-1)+3,12,1))) / 0.3048 -> 0.5776246719 | K96: =IF($B$4="Annual Average", AVERAGE(OFFSET(O2Depth!$A$10,$H96*12,4*($C$8-1)+4,12,1)), MAX(OFFSET(O2Depth!$A$10,$H96*12,4*($C$8-1)+4,12,1))) / 0.3048 -> 0.7029527559 | L96: =IF($B$4="Annual Average", AVERAGE(OFFSET(O2Depth!$A$10,$H96*12,4*($C$8-1)+1,12,1)), MAX(OFFSET(O2Depth!$A$10,$H96*12,4*($C$8-1)+1,12,1))) / 0.3048 -> 0.5859908136 | R96: 15.91666667 | S96: =IF(OR(LEFT($B$8,1)="C"),#N/A,VLOOKUP($R96,O2Depth!$A$10:$AG$2410,4*($C$8-1)+3) / 0.3048) -> 21.51607612 | T96: =IF(OR(LEFT($B$8,1)="C"),#N/A,VLOOKUP($R96,O2Depth!$A$10:$AG$2410,4*($C$8-1)+4) / 0.3048) -> 25.18405512 | U96: =IF(OR(LEFT($B$8,1)="C"),#N/A,VLOOKUP($R96,O2Depth!$A$10:$AG$2410,4*($C$8-1)+5) / 0.3048) -> 29.99868766 | V96: =IF(OR(LEFT($B$8,1)="C"),#N/A,VLOOKUP($R96,O2Depth!$A$10:$AG$2410,4*($C$8-1)+2) / 0.3048) -> 25.50131234
H97: 72 | I97: =IF($B$4="Annual Average", AVERAGE(OFFSET(O2Depth!$A$10,$H97*12,4*($C$8-1)+2,12,1)), MAX(OFFSET(O2Depth!$A$10,$H97*12,4*($C$8-1)+2,12,1))) / 0.3048 -> 0.4702755906 | J97: =IF($B$4="Annual Average", AVERAGE(OFFSET(O2Depth!$A$10,$H97*12,4*($C$8-1)+3,12,1)), MAX(OFFSET(O2Depth!$A$10,$H97*12,4*($C$8-1)+3,12,1))) / 0.3048 -> 0.5683070866 | K97: =IF($B$4="Annual Average", AVERAGE(OFFSET(O2Depth!$A$10,$H97*12,4*($C$8-1)+4,12,1)), MAX(OFFSET(O2Depth!$A$10,$H97*12,4*($C$8-1)+4,12,1))) / 0.3048 -> 0.7072834646 | L97: =IF($B$4="Annual Average", AVERAGE(OFFSET(O2Depth!$A$10,$H97*12,4*($C$8-1)+1,12,1)), MAX(OFFSET(O2Depth!$A$10,$H97*12,4*($C$8-1)+1,12,1))) / 0.3048 -> 0.580019685 | R97: 16 | S97: =IF(OR(LEFT($B$8,1)="C"),#N/A,VLOOKUP($R97,O2Depth!$A$10:$AG$2410,4*($C$8-1)+3) / 0.3048) -> 20.63090551 | T97: =IF(OR(LEFT($B$8,1)="C"),#N/A,VLOOKUP($R97,O2Depth!$A$10:$AG$2410,4*($C$8-1)+4) / 0.3048) -> 24.23458005 | U97: =IF(OR(LEFT($B$8,1)="C"),#N/A,VLOOKUP($R97,O2Depth!$A$10:$AG$2410,4*($C$8-1)+5) / 0.3048) -> 28.07349081 | V97: =IF(OR(LEFT($B$8,1)="C"),#N/A,VLOOKUP($R97,O2Depth!$A$10:$AG$2410,4*($C$8-1)+2) / 0.3048) -> 24.37762467
H98: 73 | I98: =IF($B$4="Annual Average", AVERAGE(OFFSET(O2Depth!$A$10,$H98*12,4*($C$8-1)+2,12,1)), MAX(OFFSET(O2Depth!$A$10,$H98*12,4*($C$8-1)+2,12,1))) / 0.3048 -> 0.4791338583 | J98: =IF($B$4="Annual Average", AVERAGE(OFFSET(O2Depth!$A$10,$H98*12,4*($C$8-1)+3,12,1)), MAX(OFFSET(O2Depth!$A$10,$H98*12,4*($C$8-1)+3,12,1))) / 0.3048 -> 0.5729658793 | K98: =IF($B$4="Annual Average", AVERAGE(OFFSET(O2Depth!$A$10,$H98*12,4*($C$8-1)+4,12,1)), MAX(OFFSET(O2Depth!$A$10,$H98*12,4*($C$8-1)+4,12,1))) / 0.3048 -> 0.686843832 | L98: =IF($B$4="Annual Average", AVERAGE(OFFSET(O2Depth!$A$10,$H98*12,4*($C$8-1)+1,12,1)), MAX(OFFSET(O2Depth!$A$10,$H98*12,4*($C$8-1)+1,12,1))) / 0.3048 -> 0.5787073491 | R98: 16.08333333 | S98: =IF(OR(LEFT($B$8,1)="C"),#N/A,VLOOKUP($R98,O2Depth!$A$10:$AG$2410,4*($C$8-1)+3) / 0.3048) -> 21.78116798 | T98: =IF(OR(LEFT($B$8,1)="C"),#N/A,VLOOKUP($R98,O2Depth!$A$10:$AG$2410,4*($C$8-1)+4) / 0.3048) -> 25.55183727 | U98: =IF(OR(LEFT($B$8,1)="C"),#N/A,VLOOKUP($R98,O2Depth!$A$10:$AG$2410,4*($C$8-1)+5) / 0.3048) -> 29.66174541 | V98: =IF(OR(LEFT($B$8,1)="C"),#N/A,VLOOKUP($R98,O2Depth!$A$10:$AG$2410,4*($C$8-1)+2) / 0.3048) -> 25.77526247
H99: 74 | I99: =IF($B$4="Annual Average", AVERAGE(OFFSET(O2Depth!$A$10,$H99*12,4*($C$8-1)+2,12,1)), MAX(OFFSET(O2Depth!$A$10,$H99*12,4*($C$8-1)+2,12,1))) / 0.3048 -> 0.475656168 | J99: =IF($B$4="Annual Average", AVERAGE(OFFSET(O2Depth!$A$10,$H99*12,4*($C$8-1)+3,12,1)), MAX(OFFSET(O2Depth!$A$10,$H99*12,4*($C$8-1)+3,12,1))) / 0.3048 -> 0.5778543307 | K99: =IF($B$4="Annual Average", AVERAGE(OFFSET(O2Depth!$A$10,$H99*12,4*($C$8-1)+4,12,1)), MAX(OFFSET(O2Depth!$A$10,$H99*12,4*($C$8-1)+4,12,1))) / 0.3048 -> 0.7075131234 | L99: =IF($B$4="Annual Average", AVERAGE(OFFSET(O2Depth!$A$10,$H99*12,4*($C$8-1)+1,12,1)), MAX(OFFSET(O2Depth!$A$10,$H99*12,4*($C$8-1)+1,12,1))) / 0.3048 -> 0.5825787402 | R99: 16.16666667 | S99: =IF(OR(LEFT($B$8,1)="C"),#N/A,VLOOKUP($R99,O2Depth!$A$10:$AG$2410,4*($C$8-1)+3) / 0.3048) -> 21.78116798 | T99: =IF(OR(LEFT($B$8,1)="C"),#N/A,VLOOKUP($R99,O2Depth!$A$10:$AG$2410,4*($C$8-1)+4) / 0.3048) -> 25.55183727 | U99: =IF(OR(LEFT($B$8,1)="C"),#N/A,VLOOKUP($R99,O2Depth!$A$10:$AG$2410,4*($C$8-1)+5) / 0.3048) -> 29.66174541 | V99: =IF(OR(LEFT($B$8,1)="C"),#N/A,VLOOKUP($R99,O2Depth!$A$10:$AG$2410,4*($C$8-1)+2) / 0.3048) -> 25.77526247
H100: 75 | I100: =IF($B$4="Annual Average", AVERAGE(OFFSET(O2Depth!$A$10,$H100*12,4*($C$8-1)+2,12,1)), MAX(OFFSET(O2Depth!$A$10,$H100*12,4*($C$8-1)+2,12,1))) / 0.3048 -> 0.4728674541 | J100: =IF($B$4="Annual Average", AVERAGE(OFFSET(O2Depth!$A$10,$H100*12,4*($C$8-1)+3,12,1)), MAX(OFFSET(O2Depth!$A$10,$H100*12,4*($C$8-1)+3,12,1))) / 0.3048 -> 0.5716207349 | K100: =IF($B$4="Annual Average", AVERAGE(OFFSET(O2Depth!$A$10,$H100*12,4*($C$8-1)+4,12,1)), MAX(OFFSET(O2Depth!$A$10,$H100*12,4*($C$8-1)+4,12,1))) / 0.3048 -> 0.6888451444 | L100: =IF($B$4="Annual Average", AVERAGE(OFFSET(O2Depth!$A$10,$H100*12,4*($C$8-1)+1,12,1)), MAX(OFFSET(O2Depth!$A$10,$H100*12,4*($C$8-1)+1,12,1))) / 0.3048 -> 0.5747375328 | R100: 16.25 | S100: =IF(OR(LEFT($B$8,1)="C"),#N/A,VLOOKUP($R100,O2Depth!$A$10:$AG$2410,4*($C$8-1)+3) / 0.3048) -> 22.89632546 | T100: =IF(OR(LEFT($B$8,1)="C"),#N/A,VLOOKUP($R100,O2Depth!$A$10:$AG$2410,4*($C$8-1)+4) / 0.3048) -> 26.89993438 | U100: =IF(OR(LEFT($B$8,1)="C"),#N/A,VLOOKUP($R100,O2Depth!$A$10:$AG$2410,4*($C$8-1)+5) / 0.3048) -> 31.17979003 | V100: =IF(OR(LEFT($B$8,1)="C"),#N/A,VLOOKUP($R100,O2Depth!$A$10:$AG$2410,4*($C$8-1)+2) / 0.3048) -> 27.11187664
H101: 76 | I101: =IF($B$4="Annual Average", AVERAGE(OFFSET(O2Depth!$A$10,$H101*12,4*($C$8-1)+2,12,1)), MAX(OFFSET(O2Depth!$A$10,$H101*12,4*($C$8-1)+2,12,1))) / 0.3048 -> 0.4799540682 | J101: =IF($B$4="Annual Average", AVERAGE(OFFSET(O2Depth!$A$10,$H101*12,4*($C$8-1)+3,12,1)), MAX(OFFSET(O2Depth!$A$10,$H101*12,4*($C$8-1)+3,12,1))) / 0.3048 -> 0.5715223097 | K101: =IF($B$4="Annual Average", AVERAGE(OFFSET(O2Depth!$A$10,$H101*12,4*($C$8-1)+4,12,1)), MAX(OFFSET(O2Depth!$A$10,$H101*12,4*($C$8-1)+4,12,1))) / 0.3048 -> 0.6990485564 | L101: =IF($B$4="Annual Average", AVERAGE(OFFSET(O2Depth!$A$10,$H101*12,4*($C$8-1)+1,12,1)), MAX(OFFSET(O2Depth!$A$10,$H101*12,4*($C$8-1)+1,12,1))) / 0.3048 -> 0.580183727 | R101: 16.33333333 | S101: =IF(OR(LEFT($B$8,1)="C"),#N/A,VLOOKUP($R101,O2Depth!$A$10:$AG$2410,4*($C$8-1)+3) / 0.3048) -> 23.43733596 | T101: =IF(OR(LEFT($B$8,1)="C"),#N/A,VLOOKUP($R101,O2Depth!$A$10:$AG$2410,4*($C$8-1)+4) / 0.3048) -> 27.47703412 | U101: =IF(OR(LEFT($B$8,1)="C"),#N/A,VLOOKUP($R101,O2Depth!$A$10:$AG$2410,4*($C$8-1)+5) / 0.3048) -> 31.84350394 | V101: =IF(OR(LEFT($B$8,1)="C"),#N/A,VLOOKUP($R101,O2Depth!$A$10:$AG$2410,4*($C$8-1)+2) / 0.3048) -> 27.70406824
H102: 77 | I102: =IF($B$4="Annual Average", AVERAGE(OFFSET(O2Depth!$A$10,$H102*12,4*($C$8-1)+2,12,1)), MAX(OFFSET(O2Depth!$A$10,$H102*12,4*($C$8-1)+2,12,1))) / 0.3048 -> 0.482808399 | J102: =IF($B$4="Annual Average", AVERAGE(OFFSET(O2Depth!$A$10,$H102*12,4*($C$8-1)+3,12,1)), MAX(OFFSET(O2Depth!$A$10,$H102*12,4*($C$8-1)+3,12,1))) / 0.3048 -> 0.575 | K102: =IF($B$4="Annual Average", AVERAGE(OFFSET(O2Depth!$A$10,$H102*12,4*($C$8-1)+4,12,1)), MAX(OFFSET(O2Depth!$A$10,$H102*12,4*($C$8-1)+4,12,1))) / 0.3048 -> 0.7012139108 | L102: =IF($B$4="Annual Average", AVERAGE(OFFSET(O2Depth!$A$10,$H102*12,4*($C$8-1)+1,12,1)), MAX(OFFSET(O2Depth!$A$10,$H102*12,4*($C$8-1)+1,12,1))) / 0.3048 -> 0.5840223097 | R102: 16.41666667 | S102: =IF(OR(LEFT($B$8,1)="C"),#N/A,VLOOKUP($R102,O2Depth!$A$10:$AG$2410,4*($C$8-1)+3) / 0.3048) -> 23.43733596 | T102: =IF(OR(LEFT($B$8,1)="C"),#N/A,VLOOKUP($R102,O2Depth!$A$10:$AG$2410,4*($C$8-1)+4) / 0.3048) -> 27.47703412 | U102: =IF(OR(LEFT($B$8,1)="C"),#N/A,VLOOKUP($R102,O2Depth!$A$10:$AG$2410,4*($C$8-1)+5) / 0.3048) -> 31.84350394 | V102: =IF(OR(LEFT($B$8,1)="C"),#N/A,VLOOKUP($R102,O2Depth!$A$10:$AG$2410,4*($C$8-1)+2) / 0.3048) -> 27.70406824
H103: 78 | I103: =IF($B$4="Annual Average", AVERAGE(OFFSET(O2Depth!$A$10,$H103*12,4*($C$8-1)+2,12,1)), MAX(OFFSET(O2Depth!$A$10,$H103*12,4*($C$8-1)+2,12,1))) / 0.3048 -> 0.4775262467 | J103: =IF($B$4="Annual Average", AVERAGE(OFFSET(O2Depth!$A$10,$H103*12,4*($C$8-1)+3,12,1)), MAX(OFFSET(O2Depth!$A$10,$H103*12,4*($C$8-1)+3,12,1))) / 0.3048 -> 0.5739829396 | K103: =IF($B$4="Annual Average", AVERAGE(OFFSET(O2Depth!$A$10,$H103*12,4*($C$8-1)+4,12,1)), MAX(OFFSET(O2Depth!$A$10,$H103*12,4*($C$8-1)+4,12,1))) / 0.3048 -> 0.7042650919 | L103: =IF($B$4="Annual Average", AVERAGE(OFFSET(O2Depth!$A$10,$H103*12,4*($C$8-1)+1,12,1)), MAX(OFFSET(O2Depth!$A$10,$H103*12,4*($C$8-1)+1,12,1))) / 0.3048 -> 0.5848425197 | R103: 16.5 | S103: =IF(OR(LEFT($B$8,1)="C"),#N/A,VLOOKUP($R103,O2Depth!$A$10:$AG$2410,4*($C$8-1)+3) / 0.3048) -> 24.31922572 | T103: =IF(OR(LEFT($B$8,1)="C"),#N/A,VLOOKUP($R103,O2Depth!$A$10:$AG$2410,4*($C$8-1)+4) / 0.3048) -> 28.41535433 | U103: =IF(OR(LEFT($B$8,1)="C"),#N/A,VLOOKUP($R103,O2Depth!$A$10:$AG$2410,4*($C$8-1)+5) / 0.3048) -> 33.03805774 | V103: =IF(OR(LEFT($B$8,1)="C"),#N/A,VLOOKUP($R103,O2Depth!$A$10:$AG$2410,4*($C$8-1)+2) / 0.3048) -> 28.64271654
H104: 79 | I104: =IF($B$4="Annual Average", AVERAGE(OFFSET(O2Depth!$A$10,$H104*12,4*($C$8-1)+2,12,1)), MAX(OFFSET(O2Depth!$A$10,$H104*12,4*($C$8-1)+2,12,1))) / 0.3048 -> 0.4812007874 | J104: =IF($B$4="Annual Average", AVERAGE(OFFSET(O2Depth!$A$10,$H104*12,4*($C$8-1)+3,12,1)), MAX(OFFSET(O2Depth!$A$10,$H104*12,4*($C$8-1)+3,12,1))) / 0.3048 -> 0.5712926509 | K104: =IF($B$4="Annual Average", AVERAGE(OFFSET(O2Depth!$A$10,$H104*12,4*($C$8-1)+4,12,1)), MAX(OFFSET(O2Depth!$A$10,$H104*12,4*($C$8-1)+4,12,1))) / 0.3048 -> 0.704691601 | L104: =IF($B$4="Annual Average", AVERAGE(OFFSET(O2Depth!$A$10,$H104*12,4*($C$8-1)+1,12,1)), MAX(OFFSET(O2Depth!$A$10,$H104*12,4*($C$8-1)+1,12,1))) / 0.3048 -> 0.5812335958 | R104: 16.58333333 | S104: =IF(OR(LEFT($B$8,1)="C"),#N/A,VLOOKUP($R104,O2Depth!$A$10:$AG$2410,4*($C$8-1)+3) / 0.3048) -> 23.80610236 | T104: =IF(OR(LEFT($B$8,1)="C"),#N/A,VLOOKUP($R104,O2Depth!$A$10:$AG$2410,4*($C$8-1)+4) / 0.3048) -> 28.11286089 | U104: =IF(OR(LEFT($B$8,1)="C"),#N/A,VLOOKUP($R104,O2Depth!$A$10:$AG$2410,4*($C$8-1)+5) / 0.3048) -> 32.98884514 | V104: =IF(OR(LEFT($B$8,1)="C"),#N/A,VLOOKUP($R104,O2Depth!$A$10:$AG$2410,4*($C$8-1)+2) / 0.3048) -> 28.27526247
H105: 80 | I105: =IF($B$4="Annual Average", AVERAGE(OFFSET(O2Depth!$A$10,$H105*12,4*($C$8-1)+2,12,1)), MAX(OFFSET(O2Depth!$A$10,$H105*12,4*($C$8-1)+2,12,1))) / 0.3048 -> 0.475656168 | J105: =IF($B$4="Annual Average", AVERAGE(OFFSET(O2Depth!$A$10,$H105*12,4*($C$8-1)+3,12,1)), MAX(OFFSET(O2Depth!$A$10,$H105*12,4*($C$8-1)+3,12,1))) / 0.3048 -> 0.5722440945 | K105: =IF($B$4="Annual Average", AVERAGE(OFFSET(O2Depth!$A$10,$H105*12,4*($C$8-1)+4,12,1)), MAX(OFFSET(O2Depth!$A$10,$H105*12,4*($C$8-1)+4,12,1))) / 0.3048 -> 0.7065944882 | L105: =IF($B$4="Annual Average", AVERAGE(OFFSET(O2Depth!$A$10,$H105*12,4*($C$8-1)+1,12,1)), MAX(OFFSET(O2Depth!$A$10,$H105*12,4*($C$8-1)+1,12,1))) / 0.3048 -> 0.5825787402 | R105: 16.66666667 | S105: =IF(OR(LEFT($B$8,1)="C"),#N/A,VLOOKUP($R105,O2Depth!$A$10:$AG$2410,4*($C$8-1)+3) / 0.3048) -> 23.80610236 | T105: =IF(OR(LEFT($B$8,1)="C"),#N/A,VLOOKUP($R105,O2Depth!$A$10:$AG$2410,4*($C$8-1)+4) / 0.3048) -> 28.11286089 | U105: =IF(OR(LEFT($B$8,1)="C"),#N/A,VLOOKUP($R105,O2Depth!$A$10:$AG$2410,4*($C$8-1)+5) / 0.3048) -> 32.98884514 | V105: =IF(OR(LEFT($B$8,1)="C"),#N/A,VLOOKUP($R105,O2Depth!$A$10:$AG$2410,4*($C$8-1)+2) / 0.3048) -> 28.27526247
H106: 81 | I106: =IF($B$4="Annual Average", AVERAGE(OFFSET(O2Depth!$A$10,$H106*12,4*($C$8-1)+2,12,1)), MAX(OFFSET(O2Depth!$A$10,$H106*12,4*($C$8-1)+2,12,1))) / 0.3048 -> 0.4719160105 | J106: =IF($B$4="Annual Average", AVERAGE(OFFSET(O2Depth!$A$10,$H106*12,4*($C$8-1)+3,12,1)), MAX(OFFSET(O2Depth!$A$10,$H106*12,4*($C$8-1)+3,12,1))) / 0.3048 -> 0.5744094488 | K106: =IF($B$4="Annual Average", AVERAGE(OFFSET(O2Depth!$A$10,$H106*12,4*($C$8-1)+4,12,1)), MAX(OFFSET(O2Depth!$A$10,$H106*12,4*($C$8-1)+4,12,1))) / 0.3048 -> 0.7077099738 | L106: =IF($B$4="Annual Average", AVERAGE(OFFSET(O2Depth!$A$10,$H106*12,4*($C$8-1)+1,12,1)), MAX(OFFSET(O2Depth!$A$10,$H106*12,4*($C$8-1)+1,12,1))) / 0.3048 -> 0.5825131234 | R106: 16.75 | S106: =IF(OR(LEFT($B$8,1)="C"),#N/A,VLOOKUP($R106,O2Depth!$A$10:$AG$2410,4*($C$8-1)+3) / 0.3048) -> 22.40485564 | T106: =IF(OR(LEFT($B$8,1)="C"),#N/A,VLOOKUP($R106,O2Depth!$A$10:$AG$2410,4*($C$8-1)+4) / 0.3048) -> 26.18044619 | U106: =IF(OR(LEFT($B$8,1)="C"),#N/A,VLOOKUP($R106,O2Depth!$A$10:$AG$2410,4*($C$8-1)+5) / 0.3048) -> 30.36712598 | V106: =IF(OR(LEFT($B$8,1)="C"),#N/A,VLOOKUP($R106,O2Depth!$A$10:$AG$2410,4*($C$8-1)+2) / 0.3048) -> 26.32480315
H107: 82 | I107: =IF($B$4="Annual Average", AVERAGE(OFFSET(O2Depth!$A$10,$H107*12,4*($C$8-1)+2,12,1)), MAX(OFFSET(O2Depth!$A$10,$H107*12,4*($C$8-1)+2,12,1))) / 0.3048 -> 0.4752296588 | J107: =IF($B$4="Annual Average", AVERAGE(OFFSET(O2Depth!$A$10,$H107*12,4*($C$8-1)+3,12,1)), MAX(OFFSET(O2Depth!$A$10,$H107*12,4*($C$8-1)+3,12,1))) / 0.3048 -> 0.5736220472 | K107: =IF($B$4="Annual Average", AVERAGE(OFFSET(O2Depth!$A$10,$H107*12,4*($C$8-1)+4,12,1)), MAX(OFFSET(O2Depth!$A$10,$H107*12,4*($C$8-1)+4,12,1))) / 0.3048 -> 0.7139435696 | L107: =IF($B$4="Annual Average", AVERAGE(OFFSET(O2Depth!$A$10,$H107*12,4*($C$8-1)+1,12,1)), MAX(OFFSET(O2Depth!$A$10,$H107*12,4*($C$8-1)+1,12,1))) / 0.3048 -> 0.5840879265 | R107: 16.83333333 | S107: =IF(OR(LEFT($B$8,1)="C"),#N/A,VLOOKUP($R107,O2Depth!$A$10:$AG$2410,4*($C$8-1)+3) / 0.3048) -> 21.85990814 | T107: =IF(OR(LEFT($B$8,1)="C"),#N/A,VLOOKUP($R107,O2Depth!$A$10:$AG$2410,4*($C$8-1)+4) / 0.3048) -> 25.52001312 | U107: =IF(OR(LEFT($B$8,1)="C"),#N/A,VLOOKUP($R107,O2Depth!$A$10:$AG$2410,4*($C$8-1)+5) / 0.3048) -> 29.55905512 | V107: =IF(OR(LEFT($B$8,1)="C"),#N/A,VLOOKUP($R107,O2Depth!$A$10:$AG$2410,4*($C$8-1)+2) / 0.3048) -> 25.65354331
H108: 83 | I108: =IF($B$4="Annual Average", AVERAGE(OFFSET(O2Depth!$A$10,$H108*12,4*($C$8-1)+2,12,1)), MAX(OFFSET(O2Depth!$A$10,$H108*12,4*($C$8-1)+2,12,1))) / 0.3048 -> 0.4804133858 | J108: =IF($B$4="Annual Average", AVERAGE(OFFSET(O2Depth!$A$10,$H108*12,4*($C$8-1)+3,12,1)), MAX(OFFSET(O2Depth!$A$10,$H108*12,4*($C$8-1)+3,12,1))) / 0.3048 -> 0.5740813648 | K108: =IF($B$4="Annual Average", AVERAGE(OFFSET(O2Depth!$A$10,$H108*12,4*($C$8-1)+4,12,1)), MAX(OFFSET(O2Depth!$A$10,$H108*12,4*($C$8-1)+4,12,1))) / 0.3048 -> 0.7029527559 | L108: =IF($B$4="Annual Average", AVERAGE(OFFSET(O2Depth!$A$10,$H108*12,4*($C$8-1)+1,12,1)), MAX(OFFSET(O2Depth!$A$10,$H108*12,4*($C$8-1)+1,12,1))) / 0.3048 -> 0.581167979 | R108: 16.91666667 | S108: =IF(OR(LEFT($B$8,1)="C"),#N/A,VLOOKUP($R108,O2Depth!$A$10:$AG$2410,4*($C$8-1)+3) / 0.3048) -> 21.85990814 | T108: =IF(OR(LEFT($B$8,1)="C"),#N/A,VLOOKUP($R108,O2Depth!$A$10:$AG$2410,4*($C$8-1)+4) / 0.3048) -> 25.52001312 | U108: =IF(OR(LEFT($B$8,1)="C"),#N/A,VLOOKUP($R108,O2Depth!$A$10:$AG$2410,4*($C$8-1)+5) / 0.3048) -> 29.55905512 | V108: =IF(OR(LEFT($B$8,1)="C"),#N/A,VLOOKUP($R108,O2Depth!$A$10:$AG$2410,4*($C$8-1)+2) / 0.3048) -> 25.65354331
H109: 84 | I109: =IF($B$4="Annual Average", AVERAGE(OFFSET(O2Depth!$A$10,$H109*12,4*($C$8-1)+2,12,1)), MAX(OFFSET(O2Depth!$A$10,$H109*12,4*($C$8-1)+2,12,1))) / 0.3048 -> 0.4734580052 | J109: =IF($B$4="Annual Average", AVERAGE(OFFSET(O2Depth!$A$10,$H109*12,4*($C$8-1)+3,12,1)), MAX(OFFSET(O2Depth!$A$10,$H109*12,4*($C$8-1)+3,12,1))) / 0.3048 -> 0.5817257218 | K109: =IF($B$4="Annual Average", AVERAGE(OFFSET(O2Depth!$A$10,$H109*12,4*($C$8-1)+4,12,1)), MAX(OFFSET(O2Depth!$A$10,$H109*12,4*($C$8-1)+4,12,1))) / 0.3048 -> 0.718175853 | L109: =IF($B$4="Annual Average", AVERAGE(OFFSET(O2Depth!$A$10,$H109*12,4*($C$8-1)+1,12,1)), MAX(OFFSET(O2Depth!$A$10,$H109*12,4*($C$8-1)+1,12,1))) / 0.3048 -> 0.5864501312 | R109: 17 | S109: =IF(OR(LEFT($B$8,1)="C"),#N/A,VLOOKUP($R109,O2Depth!$A$10:$AG$2410,4*($C$8-1)+3) / 0.3048) -> 20.84120735 | T109: =IF(OR(LEFT($B$8,1)="C"),#N/A,VLOOKUP($R109,O2Depth!$A$10:$AG$2410,4*($C$8-1)+4) / 0.3048) -> 24.30905512 | U109: =IF(OR(LEFT($B$8,1)="C"),#N/A,VLOOKUP($R109,O2Depth!$A$10:$AG$2410,4*($C$8-1)+5) / 0.3048) -> 28.72408136 | V109: =IF(OR(LEFT($B$8,1)="C"),#N/A,VLOOKUP($R109,O2Depth!$A$10:$AG$2410,4*($C$8-1)+2) / 0.3048) -> 24.57611549
H110: 85 | I110: =IF($B$4="Annual Average", AVERAGE(OFFSET(O2Depth!$A$10,$H110*12,4*($C$8-1)+2,12,1)), MAX(OFFSET(O2Depth!$A$10,$H110*12,4*($C$8-1)+2,12,1))) / 0.3048 -> 0.4788057743 | J110: =IF($B$4="Annual Average", AVERAGE(OFFSET(O2Depth!$A$10,$H110*12,4*($C$8-1)+3,12,1)), MAX(OFFSET(O2Depth!$A$10,$H110*12,4*($C$8-1)+3,12,1))) / 0.3048 -> 0.5727362205 | K110: =IF($B$4="Annual Average", AVERAGE(OFFSET(O2Depth!$A$10,$H110*12,4*($C$8-1)+4,12,1)), MAX(OFFSET(O2Depth!$A$10,$H110*12,4*($C$8-1)+4,12,1))) / 0.3048 -> 0.7070866142 | L110: =IF($B$4="Annual Average", AVERAGE(OFFSET(O2Depth!$A$10,$H110*12,4*($C$8-1)+1,12,1)), MAX(OFFSET(O2Depth!$A$10,$H110*12,4*($C$8-1)+1,12,1))) / 0.3048 -> 0.5822178478 | R110: 17.08333333 | S110: =IF(OR(LEFT($B$8,1)="C"),#N/A,VLOOKUP($R110,O2Depth!$A$10:$AG$2410,4*($C$8-1)+3) / 0.3048) -> 22.04396325 | T110: =IF(OR(LEFT($B$8,1)="C"),#N/A,VLOOKUP($R110,O2Depth!$A$10:$AG$2410,4*($C$8-1)+4) / 0.3048) -> 25.61318898 | U110: =IF(OR(LEFT($B$8,1)="C"),#N/A,VLOOKUP($R110,O2Depth!$A$10:$AG$2410,4*($C$8-1)+5) / 0.3048) -> 30.43963255 | V110: =IF(OR(LEFT($B$8,1)="C"),#N/A,VLOOKUP($R110,O2Depth!$A$10:$AG$2410,4*($C$8-1)+2) / 0.3048) -> 25.96456693
H111: 86 | I111: =IF($B$4="Annual Average", AVERAGE(OFFSET(O2Depth!$A$10,$H111*12,4*($C$8-1)+2,12,1)), MAX(OFFSET(O2Depth!$A$10,$H111*12,4*($C$8-1)+2,12,1))) / 0.3048 -> 0.4749015748 | J111: =IF($B$4="Annual Average", AVERAGE(OFFSET(O2Depth!$A$10,$H111*12,4*($C$8-1)+3,12,1)), MAX(OFFSET(O2Depth!$A$10,$H111*12,4*($C$8-1)+3,12,1))) / 0.3048 -> 0.5749343832 | K111: =IF($B$4="Annual Average", AVERAGE(OFFSET(O2Depth!$A$10,$H111*12,4*($C$8-1)+4,12,1)), MAX(OFFSET(O2Depth!$A$10,$H111*12,4*($C$8-1)+4,12,1))) / 0.3048 -> 0.7001968504 | L111: =IF($B$4="Annual Average", AVERAGE(OFFSET(O2Depth!$A$10,$H111*12,4*($C$8-1)+1,12,1)), MAX(OFFSET(O2Depth!$A$10,$H111*12,4*($C$8-1)+1,12,1))) / 0.3048 -> 0.5807086614 | R111: 17.16666667 | S111: =IF(OR(LEFT($B$8,1)="C"),#N/A,VLOOKUP($R111,O2Depth!$A$10:$AG$2410,4*($C$8-1)+3) / 0.3048) -> 22.04396325 | T111: =IF(OR(LEFT($B$8,1)="C"),#N/A,VLOOKUP($R111,O2Depth!$A$10:$AG$2410,4*($C$8-1)+4) / 0.3048) -> 25.61318898 | U111: =IF(OR(LEFT($B$8,1)="C"),#N/A,VLOOKUP($R111,O2Depth!$A$10:$AG$2410,4*($C$8-1)+5) / 0.3048) -> 30.43963255 | V111: =IF(OR(LEFT($B$8,1)="C"),#N/A,VLOOKUP($R111,O2Depth!$A$10:$AG$2410,4*($C$8-1)+2) / 0.3048) -> 25.96456693
H112: 87 | I112: =IF($B$4="Annual Average", AVERAGE(OFFSET(O2Depth!$A$10,$H112*12,4*($C$8-1)+2,12,1)), MAX(OFFSET(O2Depth!$A$10,$H112*12,4*($C$8-1)+2,12,1))) / 0.3048 -> 0.4798884514 | J112: =IF($B$4="Annual Average", AVERAGE(OFFSET(O2Depth!$A$10,$H112*12,4*($C$8-1)+3,12,1)), MAX(OFFSET(O2Depth!$A$10,$H112*12,4*($C$8-1)+3,12,1))) / 0.3048 -> 0.5728018373 | K112: =IF($B$4="Annual Average", AVERAGE(OFFSET(O2Depth!$A$10,$H112*12,4*($C$8-1)+4,12,1)), MAX(OFFSET(O2Depth!$A$10,$H112*12,4*($C$8-1)+4,12,1))) / 0.3048 -> 0.7024606299 | L112: =IF($B$4="Annual Average", AVERAGE(OFFSET(O2Depth!$A$10,$H112*12,4*($C$8-1)+1,12,1)), MAX(OFFSET(O2Depth!$A$10,$H112*12,4*($C$8-1)+1,12,1))) / 0.3048 -> 0.5812664042 | R112: 17.25 | S112: =IF(OR(LEFT($B$8,1)="C"),#N/A,VLOOKUP($R112,O2Depth!$A$10:$AG$2410,4*($C$8-1)+3) / 0.3048) -> 23.17290026 | T112: =IF(OR(LEFT($B$8,1)="C"),#N/A,VLOOKUP($R112,O2Depth!$A$10:$AG$2410,4*($C$8-1)+4) / 0.3048) -> 27.0082021 | U112: =IF(OR(LEFT($B$8,1)="C"),#N/A,VLOOKUP($R112,O2Depth!$A$10:$AG$2410,4*($C$8-1)+5) / 0.3048) -> 32.05052493 | V112: =IF(OR(LEFT($B$8,1)="C"),#N/A,VLOOKUP($R112,O2Depth!$A$10:$AG$2410,4*($C$8-1)+2) / 0.3048) -> 27.28608924
H113: 88 | I113: =IF($B$4="Annual Average", AVERAGE(OFFSET(O2Depth!$A$10,$H113*12,4*($C$8-1)+2,12,1)), MAX(OFFSET(O2Depth!$A$10,$H113*12,4*($C$8-1)+2,12,1))) / 0.3048 -> 0.4767716535 | J113: =IF($B$4="Annual Average", AVERAGE(OFFSET(O2Depth!$A$10,$H113*12,4*($C$8-1)+3,12,1)), MAX(OFFSET(O2Depth!$A$10,$H113*12,4*($C$8-1)+3,12,1))) / 0.3048 -> 0.5724081365 | K113: =IF($B$4="Annual Average", AVERAGE(OFFSET(O2Depth!$A$10,$H113*12,4*($C$8-1)+4,12,1)), MAX(OFFSET(O2Depth!$A$10,$H113*12,4*($C$8-1)+4,12,1))) / 0.3048 -> 0.6962598425 | L113: =IF($B$4="Annual Average", AVERAGE(OFFSET(O2Depth!$A$10,$H113*12,4*($C$8-1)+1,12,1)), MAX(OFFSET(O2Depth!$A$10,$H113*12,4*($C$8-1)+1,12,1))) / 0.3048 -> 0.5787073491 | R113: 17.33333333 | S113: =IF(OR(LEFT($B$8,1)="C"),#N/A,VLOOKUP($R113,O2Depth!$A$10:$AG$2410,4*($C$8-1)+3) / 0.3048) -> 23.66994751 | T113: =IF(OR(LEFT($B$8,1)="C"),#N/A,VLOOKUP($R113,O2Depth!$A$10:$AG$2410,4*($C$8-1)+4) / 0.3048) -> 27.56069554 | U113: =IF(OR(LEFT($B$8,1)="C"),#N/A,VLOOKUP($R113,O2Depth!$A$10:$AG$2410,4*($C$8-1)+5) / 0.3048) -> 32.77788714 | V113: =IF(OR(LEFT($B$8,1)="C"),#N/A,VLOOKUP($R113,O2Depth!$A$10:$AG$2410,4*($C$8-1)+2) / 0.3048) -> 27.87139108
H114: 89 | I114: =IF($B$4="Annual Average", AVERAGE(OFFSET(O2Depth!$A$10,$H114*12,4*($C$8-1)+2,12,1)), MAX(OFFSET(O2Depth!$A$10,$H114*12,4*($C$8-1)+2,12,1))) / 0.3048 -> 0.4723753281 | J114: =IF($B$4="Annual Average", AVERAGE(OFFSET(O2Depth!$A$10,$H114*12,4*($C$8-1)+3,12,1)), MAX(OFFSET(O2Depth!$A$10,$H114*12,4*($C$8-1)+3,12,1))) / 0.3048 -> 0.5697506562 | K114: =IF($B$4="Annual Average", AVERAGE(OFFSET(O2Depth!$A$10,$H114*12,4*($C$8-1)+4,12,1)), MAX(OFFSET(O2Depth!$A$10,$H114*12,4*($C$8-1)+4,12,1))) / 0.3048 -> 0.6994094488 | L114: =IF($B$4="Annual Average", AVERAGE(OFFSET(O2Depth!$A$10,$H114*12,4*($C$8-1)+1,12,1)), MAX(OFFSET(O2Depth!$A$10,$H114*12,4*($C$8-1)+1,12,1))) / 0.3048 -> 0.5804461942 | R114: 17.41666667 | S114: =IF(OR(LEFT($B$8,1)="C"),#N/A,VLOOKUP($R114,O2Depth!$A$10:$AG$2410,4*($C$8-1)+3) / 0.3048) -> 23.66994751 | T114: =IF(OR(LEFT($B$8,1)="C"),#N/A,VLOOKUP($R114,O2Depth!$A$10:$AG$2410,4*($C$8-1)+4) / 0.3048) -> 27.56069554 | U114: =IF(OR(LEFT($B$8,1)="C"),#N/A,VLOOKUP($R114,O2Depth!$A$10:$AG$2410,4*($C$8-1)+5) / 0.3048) -> 32.77788714 | V114: =IF(OR(LEFT($B$8,1)="C"),#N/A,VLOOKUP($R114,O2Depth!$A$10:$AG$2410,4*($C$8-1)+2) / 0.3048) -> 27.87139108
H115: 90 | I115: =IF($B$4="Annual Average", AVERAGE(OFFSET(O2Depth!$A$10,$H115*12,4*($C$8-1)+2,12,1)), MAX(OFFSET(O2Depth!$A$10,$H115*12,4*($C$8-1)+2,12,1))) / 0.3048 -> 0.4744422572 | J115: =IF($B$4="Annual Average", AVERAGE(OFFSET(O2Depth!$A$10,$H115*12,4*($C$8-1)+3,12,1)), MAX(OFFSET(O2Depth!$A$10,$H115*12,4*($C$8-1)+3,12,1))) / 0.3048 -> 0.5745734908 | K115: =IF($B$4="Annual Average", AVERAGE(OFFSET(O2Depth!$A$10,$H115*12,4*($C$8-1)+4,12,1)), MAX(OFFSET(O2Depth!$A$10,$H115*12,4*($C$8-1)+4,12,1))) / 0.3048 -> 0.6996062992 | L115: =IF($B$4="Annual Average", AVERAGE(OFFSET(O2Depth!$A$10,$H115*12,4*($C$8-1)+1,12,1)), MAX(OFFSET(O2Depth!$A$10,$H115*12,4*($C$8-1)+1,12,1))) / 0.3048 -> 0.5821850394 | R115: 17.5 | S115: =IF(OR(LEFT($B$8,1)="C"),#N/A,VLOOKUP($R115,O2Depth!$A$10:$AG$2410,4*($C$8-1)+3) / 0.3048) -> 24.49015748 | T115: =IF(OR(LEFT($B$8,1)="C"),#N/A,VLOOKUP($R115,O2Depth!$A$10:$AG$2410,4*($C$8-1)+4) / 0.3048) -> 28.48031496 | U115: =IF(OR(LEFT($B$8,1)="C"),#N/A,VLOOKUP($R115,O2Depth!$A$10:$AG$2410,4*($C$8-1)+5) / 0.3048) -> 33.93372703 | V115: =IF(OR(LEFT($B$8,1)="C"),#N/A,VLOOKUP($R115,O2Depth!$A$10:$AG$2410,4*($C$8-1)+2) / 0.3048) -> 28.83497375
H116: 91 | I116: =IF($B$4="Annual Average", AVERAGE(OFFSET(O2Depth!$A$10,$H116*12,4*($C$8-1)+2,12,1)), MAX(OFFSET(O2Depth!$A$10,$H116*12,4*($C$8-1)+2,12,1))) / 0.3048 -> 0.4704724409 | J116: =IF($B$4="Annual Average", AVERAGE(OFFSET(O2Depth!$A$10,$H116*12,4*($C$8-1)+3,12,1)), MAX(OFFSET(O2Depth!$A$10,$H116*12,4*($C$8-1)+3,12,1))) / 0.3048 -> 0.5730971129 | K116: =IF($B$4="Annual Average", AVERAGE(OFFSET(O2Depth!$A$10,$H116*12,4*($C$8-1)+4,12,1)), MAX(OFFSET(O2Depth!$A$10,$H116*12,4*($C$8-1)+4,12,1))) / 0.3048 -> 0.7065288714 | L116: =IF($B$4="Annual Average", AVERAGE(OFFSET(O2Depth!$A$10,$H116*12,4*($C$8-1)+1,12,1)), MAX(OFFSET(O2Depth!$A$10,$H116*12,4*($C$8-1)+1,12,1))) / 0.3048 -> 0.5812335958 | R116: 17.58333333 | S116: =IF(OR(LEFT($B$8,1)="C"),#N/A,VLOOKUP($R116,O2Depth!$A$10:$AG$2410,4*($C$8-1)+3) / 0.3048) -> 23.96850394 | T116: =IF(OR(LEFT($B$8,1)="C"),#N/A,VLOOKUP($R116,O2Depth!$A$10:$AG$2410,4*($C$8-1)+4) / 0.3048) -> 28.15288714 | U116: =IF(OR(LEFT($B$8,1)="C"),#N/A,VLOOKUP($R116,O2Depth!$A$10:$AG$2410,4*($C$8-1)+5) / 0.3048) -> 33.67125984 | V116: =IF(OR(LEFT($B$8,1)="C"),#N/A,VLOOKUP($R116,O2Depth!$A$10:$AG$2410,4*($C$8-1)+2) / 0.3048) -> 28.49770341
H117: 92 | I117: =IF($B$4="Annual Average", AVERAGE(OFFSET(O2Depth!$A$10,$H117*12,4*($C$8-1)+2,12,1)), MAX(OFFSET(O2Depth!$A$10,$H117*12,4*($C$8-1)+2,12,1))) / 0.3048 -> 0.4771325459 | J117: =IF($B$4="Annual Average", AVERAGE(OFFSET(O2Depth!$A$10,$H117*12,4*($C$8-1)+3,12,1)), MAX(OFFSET(O2Depth!$A$10,$H117*12,4*($C$8-1)+3,12,1))) / 0.3048 -> 0.5718832021 | K117: =IF($B$4="Annual Average", AVERAGE(OFFSET(O2Depth!$A$10,$H117*12,4*($C$8-1)+4,12,1)), MAX(OFFSET(O2Depth!$A$10,$H117*12,4*($C$8-1)+4,12,1))) / 0.3048 -> 0.7089566929 | L117: =IF($B$4="Annual Average", AVERAGE(OFFSET(O2Depth!$A$10,$H117*12,4*($C$8-1)+1,12,1)), MAX(OFFSET(O2Depth!$A$10,$H117*12,4*($C$8-1)+1,12,1))) / 0.3048 -> 0.5840551181 | R117: 17.66666667 | S117: =IF(OR(LEFT($B$8,1)="C"),#N/A,VLOOKUP($R117,O2Depth!$A$10:$AG$2410,4*($C$8-1)+3) / 0.3048) -> 23.96850394 | T117: =IF(OR(LEFT($B$8,1)="C"),#N/A,VLOOKUP($R117,O2Depth!$A$10:$AG$2410,4*($C$8-1)+4) / 0.3048) -> 28.15288714 | U117: =IF(OR(LEFT($B$8,1)="C"),#N/A,VLOOKUP($R117,O2Depth!$A$10:$AG$2410,4*($C$8-1)+5) / 0.3048) -> 33.67125984 | V117: =IF(OR(LEFT($B$8,1)="C"),#N/A,VLOOKUP($R117,O2Depth!$A$10:$AG$2410,4*($C$8-1)+2) / 0.3048) -> 28.49770341
H118: 93 | I118: =IF($B$4="Annual Average", AVERAGE(OFFSET(O2Depth!$A$10,$H118*12,4*($C$8-1)+2,12,1)), MAX(OFFSET(O2Depth!$A$10,$H118*12,4*($C$8-1)+2,12,1))) / 0.3048 -> 0.479691601 | J118: =IF($B$4="Annual Average", AVERAGE(OFFSET(O2Depth!$A$10,$H118*12,4*($C$8-1)+3,12,1)), MAX(OFFSET(O2Depth!$A$10,$H118*12,4*($C$8-1)+3,12,1))) / 0.3048 -> 0.5767060367 | K118: =IF($B$4="Annual Average", AVERAGE(OFFSET(O2Depth!$A$10,$H118*12,4*($C$8-1)+4,12,1)), MAX(OFFSET(O2Depth!$A$10,$H118*12,4*($C$8-1)+4,12,1))) / 0.3048 -> 0.7030183727 | L118: =IF($B$4="Annual Average", AVERAGE(OFFSET(O2Depth!$A$10,$H118*12,4*($C$8-1)+1,12,1)), MAX(OFFSET(O2Depth!$A$10,$H118*12,4*($C$8-1)+1,12,1))) / 0.3048 -> 0.5847112861 | R118: 17.75 | S118: =IF(OR(LEFT($B$8,1)="C"),#N/A,VLOOKUP($R118,O2Depth!$A$10:$AG$2410,4*($C$8-1)+3) / 0.3048) -> 22.46620735 | T118: =IF(OR(LEFT($B$8,1)="C"),#N/A,VLOOKUP($R118,O2Depth!$A$10:$AG$2410,4*($C$8-1)+4) / 0.3048) -> 26.17847769 | U118: =IF(OR(LEFT($B$8,1)="C"),#N/A,VLOOKUP($R118,O2Depth!$A$10:$AG$2410,4*($C$8-1)+5) / 0.3048) -> 31.23884514 | V118: =IF(OR(LEFT($B$8,1)="C"),#N/A,VLOOKUP($R118,O2Depth!$A$10:$AG$2410,4*($C$8-1)+2) / 0.3048) -> 26.51607612
H119: 94 | I119: =IF($B$4="Annual Average", AVERAGE(OFFSET(O2Depth!$A$10,$H119*12,4*($C$8-1)+2,12,1)), MAX(OFFSET(O2Depth!$A$10,$H119*12,4*($C$8-1)+2,12,1))) / 0.3048 -> 0.4765091864 | J119: =IF($B$4="Annual Average", AVERAGE(OFFSET(O2Depth!$A$10,$H119*12,4*($C$8-1)+3,12,1)), MAX(OFFSET(O2Depth!$A$10,$H119*12,4*($C$8-1)+3,12,1))) / 0.3048 -> 0.5714238845 | K119: =IF($B$4="Annual Average", AVERAGE(OFFSET(O2Depth!$A$10,$H119*12,4*($C$8-1)+4,12,1)), MAX(OFFSET(O2Depth!$A$10,$H119*12,4*($C$8-1)+4,12,1))) / 0.3048 -> 0.7065616798 | L119: =IF($B$4="Annual Average", AVERAGE(OFFSET(O2Depth!$A$10,$H119*12,4*($C$8-1)+1,12,1)), MAX(OFFSET(O2Depth!$A$10,$H119*12,4*($C$8-1)+1,12,1))) / 0.3048 -> 0.582480315 | R119: 17.83333333 | S119: =IF(OR(LEFT($B$8,1)="C"),#N/A,VLOOKUP($R119,O2Depth!$A$10:$AG$2410,4*($C$8-1)+3) / 0.3048) -> 21.91896325 | T119: =IF(OR(LEFT($B$8,1)="C"),#N/A,VLOOKUP($R119,O2Depth!$A$10:$AG$2410,4*($C$8-1)+4) / 0.3048) -> 25.51771654 | U119: =IF(OR(LEFT($B$8,1)="C"),#N/A,VLOOKUP($R119,O2Depth!$A$10:$AG$2410,4*($C$8-1)+5) / 0.3048) -> 30.41305774 | V119: =IF(OR(LEFT($B$8,1)="C"),#N/A,VLOOKUP($R119,O2Depth!$A$10:$AG$2410,4*($C$8-1)+2) / 0.3048) -> 25.83858268
H120: 95 | I120: =IF($B$4="Annual Average", AVERAGE(OFFSET(O2Depth!$A$10,$H120*12,4*($C$8-1)+2,12,1)), MAX(OFFSET(O2Depth!$A$10,$H120*12,4*($C$8-1)+2,12,1))) / 0.3048 -> 0.4718175853 | J120: =IF($B$4="Annual Average", AVERAGE(OFFSET(O2Depth!$A$10,$H120*12,4*($C$8-1)+3,12,1)), MAX(OFFSET(O2Depth!$A$10,$H120*12,4*($C$8-1)+3,12,1))) / 0.3048 -> 0.5692585302 | K120: =IF($B$4="Annual Average", AVERAGE(OFFSET(O2Depth!$A$10,$H120*12,4*($C$8-1)+4,12,1)), MAX(OFFSET(O2Depth!$A$10,$H120*12,4*($C$8-1)+4,12,1))) / 0.3048 -> 0.7061023622 | L120: =IF($B$4="Annual Average", AVERAGE(OFFSET(O2Depth!$A$10,$H120*12,4*($C$8-1)+1,12,1)), MAX(OFFSET(O2Depth!$A$10,$H120*12,4*($C$8-1)+1,12,1))) / 0.3048 -> 0.5808727034 | R120: 17.91666667 | S120: =IF(OR(LEFT($B$8,1)="C"),#N/A,VLOOKUP($R120,O2Depth!$A$10:$AG$2410,4*($C$8-1)+3) / 0.3048) -> 21.91896325 | T120: =IF(OR(LEFT($B$8,1)="C"),#N/A,VLOOKUP($R120,O2Depth!$A$10:$AG$2410,4*($C$8-1)+4) / 0.3048) -> 25.51771654 | U120: =IF(OR(LEFT($B$8,1)="C"),#N/A,VLOOKUP($R120,O2Depth!$A$10:$AG$2410,4*($C$8-1)+5) / 0.3048) -> 30.41305774 | V120: =IF(OR(LEFT($B$8,1)="C"),#N/A,VLOOKUP($R120,O2Depth!$A$10:$AG$2410,4*($C$8-1)+2) / 0.3048) -> 25.83858268
H121: 96 | I121: =IF($B$4="Annual Average", AVERAGE(OFFSET(O2Depth!$A$10,$H121*12,4*($C$8-1)+2,12,1)), MAX(OFFSET(O2Depth!$A$10,$H121*12,4*($C$8-1)+2,12,1))) / 0.3048 -> 0.4799868766 | J121: =IF($B$4="Annual Average", AVERAGE(OFFSET(O2Depth!$A$10,$H121*12,4*($C$8-1)+3,12,1)), MAX(OFFSET(O2Depth!$A$10,$H121*12,4*($C$8-1)+3,12,1))) / 0.3048 -> 0.5727034121 | K121: =IF($B$4="Annual Average", AVERAGE(OFFSET(O2Depth!$A$10,$H121*12,4*($C$8-1)+4,12,1)), MAX(OFFSET(O2Depth!$A$10,$H121*12,4*($C$8-1)+4,12,1))) / 0.3048 -> 0.712007874 | L121: =IF($B$4="Annual Average", AVERAGE(OFFSET(O2Depth!$A$10,$H121*12,4*($C$8-1)+1,12,1)), MAX(OFFSET(O2Depth!$A$10,$H121*12,4*($C$8-1)+1,12,1))) / 0.3048 -> 0.5812335958 | R121: 18 | S121: =IF(OR(LEFT($B$8,1)="C"),#N/A,VLOOKUP($R121,O2Depth!$A$10:$AG$2410,4*($C$8-1)+3) / 0.3048) -> 20.74475066 | T121: =IF(OR(LEFT($B$8,1)="C"),#N/A,VLOOKUP($R121,O2Depth!$A$10:$AG$2410,4*($C$8-1)+4) / 0.3048) -> 24.51574803 | U121: =IF(OR(LEFT($B$8,1)="C"),#N/A,VLOOKUP($R121,O2Depth!$A$10:$AG$2410,4*($C$8-1)+5) / 0.3048) -> 28.97506562 | V121: =IF(OR(LEFT($B$8,1)="C"),#N/A,VLOOKUP($R121,O2Depth!$A$10:$AG$2410,4*($C$8-1)+2) / 0.3048) -> 24.69553806
H122: 97 | I122: =IF($B$4="Annual Average", AVERAGE(OFFSET(O2Depth!$A$10,$H122*12,4*($C$8-1)+2,12,1)), MAX(OFFSET(O2Depth!$A$10,$H122*12,4*($C$8-1)+2,12,1))) / 0.3048 -> 0.4784120735 | J122: =IF($B$4="Annual Average", AVERAGE(OFFSET(O2Depth!$A$10,$H122*12,4*($C$8-1)+3,12,1)), MAX(OFFSET(O2Depth!$A$10,$H122*12,4*($C$8-1)+3,12,1))) / 0.3048 -> 0.5744422572 | K122: =IF($B$4="Annual Average", AVERAGE(OFFSET(O2Depth!$A$10,$H122*12,4*($C$8-1)+4,12,1)), MAX(OFFSET(O2Depth!$A$10,$H122*12,4*($C$8-1)+4,12,1))) / 0.3048 -> 0.7028215223 | L122: =IF($B$4="Annual Average", AVERAGE(OFFSET(O2Depth!$A$10,$H122*12,4*($C$8-1)+1,12,1)), MAX(OFFSET(O2Depth!$A$10,$H122*12,4*($C$8-1)+1,12,1))) / 0.3048 -> 0.5824475066 | R122: 18.08333333 | S122: =VLOOKUP($R122,O2Depth!$A$10:$AG$2410,4*($C$8-1)+3) / 0.3048 -> 21.93175853 | T122: =VLOOKUP($R122,O2Depth!$A$10:$AG$2410,4*($C$8-1)+4) / 0.3048 -> 25.89665354 | U122: =VLOOKUP($R122,O2Depth!$A$10:$AG$2410,4*($C$8-1)+5) / 0.3048 -> 30.5839895 | V122: =VLOOKUP($R122,O2Depth!$A$10:$AG$2410,4*($C$8-1)+2) / 0.3048 -> 26.08169291
H123: 98 | I123: =IF($B$4="Annual Average", AVERAGE(OFFSET(O2Depth!$A$10,$H123*12,4*($C$8-1)+2,12,1)), MAX(OFFSET(O2Depth!$A$10,$H123*12,4*($C$8-1)+2,12,1))) / 0.3048 -> 0.4773293963 | J123: =IF($B$4="Annual Average", AVERAGE(OFFSET(O2Depth!$A$10,$H123*12,4*($C$8-1)+3,12,1)), MAX(OFFSET(O2Depth!$A$10,$H123*12,4*($C$8-1)+3,12,1))) / 0.3048 -> 0.573687664 | K123: =IF($B$4="Annual Average", AVERAGE(OFFSET(O2Depth!$A$10,$H123*12,4*($C$8-1)+4,12,1)), MAX(OFFSET(O2Depth!$A$10,$H123*12,4*($C$8-1)+4,12,1))) / 0.3048 -> 0.7137467192 | L123: =IF($B$4="Annual Average", AVERAGE(OFFSET(O2Depth!$A$10,$H123*12,4*($C$8-1)+1,12,1)), MAX(OFFSET(O2Depth!$A$10,$H123*12,4*($C$8-1)+1,12,1))) / 0.3048 -> 0.5822834646 | R123: 18.16666667 | S123: =VLOOKUP($R123,O2Depth!$A$10:$AG$2410,4*($C$8-1)+3) / 0.3048 -> 21.93175853 | T123: =VLOOKUP($R123,O2Depth!$A$10:$AG$2410,4*($C$8-1)+4) / 0.3048 -> 25.89665354 | U123: =VLOOKUP($R123,O2Depth!$A$10:$AG$2410,4*($C$8-1)+5) / 0.3048 -> 30.5839895 | V123: =VLOOKUP($R123,O2Depth!$A$10:$AG$2410,4*($C$8-1)+2) / 0.3048 -> 26.08169291
H124: 99 | I124: =IF($B$4="Annual Average", AVERAGE(OFFSET(O2Depth!$A$10,$H124*12,4*($C$8-1)+2,12,1)), MAX(OFFSET(O2Depth!$A$10,$H124*12,4*($C$8-1)+2,12,1))) / 0.3048 -> 0.4783136483 | J124: =IF($B$4="Annual Average", AVERAGE(OFFSET(O2Depth!$A$10,$H124*12,4*($C$8-1)+3,12,1)), MAX(OFFSET(O2Depth!$A$10,$H124*12,4*($C$8-1)+3,12,1))) / 0.3048 -> 0.5769685039 | K124: =IF($B$4="Annual Average", AVERAGE(OFFSET(O2Depth!$A$10,$H124*12,4*($C$8-1)+4,12,1)), MAX(OFFSET(O2Depth!$A$10,$H124*12,4*($C$8-1)+4,12,1))) / 0.3048 -> 0.7084973753 | L124: =IF($B$4="Annual Average", AVERAGE(OFFSET(O2Depth!$A$10,$H124*12,4*($C$8-1)+1,12,1)), MAX(OFFSET(O2Depth!$A$10,$H124*12,4*($C$8-1)+1,12,1))) / 0.3048 -> 0.5838910761 | R124: 18.25 | S124: =VLOOKUP($R124,O2Depth!$A$10:$AG$2410,4*($C$8-1)+3) / 0.3048 -> 23.07053806 | T124: =VLOOKUP($R124,O2Depth!$A$10:$AG$2410,4*($C$8-1)+4) / 0.3048 -> 27.1515748 | U124: =VLOOKUP($R124,O2Depth!$A$10:$AG$2410,4*($C$8-1)+5) / 0.3048 -> 32.04527559 | V124: =VLOOKUP($R124,O2Depth!$A$10:$AG$2410,4*($C$8-1)+2) / 0.3048 -> 27.3976378
H125: 100 | I125: =IF($B$4="Annual Average", AVERAGE(OFFSET(O2Depth!$A$10,$H125*12,4*($C$8-1)+2,12,1)), MAX(OFFSET(O2Depth!$A$10,$H125*12,4*($C$8-1)+2,12,1))) / 0.3048 -> 0.4793307087 | J125: =IF($B$4="Annual Average", AVERAGE(OFFSET(O2Depth!$A$10,$H125*12,4*($C$8-1)+3,12,1)), MAX(OFFSET(O2Depth!$A$10,$H125*12,4*($C$8-1)+3,12,1))) / 0.3048 -> 0.5721128609 | K125: =IF($B$4="Annual Average", AVERAGE(OFFSET(O2Depth!$A$10,$H125*12,4*($C$8-1)+4,12,1)), MAX(OFFSET(O2Depth!$A$10,$H125*12,4*($C$8-1)+4,12,1))) / 0.3048 -> 0.7128608924 | L125: =IF($B$4="Annual Average", AVERAGE(OFFSET(O2Depth!$A$10,$H125*12,4*($C$8-1)+1,12,1)), MAX(OFFSET(O2Depth!$A$10,$H125*12,4*($C$8-1)+1,12,1))) / 0.3048 -> 0.5856299213 | R125: 18.33333333 | S125: =VLOOKUP($R125,O2Depth!$A$10:$AG$2410,4*($C$8-1)+3) / 0.3048 -> 23.57677165 | T125: =VLOOKUP($R125,O2Depth!$A$10:$AG$2410,4*($C$8-1)+4) / 0.3048 -> 27.74934383 | U125: =VLOOKUP($R125,O2Depth!$A$10:$AG$2410,4*($C$8-1)+5) / 0.3048 -> 32.64862205 | V125: =VLOOKUP($R125,O2Depth!$A$10:$AG$2410,4*($C$8-1)+2) / 0.3048 -> 27.98097113
H126: 101 | I126: =IF($B$4="Annual Average", AVERAGE(OFFSET(O2Depth!$A$10,$H126*12,4*($C$8-1)+2,12,1)), MAX(OFFSET(O2Depth!$A$10,$H126*12,4*($C$8-1)+2,12,1))) / 0.3048 -> 0.480511811 | J126: =IF($B$4="Annual Average", AVERAGE(OFFSET(O2Depth!$A$10,$H126*12,4*($C$8-1)+3,12,1)), MAX(OFFSET(O2Depth!$A$10,$H126*12,4*($C$8-1)+3,12,1))) / 0.3048 -> 0.5690944882 | K126: =IF($B$4="Annual Average", AVERAGE(OFFSET(O2Depth!$A$10,$H126*12,4*($C$8-1)+4,12,1)), MAX(OFFSET(O2Depth!$A$10,$H126*12,4*($C$8-1)+4,12,1))) / 0.3048 -> 0.706496063 | L126: =IF($B$4="Annual Average", AVERAGE(OFFSET(O2Depth!$A$10,$H126*12,4*($C$8-1)+1,12,1)), MAX(OFFSET(O2Depth!$A$10,$H126*12,4*($C$8-1)+1,12,1))) / 0.3048 -> 0.5827755906 | R126: 18.41666667 | S126: =VLOOKUP($R126,O2Depth!$A$10:$AG$2410,4*($C$8-1)+3) / 0.3048 -> 23.57677165 | T126: =VLOOKUP($R126,O2Depth!$A$10:$AG$2410,4*($C$8-1)+4) / 0.3048 -> 27.74934383 | U126: =VLOOKUP($R126,O2Depth!$A$10:$AG$2410,4*($C$8-1)+5) / 0.3048 -> 32.64862205 | V126: =VLOOKUP($R126,O2Depth!$A$10:$AG$2410,4*($C$8-1)+2) / 0.3048 -> 27.98097113
H127: 102 | I127: =IF($B$4="Annual Average", AVERAGE(OFFSET(O2Depth!$A$10,$H127*12,4*($C$8-1)+2,12,1)), MAX(OFFSET(O2Depth!$A$10,$H127*12,4*($C$8-1)+2,12,1))) / 0.3048 -> 0.4753608924 | J127: =IF($B$4="Annual Average", AVERAGE(OFFSET(O2Depth!$A$10,$H127*12,4*($C$8-1)+3,12,1)), MAX(OFFSET(O2Depth!$A$10,$H127*12,4*($C$8-1)+3,12,1))) / 0.3048 -> 0.5715223097 | K127: =IF($B$4="Annual Average", AVERAGE(OFFSET(O2Depth!$A$10,$H127*12,4*($C$8-1)+4,12,1)), MAX(OFFSET(O2Depth!$A$10,$H127*12,4*($C$8-1)+4,12,1))) / 0.3048 -> 0.7074146982 | L127: =IF($B$4="Annual Average", AVERAGE(OFFSET(O2Depth!$A$10,$H127*12,4*($C$8-1)+1,12,1)), MAX(OFFSET(O2Depth!$A$10,$H127*12,4*($C$8-1)+1,12,1))) / 0.3048 -> 0.5797244094 | R127: 18.5 | S127: =VLOOKUP($R127,O2Depth!$A$10:$AG$2410,4*($C$8-1)+3) / 0.3048 -> 24.48818898 | T127: =VLOOKUP($R127,O2Depth!$A$10:$AG$2410,4*($C$8-1)+4) / 0.3048 -> 28.79330709 | U127: =VLOOKUP($R127,O2Depth!$A$10:$AG$2410,4*($C$8-1)+5) / 0.3048 -> 33.86154856 | V127: =VLOOKUP($R127,O2Depth!$A$10:$AG$2410,4*($C$8-1)+2) / 0.3048 -> 29.02427822
H128: 103 | I128: =IF($B$4="Annual Average", AVERAGE(OFFSET(O2Depth!$A$10,$H128*12,4*($C$8-1)+2,12,1)), MAX(OFFSET(O2Depth!$A$10,$H128*12,4*($C$8-1)+2,12,1))) / 0.3048 -> 0.4786745407 | J128: =IF($B$4="Annual Average", AVERAGE(OFFSET(O2Depth!$A$10,$H128*12,4*($C$8-1)+3,12,1)), MAX(OFFSET(O2Depth!$A$10,$H128*12,4*($C$8-1)+3,12,1))) / 0.3048 -> 0.5692585302 | K128: =IF($B$4="Annual Average", AVERAGE(OFFSET(O2Depth!$A$10,$H128*12,4*($C$8-1)+4,12,1)), MAX(OFFSET(O2Depth!$A$10,$H128*12,4*($C$8-1)+4,12,1))) / 0.3048 -> 0.7002624672 | L128: =IF($B$4="Annual Average", AVERAGE(OFFSET(O2Depth!$A$10,$H128*12,4*($C$8-1)+1,12,1)), MAX(OFFSET(O2Depth!$A$10,$H128*12,4*($C$8-1)+1,12,1))) / 0.3048 -> 0.5778215223 | R128: 18.58333333 | S128: =VLOOKUP($R128,O2Depth!$A$10:$AG$2410,4*($C$8-1)+3) / 0.3048 -> 24.86942257 | T128: =VLOOKUP($R128,O2Depth!$A$10:$AG$2410,4*($C$8-1)+4) / 0.3048 -> 29.25721785 | U128: =VLOOKUP($R128,O2Depth!$A$10:$AG$2410,4*($C$8-1)+5) / 0.3048 -> 34.42585302 | V128: =VLOOKUP($R128,O2Depth!$A$10:$AG$2410,4*($C$8-1)+2) / 0.3048 -> 29.49409449
H129: 104 | I129: =IF($B$4="Annual Average", AVERAGE(OFFSET(O2Depth!$A$10,$H129*12,4*($C$8-1)+2,12,1)), MAX(OFFSET(O2Depth!$A$10,$H129*12,4*($C$8-1)+2,12,1))) / 0.3048 -> 0.4781824147 | J129: =IF($B$4="Annual Average", AVERAGE(OFFSET(O2Depth!$A$10,$H129*12,4*($C$8-1)+3,12,1)), MAX(OFFSET(O2Depth!$A$10,$H129*12,4*($C$8-1)+3,12,1))) / 0.3048 -> 0.5720144357 | K129: =IF($B$4="Annual Average", AVERAGE(OFFSET(O2Depth!$A$10,$H129*12,4*($C$8-1)+4,12,1)), MAX(OFFSET(O2Depth!$A$10,$H129*12,4*($C$8-1)+4,12,1))) / 0.3048 -> 0.6952427822 | L129: =IF($B$4="Annual Average", AVERAGE(OFFSET(O2Depth!$A$10,$H129*12,4*($C$8-1)+1,12,1)), MAX(OFFSET(O2Depth!$A$10,$H129*12,4*($C$8-1)+1,12,1))) / 0.3048 -> 0.5794291339 | R129: 18.66666667 | S129: =VLOOKUP($R129,O2Depth!$A$10:$AG$2410,4*($C$8-1)+3) / 0.3048 -> 24.86942257 | T129: =VLOOKUP($R129,O2Depth!$A$10:$AG$2410,4*($C$8-1)+4) / 0.3048 -> 29.25721785 | U129: =VLOOKUP($R129,O2Depth!$A$10:$AG$2410,4*($C$8-1)+5) / 0.3048 -> 34.42585302 | V129: =VLOOKUP($R129,O2Depth!$A$10:$AG$2410,4*($C$8-1)+2) / 0.3048 -> 29.49409449
H130: 105 | I130: =IF($B$4="Annual Average", AVERAGE(OFFSET(O2Depth!$A$10,$H130*12,4*($C$8-1)+2,12,1)), MAX(OFFSET(O2Depth!$A$10,$H130*12,4*($C$8-1)+2,12,1))) / 0.3048 -> 0.4845144357 | J130: =IF($B$4="Annual Average", AVERAGE(OFFSET(O2Depth!$A$10,$H130*12,4*($C$8-1)+3,12,1)), MAX(OFFSET(O2Depth!$A$10,$H130*12,4*($C$8-1)+3,12,1))) / 0.3048 -> 0.5738845144 | K130: =IF($B$4="Annual Average", AVERAGE(OFFSET(O2Depth!$A$10,$H130*12,4*($C$8-1)+4,12,1)), MAX(OFFSET(O2Depth!$A$10,$H130*12,4*($C$8-1)+4,12,1))) / 0.3048 -> 0.6996391076 | L130: =IF($B$4="Annual Average", AVERAGE(OFFSET(O2Depth!$A$10,$H130*12,4*($C$8-1)+1,12,1)), MAX(OFFSET(O2Depth!$A$10,$H130*12,4*($C$8-1)+1,12,1))) / 0.3048 -> 0.5833005249 | R130: 18.75 | S130: =VLOOKUP($R130,O2Depth!$A$10:$AG$2410,4*($C$8-1)+3) / 0.3048 -> 25.48818898 | T130: =VLOOKUP($R130,O2Depth!$A$10:$AG$2410,4*($C$8-1)+4) / 0.3048 -> 30.10498688 | U130: =VLOOKUP($R130,O2Depth!$A$10:$AG$2410,4*($C$8-1)+5) / 0.3048 -> 35.37073491 | V130: =VLOOKUP($R130,O2Depth!$A$10:$AG$2410,4*($C$8-1)+2) / 0.3048 -> 30.2992126
H131: 106 | I131: =IF($B$4="Annual Average", AVERAGE(OFFSET(O2Depth!$A$10,$H131*12,4*($C$8-1)+2,12,1)), MAX(OFFSET(O2Depth!$A$10,$H131*12,4*($C$8-1)+2,12,1))) / 0.3048 -> 0.4795931759 | J131: =IF($B$4="Annual Average", AVERAGE(OFFSET(O2Depth!$A$10,$H131*12,4*($C$8-1)+3,12,1)), MAX(OFFSET(O2Depth!$A$10,$H131*12,4*($C$8-1)+3,12,1))) / 0.3048 -> 0.5707349081 | K131: =IF($B$4="Annual Average", AVERAGE(OFFSET(O2Depth!$A$10,$H131*12,4*($C$8-1)+4,12,1)), MAX(OFFSET(O2Depth!$A$10,$H131*12,4*($C$8-1)+4,12,1))) / 0.3048 -> 0.7057742782 | L131: =IF($B$4="Annual Average", AVERAGE(OFFSET(O2Depth!$A$10,$H131*12,4*($C$8-1)+1,12,1)), MAX(OFFSET(O2Depth!$A$10,$H131*12,4*($C$8-1)+1,12,1))) / 0.3048 -> 0.5843832021 | R131: 18.83333333 | S131: =VLOOKUP($R131,O2Depth!$A$10:$AG$2410,4*($C$8-1)+3) / 0.3048 -> 24.98097113 | T131: =VLOOKUP($R131,O2Depth!$A$10:$AG$2410,4*($C$8-1)+4) / 0.3048 -> 29.55708661 | U131: =VLOOKUP($R131,O2Depth!$A$10:$AG$2410,4*($C$8-1)+5) / 0.3048 -> 35.18372703 | V131: =VLOOKUP($R131,O2Depth!$A$10:$AG$2410,4*($C$8-1)+2) / 0.3048 -> 29.92454068
H132: 107 | I132: =IF($B$4="Annual Average", AVERAGE(OFFSET(O2Depth!$A$10,$H132*12,4*($C$8-1)+2,12,1)), MAX(OFFSET(O2Depth!$A$10,$H132*12,4*($C$8-1)+2,12,1))) / 0.3048 -> 0.4734908136 | J132: =IF($B$4="Annual Average", AVERAGE(OFFSET(O2Depth!$A$10,$H132*12,4*($C$8-1)+3,12,1)), MAX(OFFSET(O2Depth!$A$10,$H132*12,4*($C$8-1)+3,12,1))) / 0.3048 -> 0.569488189 | K132: =IF($B$4="Annual Average", AVERAGE(OFFSET(O2Depth!$A$10,$H132*12,4*($C$8-1)+4,12,1)), MAX(OFFSET(O2Depth!$A$10,$H132*12,4*($C$8-1)+4,12,1))) / 0.3048 -> 0.7049540682 | L132: =IF($B$4="Annual Average", AVERAGE(OFFSET(O2Depth!$A$10,$H132*12,4*($C$8-1)+1,12,1)), MAX(OFFSET(O2Depth!$A$10,$H132*12,4*($C$8-1)+1,12,1))) / 0.3048 -> 0.5829724409 | R132: 18.91666667 | S132: =VLOOKUP($R132,O2Depth!$A$10:$AG$2410,4*($C$8-1)+3) / 0.3048 -> 24.98097113 | T132: =VLOOKUP($R132,O2Depth!$A$10:$AG$2410,4*($C$8-1)+4) / 0.3048 -> 29.55708661 | U132: =VLOOKUP($R132,O2Depth!$A$10:$AG$2410,4*($C$8-1)+5) / 0.3048 -> 35.18372703 | V132: =VLOOKUP($R132,O2Depth!$A$10:$AG$2410,4*($C$8-1)+2) / 0.3048 -> 29.92454068
H133: 108 | I133: =IF($B$4="Annual Average", AVERAGE(OFFSET(O2Depth!$A$10,$H133*12,4*($C$8-1)+2,12,1)), MAX(OFFSET(O2Depth!$A$10,$H133*12,4*($C$8-1)+2,12,1))) / 0.3048 -> 0.4745734908 | J133: =IF($B$4="Annual Average", AVERAGE(OFFSET(O2Depth!$A$10,$H133*12,4*($C$8-1)+3,12,1)), MAX(OFFSET(O2Depth!$A$10,$H133*12,4*($C$8-1)+3,12,1))) / 0.3048 -> 0.5758858268 | K133: =IF($B$4="Annual Average", AVERAGE(OFFSET(O2Depth!$A$10,$H133*12,4*($C$8-1)+4,12,1)), MAX(OFFSET(O2Depth!$A$10,$H133*12,4*($C$8-1)+4,12,1))) / 0.3048 -> 0.7058070866 | L133: =IF($B$4="Annual Average", AVERAGE(OFFSET(O2Depth!$A$10,$H133*12,4*($C$8-1)+1,12,1)), MAX(OFFSET(O2Depth!$A$10,$H133*12,4*($C$8-1)+1,12,1))) / 0.3048 -> 0.5832020997 | R133: 19 | S133: =VLOOKUP($R133,O2Depth!$A$10:$AG$2410,4*($C$8-1)+3) / 0.3048 -> 23.16043307 | T133: =VLOOKUP($R133,O2Depth!$A$10:$AG$2410,4*($C$8-1)+4) / 0.3048 -> 27.30183727 | U133: =VLOOKUP($R133,O2Depth!$A$10:$AG$2410,4*($C$8-1)+5) / 0.3048 -> 32.13156168 | V133: =VLOOKUP($R133,O2Depth!$A$10:$AG$2410,4*($C$8-1)+2) / 0.3048 -> 27.4242126
H134: 109 | I134: =IF($B$4="Annual Average", AVERAGE(OFFSET(O2Depth!$A$10,$H134*12,4*($C$8-1)+2,12,1)), MAX(OFFSET(O2Depth!$A$10,$H134*12,4*($C$8-1)+2,12,1))) / 0.3048 -> 0.4795603675 | J134: =IF($B$4="Annual Average", AVERAGE(OFFSET(O2Depth!$A$10,$H134*12,4*($C$8-1)+3,12,1)), MAX(OFFSET(O2Depth!$A$10,$H134*12,4*($C$8-1)+3,12,1))) / 0.3048 -> 0.5775918635 | K134: =IF($B$4="Annual Average", AVERAGE(OFFSET(O2Depth!$A$10,$H134*12,4*($C$8-1)+4,12,1)), MAX(OFFSET(O2Depth!$A$10,$H134*12,4*($C$8-1)+4,12,1))) / 0.3048 -> 0.7061023622 | L134: =IF($B$4="Annual Average", AVERAGE(OFFSET(O2Depth!$A$10,$H134*12,4*($C$8-1)+1,12,1)), MAX(OFFSET(O2Depth!$A$10,$H134*12,4*($C$8-1)+1,12,1))) / 0.3048 -> 0.5842847769 | R134: 19.08333333 | S134: =VLOOKUP($R134,O2Depth!$A$10:$AG$2410,4*($C$8-1)+3) / 0.3048 -> 24.11318898 | T134: =VLOOKUP($R134,O2Depth!$A$10:$AG$2410,4*($C$8-1)+4) / 0.3048 -> 28.42027559 | U134: =VLOOKUP($R134,O2Depth!$A$10:$AG$2410,4*($C$8-1)+5) / 0.3048 -> 33.37926509 | V134: =VLOOKUP($R134,O2Depth!$A$10:$AG$2410,4*($C$8-1)+2) / 0.3048 -> 28.61384514
H135: 110 | I135: =IF($B$4="Annual Average", AVERAGE(OFFSET(O2Depth!$A$10,$H135*12,4*($C$8-1)+2,12,1)), MAX(OFFSET(O2Depth!$A$10,$H135*12,4*($C$8-1)+2,12,1))) / 0.3048 -> 0.4715879265 | J135: =IF($B$4="Annual Average", AVERAGE(OFFSET(O2Depth!$A$10,$H135*12,4*($C$8-1)+3,12,1)), MAX(OFFSET(O2Depth!$A$10,$H135*12,4*($C$8-1)+3,12,1))) / 0.3048 -> 0.5734908136 | K135: =IF($B$4="Annual Average", AVERAGE(OFFSET(O2Depth!$A$10,$H135*12,4*($C$8-1)+4,12,1)), MAX(OFFSET(O2Depth!$A$10,$H135*12,4*($C$8-1)+4,12,1))) / 0.3048 -> 0.7039370079 | L135: =IF($B$4="Annual Average", AVERAGE(OFFSET(O2Depth!$A$10,$H135*12,4*($C$8-1)+1,12,1)), MAX(OFFSET(O2Depth!$A$10,$H135*12,4*($C$8-1)+1,12,1))) / 0.3048 -> 0.5832677165 | R135: 19.16666667 | S135: =VLOOKUP($R135,O2Depth!$A$10:$AG$2410,4*($C$8-1)+3) / 0.3048 -> 24.11318898 | T135: =VLOOKUP($R135,O2Depth!$A$10:$AG$2410,4*($C$8-1)+4) / 0.3048 -> 28.42027559 | U135: =VLOOKUP($R135,O2Depth!$A$10:$AG$2410,4*($C$8-1)+5) / 0.3048 -> 33.37926509 | V135: =VLOOKUP($R135,O2Depth!$A$10:$AG$2410,4*($C$8-1)+2) / 0.3048 -> 28.61384514
H136: 111 | I136: =IF($B$4="Annual Average", AVERAGE(OFFSET(O2Depth!$A$10,$H136*12,4*($C$8-1)+2,12,1)), MAX(OFFSET(O2Depth!$A$10,$H136*12,4*($C$8-1)+2,12,1))) / 0.3048 -> 0.4711942257 | J136: =IF($B$4="Annual Average", AVERAGE(OFFSET(O2Depth!$A$10,$H136*12,4*($C$8-1)+3,12,1)), MAX(OFFSET(O2Depth!$A$10,$H136*12,4*($C$8-1)+3,12,1))) / 0.3048 -> 0.5759514436 | K136: =IF($B$4="Annual Average", AVERAGE(OFFSET(O2Depth!$A$10,$H136*12,4*($C$8-1)+4,12,1)), MAX(OFFSET(O2Depth!$A$10,$H136*12,4*($C$8-1)+4,12,1))) / 0.3048 -> 0.7042979003 | L136: =IF($B$4="Annual Average", AVERAGE(OFFSET(O2Depth!$A$10,$H136*12,4*($C$8-1)+1,12,1)), MAX(OFFSET(O2Depth!$A$10,$H136*12,4*($C$8-1)+1,12,1))) / 0.3048 -> 0.5821850394 | R136: 19.25 | S136: =VLOOKUP($R136,O2Depth!$A$10:$AG$2410,4*($C$8-1)+3) / 0.3048 -> 24.52296588 | T136: =VLOOKUP($R136,O2Depth!$A$10:$AG$2410,4*($C$8-1)+4) / 0.3048 -> 28.89993438 | U136: =VLOOKUP($R136,O2Depth!$A$10:$AG$2410,4*($C$8-1)+5) / 0.3048 -> 33.89107612 | V136: =VLOOKUP($R136,O2Depth!$A$10:$AG$2410,4*($C$8-1)+2) / 0.3048 -> 29.09153543
H137: 112 | I137: =IF($B$4="Annual Average", AVERAGE(OFFSET(O2Depth!$A$10,$H137*12,4*($C$8-1)+2,12,1)), MAX(OFFSET(O2Depth!$A$10,$H137*12,4*($C$8-1)+2,12,1))) / 0.3048 -> 0.4746062992 | J137: =IF($B$4="Annual Average", AVERAGE(OFFSET(O2Depth!$A$10,$H137*12,4*($C$8-1)+3,12,1)), MAX(OFFSET(O2Depth!$A$10,$H137*12,4*($C$8-1)+3,12,1))) / 0.3048 -> 0.5797244094 | K137: =IF($B$4="Annual Average", AVERAGE(OFFSET(O2Depth!$A$10,$H137*12,4*($C$8-1)+4,12,1)), MAX(OFFSET(O2Depth!$A$10,$H137*12,4*($C$8-1)+4,12,1))) / 0.3048 -> 0.705019685 | L137: =IF($B$4="Annual Average", AVERAGE(OFFSET(O2Depth!$A$10,$H137*12,4*($C$8-1)+1,12,1)), MAX(OFFSET(O2Depth!$A$10,$H137*12,4*($C$8-1)+1,12,1))) / 0.3048 -> 0.5852034121 | R137: 19.33333333 | S137: =VLOOKUP($R137,O2Depth!$A$10:$AG$2410,4*($C$8-1)+3) / 0.3048 -> 25.20734908 | T137: =VLOOKUP($R137,O2Depth!$A$10:$AG$2410,4*($C$8-1)+4) / 0.3048 -> 29.70636483 | U137: =VLOOKUP($R137,O2Depth!$A$10:$AG$2410,4*($C$8-1)+5) / 0.3048 -> 34.70144357 | V137: =VLOOKUP($R137,O2Depth!$A$10:$AG$2410,4*($C$8-1)+2) / 0.3048 -> 29.93635171
H138: 113 | I138: =IF($B$4="Annual Average", AVERAGE(OFFSET(O2Depth!$A$10,$H138*12,4*($C$8-1)+2,12,1)), MAX(OFFSET(O2Depth!$A$10,$H138*12,4*($C$8-1)+2,12,1))) / 0.3048 -> 0.4755905512 | J138: =IF($B$4="Annual Average", AVERAGE(OFFSET(O2Depth!$A$10,$H138*12,4*($C$8-1)+3,12,1)), MAX(OFFSET(O2Depth!$A$10,$H138*12,4*($C$8-1)+3,12,1))) / 0.3048 -> 0.5705380577 | K138: =IF($B$4="Annual Average", AVERAGE(OFFSET(O2Depth!$A$10,$H138*12,4*($C$8-1)+4,12,1)), MAX(OFFSET(O2Depth!$A$10,$H138*12,4*($C$8-1)+4,12,1))) / 0.3048 -> 0.7087270341 | L138: =IF($B$4="Annual Average", AVERAGE(OFFSET(O2Depth!$A$10,$H138*12,4*($C$8-1)+1,12,1)), MAX(OFFSET(O2Depth!$A$10,$H138*12,4*($C$8-1)+1,12,1))) / 0.3048 -> 0.5825131234 | R138: 19.41666667 | S138: =VLOOKUP($R138,O2Depth!$A$10:$AG$2410,4*($C$8-1)+3) / 0.3048 -> 25.20734908 | T138: =VLOOKUP($R138,O2Depth!$A$10:$AG$2410,4*($C$8-1)+4) / 0.3048 -> 29.70636483 | U138: =VLOOKUP($R138,O2Depth!$A$10:$AG$2410,4*($C$8-1)+5) / 0.3048 -> 34.70144357 | V138: =VLOOKUP($R138,O2Depth!$A$10:$AG$2410,4*($C$8-1)+2) / 0.3048 -> 29.93635171
H139: 114 | I139: =IF($B$4="Annual Average", AVERAGE(OFFSET(O2Depth!$A$10,$H139*12,4*($C$8-1)+2,12,1)), MAX(OFFSET(O2Depth!$A$10,$H139*12,4*($C$8-1)+2,12,1))) / 0.3048 -> 0.4824146982 | J139: =IF($B$4="Annual Average", AVERAGE(OFFSET(O2Depth!$A$10,$H139*12,4*($C$8-1)+3,12,1)), MAX(OFFSET(O2Depth!$A$10,$H139*12,4*($C$8-1)+3,12,1))) / 0.3048 -> 0.5696850394 | K139: =IF($B$4="Annual Average", AVERAGE(OFFSET(O2Depth!$A$10,$H139*12,4*($C$8-1)+4,12,1)), MAX(OFFSET(O2Depth!$A$10,$H139*12,4*($C$8-1)+4,12,1))) / 0.3048 -> 0.7007874016 | L139: =IF($B$4="Annual Average", AVERAGE(OFFSET(O2Depth!$A$10,$H139*12,4*($C$8-1)+1,12,1)), MAX(OFFSET(O2Depth!$A$10,$H139*12,4*($C$8-1)+1,12,1))) / 0.3048 -> 0.580183727 | R139: 19.5 | S139: =VLOOKUP($R139,O2Depth!$A$10:$AG$2410,4*($C$8-1)+3) / 0.3048 -> 25.53969816 | T139: =VLOOKUP($R139,O2Depth!$A$10:$AG$2410,4*($C$8-1)+4) / 0.3048 -> 30.11581365 | U139: =VLOOKUP($R139,O2Depth!$A$10:$AG$2410,4*($C$8-1)+5) / 0.3048 -> 35.18700787 | V139: =VLOOKUP($R139,O2Depth!$A$10:$AG$2410,4*($C$8-1)+2) / 0.3048 -> 30.30774278
H140: 115 | I140: =IF($B$4="Annual Average", AVERAGE(OFFSET(O2Depth!$A$10,$H140*12,4*($C$8-1)+2,12,1)), MAX(OFFSET(O2Depth!$A$10,$H140*12,4*($C$8-1)+2,12,1))) / 0.3048 -> 0.4799868766 | J140: =IF($B$4="Annual Average", AVERAGE(OFFSET(O2Depth!$A$10,$H140*12,4*($C$8-1)+3,12,1)), MAX(OFFSET(O2Depth!$A$10,$H140*12,4*($C$8-1)+3,12,1))) / 0.3048 -> 0.5689632546 | K140: =IF($B$4="Annual Average", AVERAGE(OFFSET(O2Depth!$A$10,$H140*12,4*($C$8-1)+4,12,1)), MAX(OFFSET(O2Depth!$A$10,$H140*12,4*($C$8-1)+4,12,1))) / 0.3048 -> 0.6893372703 | L140: =IF($B$4="Annual Average", AVERAGE(OFFSET(O2Depth!$A$10,$H140*12,4*($C$8-1)+1,12,1)), MAX(OFFSET(O2Depth!$A$10,$H140*12,4*($C$8-1)+1,12,1))) / 0.3048 -> 0.5776574803 | R140: 19.58333333 | S140: =VLOOKUP($R140,O2Depth!$A$10:$AG$2410,4*($C$8-1)+3) / 0.3048 -> 26.08234908 | T140: =VLOOKUP($R140,O2Depth!$A$10:$AG$2410,4*($C$8-1)+4) / 0.3048 -> 30.72145669 | U140: =VLOOKUP($R140,O2Depth!$A$10:$AG$2410,4*($C$8-1)+5) / 0.3048 -> 36.00065617 | V140: =VLOOKUP($R140,O2Depth!$A$10:$AG$2410,4*($C$8-1)+2) / 0.3048 -> 30.97965879
H141: 116 | I141: =IF($B$4="Annual Average", AVERAGE(OFFSET(O2Depth!$A$10,$H141*12,4*($C$8-1)+2,12,1)), MAX(OFFSET(O2Depth!$A$10,$H141*12,4*($C$8-1)+2,12,1))) / 0.3048 -> 0.4777230971 | J141: =IF($B$4="Annual Average", AVERAGE(OFFSET(O2Depth!$A$10,$H141*12,4*($C$8-1)+3,12,1)), MAX(OFFSET(O2Depth!$A$10,$H141*12,4*($C$8-1)+3,12,1))) / 0.3048 -> 0.5773293963 | K141: =IF($B$4="Annual Average", AVERAGE(OFFSET(O2Depth!$A$10,$H141*12,4*($C$8-1)+4,12,1)), MAX(OFFSET(O2Depth!$A$10,$H141*12,4*($C$8-1)+4,12,1))) / 0.3048 -> 0.7151574803 | L141: =IF($B$4="Annual Average", AVERAGE(OFFSET(O2Depth!$A$10,$H141*12,4*($C$8-1)+1,12,1)), MAX(OFFSET(O2Depth!$A$10,$H141*12,4*($C$8-1)+1,12,1))) / 0.3048 -> 0.5834973753 | R141: 19.66666667 | S141: =VLOOKUP($R141,O2Depth!$A$10:$AG$2410,4*($C$8-1)+3) / 0.3048 -> 26.08234908 | T141: =VLOOKUP($R141,O2Depth!$A$10:$AG$2410,4*($C$8-1)+4) / 0.3048 -> 30.72145669 | U141: =VLOOKUP($R141,O2Depth!$A$10:$AG$2410,4*($C$8-1)+5) / 0.3048 -> 36.00065617 | V141: =VLOOKUP($R141,O2Depth!$A$10:$AG$2410,4*($C$8-1)+2) / 0.3048 -> 30.97965879
H142: 117 | I142: =IF($B$4="Annual Average", AVERAGE(OFFSET(O2Depth!$A$10,$H142*12,4*($C$8-1)+2,12,1)), MAX(OFFSET(O2Depth!$A$10,$H142*12,4*($C$8-1)+2,12,1))) / 0.3048 -> 0.480675853 | J142: =IF($B$4="Annual Average", AVERAGE(OFFSET(O2Depth!$A$10,$H142*12,4*($C$8-1)+3,12,1)), MAX(OFFSET(O2Depth!$A$10,$H142*12,4*($C$8-1)+3,12,1))) / 0.3048 -> 0.5747703412 | K142: =IF($B$4="Annual Average", AVERAGE(OFFSET(O2Depth!$A$10,$H142*12,4*($C$8-1)+4,12,1)), MAX(OFFSET(O2Depth!$A$10,$H142*12,4*($C$8-1)+4,12,1))) / 0.3048 -> 0.6981627297 | L142: =IF($B$4="Annual Average", AVERAGE(OFFSET(O2Depth!$A$10,$H142*12,4*($C$8-1)+1,12,1)), MAX(OFFSET(O2Depth!$A$10,$H142*12,4*($C$8-1)+1,12,1))) / 0.3048 -> 0.5819553806 | R142: 19.75 | S142: =VLOOKUP($R142,O2Depth!$A$10:$AG$2410,4*($C$8-1)+3) / 0.3048 -> 26.33628609 | T142: =VLOOKUP($R142,O2Depth!$A$10:$AG$2410,4*($C$8-1)+4) / 0.3048 -> 31.00853018 | U142: =VLOOKUP($R142,O2Depth!$A$10:$AG$2410,4*($C$8-1)+5) / 0.3048 -> 36.34514436 | V142: =VLOOKUP($R142,O2Depth!$A$10:$AG$2410,4*($C$8-1)+2) / 0.3048 -> 31.27952756
H143: 118 | I143: =IF($B$4="Annual Average", AVERAGE(OFFSET(O2Depth!$A$10,$H143*12,4*($C$8-1)+2,12,1)), MAX(OFFSET(O2Depth!$A$10,$H143*12,4*($C$8-1)+2,12,1))) / 0.3048 -> 0.4709317585 | J143: =IF($B$4="Annual Average", AVERAGE(OFFSET(O2Depth!$A$10,$H143*12,4*($C$8-1)+3,12,1)), MAX(OFFSET(O2Depth!$A$10,$H143*12,4*($C$8-1)+3,12,1))) / 0.3048 -> 0.5711942257 | K143: =IF($B$4="Annual Average", AVERAGE(OFFSET(O2Depth!$A$10,$H143*12,4*($C$8-1)+4,12,1)), MAX(OFFSET(O2Depth!$A$10,$H143*12,4*($C$8-1)+4,12,1))) / 0.3048 -> 0.6933070866 | L143: =IF($B$4="Annual Average", AVERAGE(OFFSET(O2Depth!$A$10,$H143*12,4*($C$8-1)+1,12,1)), MAX(OFFSET(O2Depth!$A$10,$H143*12,4*($C$8-1)+1,12,1))) / 0.3048 -> 0.5774278215 | R143: 19.83333333 | S143: =VLOOKUP($R143,O2Depth!$A$10:$AG$2410,4*($C$8-1)+3) / 0.3048 -> 25.27723097 | T143: =VLOOKUP($R143,O2Depth!$A$10:$AG$2410,4*($C$8-1)+4) / 0.3048 -> 29.78510499 | U143: =VLOOKUP($R143,O2Depth!$A$10:$AG$2410,4*($C$8-1)+5) / 0.3048 -> 35.75459318 | V143: =VLOOKUP($R143,O2Depth!$A$10:$AG$2410,4*($C$8-1)+2) / 0.3048 -> 30.15485564
H144: 119 | I144: =IF($B$4="Annual Average", AVERAGE(OFFSET(O2Depth!$A$10,$H144*12,4*($C$8-1)+2,12,1)), MAX(OFFSET(O2Depth!$A$10,$H144*12,4*($C$8-1)+2,12,1))) / 0.3048 -> 0.4742782152 | J144: =IF($B$4="Annual Average", AVERAGE(OFFSET(O2Depth!$A$10,$H144*12,4*($C$8-1)+3,12,1)), MAX(OFFSET(O2Depth!$A$10,$H144*12,4*($C$8-1)+3,12,1))) / 0.3048 -> 0.5720472441 | K144: =IF($B$4="Annual Average", AVERAGE(OFFSET(O2Depth!$A$10,$H144*12,4*($C$8-1)+4,12,1)), MAX(OFFSET(O2Depth!$A$10,$H144*12,4*($C$8-1)+4,12,1))) / 0.3048 -> 0.7039698163 | L144: =IF($B$4="Annual Average", AVERAGE(OFFSET(O2Depth!$A$10,$H144*12,4*($C$8-1)+1,12,1)), MAX(OFFSET(O2Depth!$A$10,$H144*12,4*($C$8-1)+1,12,1))) / 0.3048 -> 0.5808070866 | R144: 19.91666667 | S144: =VLOOKUP($R144,O2Depth!$A$10:$AG$2410,4*($C$8-1)+3) / 0.3048 -> 25.27723097 | T144: =VLOOKUP($R144,O2Depth!$A$10:$AG$2410,4*($C$8-1)+4) / 0.3048 -> 29.78510499 | U144: =VLOOKUP($R144,O2Depth!$A$10:$AG$2410,4*($C$8-1)+5) / 0.3048 -> 35.75459318 | V144: =VLOOKUP($R144,O2Depth!$A$10:$AG$2410,4*($C$8-1)+2) / 0.3048 -> 30.15485564
H145: 120 | I145: =IF($B$4="Annual Average", AVERAGE(OFFSET(O2Depth!$A$10,$H145*12,4*($C$8-1)+2,12,1)), MAX(OFFSET(O2Depth!$A$10,$H145*12,4*($C$8-1)+2,12,1))) / 0.3048 -> 0.4784448819 | J145: =IF($B$4="Annual Average", AVERAGE(OFFSET(O2Depth!$A$10,$H145*12,4*($C$8-1)+3,12,1)), MAX(OFFSET(O2Depth!$A$10,$H145*12,4*($C$8-1)+3,12,1))) / 0.3048 -> 0.5704068241 | K145: =IF($B$4="Annual Average", AVERAGE(OFFSET(O2Depth!$A$10,$H145*12,4*($C$8-1)+4,12,1)), MAX(OFFSET(O2Depth!$A$10,$H145*12,4*($C$8-1)+4,12,1))) / 0.3048 -> 0.6961614173 | L145: =IF($B$4="Annual Average", AVERAGE(OFFSET(O2Depth!$A$10,$H145*12,4*($C$8-1)+1,12,1)), MAX(OFFSET(O2Depth!$A$10,$H145*12,4*($C$8-1)+1,12,1))) / 0.3048 -> 0.5797900262 | R145: 20 | S145: =VLOOKUP($R145,O2Depth!$A$10:$AG$2410,4*($C$8-1)+3) / 0.3048 -> 24.42946194 | T145: =VLOOKUP($R145,O2Depth!$A$10:$AG$2410,4*($C$8-1)+4) / 0.3048 -> 28.71391076 | U145: =VLOOKUP($R145,O2Depth!$A$10:$AG$2410,4*($C$8-1)+5) / 0.3048 -> 34.19291339 | V145: =VLOOKUP($R145,O2Depth!$A$10:$AG$2410,4*($C$8-1)+2) / 0.3048 -> 29.02591864
H146: 121 | I146: =IF($B$4="Annual Average", AVERAGE(OFFSET(O2Depth!$A$10,$H146*12,4*($C$8-1)+2,12,1)), MAX(OFFSET(O2Depth!$A$10,$H146*12,4*($C$8-1)+2,12,1))) / 0.3048 -> 0.4690944882 | J146: =IF($B$4="Annual Average", AVERAGE(OFFSET(O2Depth!$A$10,$H146*12,4*($C$8-1)+3,12,1)), MAX(OFFSET(O2Depth!$A$10,$H146*12,4*($C$8-1)+3,12,1))) / 0.3048 -> 0.5703740157 | K146: =IF($B$4="Annual Average", AVERAGE(OFFSET(O2Depth!$A$10,$H146*12,4*($C$8-1)+4,12,1)), MAX(OFFSET(O2Depth!$A$10,$H146*12,4*($C$8-1)+4,12,1))) / 0.3048 -> 0.7008530184 | L146: =IF($B$4="Annual Average", AVERAGE(OFFSET(O2Depth!$A$10,$H146*12,4*($C$8-1)+1,12,1)), MAX(OFFSET(O2Depth!$A$10,$H146*12,4*($C$8-1)+1,12,1))) / 0.3048 -> 0.5778543307 | R146: 20.08333333 | S146: =VLOOKUP($R146,O2Depth!$A$10:$AG$2410,4*($C$8-1)+3) / 0.3048 -> 0.3431102362 | T146: =VLOOKUP($R146,O2Depth!$A$10:$AG$2410,4*($C$8-1)+4) / 0.3048 -> 0.4044619423 | U146: =VLOOKUP($R146,O2Depth!$A$10:$AG$2410,4*($C$8-1)+5) / 0.3048 -> 0.4830708661 | V146: =VLOOKUP($R146,O2Depth!$A$10:$AG$2410,4*($C$8-1)+2) / 0.3048 -> 0.4082677165
H147: 122 | I147: =IF($B$4="Annual Average", AVERAGE(OFFSET(O2Depth!$A$10,$H147*12,4*($C$8-1)+2,12,1)), MAX(OFFSET(O2Depth!$A$10,$H147*12,4*($C$8-1)+2,12,1))) / 0.3048 -> 0.4674868766 | J147: =IF($B$4="Annual Average", AVERAGE(OFFSET(O2Depth!$A$10,$H147*12,4*($C$8-1)+3,12,1)), MAX(OFFSET(O2Depth!$A$10,$H147*12,4*($C$8-1)+3,12,1))) / 0.3048 -> 0.567683727 | K147: =IF($B$4="Annual Average", AVERAGE(OFFSET(O2Depth!$A$10,$H147*12,4*($C$8-1)+4,12,1)), MAX(OFFSET(O2Depth!$A$10,$H147*12,4*($C$8-1)+4,12,1))) / 0.3048 -> 0.7002952756 | L147: =IF($B$4="Annual Average", AVERAGE(OFFSET(O2Depth!$A$10,$H147*12,4*($C$8-1)+1,12,1)), MAX(OFFSET(O2Depth!$A$10,$H147*12,4*($C$8-1)+1,12,1))) / 0.3048 -> 0.5791338583 | R147: 20.16666667 | S147: =VLOOKUP($R147,O2Depth!$A$10:$AG$2410,4*($C$8-1)+3) / 0.3048 -> 0.3431102362 | T147: =VLOOKUP($R147,O2Depth!$A$10:$AG$2410,4*($C$8-1)+4) / 0.3048 -> 0.4044619423 | U147: =VLOOKUP($R147,O2Depth!$A$10:$AG$2410,4*($C$8-1)+5) / 0.3048 -> 0.4830708661 | V147: =VLOOKUP($R147,O2Depth!$A$10:$AG$2410,4*($C$8-1)+2) / 0.3048 -> 0.4082677165
H148: 123 | I148: =IF($B$4="Annual Average", AVERAGE(OFFSET(O2Depth!$A$10,$H148*12,4*($C$8-1)+2,12,1)), MAX(OFFSET(O2Depth!$A$10,$H148*12,4*($C$8-1)+2,12,1))) / 0.3048 -> 0.4691929134 | J148: =IF($B$4="Annual Average", AVERAGE(OFFSET(O2Depth!$A$10,$H148*12,4*($C$8-1)+3,12,1)), MAX(OFFSET(O2Depth!$A$10,$H148*12,4*($C$8-1)+3,12,1))) / 0.3048 -> 0.5690944882 | K148: =IF($B$4="Annual Average", AVERAGE(OFFSET(O2Depth!$A$10,$H148*12,4*($C$8-1)+4,12,1)), MAX(OFFSET(O2Depth!$A$10,$H148*12,4*($C$8-1)+4,12,1))) / 0.3048 -> 0.6892388451 | L148: =IF($B$4="Annual Average", AVERAGE(OFFSET(O2Depth!$A$10,$H148*12,4*($C$8-1)+1,12,1)), MAX(OFFSET(O2Depth!$A$10,$H148*12,4*($C$8-1)+1,12,1))) / 0.3048 -> 0.5774278215 | R148: 20.25 | S148: =VLOOKUP($R148,O2Depth!$A$10:$AG$2410,4*($C$8-1)+3) / 0.3048 -> 0.3497703412 | T148: =VLOOKUP($R148,O2Depth!$A$10:$AG$2410,4*($C$8-1)+4) / 0.3048 -> 0.4144028871 | U148: =VLOOKUP($R148,O2Depth!$A$10:$AG$2410,4*($C$8-1)+5) / 0.3048 -> 0.4965551181 | V148: =VLOOKUP($R148,O2Depth!$A$10:$AG$2410,4*($C$8-1)+2) / 0.3048 -> 0.4180446194
H149: 124 | I149: =IF($B$4="Annual Average", AVERAGE(OFFSET(O2Depth!$A$10,$H149*12,4*($C$8-1)+2,12,1)), MAX(OFFSET(O2Depth!$A$10,$H149*12,4*($C$8-1)+2,12,1))) / 0.3048 -> 0.4771653543 | J149: =IF($B$4="Annual Average", AVERAGE(OFFSET(O2Depth!$A$10,$H149*12,4*($C$8-1)+3,12,1)), MAX(OFFSET(O2Depth!$A$10,$H149*12,4*($C$8-1)+3,12,1))) / 0.3048 -> 0.5784448819 | K149: =IF($B$4="Annual Average", AVERAGE(OFFSET(O2Depth!$A$10,$H149*12,4*($C$8-1)+4,12,1)), MAX(OFFSET(O2Depth!$A$10,$H149*12,4*($C$8-1)+4,12,1))) / 0.3048 -> 0.6967847769 | L149: =IF($B$4="Annual Average", AVERAGE(OFFSET(O2Depth!$A$10,$H149*12,4*($C$8-1)+1,12,1)), MAX(OFFSET(O2Depth!$A$10,$H149*12,4*($C$8-1)+1,12,1))) / 0.3048 -> 0.5836286089 | R149: 20.33333333 | S149: =VLOOKUP($R149,O2Depth!$A$10:$AG$2410,4*($C$8-1)+3) / 0.3048 -> 0.3643372703 | T149: =VLOOKUP($R149,O2Depth!$A$10:$AG$2410,4*($C$8-1)+4) / 0.3048 -> 0.4321194226 | U149: =VLOOKUP($R149,O2Depth!$A$10:$AG$2410,4*($C$8-1)+5) / 0.3048 -> 0.5181430446 | V149: =VLOOKUP($R149,O2Depth!$A$10:$AG$2410,4*($C$8-1)+2) / 0.3048 -> 0.4364829396
H150: 125 | I150: =IF($B$4="Annual Average", AVERAGE(OFFSET(O2Depth!$A$10,$H150*12,4*($C$8-1)+2,12,1)), MAX(OFFSET(O2Depth!$A$10,$H150*12,4*($C$8-1)+2,12,1))) / 0.3048 -> 0.4738188976 | J150: =IF($B$4="Annual Average", AVERAGE(OFFSET(O2Depth!$A$10,$H150*12,4*($C$8-1)+3,12,1)), MAX(OFFSET(O2Depth!$A$10,$H150*12,4*($C$8-1)+3,12,1))) / 0.3048 -> 0.5760498688 | K150: =IF($B$4="Annual Average", AVERAGE(OFFSET(O2Depth!$A$10,$H150*12,4*($C$8-1)+4,12,1)), MAX(OFFSET(O2Depth!$A$10,$H150*12,4*($C$8-1)+4,12,1))) / 0.3048 -> 0.7045931759 | L150: =IF($B$4="Annual Average", AVERAGE(OFFSET(O2Depth!$A$10,$H150*12,4*($C$8-1)+1,12,1)), MAX(OFFSET(O2Depth!$A$10,$H150*12,4*($C$8-1)+1,12,1))) / 0.3048 -> 0.5814632546 | R150: 20.41666667 | S150: =VLOOKUP($R150,O2Depth!$A$10:$AG$2410,4*($C$8-1)+3) / 0.3048 -> 0.3643372703 | T150: =VLOOKUP($R150,O2Depth!$A$10:$AG$2410,4*($C$8-1)+4) / 0.3048 -> 0.4321194226 | U150: =VLOOKUP($R150,O2Depth!$A$10:$AG$2410,4*($C$8-1)+5) / 0.3048 -> 0.5181430446 | V150: =VLOOKUP($R150,O2Depth!$A$10:$AG$2410,4*($C$8-1)+2) / 0.3048 -> 0.4364829396
H151: 126 | I151: =IF($B$4="Annual Average", AVERAGE(OFFSET(O2Depth!$A$10,$H151*12,4*($C$8-1)+2,12,1)), MAX(OFFSET(O2Depth!$A$10,$H151*12,4*($C$8-1)+2,12,1))) / 0.3048 -> 0.4710629921 | J151: =IF($B$4="Annual Average", AVERAGE(OFFSET(O2Depth!$A$10,$H151*12,4*($C$8-1)+3,12,1)), MAX(OFFSET(O2Depth!$A$10,$H151*12,4*($C$8-1)+3,12,1))) / 0.3048 -> 0.5718832021 | K151: =IF($B$4="Annual Average", AVERAGE(OFFSET(O2Depth!$A$10,$H151*12,4*($C$8-1)+4,12,1)), MAX(OFFSET(O2Depth!$A$10,$H151*12,4*($C$8-1)+4,12,1))) / 0.3048 -> 0.7053149606 | L151: =IF($B$4="Annual Average", AVERAGE(OFFSET(O2Depth!$A$10,$H151*12,4*($C$8-1)+1,12,1)), MAX(OFFSET(O2Depth!$A$10,$H151*12,4*($C$8-1)+1,12,1))) / 0.3048 -> 0.5818569554 | R151: 20.5 | S151: =VLOOKUP($R151,O2Depth!$A$10:$AG$2410,4*($C$8-1)+3) / 0.3048 -> 0.3702099738 | T151: =VLOOKUP($R151,O2Depth!$A$10:$AG$2410,4*($C$8-1)+4) / 0.3048 -> 0.4399278215 | U151: =VLOOKUP($R151,O2Depth!$A$10:$AG$2410,4*($C$8-1)+5) / 0.3048 -> 0.5284448819 | V151: =VLOOKUP($R151,O2Depth!$A$10:$AG$2410,4*($C$8-1)+2) / 0.3048 -> 0.4450459318
H152: 127 | I152: =IF($B$4="Annual Average", AVERAGE(OFFSET(O2Depth!$A$10,$H152*12,4*($C$8-1)+2,12,1)), MAX(OFFSET(O2Depth!$A$10,$H152*12,4*($C$8-1)+2,12,1))) / 0.3048 -> 0.4780839895 | J152: =IF($B$4="Annual Average", AVERAGE(OFFSET(O2Depth!$A$10,$H152*12,4*($C$8-1)+3,12,1)), MAX(OFFSET(O2Depth!$A$10,$H152*12,4*($C$8-1)+3,12,1))) / 0.3048 -> 0.5729658793 | K152: =IF($B$4="Annual Average", AVERAGE(OFFSET(O2Depth!$A$10,$H152*12,4*($C$8-1)+4,12,1)), MAX(OFFSET(O2Depth!$A$10,$H152*12,4*($C$8-1)+4,12,1))) / 0.3048 -> 0.6928149606 | L152: =IF($B$4="Annual Average", AVERAGE(OFFSET(O2Depth!$A$10,$H152*12,4*($C$8-1)+1,12,1)), MAX(OFFSET(O2Depth!$A$10,$H152*12,4*($C$8-1)+1,12,1))) / 0.3048 -> 0.5825131234 | R152: 20.58333333 | S152: =VLOOKUP($R152,O2Depth!$A$10:$AG$2410,4*($C$8-1)+3) / 0.3048 -> 0.3833005249 | T152: =VLOOKUP($R152,O2Depth!$A$10:$AG$2410,4*($C$8-1)+4) / 0.3048 -> 0.4545275591 | U152: =VLOOKUP($R152,O2Depth!$A$10:$AG$2410,4*($C$8-1)+5) / 0.3048 -> 0.5504265092 | V152: =VLOOKUP($R152,O2Depth!$A$10:$AG$2410,4*($C$8-1)+2) / 0.3048 -> 0.4614173228
H153: 128 | I153: =IF($B$4="Annual Average", AVERAGE(OFFSET(O2Depth!$A$10,$H153*12,4*($C$8-1)+2,12,1)), MAX(OFFSET(O2Depth!$A$10,$H153*12,4*($C$8-1)+2,12,1))) / 0.3048 -> 0.476312336 | J153: =IF($B$4="Annual Average", AVERAGE(OFFSET(O2Depth!$A$10,$H153*12,4*($C$8-1)+3,12,1)), MAX(OFFSET(O2Depth!$A$10,$H153*12,4*($C$8-1)+3,12,1))) / 0.3048 -> 0.5738845144 | K153: =IF($B$4="Annual Average", AVERAGE(OFFSET(O2Depth!$A$10,$H153*12,4*($C$8-1)+4,12,1)), MAX(OFFSET(O2Depth!$A$10,$H153*12,4*($C$8-1)+4,12,1))) / 0.3048 -> 0.7029527559 | L153: =IF($B$4="Annual Average", AVERAGE(OFFSET(O2Depth!$A$10,$H153*12,4*($C$8-1)+1,12,1)), MAX(OFFSET(O2Depth!$A$10,$H153*12,4*($C$8-1)+1,12,1))) / 0.3048 -> 0.580511811 | R153: 20.66666667 | S153: =VLOOKUP($R153,O2Depth!$A$10:$AG$2410,4*($C$8-1)+3) / 0.3048 -> 0.3833005249 | T153: =VLOOKUP($R153,O2Depth!$A$10:$AG$2410,4*($C$8-1)+4) / 0.3048 -> 0.4545275591 | U153: =VLOOKUP($R153,O2Depth!$A$10:$AG$2410,4*($C$8-1)+5) / 0.3048 -> 0.5504265092 | V153: =VLOOKUP($R153,O2Depth!$A$10:$AG$2410,4*($C$8-1)+2) / 0.3048 -> 0.4614173228
H154: 129 | I154: =IF($B$4="Annual Average", AVERAGE(OFFSET(O2Depth!$A$10,$H154*12,4*($C$8-1)+2,12,1)), MAX(OFFSET(O2Depth!$A$10,$H154*12,4*($C$8-1)+2,12,1))) / 0.3048 -> 0.4765748031 | J154: =IF($B$4="Annual Average", AVERAGE(OFFSET(O2Depth!$A$10,$H154*12,4*($C$8-1)+3,12,1)), MAX(OFFSET(O2Depth!$A$10,$H154*12,4*($C$8-1)+3,12,1))) / 0.3048 -> 0.5738188976 | K154: =IF($B$4="Annual Average", AVERAGE(OFFSET(O2Depth!$A$10,$H154*12,4*($C$8-1)+4,12,1)), MAX(OFFSET(O2Depth!$A$10,$H154*12,4*($C$8-1)+4,12,1))) / 0.3048 -> 0.7033792651 | L154: =IF($B$4="Annual Average", AVERAGE(OFFSET(O2Depth!$A$10,$H154*12,4*($C$8-1)+1,12,1)), MAX(OFFSET(O2Depth!$A$10,$H154*12,4*($C$8-1)+1,12,1))) / 0.3048 -> 0.5815616798 | R154: 20.75 | S154: =VLOOKUP($R154,O2Depth!$A$10:$AG$2410,4*($C$8-1)+3) / 0.3048 -> 0.3887795276 | T154: =VLOOKUP($R154,O2Depth!$A$10:$AG$2410,4*($C$8-1)+4) / 0.3048 -> 0.4624015748 | U154: =VLOOKUP($R154,O2Depth!$A$10:$AG$2410,4*($C$8-1)+5) / 0.3048 -> 0.5581036745 | V154: =VLOOKUP($R154,O2Depth!$A$10:$AG$2410,4*($C$8-1)+2) / 0.3048 -> 0.4691272966
H155: 130 | I155: =IF($B$4="Annual Average", AVERAGE(OFFSET(O2Depth!$A$10,$H155*12,4*($C$8-1)+2,12,1)), MAX(OFFSET(O2Depth!$A$10,$H155*12,4*($C$8-1)+2,12,1))) / 0.3048 -> 0.4687007874 | J155: =IF($B$4="Annual Average", AVERAGE(OFFSET(O2Depth!$A$10,$H155*12,4*($C$8-1)+3,12,1)), MAX(OFFSET(O2Depth!$A$10,$H155*12,4*($C$8-1)+3,12,1))) / 0.3048 -> 0.5655183727 | K155: =IF($B$4="Annual Average", AVERAGE(OFFSET(O2Depth!$A$10,$H155*12,4*($C$8-1)+4,12,1)), MAX(OFFSET(O2Depth!$A$10,$H155*12,4*($C$8-1)+4,12,1))) / 0.3048 -> 0.6942913386 | L155: =IF($B$4="Annual Average", AVERAGE(OFFSET(O2Depth!$A$10,$H155*12,4*($C$8-1)+1,12,1)), MAX(OFFSET(O2Depth!$A$10,$H155*12,4*($C$8-1)+1,12,1))) / 0.3048 -> 0.5751968504 | R155: =R154+1/12 -> 20.83333333 | S155: =VLOOKUP($R155,O2Depth!$A$10:$AG$2410,4*($C$8-1)+3) / 0.3048 -> 0.3980971129 | T155: =VLOOKUP($R155,O2Depth!$A$10:$AG$2410,4*($C$8-1)+4) / 0.3048 -> 0.475164042 | U155: =VLOOKUP($R155,O2Depth!$A$10:$AG$2410,4*($C$8-1)+5) / 0.3048 -> 0.5760170604 | V155: =VLOOKUP($R155,O2Depth!$A$10:$AG$2410,4*($C$8-1)+2) / 0.3048 -> 0.4836942257
H156: 131 | I156: =IF($B$4="Annual Average", AVERAGE(OFFSET(O2Depth!$A$10,$H156*12,4*($C$8-1)+2,12,1)), MAX(OFFSET(O2Depth!$A$10,$H156*12,4*($C$8-1)+2,12,1))) / 0.3048 -> 0.4673228346 | J156: =IF($B$4="Annual Average", AVERAGE(OFFSET(O2Depth!$A$10,$H156*12,4*($C$8-1)+3,12,1)), MAX(OFFSET(O2Depth!$A$10,$H156*12,4*($C$8-1)+3,12,1))) / 0.3048 -> 0.5715879265 | K156: =IF($B$4="Annual Average", AVERAGE(OFFSET(O2Depth!$A$10,$H156*12,4*($C$8-1)+4,12,1)), MAX(OFFSET(O2Depth!$A$10,$H156*12,4*($C$8-1)+4,12,1))) / 0.3048 -> 0.6906167979 | L156: =IF($B$4="Annual Average", AVERAGE(OFFSET(O2Depth!$A$10,$H156*12,4*($C$8-1)+1,12,1)), MAX(OFFSET(O2Depth!$A$10,$H156*12,4*($C$8-1)+1,12,1))) / 0.3048 -> 0.5766404199 | R156: 20.91666667 | S156: =VLOOKUP($R156,O2Depth!$A$10:$AG$2410,4*($C$8-1)+3) / 0.3048 -> 0.3980971129 | T156: =VLOOKUP($R156,O2Depth!$A$10:$AG$2410,4*($C$8-1)+4) / 0.3048 -> 0.475164042 | U156: =VLOOKUP($R156,O2Depth!$A$10:$AG$2410,4*($C$8-1)+5) / 0.3048 -> 0.5760170604 | V156: =VLOOKUP($R156,O2Depth!$A$10:$AG$2410,4*($C$8-1)+2) / 0.3048 -> 0.4836942257
H157: 132 | I157: =IF($B$4="Annual Average", AVERAGE(OFFSET(O2Depth!$A$10,$H157*12,4*($C$8-1)+2,12,1)), MAX(OFFSET(O2Depth!$A$10,$H157*12,4*($C$8-1)+2,12,1))) / 0.3048 -> 0.4837270341 | J157: =IF($B$4="Annual Average", AVERAGE(OFFSET(O2Depth!$A$10,$H157*12,4*($C$8-1)+3,12,1)), MAX(OFFSET(O2Depth!$A$10,$H157*12,4*($C$8-1)+3,12,1))) / 0.3048 -> 0.5733595801 | K157: =IF($B$4="Annual Average", AVERAGE(OFFSET(O2Depth!$A$10,$H157*12,4*($C$8-1)+4,12,1)), MAX(OFFSET(O2Depth!$A$10,$H157*12,4*($C$8-1)+4,12,1))) / 0.3048 -> 0.6872375328 | L157: =IF($B$4="Annual Average", AVERAGE(OFFSET(O2Depth!$A$10,$H157*12,4*($C$8-1)+1,12,1)), MAX(OFFSET(O2Depth!$A$10,$H157*12,4*($C$8-1)+1,12,1))) / 0.3048 -> 0.5811023622 | R157: 21 | S157: =VLOOKUP($R157,O2Depth!$A$10:$AG$2410,4*($C$8-1)+3) / 0.3048 -> 0.4031167979 | T157: =VLOOKUP($R157,O2Depth!$A$10:$AG$2410,4*($C$8-1)+4) / 0.3048 -> 0.481496063 | U157: =VLOOKUP($R157,O2Depth!$A$10:$AG$2410,4*($C$8-1)+5) / 0.3048 -> 0.5843175853 | V157: =VLOOKUP($R157,O2Depth!$A$10:$AG$2410,4*($C$8-1)+2) / 0.3048 -> 0.4905511811
H158: 133 | I158: =IF($B$4="Annual Average", AVERAGE(OFFSET(O2Depth!$A$10,$H158*12,4*($C$8-1)+2,12,1)), MAX(OFFSET(O2Depth!$A$10,$H158*12,4*($C$8-1)+2,12,1))) / 0.3048 -> 0.4779855643 | J158: =IF($B$4="Annual Average", AVERAGE(OFFSET(O2Depth!$A$10,$H158*12,4*($C$8-1)+3,12,1)), MAX(OFFSET(O2Depth!$A$10,$H158*12,4*($C$8-1)+3,12,1))) / 0.3048 -> 0.5703412073 | K158: =IF($B$4="Annual Average", AVERAGE(OFFSET(O2Depth!$A$10,$H158*12,4*($C$8-1)+4,12,1)), MAX(OFFSET(O2Depth!$A$10,$H158*12,4*($C$8-1)+4,12,1))) / 0.3048 -> 0.6883858268 | L158: =IF($B$4="Annual Average", AVERAGE(OFFSET(O2Depth!$A$10,$H158*12,4*($C$8-1)+1,12,1)), MAX(OFFSET(O2Depth!$A$10,$H158*12,4*($C$8-1)+1,12,1))) / 0.3048 -> 0.5766732283 | R158: 21.08333333 | S158: =VLOOKUP($R158,O2Depth!$A$10:$AG$2410,4*($C$8-1)+3) / 0.3048 -> 0.4172572178 | T158: =VLOOKUP($R158,O2Depth!$A$10:$AG$2410,4*($C$8-1)+4) / 0.3048 -> 0.4926509186 | U158: =VLOOKUP($R158,O2Depth!$A$10:$AG$2410,4*($C$8-1)+5) / 0.3048 -> 0.6012139108 | V158: =VLOOKUP($R158,O2Depth!$A$10:$AG$2410,4*($C$8-1)+2) / 0.3048 -> 0.5022637795
H159: 134 | I159: =IF($B$4="Annual Average", AVERAGE(OFFSET(O2Depth!$A$10,$H159*12,4*($C$8-1)+2,12,1)), MAX(OFFSET(O2Depth!$A$10,$H159*12,4*($C$8-1)+2,12,1))) / 0.3048 -> 0.4786745407 | J159: =IF($B$4="Annual Average", AVERAGE(OFFSET(O2Depth!$A$10,$H159*12,4*($C$8-1)+3,12,1)), MAX(OFFSET(O2Depth!$A$10,$H159*12,4*($C$8-1)+3,12,1))) / 0.3048 -> 0.5736220472 | K159: =IF($B$4="Annual Average", AVERAGE(OFFSET(O2Depth!$A$10,$H159*12,4*($C$8-1)+4,12,1)), MAX(OFFSET(O2Depth!$A$10,$H159*12,4*($C$8-1)+4,12,1))) / 0.3048 -> 0.6931102362 | L159: =IF($B$4="Annual Average", AVERAGE(OFFSET(O2Depth!$A$10,$H159*12,4*($C$8-1)+1,12,1)), MAX(OFFSET(O2Depth!$A$10,$H159*12,4*($C$8-1)+1,12,1))) / 0.3048 -> 0.5787729659 | R159: 21.16666667 | S159: =VLOOKUP($R159,O2Depth!$A$10:$AG$2410,4*($C$8-1)+3) / 0.3048 -> 0.4172572178 | T159: =VLOOKUP($R159,O2Depth!$A$10:$AG$2410,4*($C$8-1)+4) / 0.3048 -> 0.4926509186 | U159: =VLOOKUP($R159,O2Depth!$A$10:$AG$2410,4*($C$8-1)+5) / 0.3048 -> 0.6012139108 | V159: =VLOOKUP($R159,O2Depth!$A$10:$AG$2410,4*($C$8-1)+2) / 0.3048 -> 0.5022637795
H160: 135 | I160: =IF($B$4="Annual Average", AVERAGE(OFFSET(O2Depth!$A$10,$H160*12,4*($C$8-1)+2,12,1)), MAX(OFFSET(O2Depth!$A$10,$H160*12,4*($C$8-1)+2,12,1))) / 0.3048 -> 0.473851706 | J160: =IF($B$4="Annual Average", AVERAGE(OFFSET(O2Depth!$A$10,$H160*12,4*($C$8-1)+3,12,1)), MAX(OFFSET(O2Depth!$A$10,$H160*12,4*($C$8-1)+3,12,1))) / 0.3048 -> 0.5783136483 | K160: =IF($B$4="Annual Average", AVERAGE(OFFSET(O2Depth!$A$10,$H160*12,4*($C$8-1)+4,12,1)), MAX(OFFSET(O2Depth!$A$10,$H160*12,4*($C$8-1)+4,12,1))) / 0.3048 -> 0.70082021 | L160: =IF($B$4="Annual Average", AVERAGE(OFFSET(O2Depth!$A$10,$H160*12,4*($C$8-1)+1,12,1)), MAX(OFFSET(O2Depth!$A$10,$H160*12,4*($C$8-1)+1,12,1))) / 0.3048 -> 0.5805446194 | R160: 21.25 | S160: =VLOOKUP($R160,O2Depth!$A$10:$AG$2410,4*($C$8-1)+3) / 0.3048 -> 0.4216207349 | T160: =VLOOKUP($R160,O2Depth!$A$10:$AG$2410,4*($C$8-1)+4) / 0.3048 -> 0.4981955381 | U160: =VLOOKUP($R160,O2Depth!$A$10:$AG$2410,4*($C$8-1)+5) / 0.3048 -> 0.6053149606 | V160: =VLOOKUP($R160,O2Depth!$A$10:$AG$2410,4*($C$8-1)+2) / 0.3048 -> 0.5075131234
H161: 136 | I161: =IF($B$4="Annual Average", AVERAGE(OFFSET(O2Depth!$A$10,$H161*12,4*($C$8-1)+2,12,1)), MAX(OFFSET(O2Depth!$A$10,$H161*12,4*($C$8-1)+2,12,1))) / 0.3048 -> 0.4758530184 | J161: =IF($B$4="Annual Average", AVERAGE(OFFSET(O2Depth!$A$10,$H161*12,4*($C$8-1)+3,12,1)), MAX(OFFSET(O2Depth!$A$10,$H161*12,4*($C$8-1)+3,12,1))) / 0.3048 -> 0.57582021 | K161: =IF($B$4="Annual Average", AVERAGE(OFFSET(O2Depth!$A$10,$H161*12,4*($C$8-1)+4,12,1)), MAX(OFFSET(O2Depth!$A$10,$H161*12,4*($C$8-1)+4,12,1))) / 0.3048 -> 0.6945538058 | L161: =IF($B$4="Annual Average", AVERAGE(OFFSET(O2Depth!$A$10,$H161*12,4*($C$8-1)+1,12,1)), MAX(OFFSET(O2Depth!$A$10,$H161*12,4*($C$8-1)+1,12,1))) / 0.3048 -> 0.579691601 | R161: 21.33333333 | S161: =VLOOKUP($R161,O2Depth!$A$10:$AG$2410,4*($C$8-1)+3) / 0.3048 -> 0.4285761155 | T161: =VLOOKUP($R161,O2Depth!$A$10:$AG$2410,4*($C$8-1)+4) / 0.3048 -> 0.5073490814 | U161: =VLOOKUP($R161,O2Depth!$A$10:$AG$2410,4*($C$8-1)+5) / 0.3048 -> 0.6158792651 | V161: =VLOOKUP($R161,O2Depth!$A$10:$AG$2410,4*($C$8-1)+2) / 0.3048 -> 0.5170931759
H162: 137 | I162: =IF($B$4="Annual Average", AVERAGE(OFFSET(O2Depth!$A$10,$H162*12,4*($C$8-1)+2,12,1)), MAX(OFFSET(O2Depth!$A$10,$H162*12,4*($C$8-1)+2,12,1))) / 0.3048 -> 0.4795603675 | J162: =IF($B$4="Annual Average", AVERAGE(OFFSET(O2Depth!$A$10,$H162*12,4*($C$8-1)+3,12,1)), MAX(OFFSET(O2Depth!$A$10,$H162*12,4*($C$8-1)+3,12,1))) / 0.3048 -> 0.5770669291 | K162: =IF($B$4="Annual Average", AVERAGE(OFFSET(O2Depth!$A$10,$H162*12,4*($C$8-1)+4,12,1)), MAX(OFFSET(O2Depth!$A$10,$H162*12,4*($C$8-1)+4,12,1))) / 0.3048 -> 0.6957677165 | L162: =IF($B$4="Annual Average", AVERAGE(OFFSET(O2Depth!$A$10,$H162*12,4*($C$8-1)+1,12,1)), MAX(OFFSET(O2Depth!$A$10,$H162*12,4*($C$8-1)+1,12,1))) / 0.3048 -> 0.5810695538 | R162: 21.41666667 | S162: =VLOOKUP($R162,O2Depth!$A$10:$AG$2410,4*($C$8-1)+3) / 0.3048 -> 0.4285761155 | T162: =VLOOKUP($R162,O2Depth!$A$10:$AG$2410,4*($C$8-1)+4) / 0.3048 -> 0.5073490814 | U162: =VLOOKUP($R162,O2Depth!$A$10:$AG$2410,4*($C$8-1)+5) / 0.3048 -> 0.6158792651 | V162: =VLOOKUP($R162,O2Depth!$A$10:$AG$2410,4*($C$8-1)+2) / 0.3048 -> 0.5170931759
H163: 138 | I163: =IF($B$4="Annual Average", AVERAGE(OFFSET(O2Depth!$A$10,$H163*12,4*($C$8-1)+2,12,1)), MAX(OFFSET(O2Depth!$A$10,$H163*12,4*($C$8-1)+2,12,1))) / 0.3048 -> 0.4744750656 | J163: =IF($B$4="Annual Average", AVERAGE(OFFSET(O2Depth!$A$10,$H163*12,4*($C$8-1)+3,12,1)), MAX(OFFSET(O2Depth!$A$10,$H163*12,4*($C$8-1)+3,12,1))) / 0.3048 -> 0.5694553806 | K163: =IF($B$4="Annual Average", AVERAGE(OFFSET(O2Depth!$A$10,$H163*12,4*($C$8-1)+4,12,1)), MAX(OFFSET(O2Depth!$A$10,$H163*12,4*($C$8-1)+4,12,1))) / 0.3048 -> 0.6979330709 | L163: =IF($B$4="Annual Average", AVERAGE(OFFSET(O2Depth!$A$10,$H163*12,4*($C$8-1)+1,12,1)), MAX(OFFSET(O2Depth!$A$10,$H163*12,4*($C$8-1)+1,12,1))) / 0.3048 -> 0.5775918635 | R163: 21.5 | S163: =VLOOKUP($R163,O2Depth!$A$10:$AG$2410,4*($C$8-1)+3) / 0.3048 -> 0.430183727 | T163: =VLOOKUP($R163,O2Depth!$A$10:$AG$2410,4*($C$8-1)+4) / 0.3048 -> 0.5113845144 | U163: =VLOOKUP($R163,O2Depth!$A$10:$AG$2410,4*($C$8-1)+5) / 0.3048 -> 0.6241141732 | V163: =VLOOKUP($R163,O2Depth!$A$10:$AG$2410,4*($C$8-1)+2) / 0.3048 -> 0.5213582677
H164: 139 | I164: =IF($B$4="Annual Average", AVERAGE(OFFSET(O2Depth!$A$10,$H164*12,4*($C$8-1)+2,12,1)), MAX(OFFSET(O2Depth!$A$10,$H164*12,4*($C$8-1)+2,12,1))) / 0.3048 -> 0.4775590551 | J164: =IF($B$4="Annual Average", AVERAGE(OFFSET(O2Depth!$A$10,$H164*12,4*($C$8-1)+3,12,1)), MAX(OFFSET(O2Depth!$A$10,$H164*12,4*($C$8-1)+3,12,1))) / 0.3048 -> 0.5718503937 | K164: =IF($B$4="Annual Average", AVERAGE(OFFSET(O2Depth!$A$10,$H164*12,4*($C$8-1)+4,12,1)), MAX(OFFSET(O2Depth!$A$10,$H164*12,4*($C$8-1)+4,12,1))) / 0.3048 -> 0.7034776903 | L164: =IF($B$4="Annual Average", AVERAGE(OFFSET(O2Depth!$A$10,$H164*12,4*($C$8-1)+1,12,1)), MAX(OFFSET(O2Depth!$A$10,$H164*12,4*($C$8-1)+1,12,1))) / 0.3048 -> 0.5795931759 | R164: 21.58333333 | S164: =VLOOKUP($R164,O2Depth!$A$10:$AG$2410,4*($C$8-1)+3) / 0.3048 -> 0.4362860892 | T164: =VLOOKUP($R164,O2Depth!$A$10:$AG$2410,4*($C$8-1)+4) / 0.3048 -> 0.5177493438 | U164: =VLOOKUP($R164,O2Depth!$A$10:$AG$2410,4*($C$8-1)+5) / 0.3048 -> 0.6333005249 | V164: =VLOOKUP($R164,O2Depth!$A$10:$AG$2410,4*($C$8-1)+2) / 0.3048 -> 0.5295931759
H165: 140 | I165: =IF($B$4="Annual Average", AVERAGE(OFFSET(O2Depth!$A$10,$H165*12,4*($C$8-1)+2,12,1)), MAX(OFFSET(O2Depth!$A$10,$H165*12,4*($C$8-1)+2,12,1))) / 0.3048 -> 0.4750984252 | J165: =IF($B$4="Annual Average", AVERAGE(OFFSET(O2Depth!$A$10,$H165*12,4*($C$8-1)+3,12,1)), MAX(OFFSET(O2Depth!$A$10,$H165*12,4*($C$8-1)+3,12,1))) / 0.3048 -> 0.5684055118 | K165: =IF($B$4="Annual Average", AVERAGE(OFFSET(O2Depth!$A$10,$H165*12,4*($C$8-1)+4,12,1)), MAX(OFFSET(O2Depth!$A$10,$H165*12,4*($C$8-1)+4,12,1))) / 0.3048 -> 0.6947506562 | L165: =IF($B$4="Annual Average", AVERAGE(OFFSET(O2Depth!$A$10,$H165*12,4*($C$8-1)+1,12,1)), MAX(OFFSET(O2Depth!$A$10,$H165*12,4*($C$8-1)+1,12,1))) / 0.3048 -> 0.5774934383 | R165: 21.66666667 | S165: =VLOOKUP($R165,O2Depth!$A$10:$AG$2410,4*($C$8-1)+3) / 0.3048 -> 0.4362860892 | T165: =VLOOKUP($R165,O2Depth!$A$10:$AG$2410,4*($C$8-1)+4) / 0.3048 -> 0.5177493438 | U165: =VLOOKUP($R165,O2Depth!$A$10:$AG$2410,4*($C$8-1)+5) / 0.3048 -> 0.6333005249 | V165: =VLOOKUP($R165,O2Depth!$A$10:$AG$2410,4*($C$8-1)+2) / 0.3048 -> 0.5295931759
H166: 141 | I166: =IF($B$4="Annual Average", AVERAGE(OFFSET(O2Depth!$A$10,$H166*12,4*($C$8-1)+2,12,1)), MAX(OFFSET(O2Depth!$A$10,$H166*12,4*($C$8-1)+2,12,1))) / 0.3048 -> 0.4784448819 | J166: =IF($B$4="Annual Average", AVERAGE(OFFSET(O2Depth!$A$10,$H166*12,4*($C$8-1)+3,12,1)), MAX(OFFSET(O2Depth!$A$10,$H166*12,4*($C$8-1)+3,12,1))) / 0.3048 -> 0.5680446194 | K166: =IF($B$4="Annual Average", AVERAGE(OFFSET(O2Depth!$A$10,$H166*12,4*($C$8-1)+4,12,1)), MAX(OFFSET(O2Depth!$A$10,$H166*12,4*($C$8-1)+4,12,1))) / 0.3048 -> 0.6953740157 | L166: =IF($B$4="Annual Average", AVERAGE(OFFSET(O2Depth!$A$10,$H166*12,4*($C$8-1)+1,12,1)), MAX(OFFSET(O2Depth!$A$10,$H166*12,4*($C$8-1)+1,12,1))) / 0.3048 -> 0.5764435696 | R166: 21.75 | S166: =VLOOKUP($R166,O2Depth!$A$10:$AG$2410,4*($C$8-1)+3) / 0.3048 -> 0.4378937008 | T166: =VLOOKUP($R166,O2Depth!$A$10:$AG$2410,4*($C$8-1)+4) / 0.3048 -> 0.5217191601 | U166: =VLOOKUP($R166,O2Depth!$A$10:$AG$2410,4*($C$8-1)+5) / 0.3048 -> 0.6389107612 | V166: =VLOOKUP($R166,O2Depth!$A$10:$AG$2410,4*($C$8-1)+2) / 0.3048 -> 0.5334317585
H167: 142 | I167: =IF($B$4="Annual Average", AVERAGE(OFFSET(O2Depth!$A$10,$H167*12,4*($C$8-1)+2,12,1)), MAX(OFFSET(O2Depth!$A$10,$H167*12,4*($C$8-1)+2,12,1))) / 0.3048 -> 0.470144357 | J167: =IF($B$4="Annual Average", AVERAGE(OFFSET(O2Depth!$A$10,$H167*12,4*($C$8-1)+3,12,1)), MAX(OFFSET(O2Depth!$A$10,$H167*12,4*($C$8-1)+3,12,1))) / 0.3048 -> 0.5693569554 | K167: =IF($B$4="Annual Average", AVERAGE(OFFSET(O2Depth!$A$10,$H167*12,4*($C$8-1)+4,12,1)), MAX(OFFSET(O2Depth!$A$10,$H167*12,4*($C$8-1)+4,12,1))) / 0.3048 -> 0.7000656168 | L167: =IF($B$4="Annual Average", AVERAGE(OFFSET(O2Depth!$A$10,$H167*12,4*($C$8-1)+1,12,1)), MAX(OFFSET(O2Depth!$A$10,$H167*12,4*($C$8-1)+1,12,1))) / 0.3048 -> 0.5778543307 | R167: 21.83333333 | S167: =VLOOKUP($R167,O2Depth!$A$10:$AG$2410,4*($C$8-1)+3) / 0.3048 -> 0.4424212598 | T167: =VLOOKUP($R167,O2Depth!$A$10:$AG$2410,4*($C$8-1)+4) / 0.3048 -> 0.5289698163 | U167: =VLOOKUP($R167,O2Depth!$A$10:$AG$2410,4*($C$8-1)+5) / 0.3048 -> 0.6486548556 | V167: =VLOOKUP($R167,O2Depth!$A$10:$AG$2410,4*($C$8-1)+2) / 0.3048 -> 0.5407808399
H168: 143 | I168: =IF($B$4="Annual Average", AVERAGE(OFFSET(O2Depth!$A$10,$H168*12,4*($C$8-1)+2,12,1)), MAX(OFFSET(O2Depth!$A$10,$H168*12,4*($C$8-1)+2,12,1))) / 0.3048 -> 0.4771653543 | J168: =IF($B$4="Annual Average", AVERAGE(OFFSET(O2Depth!$A$10,$H168*12,4*($C$8-1)+3,12,1)), MAX(OFFSET(O2Depth!$A$10,$H168*12,4*($C$8-1)+3,12,1))) / 0.3048 -> 0.5754593176 | K168: =IF($B$4="Annual Average", AVERAGE(OFFSET(O2Depth!$A$10,$H168*12,4*($C$8-1)+4,12,1)), MAX(OFFSET(O2Depth!$A$10,$H168*12,4*($C$8-1)+4,12,1))) / 0.3048 -> 0.6978018373 | L168: =IF($B$4="Annual Average", AVERAGE(OFFSET(O2Depth!$A$10,$H168*12,4*($C$8-1)+1,12,1)), MAX(OFFSET(O2Depth!$A$10,$H168*12,4*($C$8-1)+1,12,1))) / 0.3048 -> 0.5815944882 | R168: 21.91666667 | S168: =VLOOKUP($R168,O2Depth!$A$10:$AG$2410,4*($C$8-1)+3) / 0.3048 -> 0.4424212598 | T168: =VLOOKUP($R168,O2Depth!$A$10:$AG$2410,4*($C$8-1)+4) / 0.3048 -> 0.5289698163 | U168: =VLOOKUP($R168,O2Depth!$A$10:$AG$2410,4*($C$8-1)+5) / 0.3048 -> 0.6486548556 | V168: =VLOOKUP($R168,O2Depth!$A$10:$AG$2410,4*($C$8-1)+2) / 0.3048 -> 0.5407808399
H169: 144 | I169: =IF($B$4="Annual Average", AVERAGE(OFFSET(O2Depth!$A$10,$H169*12,4*($C$8-1)+2,12,1)), MAX(OFFSET(O2Depth!$A$10,$H169*12,4*($C$8-1)+2,12,1))) / 0.3048 -> 0.4754593176 | J169: =IF($B$4="Annual Average", AVERAGE(OFFSET(O2Depth!$A$10,$H169*12,4*($C$8-1)+3,12,1)), MAX(OFFSET(O2Depth!$A$10,$H169*12,4*($C$8-1)+3,12,1))) / 0.3048 -> 0.5692257218 | K169: =IF($B$4="Annual Average", AVERAGE(OFFSET(O2Depth!$A$10,$H169*12,4*($C$8-1)+4,12,1)), MAX(OFFSET(O2Depth!$A$10,$H169*12,4*($C$8-1)+4,12,1))) / 0.3048 -> 0.693832021 | L169: =IF($B$4="Annual Average", AVERAGE(OFFSET(O2Depth!$A$10,$H169*12,4*($C$8-1)+1,12,1)), MAX(OFFSET(O2Depth!$A$10,$H169*12,4*($C$8-1)+1,12,1))) / 0.3048 -> 0.576312336 | R169: 22 | S169: =VLOOKUP($R169,O2Depth!$A$10:$AG$2410,4*($C$8-1)+3) / 0.3048 -> 0.4447506562 | T169: =VLOOKUP($R169,O2Depth!$A$10:$AG$2410,4*($C$8-1)+4) / 0.3048 -> 0.5315288714 | U169: =VLOOKUP($R169,O2Depth!$A$10:$AG$2410,4*($C$8-1)+5) / 0.3048 -> 0.6534448819 | V169: =VLOOKUP($R169,O2Depth!$A$10:$AG$2410,4*($C$8-1)+2) / 0.3048 -> 0.5442913386
H170: 145 | I170: =IF($B$4="Annual Average", AVERAGE(OFFSET(O2Depth!$A$10,$H170*12,4*($C$8-1)+2,12,1)), MAX(OFFSET(O2Depth!$A$10,$H170*12,4*($C$8-1)+2,12,1))) / 0.3048 -> 0.4759514436 | J170: =IF($B$4="Annual Average", AVERAGE(OFFSET(O2Depth!$A$10,$H170*12,4*($C$8-1)+3,12,1)), MAX(OFFSET(O2Depth!$A$10,$H170*12,4*($C$8-1)+3,12,1))) / 0.3048 -> 0.5724409449 | K170: =IF($B$4="Annual Average", AVERAGE(OFFSET(O2Depth!$A$10,$H170*12,4*($C$8-1)+4,12,1)), MAX(OFFSET(O2Depth!$A$10,$H170*12,4*($C$8-1)+4,12,1))) / 0.3048 -> 0.6890748031 | L170: =IF($B$4="Annual Average", AVERAGE(OFFSET(O2Depth!$A$10,$H170*12,4*($C$8-1)+1,12,1)), MAX(OFFSET(O2Depth!$A$10,$H170*12,4*($C$8-1)+1,12,1))) / 0.3048 -> 0.5769685039 | R170: 22.08333333 | S170: =VLOOKUP($R170,O2Depth!$A$10:$AG$2410,4*($C$8-1)+3) / 0.3048 -> 0.4484908136 | T170: =VLOOKUP($R170,O2Depth!$A$10:$AG$2410,4*($C$8-1)+4) / 0.3048 -> 0.5377624672 | U170: =VLOOKUP($R170,O2Depth!$A$10:$AG$2410,4*($C$8-1)+5) / 0.3048 -> 0.6602034121 | V170: =VLOOKUP($R170,O2Depth!$A$10:$AG$2410,4*($C$8-1)+2) / 0.3048 -> 0.5475393701
H171: 146 | I171: =IF($B$4="Annual Average", AVERAGE(OFFSET(O2Depth!$A$10,$H171*12,4*($C$8-1)+2,12,1)), MAX(OFFSET(O2Depth!$A$10,$H171*12,4*($C$8-1)+2,12,1))) / 0.3048 -> 0.4655839895 | J171: =IF($B$4="Annual Average", AVERAGE(OFFSET(O2Depth!$A$10,$H171*12,4*($C$8-1)+3,12,1)), MAX(OFFSET(O2Depth!$A$10,$H171*12,4*($C$8-1)+3,12,1))) / 0.3048 -> 0.5721456693 | K171: =IF($B$4="Annual Average", AVERAGE(OFFSET(O2Depth!$A$10,$H171*12,4*($C$8-1)+4,12,1)), MAX(OFFSET(O2Depth!$A$10,$H171*12,4*($C$8-1)+4,12,1))) / 0.3048 -> 0.7069225722 | L171: =IF($B$4="Annual Average", AVERAGE(OFFSET(O2Depth!$A$10,$H171*12,4*($C$8-1)+1,12,1)), MAX(OFFSET(O2Depth!$A$10,$H171*12,4*($C$8-1)+1,12,1))) / 0.3048 -> 0.5800524934 | R171: 22.16666667 | S171: =VLOOKUP($R171,O2Depth!$A$10:$AG$2410,4*($C$8-1)+3) / 0.3048 -> 0.4484908136 | T171: =VLOOKUP($R171,O2Depth!$A$10:$AG$2410,4*($C$8-1)+4) / 0.3048 -> 0.5377624672 | U171: =VLOOKUP($R171,O2Depth!$A$10:$AG$2410,4*($C$8-1)+5) / 0.3048 -> 0.6602034121 | V171: =VLOOKUP($R171,O2Depth!$A$10:$AG$2410,4*($C$8-1)+2) / 0.3048 -> 0.5475393701
H172: 147 | I172: =IF($B$4="Annual Average", AVERAGE(OFFSET(O2Depth!$A$10,$H172*12,4*($C$8-1)+2,12,1)), MAX(OFFSET(O2Depth!$A$10,$H172*12,4*($C$8-1)+2,12,1))) / 0.3048 -> 0.4731299213 | J172: =IF($B$4="Annual Average", AVERAGE(OFFSET(O2Depth!$A$10,$H172*12,4*($C$8-1)+3,12,1)), MAX(OFFSET(O2Depth!$A$10,$H172*12,4*($C$8-1)+3,12,1))) / 0.3048 -> 0.5722440945 | K172: =IF($B$4="Annual Average", AVERAGE(OFFSET(O2Depth!$A$10,$H172*12,4*($C$8-1)+4,12,1)), MAX(OFFSET(O2Depth!$A$10,$H172*12,4*($C$8-1)+4,12,1))) / 0.3048 -> 0.7096128609 | L172: =IF($B$4="Annual Average", AVERAGE(OFFSET(O2Depth!$A$10,$H172*12,4*($C$8-1)+1,12,1)), MAX(OFFSET(O2Depth!$A$10,$H172*12,4*($C$8-1)+1,12,1))) / 0.3048 -> 0.580019685 | R172: 22.25 | S172: =VLOOKUP($R172,O2Depth!$A$10:$AG$2410,4*($C$8-1)+3) / 0.3048 -> 0.4511154856 | T172: =VLOOKUP($R172,O2Depth!$A$10:$AG$2410,4*($C$8-1)+4) / 0.3048 -> 0.5403543307 | U172: =VLOOKUP($R172,O2Depth!$A$10:$AG$2410,4*($C$8-1)+5) / 0.3048 -> 0.6540026247 | V172: =VLOOKUP($R172,O2Depth!$A$10:$AG$2410,4*($C$8-1)+2) / 0.3048 -> 0.549671916
H173: 148 | I173: =IF($B$4="Annual Average", AVERAGE(OFFSET(O2Depth!$A$10,$H173*12,4*($C$8-1)+2,12,1)), MAX(OFFSET(O2Depth!$A$10,$H173*12,4*($C$8-1)+2,12,1))) / 0.3048 -> 0.4782480315 | J173: =IF($B$4="Annual Average", AVERAGE(OFFSET(O2Depth!$A$10,$H173*12,4*($C$8-1)+3,12,1)), MAX(OFFSET(O2Depth!$A$10,$H173*12,4*($C$8-1)+3,12,1))) / 0.3048 -> 0.5758858268 | K173: =IF($B$4="Annual Average", AVERAGE(OFFSET(O2Depth!$A$10,$H173*12,4*($C$8-1)+4,12,1)), MAX(OFFSET(O2Depth!$A$10,$H173*12,4*($C$8-1)+4,12,1))) / 0.3048 -> 0.7016404199 | L173: =IF($B$4="Annual Average", AVERAGE(OFFSET(O2Depth!$A$10,$H173*12,4*($C$8-1)+1,12,1)), MAX(OFFSET(O2Depth!$A$10,$H173*12,4*($C$8-1)+1,12,1))) / 0.3048 -> 0.582316273 | R173: 22.33333333 | S173: =VLOOKUP($R173,O2Depth!$A$10:$AG$2410,4*($C$8-1)+3) / 0.3048 -> 0.4540026247 | T173: =VLOOKUP($R173,O2Depth!$A$10:$AG$2410,4*($C$8-1)+4) / 0.3048 -> 0.5436351706 | U173: =VLOOKUP($R173,O2Depth!$A$10:$AG$2410,4*($C$8-1)+5) / 0.3048 -> 0.6667650919 | V173: =VLOOKUP($R173,O2Depth!$A$10:$AG$2410,4*($C$8-1)+2) / 0.3048 -> 0.5536089239
H174: 149 | I174: =IF($B$4="Annual Average", AVERAGE(OFFSET(O2Depth!$A$10,$H174*12,4*($C$8-1)+2,12,1)), MAX(OFFSET(O2Depth!$A$10,$H174*12,4*($C$8-1)+2,12,1))) / 0.3048 -> 0.4779527559 | J174: =IF($B$4="Annual Average", AVERAGE(OFFSET(O2Depth!$A$10,$H174*12,4*($C$8-1)+3,12,1)), MAX(OFFSET(O2Depth!$A$10,$H174*12,4*($C$8-1)+3,12,1))) / 0.3048 -> 0.5767060367 | K174: =IF($B$4="Annual Average", AVERAGE(OFFSET(O2Depth!$A$10,$H174*12,4*($C$8-1)+4,12,1)), MAX(OFFSET(O2Depth!$A$10,$H174*12,4*($C$8-1)+4,12,1))) / 0.3048 -> 0.712171916 | L174: =IF($B$4="Annual Average", AVERAGE(OFFSET(O2Depth!$A$10,$H174*12,4*($C$8-1)+1,12,1)), MAX(OFFSET(O2Depth!$A$10,$H174*12,4*($C$8-1)+1,12,1))) / 0.3048 -> 0.5842519685 | R174: 22.41666667 | S174: =VLOOKUP($R174,O2Depth!$A$10:$AG$2410,4*($C$8-1)+3) / 0.3048 -> 0.4540026247 | T174: =VLOOKUP($R174,O2Depth!$A$10:$AG$2410,4*($C$8-1)+4) / 0.3048 -> 0.5436351706 | U174: =VLOOKUP($R174,O2Depth!$A$10:$AG$2410,4*($C$8-1)+5) / 0.3048 -> 0.6667650919 | V174: =VLOOKUP($R174,O2Depth!$A$10:$AG$2410,4*($C$8-1)+2) / 0.3048 -> 0.5536089239
H175: 150 | I175: =IF($B$4="Annual Average", AVERAGE(OFFSET(O2Depth!$A$10,$H175*12,4*($C$8-1)+2,12,1)), MAX(OFFSET(O2Depth!$A$10,$H175*12,4*($C$8-1)+2,12,1))) / 0.3048 -> 0.4780511811 | J175: =IF($B$4="Annual Average", AVERAGE(OFFSET(O2Depth!$A$10,$H175*12,4*($C$8-1)+3,12,1)), MAX(OFFSET(O2Depth!$A$10,$H175*12,4*($C$8-1)+3,12,1))) / 0.3048 -> 0.5779855643 | K175: =IF($B$4="Annual Average", AVERAGE(OFFSET(O2Depth!$A$10,$H175*12,4*($C$8-1)+4,12,1)), MAX(OFFSET(O2Depth!$A$10,$H175*12,4*($C$8-1)+4,12,1))) / 0.3048 -> 0.6993766404 | L175: =IF($B$4="Annual Average", AVERAGE(OFFSET(O2Depth!$A$10,$H175*12,4*($C$8-1)+1,12,1)), MAX(OFFSET(O2Depth!$A$10,$H175*12,4*($C$8-1)+1,12,1))) / 0.3048 -> 0.580675853 | R175: 22.5 | S175: =VLOOKUP($R175,O2Depth!$A$10:$AG$2410,4*($C$8-1)+3) / 0.3048 -> 0.4558070866 | T175: =VLOOKUP($R175,O2Depth!$A$10:$AG$2410,4*($C$8-1)+4) / 0.3048 -> 0.5460629921 | U175: =VLOOKUP($R175,O2Depth!$A$10:$AG$2410,4*($C$8-1)+5) / 0.3048 -> 0.667683727 | V175: =VLOOKUP($R175,O2Depth!$A$10:$AG$2410,4*($C$8-1)+2) / 0.3048 -> 0.5552821522
H176: 151 | I176: =IF($B$4="Annual Average", AVERAGE(OFFSET(O2Depth!$A$10,$H176*12,4*($C$8-1)+2,12,1)), MAX(OFFSET(O2Depth!$A$10,$H176*12,4*($C$8-1)+2,12,1))) / 0.3048 -> 0.4795931759 | J176: =IF($B$4="Annual Average", AVERAGE(OFFSET(O2Depth!$A$10,$H176*12,4*($C$8-1)+3,12,1)), MAX(OFFSET(O2Depth!$A$10,$H176*12,4*($C$8-1)+3,12,1))) / 0.3048 -> 0.576312336 | K176: =IF($B$4="Annual Average", AVERAGE(OFFSET(O2Depth!$A$10,$H176*12,4*($C$8-1)+4,12,1)), MAX(OFFSET(O2Depth!$A$10,$H176*12,4*($C$8-1)+4,12,1))) / 0.3048 -> 0.6960301837 | L176: =IF($B$4="Annual Average", AVERAGE(OFFSET(O2Depth!$A$10,$H176*12,4*($C$8-1)+1,12,1)), MAX(OFFSET(O2Depth!$A$10,$H176*12,4*($C$8-1)+1,12,1))) / 0.3048 -> 0.5843503937 | R176: 22.58333333 | S176: =VLOOKUP($R176,O2Depth!$A$10:$AG$2410,4*($C$8-1)+3) / 0.3048 -> 0.4574146982 | T176: =VLOOKUP($R176,O2Depth!$A$10:$AG$2410,4*($C$8-1)+4) / 0.3048 -> 0.5484580052 | U176: =VLOOKUP($R176,O2Depth!$A$10:$AG$2410,4*($C$8-1)+5) / 0.3048 -> 0.6729002625 | V176: =VLOOKUP($R176,O2Depth!$A$10:$AG$2410,4*($C$8-1)+2) / 0.3048 -> 0.5588254593
H177: 152 | I177: =IF($B$4="Annual Average", AVERAGE(OFFSET(O2Depth!$A$10,$H177*12,4*($C$8-1)+2,12,1)), MAX(OFFSET(O2Depth!$A$10,$H177*12,4*($C$8-1)+2,12,1))) / 0.3048 -> 0.4812007874 | J177: =IF($B$4="Annual Average", AVERAGE(OFFSET(O2Depth!$A$10,$H177*12,4*($C$8-1)+3,12,1)), MAX(OFFSET(O2Depth!$A$10,$H177*12,4*($C$8-1)+3,12,1))) / 0.3048 -> 0.5718503937 | K177: =IF($B$4="Annual Average", AVERAGE(OFFSET(O2Depth!$A$10,$H177*12,4*($C$8-1)+4,12,1)), MAX(OFFSET(O2Depth!$A$10,$H177*12,4*($C$8-1)+4,12,1))) / 0.3048 -> 0.7143700787 | L177: =IF($B$4="Annual Average", AVERAGE(OFFSET(O2Depth!$A$10,$H177*12,4*($C$8-1)+1,12,1)), MAX(OFFSET(O2Depth!$A$10,$H177*12,4*($C$8-1)+1,12,1))) / 0.3048 -> 0.587007874 | R177: 22.66666667 | S177: =VLOOKUP($R177,O2Depth!$A$10:$AG$2410,4*($C$8-1)+3) / 0.3048 -> 0.4574146982 | T177: =VLOOKUP($R177,O2Depth!$A$10:$AG$2410,4*($C$8-1)+4) / 0.3048 -> 0.5484580052 | U177: =VLOOKUP($R177,O2Depth!$A$10:$AG$2410,4*($C$8-1)+5) / 0.3048 -> 0.6729002625 | V177: =VLOOKUP($R177,O2Depth!$A$10:$AG$2410,4*($C$8-1)+2) / 0.3048 -> 0.5588254593
H178: 153 | I178: =IF($B$4="Annual Average", AVERAGE(OFFSET(O2Depth!$A$10,$H178*12,4*($C$8-1)+2,12,1)), MAX(OFFSET(O2Depth!$A$10,$H178*12,4*($C$8-1)+2,12,1))) / 0.3048 -> 0.4746391076 | J178: =IF($B$4="Annual Average", AVERAGE(OFFSET(O2Depth!$A$10,$H178*12,4*($C$8-1)+3,12,1)), MAX(OFFSET(O2Depth!$A$10,$H178*12,4*($C$8-1)+3,12,1))) / 0.3048 -> 0.5723425197 | K178: =IF($B$4="Annual Average", AVERAGE(OFFSET(O2Depth!$A$10,$H178*12,4*($C$8-1)+4,12,1)), MAX(OFFSET(O2Depth!$A$10,$H178*12,4*($C$8-1)+4,12,1))) / 0.3048 -> 0.6990485564 | L178: =IF($B$4="Annual Average", AVERAGE(OFFSET(O2Depth!$A$10,$H178*12,4*($C$8-1)+1,12,1)), MAX(OFFSET(O2Depth!$A$10,$H178*12,4*($C$8-1)+1,12,1))) / 0.3048 -> 0.5817585302 | R178: 22.75 | S178: =VLOOKUP($R178,O2Depth!$A$10:$AG$2410,4*($C$8-1)+3) / 0.3048 -> 0.4584645669 | T178: =VLOOKUP($R178,O2Depth!$A$10:$AG$2410,4*($C$8-1)+4) / 0.3048 -> 0.5500656168 | U178: =VLOOKUP($R178,O2Depth!$A$10:$AG$2410,4*($C$8-1)+5) / 0.3048 -> 0.6778543307 | V178: =VLOOKUP($R178,O2Depth!$A$10:$AG$2410,4*($C$8-1)+2) / 0.3048 -> 0.5605643045
H179: 154 | I179: =IF($B$4="Annual Average", AVERAGE(OFFSET(O2Depth!$A$10,$H179*12,4*($C$8-1)+2,12,1)), MAX(OFFSET(O2Depth!$A$10,$H179*12,4*($C$8-1)+2,12,1))) / 0.3048 -> 0.4788057743 | J179: =IF($B$4="Annual Average", AVERAGE(OFFSET(O2Depth!$A$10,$H179*12,4*($C$8-1)+3,12,1)), MAX(OFFSET(O2Depth!$A$10,$H179*12,4*($C$8-1)+3,12,1))) / 0.3048 -> 0.5699475066 | K179: =IF($B$4="Annual Average", AVERAGE(OFFSET(O2Depth!$A$10,$H179*12,4*($C$8-1)+4,12,1)), MAX(OFFSET(O2Depth!$A$10,$H179*12,4*($C$8-1)+4,12,1))) / 0.3048 -> 0.7024934383 | L179: =IF($B$4="Annual Average", AVERAGE(OFFSET(O2Depth!$A$10,$H179*12,4*($C$8-1)+1,12,1)), MAX(OFFSET(O2Depth!$A$10,$H179*12,4*($C$8-1)+1,12,1))) / 0.3048 -> 0.5789698163 | R179: 22.83333333 | S179: =VLOOKUP($R179,O2Depth!$A$10:$AG$2410,4*($C$8-1)+3) / 0.3048 -> 0.4617782152 | T179: =VLOOKUP($R179,O2Depth!$A$10:$AG$2410,4*($C$8-1)+4) / 0.3048 -> 0.5543307087 | U179: =VLOOKUP($R179,O2Depth!$A$10:$AG$2410,4*($C$8-1)+5) / 0.3048 -> 0.6868766404 | V179: =VLOOKUP($R179,O2Depth!$A$10:$AG$2410,4*($C$8-1)+2) / 0.3048 -> 0.5640748031
H180: 155 | I180: =IF($B$4="Annual Average", AVERAGE(OFFSET(O2Depth!$A$10,$H180*12,4*($C$8-1)+2,12,1)), MAX(OFFSET(O2Depth!$A$10,$H180*12,4*($C$8-1)+2,12,1))) / 0.3048 -> 0.4776246719 | J180: =IF($B$4="Annual Average", AVERAGE(OFFSET(O2Depth!$A$10,$H180*12,4*($C$8-1)+3,12,1)), MAX(OFFSET(O2Depth!$A$10,$H180*12,4*($C$8-1)+3,12,1))) / 0.3048 -> 0.5776574803 | K180: =IF($B$4="Annual Average", AVERAGE(OFFSET(O2Depth!$A$10,$H180*12,4*($C$8-1)+4,12,1)), MAX(OFFSET(O2Depth!$A$10,$H180*12,4*($C$8-1)+4,12,1))) / 0.3048 -> 0.6929133858 | L180: =IF($B$4="Annual Average", AVERAGE(OFFSET(O2Depth!$A$10,$H180*12,4*($C$8-1)+1,12,1)), MAX(OFFSET(O2Depth!$A$10,$H180*12,4*($C$8-1)+1,12,1))) / 0.3048 -> 0.5827099738 | R180: 22.91666667 | S180: =VLOOKUP($R180,O2Depth!$A$10:$AG$2410,4*($C$8-1)+3) / 0.3048 -> 0.4617782152 | T180: =VLOOKUP($R180,O2Depth!$A$10:$AG$2410,4*($C$8-1)+4) / 0.3048 -> 0.5543307087 | U180: =VLOOKUP($R180,O2Depth!$A$10:$AG$2410,4*($C$8-1)+5) / 0.3048 -> 0.6868766404 | V180: =VLOOKUP($R180,O2Depth!$A$10:$AG$2410,4*($C$8-1)+2) / 0.3048 -> 0.5640748031
H181: 156 | I181: =IF($B$4="Annual Average", AVERAGE(OFFSET(O2Depth!$A$10,$H181*12,4*($C$8-1)+2,12,1)), MAX(OFFSET(O2Depth!$A$10,$H181*12,4*($C$8-1)+2,12,1))) / 0.3048 -> 0.4788057743 | J181: =IF($B$4="Annual Average", AVERAGE(OFFSET(O2Depth!$A$10,$H181*12,4*($C$8-1)+3,12,1)), MAX(OFFSET(O2Depth!$A$10,$H181*12,4*($C$8-1)+3,12,1))) / 0.3048 -> 0.5706364829 | K181: =IF($B$4="Annual Average", AVERAGE(OFFSET(O2Depth!$A$10,$H181*12,4*($C$8-1)+4,12,1)), MAX(OFFSET(O2Depth!$A$10,$H181*12,4*($C$8-1)+4,12,1))) / 0.3048 -> 0.695144357 | L181: =IF($B$4="Annual Average", AVERAGE(OFFSET(O2Depth!$A$10,$H181*12,4*($C$8-1)+1,12,1)), MAX(OFFSET(O2Depth!$A$10,$H181*12,4*($C$8-1)+1,12,1))) / 0.3048 -> 0.5777559055 | R181: 23 | S181: =VLOOKUP($R181,O2Depth!$A$10:$AG$2410,4*($C$8-1)+3) / 0.3048 -> 0.462664042 | T181: =VLOOKUP($R181,O2Depth!$A$10:$AG$2410,4*($C$8-1)+4) / 0.3048 -> 0.5566272966 | U181: =VLOOKUP($R181,O2Depth!$A$10:$AG$2410,4*($C$8-1)+5) / 0.3048 -> 0.6896653543 | V181: =VLOOKUP($R181,O2Depth!$A$10:$AG$2410,4*($C$8-1)+2) / 0.3048 -> 0.5658464567
H182: 157 | I182: =IF($B$4="Annual Average", AVERAGE(OFFSET(O2Depth!$A$10,$H182*12,4*($C$8-1)+2,12,1)), MAX(OFFSET(O2Depth!$A$10,$H182*12,4*($C$8-1)+2,12,1))) / 0.3048 -> 0.4722112861 | J182: =IF($B$4="Annual Average", AVERAGE(OFFSET(O2Depth!$A$10,$H182*12,4*($C$8-1)+3,12,1)), MAX(OFFSET(O2Depth!$A$10,$H182*12,4*($C$8-1)+3,12,1))) / 0.3048 -> 0.5694225722 | K182: =IF($B$4="Annual Average", AVERAGE(OFFSET(O2Depth!$A$10,$H182*12,4*($C$8-1)+4,12,1)), MAX(OFFSET(O2Depth!$A$10,$H182*12,4*($C$8-1)+4,12,1))) / 0.3048 -> 0.6977362205 | L182: =IF($B$4="Annual Average", AVERAGE(OFFSET(O2Depth!$A$10,$H182*12,4*($C$8-1)+1,12,1)), MAX(OFFSET(O2Depth!$A$10,$H182*12,4*($C$8-1)+1,12,1))) / 0.3048 -> 0.5778215223 | R182: 23.08333333 | S182: =VLOOKUP($R182,O2Depth!$A$10:$AG$2410,4*($C$8-1)+3) / 0.3048 -> 0.4618110236 | T182: =VLOOKUP($R182,O2Depth!$A$10:$AG$2410,4*($C$8-1)+4) / 0.3048 -> 0.5594160105 | U182: =VLOOKUP($R182,O2Depth!$A$10:$AG$2410,4*($C$8-1)+5) / 0.3048 -> 0.6825131234 | V182: =VLOOKUP($R182,O2Depth!$A$10:$AG$2410,4*($C$8-1)+2) / 0.3048 -> 0.5686351706
H183: 158 | I183: =IF($B$4="Annual Average", AVERAGE(OFFSET(O2Depth!$A$10,$H183*12,4*($C$8-1)+2,12,1)), MAX(OFFSET(O2Depth!$A$10,$H183*12,4*($C$8-1)+2,12,1))) / 0.3048 -> 0.4752952756 | J183: =IF($B$4="Annual Average", AVERAGE(OFFSET(O2Depth!$A$10,$H183*12,4*($C$8-1)+3,12,1)), MAX(OFFSET(O2Depth!$A$10,$H183*12,4*($C$8-1)+3,12,1))) / 0.3048 -> 0.5690944882 | K183: =IF($B$4="Annual Average", AVERAGE(OFFSET(O2Depth!$A$10,$H183*12,4*($C$8-1)+4,12,1)), MAX(OFFSET(O2Depth!$A$10,$H183*12,4*($C$8-1)+4,12,1))) / 0.3048 -> 0.698523622 | L183: =IF($B$4="Annual Average", AVERAGE(OFFSET(O2Depth!$A$10,$H183*12,4*($C$8-1)+1,12,1)), MAX(OFFSET(O2Depth!$A$10,$H183*12,4*($C$8-1)+1,12,1))) / 0.3048 -> 0.5786745407 | R183: 23.16666667 | S183: =VLOOKUP($R183,O2Depth!$A$10:$AG$2410,4*($C$8-1)+3) / 0.3048 -> 0.4618110236 | T183: =VLOOKUP($R183,O2Depth!$A$10:$AG$2410,4*($C$8-1)+4) / 0.3048 -> 0.5594160105 | U183: =VLOOKUP($R183,O2Depth!$A$10:$AG$2410,4*($C$8-1)+5) / 0.3048 -> 0.6825131234 | V183: =VLOOKUP($R183,O2Depth!$A$10:$AG$2410,4*($C$8-1)+2) / 0.3048 -> 0.5686351706
H184: 159 | I184: =IF($B$4="Annual Average", AVERAGE(OFFSET(O2Depth!$A$10,$H184*12,4*($C$8-1)+2,12,1)), MAX(OFFSET(O2Depth!$A$10,$H184*12,4*($C$8-1)+2,12,1))) / 0.3048 -> 0.4770669291 | J184: =IF($B$4="Annual Average", AVERAGE(OFFSET(O2Depth!$A$10,$H184*12,4*($C$8-1)+3,12,1)), MAX(OFFSET(O2Depth!$A$10,$H184*12,4*($C$8-1)+3,12,1))) / 0.3048 -> 0.5719160105 | K184: =IF($B$4="Annual Average", AVERAGE(OFFSET(O2Depth!$A$10,$H184*12,4*($C$8-1)+4,12,1)), MAX(OFFSET(O2Depth!$A$10,$H184*12,4*($C$8-1)+4,12,1))) / 0.3048 -> 0.7156496063 | L184: =IF($B$4="Annual Average", AVERAGE(OFFSET(O2Depth!$A$10,$H184*12,4*($C$8-1)+1,12,1)), MAX(OFFSET(O2Depth!$A$10,$H184*12,4*($C$8-1)+1,12,1))) / 0.3048 -> 0.5829724409 | R184: 23.25 | S184: =VLOOKUP($R184,O2Depth!$A$10:$AG$2410,4*($C$8-1)+3) / 0.3048 -> 0.4648622047 | T184: =VLOOKUP($R184,O2Depth!$A$10:$AG$2410,4*($C$8-1)+4) / 0.3048 -> 0.5593175853 | U184: =VLOOKUP($R184,O2Depth!$A$10:$AG$2410,4*($C$8-1)+5) / 0.3048 -> 0.682808399 | V184: =VLOOKUP($R184,O2Depth!$A$10:$AG$2410,4*($C$8-1)+2) / 0.3048 -> 0.5687664042
H185: 160 | I185: =IF($B$4="Annual Average", AVERAGE(OFFSET(O2Depth!$A$10,$H185*12,4*($C$8-1)+2,12,1)), MAX(OFFSET(O2Depth!$A$10,$H185*12,4*($C$8-1)+2,12,1))) / 0.3048 -> 0.4789698163 | J185: =IF($B$4="Annual Average", AVERAGE(OFFSET(O2Depth!$A$10,$H185*12,4*($C$8-1)+3,12,1)), MAX(OFFSET(O2Depth!$A$10,$H185*12,4*($C$8-1)+3,12,1))) / 0.3048 -> 0.5781167979 | K185: =IF($B$4="Annual Average", AVERAGE(OFFSET(O2Depth!$A$10,$H185*12,4*($C$8-1)+4,12,1)), MAX(OFFSET(O2Depth!$A$10,$H185*12,4*($C$8-1)+4,12,1))) / 0.3048 -> 0.7087270341 | L185: =IF($B$4="Annual Average", AVERAGE(OFFSET(O2Depth!$A$10,$H185*12,4*($C$8-1)+1,12,1)), MAX(OFFSET(O2Depth!$A$10,$H185*12,4*($C$8-1)+1,12,1))) / 0.3048 -> 0.5859251969 | R185: 23.33333333 | S185: =VLOOKUP($R185,O2Depth!$A$10:$AG$2410,4*($C$8-1)+3) / 0.3048 -> 0.4646981627 | T185: =VLOOKUP($R185,O2Depth!$A$10:$AG$2410,4*($C$8-1)+4) / 0.3048 -> 0.5601049869 | U185: =VLOOKUP($R185,O2Depth!$A$10:$AG$2410,4*($C$8-1)+5) / 0.3048 -> 0.6834317585 | V185: =VLOOKUP($R185,O2Depth!$A$10:$AG$2410,4*($C$8-1)+2) / 0.3048 -> 0.5691272966
H186: 161 | I186: =IF($B$4="Annual Average", AVERAGE(OFFSET(O2Depth!$A$10,$H186*12,4*($C$8-1)+2,12,1)), MAX(OFFSET(O2Depth!$A$10,$H186*12,4*($C$8-1)+2,12,1))) / 0.3048 -> 0.4746391076 | J186: =IF($B$4="Annual Average", AVERAGE(OFFSET(O2Depth!$A$10,$H186*12,4*($C$8-1)+3,12,1)), MAX(OFFSET(O2Depth!$A$10,$H186*12,4*($C$8-1)+3,12,1))) / 0.3048 -> 0.5771653543 | K186: =IF($B$4="Annual Average", AVERAGE(OFFSET(O2Depth!$A$10,$H186*12,4*($C$8-1)+4,12,1)), MAX(OFFSET(O2Depth!$A$10,$H186*12,4*($C$8-1)+4,12,1))) / 0.3048 -> 0.7140091864 | L186: =IF($B$4="Annual Average", AVERAGE(OFFSET(O2Depth!$A$10,$H186*12,4*($C$8-1)+1,12,1)), MAX(OFFSET(O2Depth!$A$10,$H186*12,4*($C$8-1)+1,12,1))) / 0.3048 -> 0.5862204724 | R186: 23.41666667 | S186: =VLOOKUP($R186,O2Depth!$A$10:$AG$2410,4*($C$8-1)+3) / 0.3048 -> 0.4646981627 | T186: =VLOOKUP($R186,O2Depth!$A$10:$AG$2410,4*($C$8-1)+4) / 0.3048 -> 0.5601049869 | U186: =VLOOKUP($R186,O2Depth!$A$10:$AG$2410,4*($C$8-1)+5) / 0.3048 -> 0.6834317585 | V186: =VLOOKUP($R186,O2Depth!$A$10:$AG$2410,4*($C$8-1)+2) / 0.3048 -> 0.5691272966
H187: 162 | I187: =IF($B$4="Annual Average", AVERAGE(OFFSET(O2Depth!$A$10,$H187*12,4*($C$8-1)+2,12,1)), MAX(OFFSET(O2Depth!$A$10,$H187*12,4*($C$8-1)+2,12,1))) / 0.3048 -> 0.4831364829 | J187: =IF($B$4="Annual Average", AVERAGE(OFFSET(O2Depth!$A$10,$H187*12,4*($C$8-1)+3,12,1)), MAX(OFFSET(O2Depth!$A$10,$H187*12,4*($C$8-1)+3,12,1))) / 0.3048 -> 0.5708661417 | K187: =IF($B$4="Annual Average", AVERAGE(OFFSET(O2Depth!$A$10,$H187*12,4*($C$8-1)+4,12,1)), MAX(OFFSET(O2Depth!$A$10,$H187*12,4*($C$8-1)+4,12,1))) / 0.3048 -> 0.7062335958 | L187: =IF($B$4="Annual Average", AVERAGE(OFFSET(O2Depth!$A$10,$H187*12,4*($C$8-1)+1,12,1)), MAX(OFFSET(O2Depth!$A$10,$H187*12,4*($C$8-1)+1,12,1))) / 0.3048 -> 0.580839895 | R187: 23.5 | S187: =VLOOKUP($R187,O2Depth!$A$10:$AG$2410,4*($C$8-1)+3) / 0.3048 -> 0.4664370079 | T187: =VLOOKUP($R187,O2Depth!$A$10:$AG$2410,4*($C$8-1)+4) / 0.3048 -> 0.5605971129 | U187: =VLOOKUP($R187,O2Depth!$A$10:$AG$2410,4*($C$8-1)+5) / 0.3048 -> 0.6870734908 | V187: =VLOOKUP($R187,O2Depth!$A$10:$AG$2410,4*($C$8-1)+2) / 0.3048 -> 0.569160105
H188: 163 | I188: =IF($B$4="Annual Average", AVERAGE(OFFSET(O2Depth!$A$10,$H188*12,4*($C$8-1)+2,12,1)), MAX(OFFSET(O2Depth!$A$10,$H188*12,4*($C$8-1)+2,12,1))) / 0.3048 -> 0.4805774278 | J188: =IF($B$4="Annual Average", AVERAGE(OFFSET(O2Depth!$A$10,$H188*12,4*($C$8-1)+3,12,1)), MAX(OFFSET(O2Depth!$A$10,$H188*12,4*($C$8-1)+3,12,1))) / 0.3048 -> 0.5743110236 | K188: =IF($B$4="Annual Average", AVERAGE(OFFSET(O2Depth!$A$10,$H188*12,4*($C$8-1)+4,12,1)), MAX(OFFSET(O2Depth!$A$10,$H188*12,4*($C$8-1)+4,12,1))) / 0.3048 -> 0.7006233596 | L188: =IF($B$4="Annual Average", AVERAGE(OFFSET(O2Depth!$A$10,$H188*12,4*($C$8-1)+1,12,1)), MAX(OFFSET(O2Depth!$A$10,$H188*12,4*($C$8-1)+1,12,1))) / 0.3048 -> 0.5801181102 | R188: 23.58333333 | S188: =VLOOKUP($R188,O2Depth!$A$10:$AG$2410,4*($C$8-1)+3) / 0.3048 -> 0.4693897638 | T188: =VLOOKUP($R188,O2Depth!$A$10:$AG$2410,4*($C$8-1)+4) / 0.3048 -> 0.5601706037 | U188: =VLOOKUP($R188,O2Depth!$A$10:$AG$2410,4*($C$8-1)+5) / 0.3048 -> 0.6859251969 | V188: =VLOOKUP($R188,O2Depth!$A$10:$AG$2410,4*($C$8-1)+2) / 0.3048 -> 0.569816273
H189: 164 | I189: =IF($B$4="Annual Average", AVERAGE(OFFSET(O2Depth!$A$10,$H189*12,4*($C$8-1)+2,12,1)), MAX(OFFSET(O2Depth!$A$10,$H189*12,4*($C$8-1)+2,12,1))) / 0.3048 -> 0.4666666667 | J189: =IF($B$4="Annual Average", AVERAGE(OFFSET(O2Depth!$A$10,$H189*12,4*($C$8-1)+3,12,1)), MAX(OFFSET(O2Depth!$A$10,$H189*12,4*($C$8-1)+3,12,1))) / 0.3048 -> 0.5734251969 | K189: =IF($B$4="Annual Average", AVERAGE(OFFSET(O2Depth!$A$10,$H189*12,4*($C$8-1)+4,12,1)), MAX(OFFSET(O2Depth!$A$10,$H189*12,4*($C$8-1)+4,12,1))) / 0.3048 -> 0.7096784777 | L189: =IF($B$4="Annual Average", AVERAGE(OFFSET(O2Depth!$A$10,$H189*12,4*($C$8-1)+1,12,1)), MAX(OFFSET(O2Depth!$A$10,$H189*12,4*($C$8-1)+1,12,1))) / 0.3048 -> 0.5803149606 | R189: 23.66666667 | S189: =VLOOKUP($R189,O2Depth!$A$10:$AG$2410,4*($C$8-1)+3) / 0.3048 -> 0.4693897638 | T189: =VLOOKUP($R189,O2Depth!$A$10:$AG$2410,4*($C$8-1)+4) / 0.3048 -> 0.5601706037 | U189: =VLOOKUP($R189,O2Depth!$A$10:$AG$2410,4*($C$8-1)+5) / 0.3048 -> 0.6859251969 | V189: =VLOOKUP($R189,O2Depth!$A$10:$AG$2410,4*($C$8-1)+2) / 0.3048 -> 0.569816273
H190: 165 | I190: =IF($B$4="Annual Average", AVERAGE(OFFSET(O2Depth!$A$10,$H190*12,4*($C$8-1)+2,12,1)), MAX(OFFSET(O2Depth!$A$10,$H190*12,4*($C$8-1)+2,12,1))) / 0.3048 -> 0.4716863517 | J190: =IF($B$4="Annual Average", AVERAGE(OFFSET(O2Depth!$A$10,$H190*12,4*($C$8-1)+3,12,1)), MAX(OFFSET(O2Depth!$A$10,$H190*12,4*($C$8-1)+3,12,1))) / 0.3048 -> 0.5743766404 | K190: =IF($B$4="Annual Average", AVERAGE(OFFSET(O2Depth!$A$10,$H190*12,4*($C$8-1)+4,12,1)), MAX(OFFSET(O2Depth!$A$10,$H190*12,4*($C$8-1)+4,12,1))) / 0.3048 -> 0.6946194226 | L190: =IF($B$4="Annual Average", AVERAGE(OFFSET(O2Depth!$A$10,$H190*12,4*($C$8-1)+1,12,1)), MAX(OFFSET(O2Depth!$A$10,$H190*12,4*($C$8-1)+1,12,1))) / 0.3048 -> 0.5794947507 | R190: 23.75 | S190: =VLOOKUP($R190,O2Depth!$A$10:$AG$2410,4*($C$8-1)+3) / 0.3048 -> 0.4687992126 | T190: =VLOOKUP($R190,O2Depth!$A$10:$AG$2410,4*($C$8-1)+4) / 0.3048 -> 0.5609251969 | U190: =VLOOKUP($R190,O2Depth!$A$10:$AG$2410,4*($C$8-1)+5) / 0.3048 -> 0.6877296588 | V190: =VLOOKUP($R190,O2Depth!$A$10:$AG$2410,4*($C$8-1)+2) / 0.3048 -> 0.5702755906
H191: 166 | I191: =IF($B$4="Annual Average", AVERAGE(OFFSET(O2Depth!$A$10,$H191*12,4*($C$8-1)+2,12,1)), MAX(OFFSET(O2Depth!$A$10,$H191*12,4*($C$8-1)+2,12,1))) / 0.3048 -> 0.4779855643 | J191: =IF($B$4="Annual Average", AVERAGE(OFFSET(O2Depth!$A$10,$H191*12,4*($C$8-1)+3,12,1)), MAX(OFFSET(O2Depth!$A$10,$H191*12,4*($C$8-1)+3,12,1))) / 0.3048 -> 0.5735564304 | K191: =IF($B$4="Annual Average", AVERAGE(OFFSET(O2Depth!$A$10,$H191*12,4*($C$8-1)+4,12,1)), MAX(OFFSET(O2Depth!$A$10,$H191*12,4*($C$8-1)+4,12,1))) / 0.3048 -> 0.7079068241 | L191: =IF($B$4="Annual Average", AVERAGE(OFFSET(O2Depth!$A$10,$H191*12,4*($C$8-1)+1,12,1)), MAX(OFFSET(O2Depth!$A$10,$H191*12,4*($C$8-1)+1,12,1))) / 0.3048 -> 0.5815288714 | R191: 23.83333333 | S191: =VLOOKUP($R191,O2Depth!$A$10:$AG$2410,4*($C$8-1)+3) / 0.3048 -> 0.4680774278 | T191: =VLOOKUP($R191,O2Depth!$A$10:$AG$2410,4*($C$8-1)+4) / 0.3048 -> 0.5624671916 | U191: =VLOOKUP($R191,O2Depth!$A$10:$AG$2410,4*($C$8-1)+5) / 0.3048 -> 0.6925853018 | V191: =VLOOKUP($R191,O2Depth!$A$10:$AG$2410,4*($C$8-1)+2) / 0.3048 -> 0.5714895013
H192: 167 | I192: =IF($B$4="Annual Average", AVERAGE(OFFSET(O2Depth!$A$10,$H192*12,4*($C$8-1)+2,12,1)), MAX(OFFSET(O2Depth!$A$10,$H192*12,4*($C$8-1)+2,12,1))) / 0.3048 -> 0.4767388451 | J192: =IF($B$4="Annual Average", AVERAGE(OFFSET(O2Depth!$A$10,$H192*12,4*($C$8-1)+3,12,1)), MAX(OFFSET(O2Depth!$A$10,$H192*12,4*($C$8-1)+3,12,1))) / 0.3048 -> 0.5707020997 | K192: =IF($B$4="Annual Average", AVERAGE(OFFSET(O2Depth!$A$10,$H192*12,4*($C$8-1)+4,12,1)), MAX(OFFSET(O2Depth!$A$10,$H192*12,4*($C$8-1)+4,12,1))) / 0.3048 -> 0.7044291339 | L192: =IF($B$4="Annual Average", AVERAGE(OFFSET(O2Depth!$A$10,$H192*12,4*($C$8-1)+1,12,1)), MAX(OFFSET(O2Depth!$A$10,$H192*12,4*($C$8-1)+1,12,1))) / 0.3048 -> 0.5782808399 | R192: 23.91666667 | S192: =VLOOKUP($R192,O2Depth!$A$10:$AG$2410,4*($C$8-1)+3) / 0.3048 -> 0.4680774278 | T192: =VLOOKUP($R192,O2Depth!$A$10:$AG$2410,4*($C$8-1)+4) / 0.3048 -> 0.5624671916 | U192: =VLOOKUP($R192,O2Depth!$A$10:$AG$2410,4*($C$8-1)+5) / 0.3048 -> 0.6925853018 | V192: =VLOOKUP($R192,O2Depth!$A$10:$AG$2410,4*($C$8-1)+2) / 0.3048 -> 0.5714895013
H193: 168 | I193: =IF($B$4="Annual Average", AVERAGE(OFFSET(O2Depth!$A$10,$H193*12,4*($C$8-1)+2,12,1)), MAX(OFFSET(O2Depth!$A$10,$H193*12,4*($C$8-1)+2,12,1))) / 0.3048 -> 0.4763779528 | J193: =IF($B$4="Annual Average", AVERAGE(OFFSET(O2Depth!$A$10,$H193*12,4*($C$8-1)+3,12,1)), MAX(OFFSET(O2Depth!$A$10,$H193*12,4*($C$8-1)+3,12,1))) / 0.3048 -> 0.5708005249 | K193: =IF($B$4="Annual Average", AVERAGE(OFFSET(O2Depth!$A$10,$H193*12,4*($C$8-1)+4,12,1)), MAX(OFFSET(O2Depth!$A$10,$H193*12,4*($C$8-1)+4,12,1))) / 0.3048 -> 0.6995406824 | L193: =IF($B$4="Annual Average", AVERAGE(OFFSET(O2Depth!$A$10,$H193*12,4*($C$8-1)+1,12,1)), MAX(OFFSET(O2Depth!$A$10,$H193*12,4*($C$8-1)+1,12,1))) / 0.3048 -> 0.5804133858 | R193: 24 | S193: =VLOOKUP($R193,O2Depth!$A$10:$AG$2410,4*($C$8-1)+3) / 0.3048 -> 0.468503937 | T193: =VLOOKUP($R193,O2Depth!$A$10:$AG$2410,4*($C$8-1)+4) / 0.3048 -> 0.5633858268 | U193: =VLOOKUP($R193,O2Depth!$A$10:$AG$2410,4*($C$8-1)+5) / 0.3048 -> 0.6952427822 | V193: =VLOOKUP($R193,O2Depth!$A$10:$AG$2410,4*($C$8-1)+2) / 0.3048 -> 0.5722112861
H194: 169 | I194: =IF($B$4="Annual Average", AVERAGE(OFFSET(O2Depth!$A$10,$H194*12,4*($C$8-1)+2,12,1)), MAX(OFFSET(O2Depth!$A$10,$H194*12,4*($C$8-1)+2,12,1))) / 0.3048 -> 0.4731627297 | J194: =IF($B$4="Annual Average", AVERAGE(OFFSET(O2Depth!$A$10,$H194*12,4*($C$8-1)+3,12,1)), MAX(OFFSET(O2Depth!$A$10,$H194*12,4*($C$8-1)+3,12,1))) / 0.3048 -> 0.5750984252 | K194: =IF($B$4="Annual Average", AVERAGE(OFFSET(O2Depth!$A$10,$H194*12,4*($C$8-1)+4,12,1)), MAX(OFFSET(O2Depth!$A$10,$H194*12,4*($C$8-1)+4,12,1))) / 0.3048 -> 0.7021981627 | L194: =IF($B$4="Annual Average", AVERAGE(OFFSET(O2Depth!$A$10,$H194*12,4*($C$8-1)+1,12,1)), MAX(OFFSET(O2Depth!$A$10,$H194*12,4*($C$8-1)+1,12,1))) / 0.3048 -> 0.5797900262 | R194: 24.08333333 | S194: =VLOOKUP($R194,O2Depth!$A$10:$AG$2410,4*($C$8-1)+3) / 0.3048 -> 0.4679133858 | T194: =VLOOKUP($R194,O2Depth!$A$10:$AG$2410,4*($C$8-1)+4) / 0.3048 -> 0.567355643 | U194: =VLOOKUP($R194,O2Depth!$A$10:$AG$2410,4*($C$8-1)+5) / 0.3048 -> 0.6751968504 | V194: =VLOOKUP($R194,O2Depth!$A$10:$AG$2410,4*($C$8-1)+2) / 0.3048 -> 0.5696850394
H195: 170 | I195: =IF($B$4="Annual Average", AVERAGE(OFFSET(O2Depth!$A$10,$H195*12,4*($C$8-1)+2,12,1)), MAX(OFFSET(O2Depth!$A$10,$H195*12,4*($C$8-1)+2,12,1))) / 0.3048 -> 0.4719816273 | J195: =IF($B$4="Annual Average", AVERAGE(OFFSET(O2Depth!$A$10,$H195*12,4*($C$8-1)+3,12,1)), MAX(OFFSET(O2Depth!$A$10,$H195*12,4*($C$8-1)+3,12,1))) / 0.3048 -> 0.5653871391 | K195: =IF($B$4="Annual Average", AVERAGE(OFFSET(O2Depth!$A$10,$H195*12,4*($C$8-1)+4,12,1)), MAX(OFFSET(O2Depth!$A$10,$H195*12,4*($C$8-1)+4,12,1))) / 0.3048 -> 0.6912401575 | L195: =IF($B$4="Annual Average", AVERAGE(OFFSET(O2Depth!$A$10,$H195*12,4*($C$8-1)+1,12,1)), MAX(OFFSET(O2Depth!$A$10,$H195*12,4*($C$8-1)+1,12,1))) / 0.3048 -> 0.5749671916 | R195: 24.16666667 | S195: =VLOOKUP($R195,O2Depth!$A$10:$AG$2410,4*($C$8-1)+3) / 0.3048 -> 0.4679133858 | T195: =VLOOKUP($R195,O2Depth!$A$10:$AG$2410,4*($C$8-1)+4) / 0.3048 -> 0.567355643 | U195: =VLOOKUP($R195,O2Depth!$A$10:$AG$2410,4*($C$8-1)+5) / 0.3048 -> 0.6751968504 | V195: =VLOOKUP($R195,O2Depth!$A$10:$AG$2410,4*($C$8-1)+2) / 0.3048 -> 0.5696850394
H196: 171 | I196: =IF($B$4="Annual Average", AVERAGE(OFFSET(O2Depth!$A$10,$H196*12,4*($C$8-1)+2,12,1)), MAX(OFFSET(O2Depth!$A$10,$H196*12,4*($C$8-1)+2,12,1))) / 0.3048 -> 0.4799540682 | J196: =IF($B$4="Annual Average", AVERAGE(OFFSET(O2Depth!$A$10,$H196*12,4*($C$8-1)+3,12,1)), MAX(OFFSET(O2Depth!$A$10,$H196*12,4*($C$8-1)+3,12,1))) / 0.3048 -> 0.5724737533 | K196: =IF($B$4="Annual Average", AVERAGE(OFFSET(O2Depth!$A$10,$H196*12,4*($C$8-1)+4,12,1)), MAX(OFFSET(O2Depth!$A$10,$H196*12,4*($C$8-1)+4,12,1))) / 0.3048 -> 0.7082677165 | L196: =IF($B$4="Annual Average", AVERAGE(OFFSET(O2Depth!$A$10,$H196*12,4*($C$8-1)+1,12,1)), MAX(OFFSET(O2Depth!$A$10,$H196*12,4*($C$8-1)+1,12,1))) / 0.3048 -> 0.5836614173 | R196: 24.25 | S196: =VLOOKUP($R196,O2Depth!$A$10:$AG$2410,4*($C$8-1)+3) / 0.3048 -> 0.4697506562 | T196: =VLOOKUP($R196,O2Depth!$A$10:$AG$2410,4*($C$8-1)+4) / 0.3048 -> 0.5659776903 | U196: =VLOOKUP($R196,O2Depth!$A$10:$AG$2410,4*($C$8-1)+5) / 0.3048 -> 0.6754593176 | V196: =VLOOKUP($R196,O2Depth!$A$10:$AG$2410,4*($C$8-1)+2) / 0.3048 -> 0.5698490814
H197: 172 | I197: =IF($B$4="Annual Average", AVERAGE(OFFSET(O2Depth!$A$10,$H197*12,4*($C$8-1)+2,12,1)), MAX(OFFSET(O2Depth!$A$10,$H197*12,4*($C$8-1)+2,12,1))) / 0.3048 -> 0.4796587927 | J197: =IF($B$4="Annual Average", AVERAGE(OFFSET(O2Depth!$A$10,$H197*12,4*($C$8-1)+3,12,1)), MAX(OFFSET(O2Depth!$A$10,$H197*12,4*($C$8-1)+3,12,1))) / 0.3048 -> 0.573851706 | K197: =IF($B$4="Annual Average", AVERAGE(OFFSET(O2Depth!$A$10,$H197*12,4*($C$8-1)+4,12,1)), MAX(OFFSET(O2Depth!$A$10,$H197*12,4*($C$8-1)+4,12,1))) / 0.3048 -> 0.7079068241 | L197: =IF($B$4="Annual Average", AVERAGE(OFFSET(O2Depth!$A$10,$H197*12,4*($C$8-1)+1,12,1)), MAX(OFFSET(O2Depth!$A$10,$H197*12,4*($C$8-1)+1,12,1))) / 0.3048 -> 0.5847440945 | R197: 24.33333333 | S197: =VLOOKUP($R197,O2Depth!$A$10:$AG$2410,4*($C$8-1)+3) / 0.3048 -> 0.470144357 | T197: =VLOOKUP($R197,O2Depth!$A$10:$AG$2410,4*($C$8-1)+4) / 0.3048 -> 0.5656496063 | U197: =VLOOKUP($R197,O2Depth!$A$10:$AG$2410,4*($C$8-1)+5) / 0.3048 -> 0.6833005249 | V197: =VLOOKUP($R197,O2Depth!$A$10:$AG$2410,4*($C$8-1)+2) / 0.3048 -> 0.5702427822
H198: 173 | I198: =IF($B$4="Annual Average", AVERAGE(OFFSET(O2Depth!$A$10,$H198*12,4*($C$8-1)+2,12,1)), MAX(OFFSET(O2Depth!$A$10,$H198*12,4*($C$8-1)+2,12,1))) / 0.3048 -> 0.4707020997 | J198: =IF($B$4="Annual Average", AVERAGE(OFFSET(O2Depth!$A$10,$H198*12,4*($C$8-1)+3,12,1)), MAX(OFFSET(O2Depth!$A$10,$H198*12,4*($C$8-1)+3,12,1))) / 0.3048 -> 0.5694225722 | K198: =IF($B$4="Annual Average", AVERAGE(OFFSET(O2Depth!$A$10,$H198*12,4*($C$8-1)+4,12,1)), MAX(OFFSET(O2Depth!$A$10,$H198*12,4*($C$8-1)+4,12,1))) / 0.3048 -> 0.6947834646 | L198: =IF($B$4="Annual Average", AVERAGE(OFFSET(O2Depth!$A$10,$H198*12,4*($C$8-1)+1,12,1)), MAX(OFFSET(O2Depth!$A$10,$H198*12,4*($C$8-1)+1,12,1))) / 0.3048 -> 0.5790354331 | R198: 24.41666667 | S198: =VLOOKUP($R198,O2Depth!$A$10:$AG$2410,4*($C$8-1)+3) / 0.3048 -> 0.470144357 | T198: =VLOOKUP($R198,O2Depth!$A$10:$AG$2410,4*($C$8-1)+4) / 0.3048 -> 0.5656496063 | U198: =VLOOKUP($R198,O2Depth!$A$10:$AG$2410,4*($C$8-1)+5) / 0.3048 -> 0.6833005249 | V198: =VLOOKUP($R198,O2Depth!$A$10:$AG$2410,4*($C$8-1)+2) / 0.3048 -> 0.5702427822
H199: 174 | I199: =IF($B$4="Annual Average", AVERAGE(OFFSET(O2Depth!$A$10,$H199*12,4*($C$8-1)+2,12,1)), MAX(OFFSET(O2Depth!$A$10,$H199*12,4*($C$8-1)+2,12,1))) / 0.3048 -> 0.4731627297 | J199: =IF($B$4="Annual Average", AVERAGE(OFFSET(O2Depth!$A$10,$H199*12,4*($C$8-1)+3,12,1)), MAX(OFFSET(O2Depth!$A$10,$H199*12,4*($C$8-1)+3,12,1))) / 0.3048 -> 0.5748031496 | K199: =IF($B$4="Annual Average", AVERAGE(OFFSET(O2Depth!$A$10,$H199*12,4*($C$8-1)+4,12,1)), MAX(OFFSET(O2Depth!$A$10,$H199*12,4*($C$8-1)+4,12,1))) / 0.3048 -> 0.698851706 | L199: =IF($B$4="Annual Average", AVERAGE(OFFSET(O2Depth!$A$10,$H199*12,4*($C$8-1)+1,12,1)), MAX(OFFSET(O2Depth!$A$10,$H199*12,4*($C$8-1)+1,12,1))) / 0.3048 -> 0.5811023622 | R199: 24.5 | S199: =VLOOKUP($R199,O2Depth!$A$10:$AG$2410,4*($C$8-1)+3) / 0.3048 -> 0.4710301837 | T199: =VLOOKUP($R199,O2Depth!$A$10:$AG$2410,4*($C$8-1)+4) / 0.3048 -> 0.5644356955 | U199: =VLOOKUP($R199,O2Depth!$A$10:$AG$2410,4*($C$8-1)+5) / 0.3048 -> 0.6833333333 | V199: =VLOOKUP($R199,O2Depth!$A$10:$AG$2410,4*($C$8-1)+2) / 0.3048 -> 0.570308399
H200: 175 | I200: =IF($B$4="Annual Average", AVERAGE(OFFSET(O2Depth!$A$10,$H200*12,4*($C$8-1)+2,12,1)), MAX(OFFSET(O2Depth!$A$10,$H200*12,4*($C$8-1)+2,12,1))) / 0.3048 -> 0.4789370079 | J200: =IF($B$4="Annual Average", AVERAGE(OFFSET(O2Depth!$A$10,$H200*12,4*($C$8-1)+3,12,1)), MAX(OFFSET(O2Depth!$A$10,$H200*12,4*($C$8-1)+3,12,1))) / 0.3048 -> 0.5735564304 | K200: =IF($B$4="Annual Average", AVERAGE(OFFSET(O2Depth!$A$10,$H200*12,4*($C$8-1)+4,12,1)), MAX(OFFSET(O2Depth!$A$10,$H200*12,4*($C$8-1)+4,12,1))) / 0.3048 -> 0.7022965879 | L200: =IF($B$4="Annual Average", AVERAGE(OFFSET(O2Depth!$A$10,$H200*12,4*($C$8-1)+1,12,1)), MAX(OFFSET(O2Depth!$A$10,$H200*12,4*($C$8-1)+1,12,1))) / 0.3048 -> 0.580347769 | R200: 24.58333333 | S200: =VLOOKUP($R200,O2Depth!$A$10:$AG$2410,4*($C$8-1)+3) / 0.3048 -> 0.4699146982 | T200: =VLOOKUP($R200,O2Depth!$A$10:$AG$2410,4*($C$8-1)+4) / 0.3048 -> 0.5682086614 | U200: =VLOOKUP($R200,O2Depth!$A$10:$AG$2410,4*($C$8-1)+5) / 0.3048 -> 0.6891076115 | V200: =VLOOKUP($R200,O2Depth!$A$10:$AG$2410,4*($C$8-1)+2) / 0.3048 -> 0.5710629921
H201: 176 | I201: =IF($B$4="Annual Average", AVERAGE(OFFSET(O2Depth!$A$10,$H201*12,4*($C$8-1)+2,12,1)), MAX(OFFSET(O2Depth!$A$10,$H201*12,4*($C$8-1)+2,12,1))) / 0.3048 -> 0.4787073491 | J201: =IF($B$4="Annual Average", AVERAGE(OFFSET(O2Depth!$A$10,$H201*12,4*($C$8-1)+3,12,1)), MAX(OFFSET(O2Depth!$A$10,$H201*12,4*($C$8-1)+3,12,1))) / 0.3048 -> 0.5721128609 | K201: =IF($B$4="Annual Average", AVERAGE(OFFSET(O2Depth!$A$10,$H201*12,4*($C$8-1)+4,12,1)), MAX(OFFSET(O2Depth!$A$10,$H201*12,4*($C$8-1)+4,12,1))) / 0.3048 -> 0.7097440945 | L201: =IF($B$4="Annual Average", AVERAGE(OFFSET(O2Depth!$A$10,$H201*12,4*($C$8-1)+1,12,1)), MAX(OFFSET(O2Depth!$A$10,$H201*12,4*($C$8-1)+1,12,1))) / 0.3048 -> 0.5816929134 | R201: 24.66666667 | S201: =VLOOKUP($R201,O2Depth!$A$10:$AG$2410,4*($C$8-1)+3) / 0.3048 -> 0.4699146982 | T201: =VLOOKUP($R201,O2Depth!$A$10:$AG$2410,4*($C$8-1)+4) / 0.3048 -> 0.5682086614 | U201: =VLOOKUP($R201,O2Depth!$A$10:$AG$2410,4*($C$8-1)+5) / 0.3048 -> 0.6891076115 | V201: =VLOOKUP($R201,O2Depth!$A$10:$AG$2410,4*($C$8-1)+2) / 0.3048 -> 0.5710629921
H202: 177 | I202: =IF($B$4="Annual Average", AVERAGE(OFFSET(O2Depth!$A$10,$H202*12,4*($C$8-1)+2,12,1)), MAX(OFFSET(O2Depth!$A$10,$H202*12,4*($C$8-1)+2,12,1))) / 0.3048 -> 0.4822178478 | J202: =IF($B$4="Annual Average", AVERAGE(OFFSET(O2Depth!$A$10,$H202*12,4*($C$8-1)+3,12,1)), MAX(OFFSET(O2Depth!$A$10,$H202*12,4*($C$8-1)+3,12,1))) / 0.3048 -> 0.5728018373 | K202: =IF($B$4="Annual Average", AVERAGE(OFFSET(O2Depth!$A$10,$H202*12,4*($C$8-1)+4,12,1)), MAX(OFFSET(O2Depth!$A$10,$H202*12,4*($C$8-1)+4,12,1))) / 0.3048 -> 0.7004593176 | L202: =IF($B$4="Annual Average", AVERAGE(OFFSET(O2Depth!$A$10,$H202*12,4*($C$8-1)+1,12,1)), MAX(OFFSET(O2Depth!$A$10,$H202*12,4*($C$8-1)+1,12,1))) / 0.3048 -> 0.5789698163 | R202: 24.75 | S202: =VLOOKUP($R202,O2Depth!$A$10:$AG$2410,4*($C$8-1)+3) / 0.3048 -> 0.4707677165 | T202: =VLOOKUP($R202,O2Depth!$A$10:$AG$2410,4*($C$8-1)+4) / 0.3048 -> 0.5678149606 | U202: =VLOOKUP($R202,O2Depth!$A$10:$AG$2410,4*($C$8-1)+5) / 0.3048 -> 0.6899934383 | V202: =VLOOKUP($R202,O2Depth!$A$10:$AG$2410,4*($C$8-1)+2) / 0.3048 -> 0.5715551181
H203: 178 | I203: =IF($B$4="Annual Average", AVERAGE(OFFSET(O2Depth!$A$10,$H203*12,4*($C$8-1)+2,12,1)), MAX(OFFSET(O2Depth!$A$10,$H203*12,4*($C$8-1)+2,12,1))) / 0.3048 -> 0.4844488189 | J203: =IF($B$4="Annual Average", AVERAGE(OFFSET(O2Depth!$A$10,$H203*12,4*($C$8-1)+3,12,1)), MAX(OFFSET(O2Depth!$A$10,$H203*12,4*($C$8-1)+3,12,1))) / 0.3048 -> 0.5733923885 | K203: =IF($B$4="Annual Average", AVERAGE(OFFSET(O2Depth!$A$10,$H203*12,4*($C$8-1)+4,12,1)), MAX(OFFSET(O2Depth!$A$10,$H203*12,4*($C$8-1)+4,12,1))) / 0.3048 -> 0.7041666667 | L203: =IF($B$4="Annual Average", AVERAGE(OFFSET(O2Depth!$A$10,$H203*12,4*($C$8-1)+1,12,1)), MAX(OFFSET(O2Depth!$A$10,$H203*12,4*($C$8-1)+1,12,1))) / 0.3048 -> 0.5835629921 | R203: 24.83333333 | S203: =VLOOKUP($R203,O2Depth!$A$10:$AG$2410,4*($C$8-1)+3) / 0.3048 -> 0.4711942257 | T203: =VLOOKUP($R203,O2Depth!$A$10:$AG$2410,4*($C$8-1)+4) / 0.3048 -> 0.5676181102 | U203: =VLOOKUP($R203,O2Depth!$A$10:$AG$2410,4*($C$8-1)+5) / 0.3048 -> 0.6895341207 | V203: =VLOOKUP($R203,O2Depth!$A$10:$AG$2410,4*($C$8-1)+2) / 0.3048 -> 0.5729002625
H204: 179 | I204: =IF($B$4="Annual Average", AVERAGE(OFFSET(O2Depth!$A$10,$H204*12,4*($C$8-1)+2,12,1)), MAX(OFFSET(O2Depth!$A$10,$H204*12,4*($C$8-1)+2,12,1))) / 0.3048 -> 0.4769028871 | J204: =IF($B$4="Annual Average", AVERAGE(OFFSET(O2Depth!$A$10,$H204*12,4*($C$8-1)+3,12,1)), MAX(OFFSET(O2Depth!$A$10,$H204*12,4*($C$8-1)+3,12,1))) / 0.3048 -> 0.5658464567 | K204: =IF($B$4="Annual Average", AVERAGE(OFFSET(O2Depth!$A$10,$H204*12,4*($C$8-1)+4,12,1)), MAX(OFFSET(O2Depth!$A$10,$H204*12,4*($C$8-1)+4,12,1))) / 0.3048 -> 0.7052165354 | L204: =IF($B$4="Annual Average", AVERAGE(OFFSET(O2Depth!$A$10,$H204*12,4*($C$8-1)+1,12,1)), MAX(OFFSET(O2Depth!$A$10,$H204*12,4*($C$8-1)+1,12,1))) / 0.3048 -> 0.5793963255 | R204: 24.91666667 | S204: =VLOOKUP($R204,O2Depth!$A$10:$AG$2410,4*($C$8-1)+3) / 0.3048 -> 0.4711942257 | T204: =VLOOKUP($R204,O2Depth!$A$10:$AG$2410,4*($C$8-1)+4) / 0.3048 -> 0.5676181102 | U204: =VLOOKUP($R204,O2Depth!$A$10:$AG$2410,4*($C$8-1)+5) / 0.3048 -> 0.6895341207 | V204: =VLOOKUP($R204,O2Depth!$A$10:$AG$2410,4*($C$8-1)+2) / 0.3048 -> 0.5729002625
H205: 180 | I205: =IF($B$4="Annual Average", AVERAGE(OFFSET(O2Depth!$A$10,$H205*12,4*($C$8-1)+2,12,1)), MAX(OFFSET(O2Depth!$A$10,$H205*12,4*($C$8-1)+2,12,1))) / 0.3048 -> 0.4768700787 | J205: =IF($B$4="Annual Average", AVERAGE(OFFSET(O2Depth!$A$10,$H205*12,4*($C$8-1)+3,12,1)), MAX(OFFSET(O2Depth!$A$10,$H205*12,4*($C$8-1)+3,12,1))) / 0.3048 -> 0.570144357 | K205: =IF($B$4="Annual Average", AVERAGE(OFFSET(O2Depth!$A$10,$H205*12,4*($C$8-1)+4,12,1)), MAX(OFFSET(O2Depth!$A$10,$H205*12,4*($C$8-1)+4,12,1))) / 0.3048 -> 0.7099409449 | L205: =IF($B$4="Annual Average", AVERAGE(OFFSET(O2Depth!$A$10,$H205*12,4*($C$8-1)+1,12,1)), MAX(OFFSET(O2Depth!$A$10,$H205*12,4*($C$8-1)+1,12,1))) / 0.3048 -> 0.5832020997 | R205: 25 | S205: =VLOOKUP($R205,O2Depth!$A$10:$AG$2410,4*($C$8-1)+3) / 0.3048 -> 0.4713254593 | T205: =VLOOKUP($R205,O2Depth!$A$10:$AG$2410,4*($C$8-1)+4) / 0.3048 -> 0.5668307087 | U205: =VLOOKUP($R205,O2Depth!$A$10:$AG$2410,4*($C$8-1)+5) / 0.3048 -> 0.6907152231 | V205: =VLOOKUP($R205,O2Depth!$A$10:$AG$2410,4*($C$8-1)+2) / 0.3048 -> 0.5737204724
H206: 181 | I206: =IF($B$4="Annual Average", AVERAGE(OFFSET(O2Depth!$A$10,$H206*12,4*($C$8-1)+2,12,1)), MAX(OFFSET(O2Depth!$A$10,$H206*12,4*($C$8-1)+2,12,1))) / 0.3048 -> 0.4705708661 | J206: =IF($B$4="Annual Average", AVERAGE(OFFSET(O2Depth!$A$10,$H206*12,4*($C$8-1)+3,12,1)), MAX(OFFSET(O2Depth!$A$10,$H206*12,4*($C$8-1)+3,12,1))) / 0.3048 -> 0.5729658793 | K206: =IF($B$4="Annual Average", AVERAGE(OFFSET(O2Depth!$A$10,$H206*12,4*($C$8-1)+4,12,1)), MAX(OFFSET(O2Depth!$A$10,$H206*12,4*($C$8-1)+4,12,1))) / 0.3048 -> 0.7012467192 | L206: =IF($B$4="Annual Average", AVERAGE(OFFSET(O2Depth!$A$10,$H206*12,4*($C$8-1)+1,12,1)), MAX(OFFSET(O2Depth!$A$10,$H206*12,4*($C$8-1)+1,12,1))) / 0.3048 -> 0.5788713911 | R206: 25.08333333 | S206: =VLOOKUP($R206,O2Depth!$A$10:$AG$2410,4*($C$8-1)+3) / 0.3048 -> 0.4789698163 | T206: =VLOOKUP($R206,O2Depth!$A$10:$AG$2410,4*($C$8-1)+4) / 0.3048 -> 0.5660104987 | U206: =VLOOKUP($R206,O2Depth!$A$10:$AG$2410,4*($C$8-1)+5) / 0.3048 -> 0.700492126 | V206: =VLOOKUP($R206,O2Depth!$A$10:$AG$2410,4*($C$8-1)+2) / 0.3048 -> 0.5779199475
... 59 more rows

Sheet O2Depth
A1: =A7 -> ! GoldSim Time History Results,GSVersion:10.50.300
A2: =C7 -> Element:\Results\PROJECT_results\Unsat_Zones\Project\NM_O2_Depth
A3: =D7 -> Model:C:\Tailings Basin\Version 6.0\NorthMet_PlantSite_FEIS_BiggerWWTP.gsm
A4: =E7 -> Time:12/15/2014 16:12:17
A5: Copied | B5: 2014-12-16T08:39:29
B6: North Beach | F6: North Dam | J6: East Beach | N6: East Dam | R6: South Beach | V6: South Dam | Z6: Closure Beach
A7: ! GoldSim Time History Results,GSVersion:10.50.300 | B7: Result:Statistics | C7: Element:\Results\PROJECT_results\Unsat_Zones\Project\NM_O2_Depth | D7: Model:C:\Tailings Basin\Version 6.0\NorthMet_PlantSite_FEIS_BiggerWWTP.gsm | E7: Time:12/15/2014 16:12:17
A8: !Statistics
A9: Time (yr) | B9: Depth_to_Zero_O2 [m],Mean | C9: Depth_to_Zero_O2 [m],10% | D9: Depth_to_Zero_O2 [m],Median | E9: Depth_to_Zero_O2 [m],90% | F9: Depth_to_Zero_O2 [m],Mean | G9: Depth_to_Zero_O2 [m],10% | H9: Depth_to_Zero_O2 [m],Median | I9: Depth_to_Zero_O2 [m],90% | J9: Depth_to_Zero_O2 [m],Mean | K9: Depth_to_Zero_O2 [m],10% | L9: Depth_to_Zero_O2 [m],Median | M9: Depth_to_Zero_O2 [m],90% | N9: Depth_to_Zero_O2 [m],Mean | O9: Depth_to_Zero_O2 [m],10% | P9: Depth_to_Zero_O2 [m],Median | Q9: Depth_to_Zero_O2 [m],90% | R9: Depth_to_Zero_O2 [m],Mean | S9: Depth_to_Zero_O2 [m],10% | T9: Depth_to_Zero_O2 [m],Median | U9: Depth_to_Zero_O2 [m],90% | V9: Depth_to_Zero_O2 [m],Mean | W9: Depth_to_Zero_O2 [m],10% | X9: Depth_to_Zero_O2 [m],Median | Y9: Depth_to_Zero_O2 [m],90% | Z9: Depth_to_Zero_O2 [m],Mean | AA9: Depth_to_Zero_O2 [m],10% | AB9: Depth_to_Zero_O2 [m],Median | AC9: Depth_to_Zero_O2 [m],90%
A10: 0 | B10: 5.6995 | C10: 4.8296 | D10: 5.6266 | E10: 6.698 | F10: 0.44368 | G10: 0.35288 | H10: 0.42762 | I10: 0.55937 | J10: 9.4785 | K10: 8.0319 | L10: 9.3573 | M10: 11.139 | N10: 0 | O10: 0 | P10: 0 | Q10: 0 | R10: 8.0715 | S10: 6.8396 | T10: 7.9683 | U10: 9.4855 | V10: 0 | W10: 0 | X10: 0 | Y10: 0 | Z10: 9.4785 | AA10: 8.0319 | AB10: 9.3573 | AC10: 11.139
A11: 0.0833333 | B11: 6.0502 | C11: 5.1244 | D11: 5.971 | E11: 7.12 | F11: 0.44408 | G11: 0.35187 | H11: 0.42538 | I11: 0.5633 | J11: 9.57 | K11: 8.1065 | L11: 9.4467 | M11: 11.262 | N11: 0 | O11: 0 | P11: 0 | Q11: 0 | R11: 8.2671 | S11: 7.0026 | T11: 8.1615 | U11: 9.7307 | V11: 0 | W11: 0 | X11: 0 | Y11: 0 | Z11: 9.57 | AA11: 8.1065 | AB11: 9.4467 | AC11: 11.262
A12: 0.166667 | B12: 5.8366 | C12: 4.946 | D12: 5.7711 | E12: 6.8634 | F12: 0.44463 | G12: 0.35158 | H12: 0.42691 | I12: 0.56366 | J12: 9.6545 | K12: 8.174 | L12: 9.5229 | M12: 11.373 | N12: 0 | O12: 0 | P12: 0 | Q12: 0 | R12: 8.4488 | S12: 7.1499 | T12: 8.335 | U12: 9.9565 | V12: 0 | W12: 0 | X12: 0 | Y12: 0 | Z12: 9.6545 | AA12: 8.174 | AB12: 9.5229 | AC12: 11.373
A13: 0.25 | B13: 5.8097 | C13: 4.9233 | D13: 5.7472 | E13: 6.8246 | F13: 0.44536 | G13: 0.34877 | H13: 0.42902 | I13: 0.57016 | J13: 9.7325 | K13: 8.2281 | L13: 9.6037 | M13: 11.482 | N13: 0 | O13: 0 | P13: 0 | Q13: 0 | R13: 8.6172 | S13: 7.2799 | T13: 8.4988 | U13: 10.164 | V13: 0 | W13: 0 | X13: 0 | Y13: 0 | Z13: 9.7325 | AA13: 8.2281 | AB13: 9.6037 | AC13: 11.482
A14: 0.333333 | B14: 5.7849 | C14: 4.9027 | D14: 5.7254 | E14: 6.787 | F14: 0.44627 | G14: 0.34745 | H14: 0.42755 | I14: 0.57401 | J14: 9.8045 | K14: 8.2733 | L14: 9.6705 | M14: 11.557 | N14: 0 | O14: 0 | P14: 0 | Q14: 0 | R14: 8.7734 | S14: 7.4037 | T14: 8.648 | U14: 10.338 | V14: 0 | W14: 0 | X14: 0 | Y14: 0 | Z14: 9.8045 | AA14: 8.2733 | AB14: 9.6705 | AC14: 11.557
A15: 0.416667 | B15: 5.762 | C15: 4.8811 | D15: 5.7064 | E15: 6.7549 | F15: 0.44737 | G15: 0.34442 | H15: 0.42816 | I15: 0.57918 | J15: 9.871 | K15: 8.3223 | L15: 9.7188 | M15: 11.635 | N15: 0 | O15: 0 | P15: 0 | Q15: 0 | R15: 8.9181 | S15: 7.5163 | T15: 8.7827 | U15: 10.515 | V15: 0 | W15: 0 | X15: 0 | Y15: 0 | Z15: 9.871 | AA15: 8.3223 | AB15: 9.7188 | AC15: 11.635
A16: 0.5 | B16: 5.7409 | C16: 4.8629 | D16: 5.6865 | E16: 6.7282 | F16: 0.44869 | G16: 0.34166 | H16: 0.42986 | I16: 0.58064 | J16: 9.9323 | K16: 8.3709 | L16: 9.7852 | M16: 11.712 | N16: 0 | O16: 0 | P16: 0 | Q16: 0 | R16: 9.052 | S16: 7.6288 | T16: 8.9138 | U16: 10.675 | V16: 0 | W16: 0 | X16: 0 | Y16: 0 | Z16: 9.9323 | AA16: 8.3709 | AB16: 9.7852 | AC16: 11.712
A17: 0.583333 | B17: 5.7214 | C17: 4.8512 | D17: 5.6712 | E17: 6.7038 | F17: 0.45025 | G17: 0.34029 | H17: 0.43041 | I17: 0.5926 | J17: 9.9888 | K17: 8.4147 | L17: 9.8315 | M17: 11.78 | N17: 0 | O17: 0 | P17: 0 | Q17: 0 | R17: 9.1759 | S17: 7.7252 | T17: 9.0283 | U17: 10.823 | V17: 0 | W17: 0 | X17: 0 | Y17: 0 | Z17: 9.9888 | AA17: 8.4147 | AB17: 9.8315 | AC17: 11.78
A18: 0.666667 | B18: 5.7035 | C18: 4.8413 | D18: 5.6571 | E18: 6.6826 | F18: 0.45207 | G18: 0.33765 | H18: 0.43086 | I18: 0.59587 | J18: 10.041 | K18: 8.451 | L18: 9.8801 | M18: 11.854 | N18: 0 | O18: 0 | P18: 0 | Q18: 0 | R18: 9.2905 | S18: 7.8176 | T18: 9.1428 | U18: 10.97 | V18: 0 | W18: 0 | X18: 0 | Y18: 0 | Z18: 10.041 | AA18: 8.451 | AB18: 9.8801 | AC18: 11.854
A19: 0.75 | B19: 5.6869 | C19: 4.83 | D19: 5.6441 | E19: 6.6703 | F19: 0.45419 | G19: 0.3325 | H19: 0.43269 | I19: 0.59861 | J19: 10.089 | K19: 8.4884 | L19: 9.9302 | M19: 11.915 | N19: 0 | O19: 0 | P19: 0 | Q19: 0 | R19: 9.3964 | S19: 7.9039 | T19: 9.2465 | U19: 11.098 | V19: 0 | W19: 0 | X19: 0 | Y19: 0 | Z19: 10.089 | AA19: 8.4884 | AB19: 9.9302 | AC19: 11.915
A20: 0.833333 | B20: 5.6715 | C20: 4.8152 | D20: 5.634 | E20: 6.6536 | F20: 0.45665 | G20: 0.32875 | H20: 0.4325 | I20: 0.60497 | J20: 10.133 | K20: 8.5243 | L20: 9.9731 | M20: 11.968 | N20: 0 | O20: 0 | P20: 0 | Q20: 0 | R20: 9.4942 | S20: 7.9865 | T20: 9.3425 | U20: 11.216 | V20: 0 | W20: 0 | X20: 0 | Y20: 0 | Z20: 10.133 | AA20: 8.5243 | AB20: 9.9731 | AC20: 11.968
A21: 0.916667 | B21: 5.6574 | C21: 4.8016 | D21: 5.6192 | E21: 6.6356 | F21: 0.45952 | G21: 0.32497 | H21: 0.43408 | I21: 0.61438 | J21: 10.174 | K21: 8.5578 | L21: 10.009 | M21: 12.021 | N21: 0 | O21: 0 | P21: 0 | Q21: 0 | R21: 9.5846 | S21: 8.0606 | T21: 9.4252 | U21: 11.327 | V21: 0 | W21: 0 | X21: 0 | Y21: 0 | Z21: 10.174 | AA21: 8.5578 | AB21: 10.009 | AC21: 12.021
A22: 1 | B22: 5.6276 | C22: 4.7953 | D22: 5.5627 | E22: 6.5557 | F22: 0.46217 | G22: 0.32279 | H22: 0.43058 | I22: 0.62228 | J22: 10.176 | K22: 8.6015 | L22: 10.037 | M22: 11.815 | N22: 0 | O22: 0 | P22: 0 | Q22: 0 | R22: 9.6343 | S22: 8.1375 | T22: 9.5098 | U22: 11.189 | V22: 0 | W22: 0 | X22: 0 | Y22: 0 | Z22: 10.176 | AA22: 8.6015 | AB22: 10.037 | AC22: 11.815
A23: 1.08333 | B23: 5.6146 | C23: 4.7836 | D23: 5.5512 | E23: 6.5343 | F23: 0.45888 | G23: 0.32355 | H23: 0.42881 | I23: 0.61659 | J23: 10.209 | K23: 8.6343 | L23: 10.095 | M23: 11.879 | N23: 0 | O23: 0 | P23: 0 | Q23: 0 | R23: 9.7092 | S23: 8.2112 | T23: 9.6011 | U23: 11.298 | V23: 0 | W23: 0 | X23: 0 | Y23: 0 | Z23: 10.209 | AA23: 8.6343 | AB23: 10.095 | AC23: 11.879
A24: 1.16667 | B24: 5.603 | C24: 4.7737 | D24: 5.5363 | E24: 6.5159 | F24: 0.45626 | G24: 0.32578 | H24: 0.43105 | I24: 0.61421 | J24: 10.239 | K24: 8.6469 | L24: 10.134 | M24: 11.931 | N24: 0 | O24: 0 | P24: 0 | Q24: 0 | R24: 9.7789 | S24: 8.2586 | T24: 9.6758 | U24: 11.394 | V24: 0 | W24: 0 | X24: 0 | Y24: 0 | Z24: 10.239 | AA24: 8.6469 | AB24: 10.134 | AC24: 11.931
A25: 1.25 | B25: 5.5923 | C25: 4.7727 | D25: 5.5227 | E25: 6.4989 | F25: 0.45424 | G25: 0.3276 | H25: 0.43191 | I25: 0.60985 | J25: 10.268 | K25: 8.6589 | L25: 10.165 | M25: 11.978 | N25: 0 | O25: 0 | P25: 0 | Q25: 0 | R25: 9.8432 | S25: 8.301 | T25: 9.7444 | U25: 11.482 | V25: 0 | W25: 0 | X25: 0 | Y25: 0 | Z25: 10.268 | AA25: 8.6589 | AB25: 10.165 | AC25: 11.978
A26: 1.33333 | B26: 5.5823 | C26: 4.7663 | D26: 5.5127 | E26: 6.4861 | F26: 0.45276 | G26: 0.33017 | H26: 0.42987 | I26: 0.60791 | J26: 10.294 | K26: 8.6611 | L26: 10.19 | M26: 11.992 | N26: 0 | O26: 0 | P26: 0 | Q26: 0 | R26: 9.9025 | S26: 8.3291 | T26: 9.8043 | U26: 11.534 | V26: 0 | W26: 0 | X26: 0 | Y26: 0 | Z26: 10.294 | AA26: 8.6611 | AB26: 10.19 | AC26: 11.992
A27: 1.41667 | B27: 5.573 | C27: 4.758 | D27: 5.5027 | E27: 6.4802 | F27: 0.45176 | G27: 0.3336 | H27: 0.43118 | I27: 0.60663 | J27: 10.318 | K27: 8.6801 | L27: 10.199 | M27: 12.033 | N27: 0 | O27: 0 | P27: 0 | Q27: 0 | R27: 9.9572 | S27: 8.3746 | T27: 9.8429 | U27: 11.616 | V27: 0 | W27: 0 | X27: 0 | Y27: 0 | Z27: 10.318 | AA27: 8.6801 | AB27: 10.199 | AC27: 12.033
A28: 1.5 | B28: 5.5644 | C28: 4.7529 | D28: 5.4965 | E28: 6.4747 | F28: 0.45124 | G28: 0.33312 | H28: 0.42958 | I28: 0.6032 | J28: 10.34 | K28: 8.695 | L28: 10.214 | M28: 12.077 | N28: 0 | O28: 0 | P28: 0 | Q28: 0 | R28: 10.008 | S28: 8.413 | T28: 9.8838 | U28: 11.694 | V28: 0 | W28: 0 | X28: 0 | Y28: 0 | Z28: 10.34 | AA28: 8.695 | AB28: 10.214 | AC28: 12.077
A29: 1.58333 | B29: 5.5564 | C29: 4.7455 | D29: 5.4901 | E29: 6.4634 | F29: 0.45119 | G29: 0.33193 | H29: 0.43046 | I29: 0.60153 | J29: 10.36 | K29: 8.6862 | L29: 10.239 | M29: 12.133 | N29: 0 | O29: 0 | P29: 0 | Q29: 0 | R29: 10.054 | S29: 8.428 | T29: 9.9363 | U29: 11.78 | V29: 0 | W29: 0 | X29: 0 | Y29: 0 | Z29: 10.36 | AA29: 8.6862 | AB29: 10.239 | AC29: 12.133
A30: 1.66667 | B30: 5.549 | C30: 4.7357 | D30: 5.4832 | E30: 6.4513 | F30: 0.45159 | G30: 0.33251 | H30: 0.43011 | I30: 0.61138 | J30: 10.379 | K30: 8.6837 | L30: 10.259 | M30: 12.183 | N30: 0 | O30: 0 | P30: 0 | Q30: 0 | R30: 10.097 | S30: 8.4464 | T30: 9.9822 | U30: 11.852 | V30: 0 | W30: 0 | X30: 0 | Y30: 0 | Z30: 10.379 | AA30: 8.6837 | AB30: 10.259 | AC30: 12.183
A31: 1.75 | B31: 5.5421 | C31: 4.7267 | D31: 5.478 | E31: 6.4401 | F31: 0.45244 | G31: 0.32976 | H31: 0.428 | I31: 0.61081 | J31: 10.396 | K31: 8.6929 | L31: 10.282 | M31: 12.207 | N31: 0 | O31: 0 | P31: 0 | Q31: 0 | R31: 10.137 | S31: 8.4747 | T31: 10.022 | U31: 11.903 | V31: 0 | W31: 0 | X31: 0 | Y31: 0 | Z31: 10.396 | AA31: 8.6929 | AB31: 10.282 | AC31: 12.207
A32: 1.83333 | B32: 5.5356 | C32: 4.7157 | D32: 5.4726 | E32: 6.4297 | F32: 0.45381 | G32: 0.32702 | H32: 0.42579 | I32: 0.61754 | J32: 10.412 | K32: 8.7003 | L32: 10.303 | M32: 12.241 | N32: 0 | O32: 0 | P32: 0 | Q32: 0 | R32: 10.173 | S32: 8.4995 | T32: 10.067 | U32: 11.961 | V32: 0 | W32: 0 | X32: 0 | Y32: 0 | Z32: 10.412 | AA32: 8.7003 | AB32: 10.303 | AC32: 12.241
A33: 1.91667 | B33: 5.5296 | C33: 4.7038 | D33: 5.4666 | E33: 6.4216 | F33: 0.45571 | G33: 0.32386 | H33: 0.42351 | I33: 0.62273 | J33: 10.427 | K33: 8.7103 | L33: 10.32 | M33: 12.273 | N33: 0 | O33: 0 | P33: 0 | Q33: 0 | R33: 10.207 | S33: 8.5255 | T33: 10.102 | U33: 12.015 | V33: 0 | W33: 0 | X33: 0 | Y33: 0 | Z33: 10.427 | AA33: 8.7103 | AB33: 10.32 | AC33: 12.273
A34: 2 | B34: 5.5212 | C34: 4.6659 | D34: 5.4544 | E34: 6.4713 | F34: 0.45834 | G34: 0.32458 | H34: 0.42088 | I34: 0.63153 | J34: 10.428 | K34: 8.7972 | L34: 10.26 | M34: 12.21 | N34: 0 | O34: 0 | P34: 0 | Q34: 0 | R34: 10.225 | S34: 8.6288 | T34: 10.062 | U34: 11.975 | V34: 0 | W34: 0 | X34: 0 | Y34: 0 | Z34: 10.428 | AA34: 8.7972 | AB34: 10.26 | AC34: 12.21
A35: 2.08333 | B35: 5.5164 | C35: 4.6516 | D35: 5.4501 | E35: 6.4568 | F35: 0.45649 | G35: 0.32738 | H35: 0.42356 | I35: 0.62399 | J35: 10.442 | K35: 8.7739 | L35: 10.278 | M35: 12.193 | N35: 0 | O35: 0 | P35: 0 | Q35: 0 | R35: 10.255 | S35: 8.6187 | T35: 10.094 | U35: 11.976 | V35: 0 | W35: 0 | X35: 0 | Y35: 0 | Z35: 10.442 | AA35: 8.7739 | AB35: 10.278 | AC35: 12.193
A36: 2.16667 | B36: 5.5118 | C36: 4.6435 | D36: 5.447 | E36: 6.4497 | F36: 0.45529 | G36: 0.32848 | H36: 0.42456 | I36: 0.61443 | J36: 10.454 | K36: 8.7746 | L36: 10.295 | M36: 12.188 | N36: 0 | O36: 0 | P36: 0 | Q36: 0 | R36: 10.283 | S36: 8.6317 | T36: 10.126 | U36: 11.989 | V36: 0 | W36: 0 | X36: 0 | Y36: 0 | Z36: 10.454 | AA36: 8.7746 | AB36: 10.295 | AC36: 12.188
A37: 2.25 | B37: 5.5073 | C37: 4.6413 | D37: 5.4414 | E37: 6.441 | F37: 0.45466 | G37: 0.33306 | H37: 0.42756 | I37: 0.61334 | J37: 10.466 | K37: 8.7896 | L37: 10.307 | M37: 12.212 | N37: 0 | O37: 0 | P37: 0 | Q37: 0 | R37: 10.308 | S37: 8.6568 | T37: 10.152 | U37: 12.028 | V37: 0 | W37: 0 | X37: 0 | Y37: 0 | Z37: 10.466 | AA37: 8.7896 | AB37: 10.307 | AC37: 12.212
A38: 2.33333 | B38: 5.503 | C38: 4.6406 | D38: 5.4379 | E38: 6.4371 | F38: 0.45457 | G38: 0.33657 | H38: 0.42958 | I38: 0.60959 | J38: 10.477 | K38: 8.7887 | L38: 10.326 | M38: 12.252 | N38: 0 | O38: 0 | P38: 0 | Q38: 0 | R38: 10.331 | S38: 8.6652 | T38: 10.183 | U38: 12.082 | V38: 0 | W38: 0 | X38: 0 | Y38: 0 | Z38: 10.477 | AA38: 8.7887 | AB38: 10.326 | AC38: 12.252
A39: 2.41667 | B39: 5.4989 | C39: 4.6365 | D39: 5.434 | E39: 6.439 | F39: 0.45501 | G39: 0.3398 | H39: 0.43121 | I39: 0.61177 | J39: 10.487 | K39: 8.7777 | L39: 10.327 | M39: 12.29 | N39: 0 | O39: 0 | P39: 0 | Q39: 0 | R39: 10.353 | S39: 8.6647 | T39: 10.194 | U39: 12.134 | V39: 0 | W39: 0 | X39: 0 | Y39: 0 | Z39: 10.487 | AA39: 8.7777 | AB39: 10.327 | AC39: 12.29
A40: 2.5 | B40: 5.4949 | C40: 4.6328 | D40: 5.4295 | E40: 6.4316 | F40: 0.45597 | G40: 0.34119 | H40: 0.43201 | I40: 0.61396 | J40: 10.496 | K40: 8.7837 | L40: 10.338 | M40: 12.321 | N40: 0 | O40: 0 | P40: 0 | Q40: 0 | R40: 10.372 | S40: 8.6804 | T40: 10.216 | U40: 12.177 | V40: 0 | W40: 0 | X40: 0 | Y40: 0 | Z40: 10.496 | AA40: 8.7837 | AB40: 10.338 | AC40: 12.321
A41: 2.58333 | B41: 5.4911 | C41: 4.6327 | D41: 5.4242 | E41: 6.4247 | F41: 0.45746 | G41: 0.34262 | H41: 0.43185 | I41: 0.61993 | J41: 10.504 | K41: 8.7828 | L41: 10.342 | M41: 12.343 | N41: 0 | O41: 0 | P41: 0 | Q41: 0 | R41: 10.391 | S41: 8.6869 | T41: 10.231 | U41: 12.209 | V41: 0 | W41: 0 | X41: 0 | Y41: 0 | Z41: 10.504 | AA41: 8.7828 | AB41: 10.342 | AC41: 12.343
A42: 2.66667 | B42: 5.4874 | C42: 4.6325 | D42: 5.4211 | E42: 6.4181 | F42: 0.4595 | G42: 0.34197 | H42: 0.4282 | I42: 0.62422 | J42: 10.512 | K42: 8.7878 | L42: 10.351 | M42: 12.352 | N42: 0 | O42: 0 | P42: 0 | Q42: 0 | R42: 10.407 | S42: 8.6995 | T42: 10.248 | U42: 12.229 | V42: 0 | W42: 0 | X42: 0 | Y42: 0 | Z42: 10.512 | AA42: 8.7878 | AB42: 10.351 | AC42: 12.352
A43: 2.75 | B43: 5.4839 | C43: 4.6322 | D43: 5.4177 | E43: 6.4137 | F43: 0.46213 | G43: 0.34254 | H43: 0.43011 | I43: 0.62669 | J43: 10.519 | K43: 8.7959 | L43: 10.371 | M43: 12.355 | N43: 0 | O43: 0 | P43: 0 | Q43: 0 | R43: 10.423 | S43: 8.7147 | T43: 10.278 | U43: 12.242 | V43: 0 | W43: 0 | X43: 0 | Y43: 0 | Z43: 10.519 | AA43: 8.7959 | AB43: 10.371 | AC43: 12.355
A44: 2.83333 | B44: 5.4805 | C44: 4.6318 | D44: 5.4092 | E44: 6.4129 | F44: 0.46541 | G44: 0.34182 | H44: 0.43026 | I44: 0.62878 | J44: 10.526 | K44: 8.7971 | L44: 10.394 | M44: 12.379 | N44: 0 | O44: 0 | P44: 0 | Q44: 0 | R44: 10.437 | S44: 8.7229 | T44: 10.307 | U44: 12.275 | V44: 0 | W44: 0 | X44: 0 | Y44: 0 | Z44: 10.526 | AA44: 8.7971 | AB44: 10.394 | AC44: 12.379
A45: 2.91667 | B45: 5.4772 | C45: 4.6313 | D45: 5.405 | E45: 6.4131 | F45: 0.46944 | G45: 0.33865 | H45: 0.42874 | I45: 0.63777 | J45: 10.532 | K45: 8.798 | L45: 10.403 | M45: 12.403 | N45: 0 | O45: 0 | P45: 0 | Q45: 0 | R45: 10.45 | S45: 8.7297 | T45: 10.323 | U45: 12.308 | V45: 0 | W45: 0 | X45: 0 | Y45: 0 | Z45: 10.532 | AA45: 8.798 | AB45: 10.403 | AC45: 12.403
A46: 3 | B46: 5.4793 | C46: 4.6324 | D46: 5.4376 | E46: 6.3644 | F46: 0.47624 | G46: 0.33686 | H46: 0.43128 | I46: 0.63627 | J46: 10.54 | K46: 8.9591 | L46: 10.467 | M46: 12.216 | N46: 0 | O46: 0 | P46: 0 | Q46: 0 | R46: 10.465 | S46: 8.8954 | T46: 10.393 | U46: 12.129 | V46: 0 | W46: 0 | X46: 0 | Y46: 0 | Z46: 10.54 | AA46: 8.9591 | AB46: 10.467 | AC46: 12.216
A47: 3.08333 | B47: 5.4764 | C47: 4.6371 | D47: 5.4339 | E47: 6.3515 | F47: 0.47132 | G47: 0.34061 | H47: 0.42977 | I47: 0.63513 | J47: 10.546 | K47: 8.9621 | L47: 10.483 | M47: 12.227 | N47: 0 | O47: 0 | P47: 0 | Q47: 0 | R47: 10.477 | S47: 8.9033 | T47: 10.415 | U47: 12.148 | V47: 0 | W47: 0 | X47: 0 | Y47: 0 | Z47: 10.546 | AA47: 8.9621 | AB47: 10.483 | AC47: 12.227
A48: 3.16667 | B48: 5.4735 | C48: 4.6384 | D48: 5.4331 | E48: 6.3411 | F48: 0.46729 | G48: 0.34445 | H48: 0.42915 | I48: 0.6322 | J48: 10.551 | K48: 8.95 | L48: 10.484 | M48: 12.238 | N48: 0 | O48: 0 | P48: 0 | Q48: 0 | R48: 10.488 | S48: 8.8955 | T48: 10.42 | U48: 12.165 | V48: 0 | W48: 0 | X48: 0 | Y48: 0 | Z48: 10.551 | AA48: 8.95 | AB48: 10.484 | AC48: 12.238
A49: 3.25 | B49: 5.4707 | C49: 4.6394 | D49: 5.4362 | E49: 6.3298 | F49: 0.46403 | G49: 0.34483 | H49: 0.42863 | I49: 0.62098 | J49: 10.556 | K49: 8.935 | L49: 10.492 | M49: 12.241 | N49: 0 | O49: 0 | P49: 0 | Q49: 0 | R49: 10.497 | S49: 8.8849 | T49: 10.434 | U49: 12.174 | V49: 0 | W49: 0 | X49: 0 | Y49: 0 | Z49: 10.556 | AA49: 8.935 | AB49: 10.492 | AC49: 12.241
A50: 3.33333 | B50: 5.4679 | C50: 4.6364 | D50: 5.4346 | E50: 6.3267 | F50: 0.46145 | G50: 0.34773 | H50: 0.42912 | I50: 0.61521 | J50: 10.56 | K50: 8.9279 | L50: 10.497 | M50: 12.241 | N50: 0 | O50: 0 | P50: 0 | Q50: 0 | R50: 10.506 | S50: 8.8829 | T50: 10.442 | U50: 12.178 | V50: 0 | W50: 0 | X50: 0 | Y50: 0 | Z50: 10.56 | AA50: 8.9279 | AB50: 10.497 | AC50: 12.241
A51: 3.41667 | B51: 5.4652 | C51: 4.63 | D51: 5.4284 | E51: 6.3236 | F51: 0.45947 | G51: 0.34346 | H51: 0.42938 | I51: 0.62229 | J51: 10.564 | K51: 8.9249 | L51: 10.501 | M51: 12.266 | N51: 0 | O51: 0 | P51: 0 | Q51: 0 | R51: 10.515 | S51: 8.8828 | T51: 10.451 | U51: 12.209 | V51: 0 | W51: 0 | X51: 0 | Y51: 0 | Z51: 10.564 | AA51: 8.9249 | AB51: 10.501 | AC51: 12.266
A52: 3.5 | B52: 5.4625 | C52: 4.6243 | D52: 5.4242 | E52: 6.3205 | F52: 0.45805 | G52: 0.34432 | H52: 0.42889 | I52: 0.62055 | J52: 10.568 | K52: 8.9167 | L52: 10.512 | M52: 12.262 | N52: 0 | O52: 0 | P52: 0 | Q52: 0 | R52: 10.522 | S52: 8.8784 | T52: 10.467 | U52: 12.21 | V52: 0 | W52: 0 | X52: 0 | Y52: 0 | Z52: 10.568 | AA52: 8.9167 | AB52: 10.512 | AC52: 12.262
A53: 3.58333 | B53: 5.4599 | C53: 4.6266 | D53: 5.4204 | E53: 6.318 | F53: 0.45716 | G53: 0.34201 | H53: 0.42628 | I53: 0.62064 | J53: 10.572 | K53: 8.9222 | L53: 10.516 | M53: 12.273 | N53: 0 | O53: 0 | P53: 0 | Q53: 0 | R53: 10.53 | S53: 8.8867 | T53: 10.474 | U53: 12.224 | V53: 0 | W53: 0 | X53: 0 | Y53: 0 | Z53: 10.572 | AA53: 8.9222 | AB53: 10.516 | AC53: 12.273
A54: 3.66667 | B54: 5.4573 | C54: 4.6298 | D54: 5.414 | E54: 6.315 | F54: 0.45681 | G54: 0.33974 | H54: 0.42403 | I54: 0.6157 | J54: 10.575 | K54: 8.9182 | L54: 10.513 | M54: 12.287 | N54: 0 | O54: 0 | P54: 0 | Q54: 0 | R54: 10.536 | S54: 8.8854 | T54: 10.475 | U54: 12.243 | V54: 0 | W54: 0 | X54: 0 | Y54: 0 | Z54: 10.575 | AA54: 8.9182 | AB54: 10.513 | AC54: 12.287
A55: 3.75 | B55: 5.4548 | C55: 4.6292 | D55: 5.4101 | E55: 6.312 | F55: 0.45698 | G55: 0.33877 | H55: 0.4214 | I55: 0.62302 | J55: 10.578 | K55: 8.9147 | L55: 10.52 | M55: 12.293 | N55: 0 | O55: 0 | P55: 0 | Q55: 0 | R55: 10.542 | S55: 8.8845 | T55: 10.485 | U55: 12.252 | V55: 0 | W55: 0 | X55: 0 | Y55: 0 | Z55: 10.578 | AA55: 8.9147 | AB55: 10.52 | AC55: 12.293
A56: 3.83333 | B56: 5.4523 | C56: 4.6254 | D56: 5.4064 | E56: 6.3062 | F56: 0.4577 | G56: 0.33872 | H56: 0.42227 | I56: 0.62049 | J56: 10.58 | K56: 8.9083 | L56: 10.527 | M56: 12.299 | N56: 0 | O56: 0 | P56: 0 | Q56: 0 | R56: 10.548 | S56: 8.8805 | T56: 10.494 | U56: 12.261 | V56: 0 | W56: 0 | X56: 0 | Y56: 0 | Z56: 10.58 | AA56: 8.9083 | AB56: 10.527 | AC56: 12.299
A57: 3.91667 | B57: 5.4498 | C57: 4.6237 | D57: 5.4046 | E57: 6.3009 | F57: 0.45899 | G57: 0.33412 | H57: 0.42231 | I57: 0.60661 | J57: 10.583 | K57: 8.9024 | L57: 10.533 | M57: 12.301 | N57: 0 | O57: 0 | P57: 0 | Q57: 0 | R57: 10.553 | S57: 8.8768 | T57: 10.503 | U57: 12.267 | V57: 0 | W57: 0 | X57: 0 | Y57: 0 | Z57: 10.583 | AA57: 8.9024 | AB57: 10.533 | AC57: 12.301
A58: 4 | B58: 5.4501 | C58: 4.6174 | D58: 5.3695 | E58: 6.307 | F58: 0.45995 | G58: 0.32819 | H58: 0.4227 | I58: 0.60838 | J58: 10.582 | K58: 8.9736 | L58: 10.486 | M58: 12.267 | N58: 0 | O58: 0 | P58: 0 | Q58: 0 | R58: 10.554 | S58: 8.9504 | T58: 10.458 | U58: 12.235 | V58: 0 | W58: 0 | X58: 0 | Y58: 0 | Z58: 10.582 | AA58: 8.9736 | AB58: 10.486 | AC58: 12.267
A59: 4.08333 | B59: 5.4458 | C59: 4.61 | D59: 5.3711 | E59: 6.2932 | F59: 0.45682 | G59: 0.33096 | H59: 0.42195 | I59: 0.60695 | J59: 10.585 | K59: 8.9857 | L59: 10.474 | M59: 12.271 | N59: 0 | O59: 0 | P59: 0 | Q59: 0 | R59: 10.559 | S59: 8.9639 | T59: 10.448 | U59: 12.242 | V59: 0 | W59: 0 | X59: 0 | Y59: 0 | Z59: 10.585 | AA59: 8.9857 | AB59: 10.474 | AC59: 12.271
A60: 4.16667 | B60: 5.4422 | C60: 4.618 | D60: 5.369 | E60: 6.2843 | F60: 0.45429 | G60: 0.33546 | H60: 0.42181 | I60: 0.60023 | J60: 10.587 | K60: 9.0084 | L60: 10.487 | M60: 12.276 | N60: 0 | O60: 0 | P60: 0 | Q60: 0 | R60: 10.564 | S60: 8.9885 | T60: 10.464 | U60: 12.249 | V60: 0 | W60: 0 | X60: 0 | Y60: 0 | Z60: 10.587 | AA60: 9.0084 | AB60: 10.487 | AC60: 12.276
A61: 4.25 | B61: 5.4387 | C61: 4.6191 | D61: 5.3665 | E61: 6.2758 | F61: 0.45231 | G61: 0.33866 | H61: 0.42272 | I61: 0.59548 | J61: 10.589 | K61: 9.0013 | L61: 10.493 | M61: 12.284 | N61: 0 | O61: 0 | P61: 0 | Q61: 0 | R61: 10.568 | S61: 8.9829 | T61: 10.471 | U61: 12.26 | V61: 0 | W61: 0 | X61: 0 | Y61: 0 | Z61: 10.589 | AA61: 9.0013 | AB61: 10.493 | AC61: 12.284
A62: 4.33333 | B62: 5.4353 | C62: 4.6217 | D62: 5.3641 | E62: 6.2678 | F62: 0.45081 | G62: 0.33837 | H62: 0.42327 | I62: 0.59964 | J62: 10.591 | K62: 8.9914 | L62: 10.502 | M62: 12.285 | N62: 0 | O62: 0 | P62: 0 | Q62: 0 | R62: 10.572 | S62: 8.9745 | T62: 10.482 | U62: 12.263 | V62: 0 | W62: 0 | X62: 0 | Y62: 0 | Z62: 10.591 | AA62: 8.9914 | AB62: 10.502 | AC62: 12.285
A63: 4.41667 | B63: 5.432 | C63: 4.619 | D63: 5.3658 | E63: 6.2602 | F63: 0.44973 | G63: 0.34006 | H63: 0.42425 | I63: 0.60093 | J63: 10.593 | K63: 8.9766 | L63: 10.492 | M63: 12.285 | N63: 0 | O63: 0 | P63: 0 | Q63: 0 | R63: 10.575 | S63: 8.9613 | T63: 10.473 | U63: 12.264 | V63: 0 | W63: 0 | X63: 0 | Y63: 0 | Z63: 10.593 | AA63: 8.9766 | AB63: 10.492 | AC63: 12.285
A64: 4.5 | B64: 5.4288 | C64: 4.6123 | D64: 5.3715 | E64: 6.253 | F64: 0.44909 | G64: 0.33775 | H64: 0.42327 | I64: 0.60097 | J64: 10.595 | K64: 8.9803 | L64: 10.502 | M64: 12.285 | N64: 0 | O64: 0 | P64: 0 | Q64: 0 | R64: 10.578 | S64: 8.9662 | T64: 10.486 | U64: 12.266 | V64: 0 | W64: 0 | X64: 0 | Y64: 0 | Z64: 10.595 | AA64: 8.9803 | AB64: 10.502 | AC64: 12.285
A65: 4.58333 | B65: 5.4256 | C65: 4.6064 | D65: 5.3708 | E65: 6.2429 | F65: 0.44888 | G65: 0.33711 | H65: 0.42213 | I65: 0.60352 | J65: 10.597 | K65: 8.9892 | L65: 10.498 | M65: 12.282 | N65: 0 | O65: 0 | P65: 0 | Q65: 0 | R65: 10.581 | S65: 8.9762 | T65: 10.483 | U65: 12.265 | V65: 0 | W65: 0 | X65: 0 | Y65: 0 | Z65: 10.597 | AA65: 8.9892 | AB65: 10.498 | AC65: 12.282
A66: 4.66667 | B66: 5.4225 | C66: 4.6096 | D66: 5.3682 | E66: 6.2322 | F66: 0.44906 | G66: 0.336 | H66: 0.42214 | I66: 0.59942 | J66: 10.598 | K66: 8.9961 | L66: 10.51 | M66: 12.282 | N66: 0 | O66: 0 | P66: 0 | Q66: 0 | R66: 10.584 | S66: 8.984 | T66: 10.496 | U66: 12.266 | V66: 0 | W66: 0 | X66: 0 | Y66: 0 | Z66: 10.598 | AA66: 8.9961 | AB66: 10.51 | AC66: 12.282
A67: 4.75 | B67: 5.4194 | C67: 4.6071 | D67: 5.3656 | E67: 6.224 | F67: 0.44967 | G67: 0.33518 | H67: 0.42357 | I67: 0.59414 | J67: 10.599 | K67: 9.0034 | L67: 10.514 | M67: 12.28 | N67: 0 | O67: 0 | P67: 0 | Q67: 0 | R67: 10.586 | S67: 8.9922 | T67: 10.501 | U67: 12.265 | V67: 0 | W67: 0 | X67: 0 | Y67: 0 | Z67: 10.599 | AA67: 9.0034 | AB67: 10.514 | AC67: 12.28
A68: 4.83333 | B68: 5.4164 | C68: 4.6034 | D68: 5.3615 | E68: 6.2188 | F68: 0.45072 | G68: 0.33387 | H68: 0.42203 | I68: 0.59716 | J68: 10.601 | K68: 9.0019 | L68: 10.514 | M68: 12.294 | N68: 0 | O68: 0 | P68: 0 | Q68: 0 | R68: 10.589 | S68: 8.9916 | T68: 10.502 | U68: 12.28 | V68: 0 | W68: 0 | X68: 0 | Y68: 0 | Z68: 10.601 | AA68: 9.0019 | AB68: 10.514 | AC68: 12.294
A69: 4.91667 | B69: 5.4134 | C69: 4.5997 | D69: 5.3572 | E69: 6.2138 | F69: 0.45223 | G69: 0.33234 | H69: 0.41818 | I69: 0.60057 | J69: 10.602 | K69: 8.9997 | L69: 10.515 | M69: 12.304 | N69: 0 | O69: 0 | P69: 0 | Q69: 0 | R69: 10.591 | S69: 8.9903 | T69: 10.504 | U69: 12.291 | V69: 0 | W69: 0 | X69: 0 | Y69: 0 | Z69: 10.602 | AA69: 8.9997 | AB69: 10.515 | AC69: 12.304
A70: 5 | B70: 5.4198 | C70: 4.5218 | D70: 5.3392 | E70: 6.3925 | F70: 0.45643 | G70: 0.33171 | H70: 0.42162 | I70: 0.60981 | J70: 10.614 | K70: 8.8633 | L70: 10.461 | M70: 12.525 | N70: 0 | O70: 0 | P70: 0 | Q70: 0 | R70: 10.604 | S70: 8.8549 | T70: 10.451 | U70: 12.513 | V70: 0 | W70: 0 | X70: 0 | Y70: 0 | Z70: 10.614 | AA70: 8.8633 | AB70: 10.461 | AC70: 12.525
A71: 5.08333 | B71: 5.4175 | C71: 4.5201 | D71: 5.3384 | E71: 6.3837 | F71: 0.45417 | G71: 0.3314 | H71: 0.42244 | I71: 0.60669 | J71: 10.615 | K71: 8.8466 | L71: 10.456 | M71: 12.56 | N71: 0 | O71: 0 | P71: 0 | Q71: 0 | R71: 10.606 | S71: 8.8388 | T71: 10.447 | U71: 12.549 | V71: 0 | W71: 0 | X71: 0 | Y71: 0 | Z71: 10.615 | AA71: 8.8466 | AB71: 10.456 | AC71: 12.56
A72: 5.16667 | B72: 5.4151 | C72: 4.5145 | D72: 5.3389 | E72: 6.3776 | F72: 0.45244 | G72: 0.33648 | H72: 0.4234 | I72: 0.59845 | J72: 10.616 | K72: 8.8338 | L72: 10.462 | M72: 12.559 | N72: 0 | O72: 0 | P72: 0 | Q72: 0 | R72: 10.607 | S72: 8.8265 | T72: 10.453 | U72: 12.549 | V72: 0 | W72: 0 | X72: 0 | Y72: 0 | Z72: 10.616 | AA72: 8.8338 | AB72: 10.462 | AC72: 12.559
A73: 5.25 | B73: 5.4126 | C73: 4.5169 | D73: 5.3313 | E73: 6.3619 | F73: 0.4512 | G73: 0.33644 | H73: 0.42532 | I73: 0.5906 | J73: 10.616 | K73: 8.8154 | L73: 10.451 | M73: 12.524 | N73: 0 | O73: 0 | P73: 0 | Q73: 0 | R73: 10.608 | S73: 8.8088 | T73: 10.444 | U73: 12.515 | V73: 0 | W73: 0 | X73: 0 | Y73: 0 | Z73: 10.616 | AA73: 8.8154 | AB73: 10.451 | AC73: 12.524
A74: 5.33333 | B74: 5.4102 | C74: 4.5224 | D74: 5.3282 | E74: 6.3477 | F74: 0.45043 | G74: 0.33594 | H74: 0.42696 | I74: 0.5818 | J74: 10.617 | K74: 8.8156 | L74: 10.444 | M74: 12.519 | N74: 0 | O74: 0 | P74: 0 | Q74: 0 | R74: 10.61 | S74: 8.8096 | T74: 10.437 | U74: 12.51 | V74: 0 | W74: 0 | X74: 0 | Y74: 0 | Z74: 10.617 | AA74: 8.8156 | AB74: 10.444 | AC74: 12.519
A75: 5.41667 | B75: 5.4077 | C75: 4.5273 | D75: 5.3242 | E75: 6.3364 | F75: 0.4501 | G75: 0.3378 | H75: 0.42675 | I75: 0.58225 | J75: 10.618 | K75: 8.8057 | L75: 10.459 | M75: 12.532 | N75: 0 | O75: 0 | P75: 0 | Q75: 0 | R75: 10.611 | S75: 8.8001 | T75: 10.453 | U75: 12.525 | V75: 0 | W75: 0 | X75: 0 | Y75: 0 | Z75: 10.618 | AA75: 8.8057 | AB75: 10.459 | AC75: 12.532
A76: 5.5 | B76: 5.4053 | C76: 4.5304 | D76: 5.3203 | E76: 6.329 | F76: 0.45021 | G76: 0.33752 | H76: 0.42778 | I76: 0.58771 | J76: 10.618 | K76: 8.8134 | L76: 10.462 | M76: 12.524 | N76: 0 | O76: 0 | P76: 0 | Q76: 0 | R76: 10.612 | S76: 8.8083 | T76: 10.456 | U76: 12.516 | V76: 0 | W76: 0 | X76: 0 | Y76: 0 | Z76: 10.618 | AA76: 8.8134 | AB76: 10.462 | AC76: 12.524
A77: 5.58333 | B77: 5.4028 | C77: 4.5372 | D77: 5.3211 | E77: 6.3275 | F77: 0.45078 | G77: 0.33626 | H77: 0.43164 | I77: 0.59289 | J77: 10.619 | K77: 8.8086 | L77: 10.466 | M77: 12.533 | N77: 0 | O77: 0 | P77: 0 | Q77: 0 | R77: 10.613 | S77: 8.8039 | T77: 10.461 | U77: 12.526 | V77: 0 | W77: 0 | X77: 0 | Y77: 0 | Z77: 10.619 | AA77: 8.8086 | AB77: 10.466 | AC77: 12.533
A78: 5.66667 | B78: 5.4003 | C78: 4.5377 | D78: 5.322 | E78: 6.3165 | F78: 0.45182 | G78: 0.335 | H78: 0.43176 | I78: 0.59849 | J78: 10.619 | K78: 8.8105 | L78: 10.462 | M78: 12.543 | N78: 0 | O78: 0 | P78: 0 | Q78: 0 | R78: 10.614 | S78: 8.8062 | T78: 10.457 | U78: 12.537 | V78: 0 | W78: 0 | X78: 0 | Y78: 0 | Z78: 10.619 | AA78: 8.8105 | AB78: 10.462 | AC78: 12.543
A79: 5.75 | B79: 5.3979 | C79: 4.5348 | D79: 5.3226 | E79: 6.3066 | F79: 0.45334 | G79: 0.33393 | H79: 0.42946 | I79: 0.5993 | J79: 10.62 | K79: 8.8143 | L79: 10.464 | M79: 12.547 | N79: 0 | O79: 0 | P79: 0 | Q79: 0 | R79: 10.615 | S79: 8.8103 | T79: 10.459 | U79: 12.542 | V79: 0 | W79: 0 | X79: 0 | Y79: 0 | Z79: 10.62 | AA79: 8.8143 | AB79: 10.464 | AC79: 12.547
A80: 5.83333 | B80: 5.3954 | C80: 4.5316 | D80: 5.3149 | E80: 6.2974 | F80: 0.45537 | G80: 0.33134 | H80: 0.42789 | I80: 0.61316 | J80: 10.62 | K80: 8.8193 | L80: 10.468 | M80: 12.56 | N80: 0 | O80: 0 | P80: 0 | Q80: 0 | R80: 10.616 | S80: 8.8157 | T80: 10.464 | U80: 12.555 | V80: 0 | W80: 0 | X80: 0 | Y80: 0 | Z80: 10.62 | AA80: 8.8193 | AB80: 10.468 | AC80: 12.56
A81: 5.91667 | B81: 5.3929 | C81: 4.5284 | D81: 5.3133 | E81: 6.2886 | F81: 0.45799 | G81: 0.32985 | H81: 0.43037 | I81: 0.6086 | J81: 10.621 | K81: 8.8301 | L81: 10.472 | M81: 12.563 | N81: 0 | O81: 0 | P81: 0 | Q81: 0 | R81: 10.616 | S81: 8.8267 | T81: 10.468 | U81: 12.558 | V81: 0 | W81: 0 | X81: 0 | Y81: 0 | Z81: 10.621 | AA81: 8.8301 | AB81: 10.472 | AC81: 12.563
A82: 6 | B82: 5.3833 | C82: 4.6147 | D82: 5.3225 | E82: 6.278 | F82: 0.46118 | G82: 0.32116 | H82: 0.42951 | I82: 0.62059 | J82: 10.598 | K82: 9.0455 | L82: 10.461 | M82: 12.432 | N82: 0 | O82: 0 | P82: 0 | Q82: 0 | R82: 10.595 | S82: 9.0422 | T82: 10.457 | U82: 12.428 | V82: 0 | W82: 0 | X82: 0 | Y82: 0 | Z82: 10.598 | AA82: 9.0455 | AB82: 10.461 | AC82: 12.432
A83: 6.08333 | B83: 5.3814 | C83: 4.6177 | D83: 5.3118 | E83: 6.2713 | F83: 0.45827 | G83: 0.32584 | H83: 0.42888 | I83: 0.61235 | J83: 10.598 | K83: 9.0394 | L83: 10.449 | M83: 12.432 | N83: 0 | O83: 0 | P83: 0 | Q83: 0 | R83: 10.595 | S83: 9.0365 | T83: 10.446 | U83: 12.428 | V83: 0 | W83: 0 | X83: 0 | Y83: 0 | Z83: 10.598 | AA83: 9.0394 | AB83: 10.449 | AC83: 12.432
A84: 6.16667 | B84: 5.3792 | C84: 4.6123 | D84: 5.3172 | E84: 6.2681 | F84: 0.45601 | G84: 0.33037 | H84: 0.43052 | I84: 0.60662 | J84: 10.599 | K84: 9.016 | L84: 10.45 | M84: 12.442 | N84: 0 | O84: 0 | P84: 0 | Q84: 0 | R84: 10.595 | S84: 9.0133 | T84: 10.447 | U84: 12.438 | V84: 0 | W84: 0 | X84: 0 | Y84: 0 | Z84: 10.599 | AA84: 9.016 | AB84: 10.45 | AC84: 12.442
A85: 6.25 | B85: 5.3768 | C85: 4.6071 | D85: 5.3214 | E85: 6.2592 | F85: 0.45431 | G85: 0.33567 | H85: 0.42974 | I85: 0.60101 | J85: 10.599 | K85: 9.0083 | L85: 10.452 | M85: 12.447 | N85: 0 | O85: 0 | P85: 0 | Q85: 0 | R85: 10.596 | S85: 9.0058 | T85: 10.449 | U85: 12.444 | V85: 0 | W85: 0 | X85: 0 | Y85: 0 | Z85: 10.599 | AA85: 9.0083 | AB85: 10.452 | AC85: 12.447
A86: 6.33333 | B86: 5.3743 | C86: 4.602 | D86: 5.3241 | E86: 6.2552 | F86: 0.45313 | G86: 0.33534 | H86: 0.4292 | I86: 0.60121 | J86: 10.599 | K86: 9.0028 | L86: 10.454 | M86: 12.438 | N86: 0 | O86: 0 | P86: 0 | Q86: 0 | R86: 10.596 | S86: 9.0006 | T86: 10.452 | U86: 12.435 | V86: 0 | W86: 0 | X86: 0 | Y86: 0 | Z86: 10.599 | AA86: 9.0028 | AB86: 10.454 | AC86: 12.438
A87: 6.41667 | B87: 5.3718 | C87: 4.5957 | D87: 5.3206 | E87: 6.2496 | F87: 0.45242 | G87: 0.33736 | H87: 0.42862 | I87: 0.60334 | J87: 10.599 | K87: 8.9964 | L87: 10.453 | M87: 12.426 | N87: 0 | O87: 0 | P87: 0 | Q87: 0 | R87: 10.597 | S87: 8.9943 | T87: 10.451 | U87: 12.423 | V87: 0 | W87: 0 | X87: 0 | Y87: 0 | Z87: 10.599 | AA87: 8.9964 | AB87: 10.453 | AC87: 12.426
A88: 6.5 | B88: 5.3691 | C88: 4.5896 | D88: 5.3158 | E88: 6.2401 | F88: 0.45215 | G88: 0.33713 | H88: 0.42865 | I88: 0.59902 | J88: 10.599 | K88: 8.9991 | L88: 10.449 | M88: 12.434 | N88: 0 | O88: 0 | P88: 0 | Q88: 0 | R88: 10.597 | S88: 8.9972 | T88: 10.446 | U88: 12.431 | V88: 0 | W88: 0 | X88: 0 | Y88: 0 | Z88: 10.599 | AA88: 8.9991 | AB88: 10.449 | AC88: 12.434
A89: 6.58333 | B89: 5.3663 | C89: 4.5877 | D89: 5.3179 | E89: 6.231 | F89: 0.45234 | G89: 0.33752 | H89: 0.42723 | I89: 0.59384 | J89: 10.6 | K89: 8.9971 | L89: 10.44 | M89: 12.439 | N89: 0 | O89: 0 | P89: 0 | Q89: 0 | R89: 10.598 | S89: 8.9954 | T89: 10.438 | U89: 12.437 | V89: 0 | W89: 0 | X89: 0 | Y89: 0 | Z89: 10.6 | AA89: 8.9971 | AB89: 10.44 | AC89: 12.439
A90: 6.66667 | B90: 5.3634 | C90: 4.5857 | D90: 5.3137 | E90: 6.2255 | F90: 0.453 | G90: 0.33786 | H90: 0.42541 | I90: 0.59535 | J90: 10.6 | K90: 8.9921 | L90: 10.441 | M90: 12.435 | N90: 0 | O90: 0 | P90: 0 | Q90: 0 | R90: 10.598 | S90: 8.9904 | T90: 10.439 | U90: 12.433 | V90: 0 | W90: 0 | X90: 0 | Y90: 0 | Z90: 10.6 | AA90: 8.9921 | AB90: 10.441 | AC90: 12.435
A91: 6.75 | B91: 5.3605 | C91: 4.5811 | D91: 5.3109 | E91: 6.2225 | F91: 0.45412 | G91: 0.33462 | H91: 0.42822 | I91: 0.59277 | J91: 10.6 | K91: 8.9998 | L91: 10.445 | M91: 12.445 | N91: 0 | O91: 0 | P91: 0 | Q91: 0 | R91: 10.598 | S91: 8.9983 | T91: 10.443 | U91: 12.443 | V91: 0 | W91: 0 | X91: 0 | Y91: 0 | Z91: 10.6 | AA91: 8.9998 | AB91: 10.445 | AC91: 12.445
A92: 6.83333 | B92: 5.3575 | C92: 4.5777 | D92: 5.3123 | E92: 6.2195 | F92: 0.45572 | G92: 0.33266 | H92: 0.4299 | I92: 0.59644 | J92: 10.6 | K92: 8.9968 | L92: 10.451 | M92: 12.468 | N92: 0 | O92: 0 | P92: 0 | Q92: 0 | R92: 10.599 | S92: 8.9954 | T92: 10.45 | U92: 12.466 | V92: 0 | W92: 0 | X92: 0 | Y92: 0 | Z92: 10.6 | AA92: 8.9968 | AB92: 10.451 | AC92: 12.468
A93: 6.91667 | B93: 5.3564 | C93: 4.5733 | D93: 5.3149 | E93: 6.2182 | F93: 0.45786 | G93: 0.32839 | H93: 0.43086 | I93: 0.60109 | J93: 10.602 | K93: 8.9945 | L93: 10.452 | M93: 12.483 | N93: 0 | O93: 0 | P93: 0 | Q93: 0 | R93: 10.602 | S93: 8.9945 | T93: 10.452 | U93: 12.483 | V93: 0 | W93: 0 | X93: 0 | Y93: 0 | Z93: 10.602 | AA93: 8.9945 | AB93: 10.452 | AC93: 12.483
A94: 7 | B94: 5.3682 | C94: 4.524 | D94: 5.3271 | E94: 6.2753 | F94: 0.46096 | G94: 0.32646 | H94: 0.43091 | I94: 0.60711 | J94: 10.628 | K94: 8.9339 | L94: 10.5 | M94: 12.413 | N94: 0.44341 | O94: 0.3544 | P94: 0.42257 | Q94: 0.56325 | R94: 10.628 | S94: 8.9339 | T94: 10.5 | U94: 12.413 | V94: 0.44341 | W94: 0.3544 | X94: 0.42257 | Y94: 0.56325 | Z94: 10.628 | AA94: 8.9339 | AB94: 10.5 | AC94: 12.413
A95: 7.08333 | B95: 5.3634 | C95: 4.5219 | D95: 5.3173 | E95: 6.2544 | F95: 0.45843 | G95: 0.33146 | H95: 0.43047 | I95: 0.60556 | J95: 10.629 | K95: 8.9349 | L95: 10.524 | M95: 12.411 | N95: 0.44382 | O95: 0.35551 | P95: 0.42339 | Q95: 0.5669 | R95: 10.629 | S95: 8.9349 | T95: 10.524 | U95: 12.411 | V95: 0.44382 | W95: 0.35551 | X95: 0.42339 | Y95: 0.5669 | Z95: 10.629 | AA95: 8.9349 | AB95: 10.524 | AC95: 12.411
A96: 7.16667 | B96: 5.3584 | C96: 4.527 | D96: 5.314 | E96: 6.2459 | F96: 0.45648 | G96: 0.33422 | H96: 0.43142 | I96: 0.60001 | J96: 10.63 | K96: 8.935 | L96: 10.52 | M96: 12.416 | N96: 0.44439 | O96: 0.35546 | P96: 0.42362 | Q96: 0.56668 | R96: 10.63 | S96: 8.935 | T96: 10.52 | U96: 12.416 | V96: 0.44439 | W96: 0.35546 | X96: 0.42362 | Y96: 0.56668 | Z96: 10.63 | AA96: 8.935 | AB96: 10.52 | AC96: 12.416
A97: 7.25 | B97: 5.3518 | C97: 4.5275 | D97: 5.3123 | E97: 6.2372 | F97: 0.45503 | G97: 0.33763 | H97: 0.43162 | I97: 0.5979 | J97: 10.631 | K97: 8.9387 | L97: 10.525 | M97: 12.421 | N97: 0.44512 | O97: 0.35323 | P97: 0.42487 | Q97: 0.56988 | R97: 10.631 | S97: 8.9387 | T97: 10.525 | U97: 12.421 | V97: 0.44512 | W97: 0.35323 | X97: 0.42487 | Y97: 0.56988 | Z97: 10.631 | AA97: 8.9387 | AB97: 10.525 | AC97: 12.421
A98: 7.33333 | B98: 5.3449 | C98: 4.5242 | D98: 5.3125 | E98: 6.2256 | F98: 0.45406 | G98: 0.33886 | H98: 0.43058 | I98: 0.59816 | J98: 10.631 | K98: 8.9435 | L98: 10.538 | M98: 12.42 | N98: 0.44604 | O98: 0.35125 | P98: 0.42513 | Q98: 0.5707 | R98: 10.631 | S98: 8.9435 | T98: 10.538 | U98: 12.42 | V98: 0.44604 | W98: 0.35125 | X98: 0.42513 | Y98: 0.5707 | Z98: 10.631 | AA98: 8.9435 | AB98: 10.538 | AC98: 12.42
A99: 7.41667 | B99: 5.8917 | C99: 4.9671 | D99: 5.8535 | E99: 6.8927 | F99: 0.45354 | G99: 0.33966 | H99: 0.43457 | I99: 0.59432 | J99: 9.4849 | K99: 7.9777 | L99: 9.3952 | M99: 11.069 | N99: 0.44716 | O99: 0.34939 | P99: 0.42731 | Q99: 0.5723 | R99: 10.632 | S99: 8.9378 | T99: 10.547 | U99: 12.458 | V99: 0.44716 | W99: 0.34939 | X99: 0.42731 | Y99: 0.5723 | Z99: 10.632 | AA99: 8.9378 | AB99: 10.547 | AC99: 12.458
A100: 7.5 | B100: 6.2305 | C100: 5.2551 | D100: 6.19 | E100: 7.3118 | F100: 0.45345 | G100: 0.33806 | H100: 0.43253 | I100: 0.59089 | J100: 9.9324 | K100: 8.3625 | L100: 9.8488 | M100: 11.628 | N100: 0.4485 | O100: 0.34716 | P100: 0.42724 | Q100: 0.57316 | R100: 9.985 | S100: 8.4206 | T100: 9.8935 | U100: 11.676 | V100: 0.4485 | W100: 0.34716 | X100: 0.42724 | Y100: 0.57316 | Z100: 10.632 | AA100: 8.9325 | AB100: 10.548 | AC100: 12.475
A101: 7.58333 | B101: 6.5488 | C101: 5.5265 | D101: 6.499 | E101: 7.6951 | F101: 0.4538 | G101: 0.33974 | H101: 0.43461 | I101: 0.58866 | J101: 9.9883 | K101: 8.4028 | L101: 9.9108 | M101: 11.717 | N101: 0.45008 | O101: 0.34464 | P101: 0.43086 | Q101: 0.57841 | R101: 9.6018 | S101: 8.0963 | T101: 9.5035 | U101: 11.234 | V101: 0.45008 | W101: 0.34464 | X101: 0.43086 | Y101: 0.57841 | Z101: 10.633 | AA101: 8.9292 | AB101: 10.559 | AC101: 12.49
A102: 7.66667 | B102: 6.8471 | C102: 5.7752 | D102: 6.7995 | E102: 8.0712 | F102: 0.45462 | G102: 0.33868 | H102: 0.43662 | I102: 0.59347 | J102: 10.04 | K102: 8.4431 | L102: 9.9612 | M102: 11.792 | N102: 0.45193 | O102: 0.34187 | P102: 0.43252 | Q102: 0.58666 | R102: 9.2545 | S102: 7.8023 | T102: 9.1595 | U102: 10.834 | V102: 0.45193 | W102: 0.34187 | X102: 0.43252 | Y102: 0.58666 | Z102: 10.634 | AA102: 8.9206 | AB102: 10.546 | AC102: 12.505
A103: 7.75 | B103: 7.1261 | C103: 6.0068 | D103: 7.0599 | E103: 8.404 | F103: 0.45591 | G103: 0.33537 | H103: 0.43543 | I103: 0.59664 | J103: 10.087 | K103: 8.4682 | L103: 10.006 | M103: 11.861 | N103: 0.4541 | O103: 0.33829 | P103: 0.43287 | Q103: 0.59229 | R103: 8.9394 | S103: 7.5329 | T103: 8.8538 | U103: 10.471 | V103: 0.4541 | W103: 0.33829 | X103: 0.43287 | Y103: 0.59229 | Z103: 10.634 | AA103: 8.9169 | AB103: 10.534 | AC103: 12.518
A104: 7.83333 | B104: 7.3867 | C104: 6.2238 | D104: 7.3164 | E104: 8.7102 | F104: 0.45769 | G104: 0.33294 | H104: 0.43515 | I104: 0.59951 | J104: 10.131 | K104: 8.4962 | L104: 10.034 | M104: 11.925 | N104: 0.45661 | O104: 0.33531 | P104: 0.43438 | Q104: 0.59892 | R104: 8.6532 | S104: 7.2916 | T104: 8.5784 | U104: 10.141 | V104: 0.45661 | W104: 0.33531 | X104: 0.43438 | Y104: 0.59892 | Z104: 10.635 | AA104: 8.9117 | AB104: 10.532 | AC104: 12.53
A105: 7.91667 | B105: 7.6296 | C105: 6.4232 | D105: 7.5575 | E105: 9.007 | F105: 0.46001 | G105: 0.33272 | H105: 0.43453 | I105: 0.60586 | J105: 10.171 | K105: 8.528 | L105: 10.072 | M105: 11.984 | N105: 0.45953 | O105: 0.33196 | P105: 0.43369 | Q105: 0.60689 | R105: 8.3931 | S105: 7.0726 | T105: 8.3215 | U105: 9.8411 | V105: 0.45953 | W105: 0.33196 | X105: 0.43369 | Y105: 0.60689 | Z105: 10.635 | AA105: 8.9099 | AB105: 10.534 | AC105: 12.553
A106: 8 | B106: 7.8527 | C106: 6.6399 | D106: 7.776 | E106: 9.1716 | F106: 0.46352 | G106: 0.32425 | H106: 0.43465 | I106: 0.61035 | J106: 10.204 | K106: 8.6574 | L106: 10.127 | M106: 11.906 | N106: 0.46352 | O106: 0.32425 | P106: 0.43465 | Q106: 0.61035 | R106: 8.1562 | S106: 6.9288 | T106: 8.1075 | U106: 9.5075 | V106: 0.46352 | W106: 0.32425 | X106: 0.43465 | Y106: 0.61035 | Z106: 10.63 | AA106: 9.0024 | AB106: 10.562 | AC106: 12.421
A107: 8.08333 | B107: 7.418 | C107: 6.2828 | D107: 7.3434 | E107: 8.6495 | F107: 0.46105 | G107: 0.32719 | H107: 0.43731 | I107: 0.6126 | J107: 10.239 | K107: 8.6814 | L107: 10.148 | M107: 11.952 | N107: 0.46105 | O107: 0.3272 | P107: 0.43731 | Q107: 0.61261 | R107: 8.5339 | S107: 7.2404 | T107: 8.49 | U107: 9.9148 | V107: 0.46105 | W107: 0.3272 | X107: 0.43731 | Y107: 0.61261 | Z107: 10.631 | AA107: 9.0166 | AB107: 10.539 | AC107: 12.409
A108: 8.16667 | B108: 7.2238 | C108: 6.1227 | D108: 7.1577 | E108: 8.4177 | F108: 0.45912 | G108: 0.32883 | H108: 0.4405 | I108: 0.60371 | J108: 10.271 | K108: 8.7043 | L108: 10.182 | M108: 12.006 | N108: 0.45912 | O108: 0.32883 | P108: 0.4405 | Q108: 0.60372 | R108: 8.6957 | S108: 7.3632 | T108: 8.6423 | U108: 10.109 | V108: 0.45912 | W108: 0.32883 | X108: 0.4405 | Y108: 0.60372 | Z108: 10.632 | AA108: 9.0131 | AB108: 10.539 | AC108: 12.421
A109: 8.25 | B109: 7.0472 | C109: 5.9835 | D109: 6.9904 | E109: 8.217 | F109: 0.45769 | G109: 0.33139 | H109: 0.43707 | I109: 0.60292 | J109: 10.3 | K109: 8.7153 | L109: 10.215 | M109: 12.03 | N109: 0.45769 | O109: 0.33139 | P109: 0.43707 | Q109: 0.60292 | R109: 8.8457 | S109: 7.4895 | T109: 8.7805 | U109: 10.287 | V109: 0.45769 | W109: 0.33139 | X109: 0.43707 | Y109: 0.60292 | Z109: 10.633 | AA109: 9.0001 | AB109: 10.544 | AC109: 12.428
A110: 8.33333 | B110: 6.8864 | C110: 5.8441 | D110: 6.8328 | E110: 8.027 | F110: 0.45673 | G110: 0.33503 | H110: 0.43737 | I110: 0.59893 | J110: 10.327 | K110: 8.7261 | L110: 10.256 | M110: 12.06 | N110: 0.45673 | O110: 0.33503 | P110: 0.43737 | Q110: 0.59892 | R110: 8.9846 | S110: 7.6083 | T110: 8.9239 | U110: 10.449 | V110: 0.45673 | W110: 0.33503 | X110: 0.43737 | Y110: 0.59892 | Z110: 10.634 | AA110: 8.9847 | AB110: 10.549 | AC110: 12.422
A111: 8.41667 | B111: 6.9412 | C111: 5.8739 | D111: 6.887 | E111: 8.1084 | F111: 0.45622 | G111: 0.33801 | H111: 0.43448 | I111: 0.60057 | J111: 9.9899 | K111: 8.3214 | L111: 9.8852 | M111: 11.826 | N111: 0.45622 | O111: 0.33801 | P111: 0.43448 | Q111: 0.60057 | R111: 9.1131 | S111: 7.7091 | T111: 9.0562 | U111: 10.596 | V111: 0.45622 | W111: 0.33801 | X111: 0.43448 | Y111: 0.60057 | Z111: 10.634 | AA111: 8.9904 | AB111: 10.556 | AC111: 12.42
A112: 8.5 | B112: 7.3467 | C112: 6.2465 | D112: 7.2854 | E112: 8.5432 | F112: 0.45617 | G112: 0.33969 | H112: 0.43158 | I112: 0.59953 | J112: 9.3107 | K112: 7.7895 | L112: 9.2371 | M112: 10.851 | N112: 0.45617 | O112: 0.33969 | P112: 0.43158 | Q112: 0.59953 | R112: 9.0827 | S112: 7.6757 | T112: 8.9845 | U112: 10.649 | V112: 0.45617 | W112: 0.33969 | X112: 0.43158 | Y112: 0.59953 | Z112: 10.635 | AA112: 8.9903 | AB112: 10.571 | AC112: 12.43
A113: 8.58333 | B113: 7.5924 | C113: 6.4395 | D113: 7.5371 | E113: 8.8379 | F113: 0.45655 | G113: 0.341 | H113: 0.43036 | I113: 0.59504 | J113: 9.52 | K113: 7.8747 | L113: 9.4046 | M113: 11.186 | N113: 0.45655 | O113: 0.341 | P113: 0.43036 | Q113: 0.59504 | R113: 8.7266 | S113: 7.4086 | T113: 8.6261 | U113: 10.123 | V113: 0.45655 | W113: 0.341 | X113: 0.43036 | Y113: 0.59504 | Z113: 10.636 | AA113: 8.9903 | AB113: 10.577 | AC113: 12.441
A114: 8.66667 | B114: 7.8213 | C114: 6.6322 | D114: 7.7648 | E114: 9.1128 | F114: 0.45737 | G114: 0.3439 | H114: 0.42988 | I114: 0.60236 | J114: 9.6568 | K114: 8.0046 | L114: 9.5498 | M114: 11.295 | N114: 0.45737 | O114: 0.3439 | P114: 0.42988 | Q114: 0.60236 | R114: 8.4317 | S114: 7.1899 | T114: 8.3446 | U114: 9.775 | V114: 0.45737 | W114: 0.3439 | X114: 0.42988 | Y114: 0.60236 | Z114: 10.636 | AA114: 8.9902 | AB114: 10.597 | AC114: 12.444
A115: 8.75 | B115: 8.0342 | C115: 6.8051 | D115: 7.9874 | E115: 9.3613 | F115: 0.45865 | G115: 0.34227 | H115: 0.42899 | I115: 0.61426 | J115: 9.7341 | K115: 8.0623 | L115: 9.6381 | M115: 11.395 | N115: 0.45865 | O115: 0.34227 | P115: 0.42899 | Q115: 0.61426 | R115: 8.1917 | S115: 6.9902 | T115: 8.1007 | U115: 9.4823 | V115: 0.45865 | W115: 0.34227 | X115: 0.42899 | Y115: 0.61426 | Z115: 10.637 | AA115: 8.9902 | AB115: 10.592 | AC115: 12.44
A116: 8.83333 | B116: 8.2321 | C116: 6.966 | D116: 8.195 | E116: 9.5962 | F116: 0.46041 | G116: 0.34189 | H116: 0.4285 | I116: 0.61506 | J116: 9.8055 | K116: 8.1165 | L116: 9.72 | M116: 11.457 | N116: 0.46041 | O116: 0.34189 | P116: 0.4285 | Q116: 0.61506 | R116: 7.9731 | S116: 6.8072 | T116: 7.8874 | U116: 9.2162 | V116: 0.46041 | W116: 0.34189 | X116: 0.4285 | Y116: 0.61506 | Z116: 10.637 | AA116: 8.9897 | AB116: 10.575 | AC116: 12.442
A117: 8.91667 | B117: 8.4158 | C117: 7.1111 | D117: 8.3863 | E117: 9.808 | F117: 0.46271 | G117: 0.3412 | H117: 0.42562 | I117: 0.61906 | J117: 9.8714 | K117: 8.1833 | L117: 9.783 | M117: 11.537 | N117: 0.46271 | O117: 0.3412 | P117: 0.42562 | Q117: 0.61906 | R117: 7.7741 | S117: 6.6436 | T117: 7.6977 | U117: 8.9749 | V117: 0.46271 | W117: 0.3412 | X117: 0.42562 | Y117: 0.61906 | Z117: 10.638 | AA117: 8.9774 | AB117: 10.577 | AC117: 12.459
A118: 9 | B118: 8.5444 | C118: 7.1825 | D118: 8.391 | E118: 10.027 | F118: 0.46554 | G118: 0.33061 | H118: 0.41992 | I118: 0.62197 | J118: 9.8816 | K118: 8.2888 | L118: 9.7261 | M118: 11.558 | N118: 0.46554 | O118: 0.33061 | P118: 0.41992 | Q118: 0.62197 | R118: 7.5568 | S118: 6.3758 | T118: 7.4457 | U118: 8.8381 | V118: 0.46554 | W118: 0.33061 | X118: 0.41992 | Y118: 0.62197 | Z118: 10.584 | AA118: 8.8862 | AB118: 10.421 | AC118: 12.371
A119: 9.08333 | B119: 8.0436 | C119: 6.7646 | D119: 7.9006 | E119: 9.4435 | F119: 0.46208 | G119: 0.33013 | H119: 0.42096 | I119: 0.61219 | J119: 9.9358 | K119: 8.3424 | L119: 9.772 | M119: 11.598 | N119: 0.46208 | O119: 0.33013 | P119: 0.42096 | Q119: 0.61219 | R119: 7.9659 | S119: 6.7009 | T119: 7.8554 | U119: 9.3053 | V119: 0.46208 | W119: 0.33013 | X119: 0.42096 | Y119: 0.61219 | Z119: 10.583 | AA119: 8.8873 | AB119: 10.398 | AC119: 12.385
A120: 9.16667 | B120: 7.7943 | C120: 6.5592 | D120: 7.6578 | E120: 9.1426 | F120: 0.45931 | G120: 0.33308 | H120: 0.42086 | I120: 0.60404 | J120: 9.9863 | K120: 8.3578 | L120: 9.8046 | M120: 11.672 | N120: 0.45931 | O120: 0.33308 | P120: 0.42086 | Q120: 0.60404 | R120: 8.1638 | S120: 6.8521 | T120: 8.0419 | U120: 9.5306 | V120: 0.45931 | W120: 0.33308 | X120: 0.42086 | Y120: 0.60404 | Z120: 10.582 | AA120: 8.8837 | AB120: 10.388 | AC120: 12.381
A121: 9.25 | B121: 7.5679 | C121: 6.3711 | D121: 7.4309 | E121: 8.8695 | F121: 0.45717 | G121: 0.33828 | H121: 0.42466 | I121: 0.60198 | J121: 10.033 | K121: 8.3844 | L121: 9.8444 | M121: 11.758 | N121: 0.45717 | O121: 0.33828 | P121: 0.42466 | Q121: 0.60198 | R121: 8.3476 | S121: 7.0058 | T121: 8.21 | U121: 9.7373 | V121: 0.45717 | W121: 0.33828 | X121: 0.42466 | Y121: 0.60198 | Z121: 10.582 | AA121: 8.8819 | AB121: 10.383 | AC121: 12.378
A122: 9.33333 | B122: 7.3622 | C122: 6.2038 | D122: 7.2246 | E122: 8.6221 | F122: 0.45558 | G122: 0.33883 | H122: 0.42421 | I122: 0.60618 | J122: 10.076 | K122: 8.4119 | L122: 9.8852 | M122: 11.837 | N122: 0.45558 | O122: 0.33883 | P122: 0.42421 | Q122: 0.60618 | R122: 8.5182 | S122: 7.1551 | T122: 8.3778 | U122: 9.9289 | V122: 0.45558 | W122: 0.33883 | X122: 0.42421 | Y122: 0.60618 | Z122: 10.581 | AA122: 8.887 | AB122: 10.391 | AC122: 12.374
A123: 9.41667 | B123: 7.3945 | C123: 6.1844 | D123: 7.2586 | E123: 8.7922 | F123: 0.45453 | G123: 0.33872 | H123: 0.42279 | I123: 0.60244 | J123: 9.743 | K123: 8.1436 | L123: 9.6349 | M123: 11.543 | N123: 0.45453 | O123: 0.33872 | P123: 0.42279 | Q123: 0.60244 | R123: 8.6763 | S123: 7.2798 | T123: 8.5386 | U123: 10.111 | V123: 0.45453 | W123: 0.33872 | X123: 0.42279 | Y123: 0.60244 | Z123: 10.581 | AA123: 8.8722 | AB123: 10.386 | AC123: 12.375
A124: 9.5 | B124: 7.7608 | C124: 6.5262 | D124: 7.6163 | E124: 9.0981 | F124: 0.454 | G124: 0.33908 | H124: 0.4214 | I124: 0.60434 | J124: 9.0988 | K124: 7.602 | L124: 8.9558 | M124: 10.799 | N124: 0.454 | O124: 0.33908 | P124: 0.4214 | Q124: 0.60434 | R124: 8.6912 | S124: 7.2965 | T124: 8.5721 | U124: 10.131 | V124: 0.454 | W124: 0.33908 | X124: 0.4214 | Y124: 0.60434 | Z124: 10.58 | AA124: 8.8578 | AB124: 10.391 | AC124: 12.394
A125: 9.58333 | B125: 7.9732 | C125: 6.6959 | D125: 7.8239 | E125: 9.3473 | F125: 0.45398 | G125: 0.33807 | H125: 0.42229 | I125: 0.60362 | J125: 9.2635 | K125: 7.6536 | L125: 9.1341 | M125: 11.049 | N125: 0.45398 | O125: 0.33807 | P125: 0.42229 | Q125: 0.60362 | R125: 8.3991 | S125: 7.1056 | T125: 8.2649 | U125: 9.7766 | V125: 0.45398 | W125: 0.33807 | X125: 0.42229 | Y125: 0.60362 | Z125: 10.58 | AA125: 8.8481 | AB125: 10.381 | AC125: 12.403
A126: 9.66667 | B126: 8.1706 | C126: 6.8647 | D126: 8.0191 | E126: 9.5751 | F126: 0.45448 | G126: 0.33545 | H126: 0.42098 | I126: 0.60169 | J126: 9.4305 | K126: 7.9093 | L126: 9.2929 | M126: 11.183 | N126: 0.45448 | O126: 0.33545 | P126: 0.42098 | Q126: 0.60169 | R126: 8.1222 | S126: 6.8832 | T126: 8.0297 | U126: 9.4473 | V126: 0.45448 | W126: 0.33545 | X126: 0.42098 | Y126: 0.60169 | Z126: 10.58 | AA126: 8.8525 | AB126: 10.38 | AC126: 12.411
A127: 9.75 | B127: 8.3539 | C127: 7.0122 | D127: 8.1988 | E127: 9.7903 | F127: 0.45552 | G127: 0.33368 | H127: 0.41971 | I127: 0.60222 | J127: 9.5201 | K127: 7.9525 | L127: 9.3823 | M127: 11.277 | N127: 0.45552 | O127: 0.33368 | P127: 0.41971 | Q127: 0.60222 | R127: 7.9082 | S127: 6.7026 | T127: 7.8216 | U127: 9.2015 | V127: 0.45552 | W127: 0.33368 | X127: 0.41971 | Y127: 0.60222 | Z127: 10.58 | AA127: 8.8348 | AB127: 10.378 | AC127: 12.414
A128: 9.83333 | B128: 8.524 | C128: 7.1486 | D128: 8.3658 | E128: 9.9869 | F128: 0.45713 | G128: 0.33105 | H128: 0.41987 | I128: 0.60523 | J128: 9.6028 | K128: 7.9994 | L128: 9.4569 | M128: 11.36 | N128: 0.45713 | O128: 0.33105 | P128: 0.41987 | Q128: 0.60523 | R128: 7.7128 | S128: 6.5305 | T128: 7.6293 | U128: 8.9724 | V128: 0.45713 | W128: 0.33105 | X128: 0.41987 | Y128: 0.60523 | Z128: 10.579 | AA128: 8.8421 | AB128: 10.377 | AC128: 12.421
A129: 9.91667 | B129: 8.6817 | C129: 7.2785 | D129: 8.5325 | E129: 10.177 | F129: 0.45937 | G129: 0.32786 | H129: 0.41969 | I129: 0.61163 | J129: 9.6792 | K129: 8.0656 | L129: 9.5228 | M129: 11.439 | N129: 0.45937 | O129: 0.32786 | P129: 0.41969 | Q129: 0.61163 | R129: 7.5349 | S129: 6.3736 | T129: 7.4541 | U129: 8.7671 | V129: 0.45937 | W129: 0.32786 | X129: 0.41969 | Y129: 0.61163 | Z129: 10.579 | AA129: 8.8485 | AB129: 10.386 | AC129: 12.435
A130: 10 | B130: 8.8536 | C130: 7.4975 | D130: 8.7733 | E130: 10.311 | F130: 0.46274 | G130: 0.33121 | H130: 0.42075 | I130: 0.59714 | J130: 9.7747 | K130: 8.2794 | L130: 9.6585 | M130: 11.343 | N130: 0.46274 | O130: 0.33121 | P130: 0.42075 | Q130: 0.59714 | R130: 7.3981 | S130: 6.2989 | T130: 7.3184 | U130: 8.6414 | V130: 0.46274 | W130: 0.33121 | X130: 0.42075 | Y130: 0.59714 | Z130: 10.608 | AA130: 9.0311 | AB130: 10.523 | AC130: 12.308
A131: 10.0833 | B131: 8.3251 | C131: 7.062 | D131: 8.25 | E131: 9.6793 | F131: 0.45975 | G131: 0.33586 | H131: 0.4239 | I131: 0.58807 | J131: 9.8433 | K131: 8.3549 | L131: 9.732 | M131: 11.41 | N131: 0.45975 | O131: 0.33586 | P131: 0.4239 | Q131: 0.58807 | R131: 7.8219 | S131: 6.6513 | T131: 7.7575 | U131: 9.1271 | V131: 0.45975 | W131: 0.33586 | X131: 0.4239 | Y131: 0.58807 | Z131: 10.612 | AA131: 9.0297 | AB131: 10.53 | AC131: 12.33
A132: 10.1667 | B132: 8.0528 | C132: 6.8465 | D132: 7.9776 | E132: 9.3541 | F132: 0.45749 | G132: 0.34039 | H132: 0.42551 | I132: 0.59246 | J132: 9.9056 | K132: 8.4092 | L132: 9.7992 | M132: 11.482 | N132: 0.45749 | O132: 0.34039 | P132: 0.42551 | Q132: 0.59246 | R132: 8.0343 | S132: 6.8345 | T132: 7.9622 | U132: 9.3672 | V132: 0.45749 | W132: 0.34039 | X132: 0.42551 | Y132: 0.59246 | Z132: 10.613 | AA132: 9.0266 | AB132: 10.529 | AC132: 12.315
A133: 10.25 | B133: 7.8058 | C133: 6.6447 | D133: 7.7309 | E133: 9.0518 | F133: 0.45586 | G133: 0.34156 | H133: 0.42713 | I133: 0.58802 | J133: 9.9632 | K133: 8.4509 | L133: 9.8524 | M133: 11.543 | N133: 0.45586 | O133: 0.34156 | P133: 0.42713 | Q133: 0.58802 | R133: 8.2317 | S133: 7.0098 | T133: 8.1678 | U133: 9.594 | V133: 0.45586 | W133: 0.34156 | X133: 0.42713 | Y133: 0.58802 | Z133: 10.615 | AA133: 9.0361 | AB133: 10.511 | AC133: 12.296
A134: 10.3333 | B134: 7.5814 | C134: 6.4482 | D134: 7.5071 | E134: 8.7807 | F134: 0.45482 | G134: 0.34331 | H134: 0.42527 | I134: 0.58499 | J134: 10.016 | K134: 8.4917 | L134: 9.9081 | M134: 11.615 | N134: 0.45482 | O134: 0.34331 | P134: 0.42527 | Q134: 0.58499 | R134: 8.4149 | S134: 7.1512 | T134: 8.357 | U134: 9.7963 | V134: 0.45482 | W134: 0.34331 | X134: 0.42527 | Y134: 0.58499 | Z134: 10.617 | AA134: 9.0278 | AB134: 10.501 | AC134: 12.321
A135: 10.4167 | B135: 7.5962 | C135: 6.4707 | D135: 7.48 | E135: 8.8348 | F135: 0.45432 | G135: 0.34375 | H135: 0.42677 | I135: 0.59023 | J135: 9.7056 | K135: 7.9791 | L135: 9.6417 | M135: 11.45 | N135: 0.45432 | O135: 0.34375 | P135: 0.42677 | Q135: 0.59023 | R135: 8.5849 | S135: 7.3022 | T135: 8.5193 | U135: 10.007 | V135: 0.45432 | W135: 0.34375 | X135: 0.42677 | Y135: 0.59023 | Z135: 10.618 | AA135: 9.0142 | AB135: 10.501 | AC135: 12.342
A136: 10.5 | B136: 7.9557 | C136: 6.8061 | D136: 7.8543 | E136: 9.1977 | F136: 0.45436 | G136: 0.34138 | H136: 0.42823 | I136: 0.59551 | J136: 9.0311 | K136: 7.5401 | L136: 8.9608 | M136: 10.463 | N136: 0.45436 | O136: 0.34138 | P136: 0.42823 | Q136: 0.59551 | R136: 8.6389 | S136: 7.3339 | T136: 8.5563 | U136: 10.087 | V136: 0.45436 | W136: 0.34138 | X136: 0.42823 | Y136: 0.59551 | Z136: 10.62 | AA136: 9.0016 | AB136: 10.492 | AC136: 12.354
A137: 10.5833 | B137: 8.1586 | C137: 6.9752 | D137: 8.0507 | E137: 9.4422 | F137: 0.45492 | G137: 0.34025 | H137: 0.42614 | I137: 0.59628 | J137: 9.1469 | K137: 7.6088 | L137: 9.032 | M137: 10.823 | N137: 0.45492 | O137: 0.34025 | P137: 0.42614 | Q137: 0.59628 | R137: 8.3855 | S137: 7.0505 | T137: 8.2984 | U137: 9.8835 | V137: 0.45492 | W137: 0.34025 | X137: 0.42614 | Y137: 0.59628 | Z137: 10.621 | AA137: 9.0058 | AB137: 10.493 | AC137: 12.348
A138: 10.6667 | B138: 8.347 | C138: 7.1356 | D138: 8.2473 | E138: 9.6666 | F138: 0.45601 | G138: 0.34027 | H138: 0.42314 | I138: 0.59865 | J138: 9.3488 | K138: 7.8298 | L138: 9.2468 | M138: 10.997 | N138: 0.45601 | O138: 0.34027 | P138: 0.42314 | Q138: 0.59865 | R138: 8.0957 | S138: 6.8514 | T138: 8.0203 | U138: 9.4318 | V138: 0.45601 | W138: 0.34027 | X138: 0.42314 | Y138: 0.59865 | Z138: 10.622 | AA138: 8.9921 | AB138: 10.489 | AC138: 12.35
A139: 10.75 | B139: 8.5219 | C139: 7.2898 | D139: 8.4256 | E139: 9.8758 | F139: 0.45767 | G139: 0.33865 | H139: 0.42551 | I139: 0.59979 | J139: 9.4492 | K139: 7.9076 | L139: 9.3167 | M139: 11.108 | N139: 0.45767 | O139: 0.33865 | P139: 0.42551 | Q139: 0.59979 | R139: 7.8838 | S139: 6.6834 | T139: 7.811 | U139: 9.18 | V139: 0.45767 | W139: 0.33865 | X139: 0.42551 | Y139: 0.59979 | Z139: 10.623 | AA139: 8.9793 | AB139: 10.492 | AC139: 12.361
A140: 10.8333 | B140: 8.6841 | C140: 7.4385 | D140: 8.5892 | E140: 10.069 | F140: 0.45996 | G140: 0.33791 | H140: 0.42911 | I140: 0.60236 | J140: 9.5419 | K140: 7.9852 | L140: 9.4036 | M140: 11.172 | N140: 0.45996 | O140: 0.33791 | P140: 0.42911 | Q140: 0.60236 | R140: 7.6903 | S140: 6.5242 | T140: 7.6228 | U140: 8.9544 | V140: 0.45996 | W140: 0.33791 | X140: 0.42911 | Y140: 0.60236 | Z140: 10.624 | AA140: 8.9909 | AB140: 10.496 | AC140: 12.36
A141: 10.9167 | B141: 8.8344 | C141: 7.563 | D141: 8.7399 | E141: 10.24 | F141: 0.46294 | G141: 0.33515 | H141: 0.42555 | I141: 0.60856 | J141: 9.6276 | K141: 8.0595 | L141: 9.5051 | M141: 11.26 | N141: 0.46294 | O141: 0.33515 | P141: 0.42555 | Q141: 0.60856 | R141: 7.5139 | S141: 6.3716 | T141: 7.4453 | U141: 8.7486 | V141: 0.46294 | W141: 0.33515 | X141: 0.42555 | Y141: 0.60856 | Z141: 10.625 | AA141: 8.9877 | AB141: 10.494 | AC141: 12.37
A142: 11 | B142: 8.9933 | C142: 7.744 | D142: 8.9251 | E142: 10.321 | F142: 0.46661 | G142: 0.33683 | H142: 0.42704 | I142: 0.61527 | J142: 9.7256 | K142: 8.306 | L142: 9.6569 | M142: 11.247 | N142: 0.46661 | O142: 0.33683 | P142: 0.42704 | Q142: 0.61527 | R142: 7.3714 | S142: 6.2972 | T142: 7.3285 | U142: 8.5435 | V142: 0.46661 | W142: 0.33683 | X142: 0.42704 | Y142: 0.61527 | Z142: 10.647 | AA142: 9.1239 | AB142: 10.569 | AC142: 12.187
A143: 11.0833 | B143: 8.4546 | C143: 7.2827 | D143: 8.3752 | E143: 9.705 | F143: 0.46352 | G143: 0.33795 | H143: 0.42778 | I143: 0.60776 | J143: 9.7991 | K143: 8.3425 | L143: 9.7121 | M143: 11.328 | N143: 0.46352 | O143: 0.33795 | P143: 0.42778 | Q143: 0.60776 | R143: 7.7998 | S143: 6.6712 | T143: 7.729 | U143: 9.0137 | V143: 0.46352 | W143: 0.33795 | X143: 0.42778 | Y143: 0.60776 | Z143: 10.648 | AA143: 9.1278 | AB143: 10.534 | AC143: 12.201
A144: 11.1667 | B144: 8.1741 | C144: 7.0435 | D144: 8.108 | E144: 9.3913 | F144: 0.46112 | G144: 0.33938 | H144: 0.43269 | I144: 0.6028 | J144: 9.8668 | K144: 8.4071 | L144: 9.7911 | M144: 11.395 | N144: 0.46112 | O144: 0.33938 | P144: 0.43269 | Q144: 0.6028 | R144: 8.0156 | S144: 6.8562 | T144: 7.9526 | U144: 9.2556 | V144: 0.46112 | W144: 0.33938 | X144: 0.43269 | Y144: 0.6028 | Z144: 10.649 | AA144: 9.1226 | AB144: 10.531 | AC144: 12.207
A145: 11.25 | B145: 7.9195 | C145: 6.8289 | D145: 7.8559 | E145: 9.0967 | F145: 0.45935 | G145: 0.34143 | H145: 0.43515 | I145: 0.60144 | J145: 9.9293 | K145: 8.4702 | L145: 9.865 | M145: 11.444 | N145: 0.45935 | O145: 0.34143 | P145: 0.43515 | Q145: 0.60144 | R145: 8.2161 | S145: 7.0237 | T145: 8.1437 | U145: 9.4914 | V145: 0.45935 | W145: 0.34143 | X145: 0.43515 | Y145: 0.60144 | Z145: 10.65 | AA145: 9.1265 | AB145: 10.532 | AC145: 12.224
A146: 11.3333 | B146: 7.6883 | C146: 6.6312 | D146: 7.6235 | E146: 8.823 | F146: 0.45814 | G146: 0.34414 | H146: 0.43631 | I146: 0.59422 | J146: 9.987 | K146: 8.5266 | L146: 9.9267 | M146: 11.538 | N146: 0.45814 | O146: 0.34414 | P146: 0.43631 | Q146: 0.59422 | R146: 8.4024 | S146: 7.1952 | T146: 8.3217 | U146: 9.6988 | V146: 0.45814 | W146: 0.34414 | X146: 0.43631 | Y146: 0.59422 | Z146: 10.651 | AA146: 9.1299 | AB146: 10.535 | AC146: 12.227
A147: 11.4167 | B147: 7.6808 | C147: 6.5405 | D147: 7.5898 | E147: 8.9356 | F147: 0.45744 | G147: 0.34442 | H147: 0.4345 | I147: 0.58826 | J147: 9.7106 | K147: 8.1133 | L147: 9.5804 | M147: 11.342 | N147: 0.45744 | O147: 0.34442 | P147: 0.4345 | Q147: 0.58826 | R147: 8.5752 | S147: 7.3414 | T147: 8.5027 | U147: 9.9038 | V147: 0.45744 | W147: 0.34442 | X147: 0.4345 | Y147: 0.58826 | Z147: 10.652 | AA147: 9.1375 | AB147: 10.542 | AC147: 12.227
A148: 11.5 | B148: 8.0415 | C148: 6.8624 | D148: 7.9846 | E148: 9.2884 | F148: 0.45723 | G148: 0.34398 | H148: 0.43461 | I148: 0.58995 | J148: 9.0052 | K148: 7.6315 | L148: 8.9074 | M148: 10.481 | N148: 0.45723 | O148: 0.34398 | P148: 0.43461 | Q148: 0.58995 | R148: 8.6494 | S148: 7.3247 | T148: 8.5846 | U148: 10.063 | V148: 0.45723 | W148: 0.34398 | X148: 0.43461 | Y148: 0.58995 | Z148: 10.653 | AA148: 9.1362 | AB148: 10.566 | AC148: 12.237
A149: 11.5833 | B149: 8.2401 | C149: 7.0376 | D149: 8.1799 | E149: 9.5455 | F149: 0.45748 | G149: 0.34464 | H149: 0.43553 | I149: 0.59603 | J149: 9.0559 | K149: 7.7181 | L149: 8.9797 | M149: 10.577 | N149: 0.45748 | O149: 0.34464 | P149: 0.43553 | Q149: 0.59603 | R149: 8.4375 | S149: 7.1247 | T149: 8.3833 | U149: 9.8804 | V149: 0.45748 | W149: 0.34464 | X149: 0.43553 | Y149: 0.59603 | Z149: 10.653 | AA149: 9.1257 | AB149: 10.582 | AC149: 12.24
A150: 11.6667 | B150: 8.4246 | C150: 7.1996 | D150: 8.3613 | E150: 9.7781 | F150: 0.45822 | G150: 0.34506 | H150: 0.43249 | I150: 0.60499 | J150: 9.2905 | K150: 7.9103 | L150: 9.1639 | M150: 10.8 | N150: 0.45822 | O150: 0.34506 | P150: 0.43249 | Q150: 0.60499 | R150: 8.1285 | S150: 6.9076 | T150: 8.0626 | U150: 9.4232 | V150: 0.45822 | W150: 0.34506 | X150: 0.43249 | Y150: 0.60499 | Z150: 10.654 | AA150: 9.1085 | AB150: 10.588 | AC150: 12.253
A151: 11.75 | B151: 8.5957 | C151: 7.3615 | D151: 8.5099 | E151: 9.9683 | F151: 0.45944 | G151: 0.34221 | H151: 0.43355 | I151: 0.61444 | J151: 9.3972 | K151: 8.0267 | L151: 9.2736 | M151: 10.885 | N151: 0.45944 | O151: 0.34221 | P151: 0.43355 | Q151: 0.61444 | R151: 7.9141 | S151: 6.7204 | T151: 7.8653 | U151: 9.1751 | V151: 0.45944 | W151: 0.34221 | X151: 0.43355 | Y151: 0.61444 | Z151: 10.654 | AA151: 9.0992 | AB151: 10.599 | AC151: 12.265
A152: 11.8333 | B152: 8.7544 | C152: 7.5049 | D152: 8.6736 | E152: 10.153 | F152: 0.4612 | G152: 0.34255 | H152: 0.43025 | I152: 0.61529 | J152: 9.4958 | K152: 8.1066 | L152: 9.3756 | M152: 10.977 | N152: 0.4612 | O152: 0.34255 | P152: 0.43025 | Q152: 0.61529 | R152: 7.7183 | S152: 6.5646 | T152: 7.6533 | U152: 8.9348 | V152: 0.4612 | W152: 0.34255 | X152: 0.43025 | Y152: 0.61529 | Z152: 10.655 | AA152: 9.0896 | AB152: 10.599 | AC152: 12.28
A153: 11.9167 | B153: 8.9014 | C153: 7.6315 | D153: 8.8238 | E153: 10.319 | F153: 0.46351 | G153: 0.33819 | H153: 0.43128 | I153: 0.61723 | J153: 9.5869 | K153: 8.1771 | L153: 9.4687 | M153: 11.082 | N153: 0.46351 | O153: 0.33819 | P153: 0.43128 | Q153: 0.61723 | R153: 7.5399 | S153: 6.4343 | T153: 7.484 | U153: 8.7028 | V153: 0.46351 | W153: 0.33819 | X153: 0.43128 | Y153: 0.61723 | Z153: 10.655 | AA153: 9.0812 | AB153: 10.596 | AC153: 12.294
A154: 12 | B154: 8.9967 | C154: 7.684 | D154: 8.9041 | E154: 10.419 | F154: 0.46466 | G154: 0.33549 | H154: 0.43204 | I154: 0.61325 | J154: 9.6268 | K154: 8.2199 | L154: 9.5149 | M154: 11.179 | N154: 0.46466 | O154: 0.33549 | P154: 0.43204 | Q154: 0.61325 | R154: 7.3446 | S154: 6.251 | T154: 7.2807 | U154: 8.4912 | V154: 0.46466 | W154: 0.33549 | X154: 0.43204 | Y154: 0.61325 | Z154: 10.606 | AA154: 9.0479 | AB154: 10.443 | AC154: 12.265
A155: 12.0833 | B155: 8.4578 | C155: 7.239 | D155: 8.3608 | E155: 9.7774 | F155: 0.46131 | G155: 0.34066 | H155: 0.43085 | I155: 0.61339 | J155: 9.7028 | K155: 8.288 | L155: 9.5753 | M155: 11.274 | N155: 0.46131 | O155: 0.34066 | P155: 0.43085 | Q155: 0.61339 | R155: 7.7699 | S155: 6.6152 | T155: 7.6884 | U155: 8.983 | V155: 0.46131 | W155: 0.34066 | X155: 0.43085 | Y155: 0.61339 | Z155: 10.605 | AA155: 9.0411 | AB155: 10.446 | AC155: 12.23
A156: 12.1667 | B156: 8.1762 | C156: 7.0008 | D156: 8.0807 | E156: 9.4467 | F156: 0.45857 | G156: 0.34144 | H156: 0.42997 | I156: 0.60966 | J156: 9.7734 | K156: 8.3313 | L156: 9.6331 | M156: 11.337 | N156: 0.45857 | O156: 0.34144 | P156: 0.42997 | Q156: 0.60966 | R156: 7.9834 | S156: 6.8117 | T156: 7.8709 | U156: 9.2258 | V156: 0.45857 | W156: 0.34144 | X156: 0.42997 | Y156: 0.60966 | Z156: 10.605 | AA156: 9.0367 | AB156: 10.446 | AC156: 12.231
A157: 12.25 | B157: 7.9206 | C157: 6.79 | D157: 7.8191 | E157: 9.1507 | F157: 0.45636 | G157: 0.34064 | H157: 0.42848 | I157: 0.60035 | J157: 9.8384 | K157: 8.3713 | L157: 9.7105 | M157: 11.417 | N157: 0.45636 | O157: 0.34064 | P157: 0.42848 | Q157: 0.60035 | R157: 8.1819 | S157: 6.985 | T157: 8.0658 | U157: 9.449 | V157: 0.45636 | W157: 0.34064 | X157: 0.42848 | Y157: 0.60035 | Z157: 10.604 | AA157: 9.0373 | AB157: 10.449 | AC157: 12.221
A158: 12.3333 | B158: 7.6886 | C158: 6.6034 | D158: 7.5918 | E158: 8.8852 | F158: 0.45463 | G158: 0.34155 | H158: 0.42937 | I158: 0.5895 | J158: 9.8985 | K158: 8.4186 | L158: 9.7663 | M158: 11.484 | N158: 0.45463 | O158: 0.34155 | P158: 0.42937 | Q158: 0.5895 | R158: 8.3662 | S158: 7.1401 | T158: 8.2511 | U158: 9.673 | V158: 0.45463 | W158: 0.34155 | X158: 0.42937 | Y158: 0.5895 | Z158: 10.604 | AA158: 9.0442 | AB158: 10.451 | AC158: 12.211
A159: 12.4167 | B159: 7.6655 | C159: 6.5286 | D159: 7.5834 | E159: 8.8773 | F159: 0.45334 | G159: 0.34193 | H159: 0.4295 | I159: 0.59211 | J159: 9.6507 | K159: 7.9993 | L159: 9.5602 | M159: 11.377 | N159: 0.45334 | O159: 0.34193 | P159: 0.4295 | Q159: 0.59211 | R159: 8.5372 | S159: 7.2824 | T159: 8.4169 | U159: 9.8689 | V159: 0.45334 | W159: 0.34193 | X159: 0.4295 | Y159: 0.59211 | Z159: 10.604 | AA159: 9.0495 | AB159: 10.444 | AC159: 12.203
A160: 12.5 | B160: 8.026 | C160: 6.8796 | D160: 7.9219 | E160: 9.2041 | F160: 0.45245 | G160: 0.34356 | H160: 0.42976 | I160: 0.59101 | J160: 8.9224 | K160: 7.535 | L160: 8.8336 | M160: 10.423 | N160: 0.45245 | O160: 0.34356 | P160: 0.42976 | Q160: 0.59101 | R160: 8.6263 | S160: 7.2501 | T160: 8.4959 | U160: 10.02 | V160: 0.45245 | W160: 0.34356 | X160: 0.42976 | Y160: 0.59101 | Z160: 10.604 | AA160: 9.0504 | AB160: 10.449 | AC160: 12.194
A161: 12.5833 | B161: 8.2214 | C161: 7.0541 | D161: 8.1085 | E161: 9.4232 | F161: 0.45197 | G161: 0.34153 | H161: 0.43074 | I161: 0.58281 | J161: 8.9502 | K161: 7.506 | L161: 8.8411 | M161: 10.533 | N161: 0.45197 | O161: 0.34153 | P161: 0.43074 | Q161: 0.58281 | R161: 8.429 | S161: 7.1057 | T161: 8.3988 | U161: 9.9464 | V161: 0.45197 | W161: 0.34153 | X161: 0.43074 | Y161: 0.58281 | Z161: 10.603 | AA161: 9.0496 | AB161: 10.454 | AC161: 12.202
A162: 12.6667 | B162: 8.4028 | C162: 7.2243 | D162: 8.2746 | E162: 9.6532 | F162: 0.4519 | G162: 0.33877 | H162: 0.42957 | I162: 0.58283 | J162: 9.1973 | K162: 7.781 | L162: 9.099 | M162: 10.736 | N162: 0.4519 | O162: 0.33877 | P162: 0.42957 | Q162: 0.58283 | R162: 8.1105 | S162: 6.8616 | T162: 8.0458 | U162: 9.4807 | V162: 0.4519 | W162: 0.33877 | X162: 0.42957 | Y162: 0.58283 | Z162: 10.603 | AA162: 9.0381 | AB162: 10.464 | AC162: 12.208
A163: 12.75 | B163: 8.5711 | C163: 7.3667 | D163: 8.4539 | E163: 9.8731 | F163: 0.45222 | G163: 0.33739 | H163: 0.42835 | I163: 0.59181 | J163: 9.3065 | K163: 7.8679 | L163: 9.2106 | M163: 10.846 | N163: 0.45222 | O163: 0.33739 | P163: 0.42835 | Q163: 0.59181 | R163: 7.8939 | S163: 6.693 | T163: 7.8307 | U163: 9.2255 | V163: 0.45222 | W163: 0.33739 | X163: 0.42835 | Y163: 0.59181 | Z163: 10.603 | AA163: 9.0355 | AB163: 10.471 | AC163: 12.195
A164: 12.8333 | B164: 8.7271 | C164: 7.4971 | D164: 8.6075 | E164: 10.085 | F164: 0.45295 | G164: 0.33214 | H164: 0.42805 | I164: 0.5935 | J164: 9.4075 | K164: 7.9657 | L164: 9.3133 | M164: 10.933 | N164: 0.45295 | O164: 0.33214 | P164: 0.42805 | Q164: 0.5935 | R164: 7.6964 | S164: 6.5217 | T164: 7.6282 | U164: 8.9794 | V164: 0.45295 | W164: 0.33214 | X164: 0.42805 | Y164: 0.5935 | Z164: 10.603 | AA164: 9.029 | AB164: 10.477 | AC164: 12.191
A165: 12.9167 | B165: 8.8717 | C165: 7.6153 | D165: 8.7527 | E165: 10.274 | F165: 0.4541 | G165: 0.32888 | H165: 0.42738 | I165: 0.5956 | J165: 9.5007 | K165: 8.058 | L165: 9.4022 | M165: 11.048 | N165: 0.4541 | O165: 0.32888 | P165: 0.42738 | Q165: 0.5956 | R165: 7.5164 | S165: 6.3822 | T165: 7.4553 | U165: 8.7547 | V165: 0.4541 | W165: 0.32888 | X165: 0.42738 | Y165: 0.5956 | Z165: 10.603 | AA165: 9.0198 | AB165: 10.482 | AC165: 12.186
A166: 13 | B166: 9.0346 | C166: 7.6401 | D166: 8.9861 | E166: 10.469 | F166: 0.45644 | G166: 0.32059 | H166: 0.4301 | I166: 0.6093 | J166: 9.613 | K166: 8.1868 | L166: 9.539 | M166: 11.159 | N166: 0.45644 | O166: 0.32059 | P166: 0.4301 | Q166: 0.6093 | R166: 7.3782 | S166: 6.2722 | T166: 7.3067 | U166: 8.6169 | V166: 0.45644 | W166: 0.32059 | X166: 0.4301 | Y166: 0.6093 | Z166: 10.635 | AA166: 8.9999 | AB166: 10.58 | AC166: 12.331
A167: 13.0833 | B167: 8.4958 | C167: 7.1936 | D167: 8.4446 | E167: 9.8312 | F167: 0.45494 | G167: 0.32607 | H167: 0.432 | I167: 0.60119 | J167: 9.6934 | K167: 8.2142 | L167: 9.6058 | M167: 11.266 | N167: 0.45494 | O167: 0.32607 | P167: 0.432 | Q167: 0.60119 | R167: 7.8051 | S167: 6.643 | T167: 7.7436 | U167: 9.1122 | V167: 0.45494 | W167: 0.32607 | X167: 0.432 | Y167: 0.60119 | Z167: 10.635 | AA167: 9.0035 | AB167: 10.581 | AC167: 12.335
A168: 13.1667 | B168: 8.2136 | C168: 6.9605 | D168: 8.1558 | E168: 9.5006 | F168: 0.45383 | G168: 0.33129 | H168: 0.43305 | I168: 0.5892 | J168: 9.7676 | K168: 8.2646 | L168: 9.6905 | M168: 11.349 | N168: 0.45383 | O168: 0.33129 | P168: 0.43305 | Q168: 0.5892 | R168: 8.0189 | S168: 6.8342 | T168: 7.9324 | U168: 9.3646 | V168: 0.45383 | W168: 0.33129 | X168: 0.43305 | Y168: 0.5892 | Z168: 10.635 | AA168: 9.0032 | AB168: 10.562 | AC168: 12.353
A169: 13.25 | B169: 7.9574 | C169: 6.7494 | D169: 7.9018 | E169: 9.2012 | F169: 0.4531 | G169: 0.33454 | H169: 0.4336 | I169: 0.59443 | J169: 9.836 | K169: 8.3137 | L169: 9.7387 | M169: 11.434 | N169: 0.4531 | O169: 0.33454 | P169: 0.4336 | Q169: 0.59443 | R169: 8.2175 | S169: 7.0127 | T169: 8.1448 | U169: 9.6053 | V169: 0.4531 | W169: 0.33454 | X169: 0.4336 | Y169: 0.59443 | Z169: 10.635 | AA169: 9.0106 | AB169: 10.572 | AC169: 12.371
A170: 13.3333 | B170: 7.7247 | C170: 6.565 | D170: 7.6729 | E170: 8.9299 | F170: 0.45275 | G170: 0.33701 | H170: 0.4332 | I170: 0.58836 | J170: 9.8991 | K170: 8.3488 | L170: 9.8097 | M170: 11.5 | N170: 0.45275 | O170: 0.33701 | P170: 0.4332 | Q170: 0.58836 | R170: 8.402 | S170: 7.1663 | T170: 8.3322 | U170: 9.8307 | V170: 0.45275 | W170: 0.33701 | X170: 0.4332 | Y170: 0.58836 | Z170: 10.636 | AA170: 9.002 | AB170: 10.551 | AC170: 12.382
A171: 13.4167 | B171: 7.6868 | C171: 6.4737 | D171: 7.6161 | E171: 8.9824 | F171: 0.45276 | G171: 0.33814 | H171: 0.43376 | I171: 0.59062 | J171: 9.6794 | K171: 8.0644 | L171: 9.6427 | M171: 11.399 | N171: 0.45276 | O171: 0.33814 | P171: 0.43376 | Q171: 0.59062 | R171: 8.5732 | S171: 7.3125 | T171: 8.503 | U171: 10.024 | V171: 0.45276 | W171: 0.33814 | X171: 0.43376 | Y171: 0.59062 | Z171: 10.636 | AA171: 9.008 | AB171: 10.536 | AC171: 12.418
A172: 13.5 | B172: 8.0532 | C172: 6.8058 | D172: 7.9704 | E172: 9.3298 | F172: 0.45315 | G172: 0.33768 | H172: 0.4317 | I172: 0.59169 | J172: 8.9374 | K172: 7.5234 | L172: 8.8981 | M172: 10.434 | N172: 0.45315 | O172: 0.33768 | P172: 0.4317 | Q172: 0.59169 | R172: 8.6675 | S172: 7.3439 | T172: 8.5345 | U172: 10.209 | V172: 0.45315 | W172: 0.33768 | X172: 0.4317 | Y172: 0.59169 | Z172: 10.636 | AA172: 9.022 | AB172: 10.539 | AC172: 12.453
A173: 13.5833 | B173: 8.2494 | C173: 6.9845 | D173: 8.1587 | E173: 9.5534 | F173: 0.45391 | G173: 0.33757 | H173: 0.4301 | I173: 0.58657 | J173: 8.93 | K173: 7.4664 | L173: 8.8309 | M173: 10.528 | N173: 0.45391 | O173: 0.33757 | P173: 0.4301 | Q173: 0.58657 | R173: 8.4892 | S173: 7.1271 | T173: 8.4279 | U173: 10.026 | V173: 0.45391 | W173: 0.33757 | X173: 0.4301 | Y173: 0.58657 | Z173: 10.636 | AA173: 9.0203 | AB173: 10.534 | AC173: 12.465
A174: 13.6667 | B174: 8.4315 | C174: 7.1477 | D174: 8.3387 | E174: 9.7815 | F174: 0.45508 | G174: 0.33901 | H174: 0.43111 | I174: 0.59498 | J174: 9.1936 | K174: 7.7019 | L174: 9.0768 | M174: 10.743 | N174: 0.45508 | O174: 0.33901 | P174: 0.43111 | Q174: 0.59498 | R174: 8.1568 | S174: 6.9005 | T174: 8.0496 | U174: 9.5273 | V174: 0.45508 | W174: 0.33901 | X174: 0.43111 | Y174: 0.59498 | Z174: 10.636 | AA174: 9.0263 | AB174: 10.522 | AC174: 12.462
A175: 13.75 | B175: 8.6005 | C175: 7.2898 | D175: 8.4902 | E175: 9.9898 | F175: 0.45667 | G175: 0.34119 | H175: 0.43321 | I175: 0.5949 | J175: 9.3059 | K175: 7.7872 | L175: 9.1906 | M175: 10.886 | N175: 0.45667 | O175: 0.34119 | P175: 0.43321 | Q175: 0.5949 | R175: 7.9358 | S175: 6.7208 | T175: 7.8204 | U175: 9.2579 | V175: 0.45667 | W175: 0.34119 | X175: 0.43321 | Y175: 0.5949 | Z175: 10.637 | AA175: 9.0211 | AB175: 10.532 | AC175: 12.455
A176: 13.8333 | B176: 8.7571 | C176: 7.426 | D176: 8.64 | E176: 10.199 | F176: 0.45871 | G176: 0.3406 | H176: 0.43276 | I176: 0.59942 | J176: 9.4098 | K176: 7.8702 | L176: 9.3218 | M176: 10.988 | N176: 0.45871 | O176: 0.3406 | P176: 0.43276 | Q176: 0.59942 | R176: 7.7343 | S176: 6.5533 | T176: 7.6224 | U176: 9.0124 | V176: 0.45871 | W176: 0.3406 | X176: 0.43276 | Y176: 0.59942 | Z176: 10.637 | AA176: 9.0091 | AB176: 10.536 | AC176: 12.449
A177: 13.9167 | B177: 8.9022 | C177: 7.5517 | D177: 8.7816 | E177: 10.392 | F177: 0.46124 | G177: 0.33882 | H177: 0.42945 | I177: 0.6039 | J177: 9.5057 | K177: 7.9601 | L177: 9.4117 | M177: 11.078 | N177: 0.46124 | O177: 0.33882 | P177: 0.42945 | Q177: 0.6039 | R177: 7.5506 | S177: 6.3996 | T177: 7.4385 | U177: 8.7868 | V177: 0.46124 | W177: 0.33882 | X177: 0.42945 | Y177: 0.6039 | Z177: 10.637 | AA177: 9.0047 | AB177: 10.532 | AC177: 12.443
A178: 14 | B178: 9.0221 | C178: 7.7468 | D178: 8.9352 | E178: 10.434 | F178: 0.46391 | G178: 0.3321 | H178: 0.43394 | I178: 0.61226 | J178: 9.5786 | K178: 8.2028 | L178: 9.4543 | M178: 11.052 | N178: 0.46391 | O178: 0.3321 | P178: 0.43394 | Q178: 0.61226 | R178: 7.3734 | S178: 6.3186 | T178: 7.3173 | U178: 8.5532 | V178: 0.46391 | W178: 0.3321 | X178: 0.43394 | Y178: 0.61226 | Z178: 10.619 | AA178: 9.1226 | AB178: 10.456 | AC178: 12.289
A179: 14.0833 | B179: 8.4856 | C179: 7.2816 | D179: 8.3938 | E179: 9.8188 | F179: 0.46095 | G179: 0.33796 | H179: 0.43412 | I179: 0.606 | J179: 9.66 | K179: 8.2672 | L179: 9.5191 | M179: 11.16 | N179: 0.46095 | O179: 0.33796 | P179: 0.43412 | Q179: 0.606 | R179: 7.7999 | S179: 6.6905 | T179: 7.7434 | U179: 9.0184 | V179: 0.46095 | W179: 0.33796 | X179: 0.43412 | Y179: 0.606 | Z179: 10.618 | AA179: 9.1073 | AB179: 10.457 | AC179: 12.305
A180: 14.1667 | B180: 8.2077 | C180: 7.0457 | D180: 8.108 | E180: 9.4833 | F180: 0.45859 | G180: 0.34013 | H180: 0.43349 | I180: 0.59389 | J180: 9.7305 | K180: 8.3387 | L180: 9.5925 | M180: 11.274 | N180: 0.45859 | O180: 0.34013 | P180: 0.43349 | Q180: 0.59389 | R180: 8.0127 | S180: 6.8741 | T180: 7.9559 | U180: 9.2623 | V180: 0.45859 | W180: 0.34013 | X180: 0.43349 | Y180: 0.59389 | Z180: 10.618 | AA180: 9.1019 | AB180: 10.453 | AC180: 12.321
A181: 14.25 | B181: 7.9553 | C181: 6.8341 | D181: 7.8625 | E181: 9.1848 | F181: 0.45675 | G181: 0.34252 | H181: 0.43528 | I181: 0.59501 | J181: 9.8003 | K181: 8.3865 | L181: 9.6599 | M181: 11.355 | N181: 0.45675 | O181: 0.34252 | P181: 0.43528 | Q181: 0.59501 | R181: 8.2079 | S181: 7.034 | T181: 8.1532 | U181: 9.4859 | V181: 0.45675 | W181: 0.34252 | X181: 0.43528 | Y181: 0.59501 | Z181: 10.618 | AA181: 9.1088 | AB181: 10.455 | AC181: 12.341
A182: 14.3333 | B182: 7.7234 | C182: 6.6417 | D182: 7.6408 | E182: 8.9057 | F182: 0.4554 | G182: 0.34533 | H182: 0.43485 | I182: 0.59199 | J182: 9.8696 | K182: 8.4386 | L182: 9.7297 | M182: 11.43 | N182: 0.4554 | O182: 0.34533 | P182: 0.43485 | Q182: 0.59199 | R182: 8.3892 | S182: 7.1857 | T182: 8.3408 | U182: 9.7036 | V182: 0.4554 | W182: 0.34533 | X182: 0.43485 | Y182: 0.59199 | Z182: 10.618 | AA182: 9.1066 | AB182: 10.474 | AC182: 12.352
A183: 14.4167 | B183: 7.6507 | C183: 6.5639 | D183: 7.5949 | E183: 8.7913 | F183: 0.45449 | G183: 0.34906 | H183: 0.43115 | I183: 0.58991 | J183: 9.7092 | K183: 8.2437 | L183: 9.5871 | M183: 11.416 | N183: 0.45449 | O183: 0.34906 | P183: 0.43115 | Q183: 0.58991 | R183: 8.5598 | S183: 7.3324 | T183: 8.5039 | U183: 9.9001 | V183: 0.45449 | W183: 0.34906 | X183: 0.43115 | Y183: 0.58991 | Z183: 10.618 | AA183: 9.0913 | AB183: 10.492 | AC183: 12.341
A184: 14.5 | B184: 8.0286 | C184: 6.9001 | D184: 7.9483 | E184: 9.2065 | F184: 0.45404 | G184: 0.34741 | H184: 0.43223 | I184: 0.59332 | J184: 8.9594 | K184: 7.6808 | L184: 8.8511 | M184: 10.384 | N184: 0.45404 | O184: 0.34741 | P184: 0.43223 | Q184: 0.59332 | R184: 8.6538 | S184: 7.3699 | T184: 8.5439 | U184: 10.059 | V184: 0.45404 | W184: 0.34741 | X184: 0.43223 | Y184: 0.59332 | Z184: 10.618 | AA184: 9.0667 | AB184: 10.505 | AC184: 12.33
A185: 14.5833 | B185: 8.2252 | C185: 7.0701 | D185: 8.1242 | E185: 9.4559 | F185: 0.45404 | G185: 0.34588 | H185: 0.4306 | I185: 0.60242 | J185: 8.8982 | K185: 7.4555 | L185: 8.7986 | M185: 10.406 | N185: 0.45404 | O185: 0.34588 | P185: 0.4306 | Q185: 0.60242 | R185: 8.5093 | S185: 7.2136 | T185: 8.3719 | U185: 9.9872 | V185: 0.45404 | W185: 0.34588 | X185: 0.4306 | Y185: 0.60242 | Z185: 10.619 | AA185: 9.0696 | AB185: 10.528 | AC185: 12.35
A186: 14.6667 | B186: 8.4077 | C186: 7.2193 | D186: 8.3062 | E186: 9.6963 | F186: 0.45446 | G186: 0.34488 | H186: 0.43017 | I186: 0.59709 | J186: 9.1773 | K186: 7.8057 | L186: 9.0637 | M186: 10.721 | N186: 0.45446 | O186: 0.34488 | P186: 0.43017 | Q186: 0.59709 | R186: 8.1637 | S186: 6.9889 | T186: 8.0695 | U186: 9.489 | V186: 0.45446 | W186: 0.34488 | X186: 0.43017 | Y186: 0.59709 | Z186: 10.619 | AA186: 9.0725 | AB186: 10.519 | AC186: 12.384
A187: 14.75 | B187: 8.577 | C187: 7.3611 | D187: 8.4795 | E187: 9.9145 | F187: 0.45532 | G187: 0.34082 | H187: 0.42746 | I187: 0.59606 | J187: 9.2894 | K187: 7.8993 | L187: 9.1694 | M187: 10.831 | N187: 0.45532 | O187: 0.34082 | P187: 0.42746 | Q187: 0.59606 | R187: 7.9414 | S187: 6.8048 | T187: 7.8417 | U187: 9.2115 | V187: 0.45532 | W187: 0.34082 | X187: 0.42746 | Y187: 0.59606 | Z187: 10.619 | AA187: 9.0616 | AB187: 10.508 | AC187: 12.381
A188: 14.8333 | B188: 8.7311 | C188: 7.5003 | D188: 8.6443 | E188: 10.105 | F188: 0.45664 | G188: 0.33607 | H188: 0.42657 | I188: 0.5982 | J188: 9.393 | K188: 7.9876 | L188: 9.2784 | M188: 10.947 | N188: 0.45664 | O188: 0.33607 | P188: 0.42657 | Q188: 0.5982 | R188: 7.7414 | S188: 6.644 | T188: 7.6486 | U188: 8.9623 | V188: 0.45664 | W188: 0.33607 | X188: 0.42657 | Y188: 0.5982 | Z188: 10.619 | AA188: 9.0532 | AB188: 10.503 | AC188: 12.381
A189: 14.9167 | B189: 8.8738 | C189: 7.6199 | D189: 8.7962 | E189: 10.303 | F189: 0.45843 | G189: 0.3357 | H189: 0.42649 | I189: 0.60902 | J189: 9.4888 | K189: 8.0701 | L189: 9.3595 | M189: 11.066 | N189: 0.45843 | O189: 0.3357 | P189: 0.42649 | Q189: 0.60902 | R189: 7.5592 | S189: 6.5116 | T189: 7.4647 | U189: 8.7551 | V189: 0.45843 | W189: 0.3357 | X189: 0.42649 | Y189: 0.60902 | Z189: 10.619 | AA189: 9.0597 | AB189: 10.492 | AC189: 12.374
A190: 15 | B190: 9.0079 | C190: 7.5654 | D190: 8.8837 | E190: 10.61 | F190: 0.46096 | G190: 0.33108 | H190: 0.42415 | I190: 0.61924 | J190: 9.5727 | K190: 8.0422 | L190: 9.5002 | M190: 11.199 | N190: 0.46096 | O190: 0.33108 | P190: 0.42415 | Q190: 0.61924 | R190: 7.3916 | S190: 6.2103 | T190: 7.2848 | U190: 8.7497 | V190: 0.46096 | W190: 0.33108 | X190: 0.42415 | Y190: 0.61924 | Z190: 10.615 | AA190: 8.8793 | AB190: 10.507 | AC190: 12.49
A191: 15.0833 | B191: 8.4748 | C191: 7.1317 | D191: 8.3615 | E191: 9.9815 | F191: 0.45896 | G191: 0.33102 | H191: 0.42338 | I191: 0.61038 | J191: 9.6557 | K191: 8.1005 | L191: 9.592 | M191: 11.292 | N191: 0.45896 | O191: 0.33102 | P191: 0.42338 | Q191: 0.61038 | R191: 7.8177 | S191: 6.5551 | T191: 7.7086 | U191: 9.2353 | V191: 0.45896 | W191: 0.33102 | X191: 0.42338 | Y191: 0.61038 | Z191: 10.616 | AA191: 8.8955 | AB191: 10.498 | AC191: 12.512
A192: 15.1667 | B192: 8.1977 | C192: 6.8965 | D192: 8.0874 | E192: 9.6536 | F192: 0.45743 | G192: 0.33473 | H192: 0.42559 | I192: 0.60448 | J192: 9.7305 | K192: 8.1672 | L192: 9.6715 | M192: 11.396 | N192: 0.45743 | O192: 0.33473 | P192: 0.42559 | Q192: 0.60448 | R192: 8.0298 | S192: 6.7349 | T192: 7.9194 | U192: 9.4977 | V192: 0.45743 | W192: 0.33473 | X192: 0.42559 | Y192: 0.60448 | Z192: 10.617 | AA192: 8.9176 | AB192: 10.514 | AC192: 12.512
A193: 15.25 | B193: 7.9478 | C193: 6.6929 | D193: 7.8447 | E193: 9.3572 | F193: 0.45633 | G193: 0.3364 | H193: 0.42466 | I193: 0.59886 | J193: 9.7974 | K193: 8.2105 | L193: 9.7171 | M193: 11.488 | N193: 0.45633 | O193: 0.3364 | P193: 0.42466 | Q193: 0.59886 | R193: 8.2263 | S193: 6.9095 | T193: 8.1123 | U193: 9.7287 | V193: 0.45633 | W193: 0.3364 | X193: 0.42466 | Y193: 0.59886 | Z193: 10.618 | AA193: 8.9195 | AB193: 10.503 | AC193: 12.521
A194: 15.3333 | B194: 7.7198 | C194: 6.5103 | D194: 7.6344 | E194: 9.0862 | F194: 0.45563 | G194: 0.33915 | H194: 0.42466 | I194: 0.60148 | J194: 9.8636 | K194: 8.259 | L194: 9.779 | M194: 11.576 | N194: 0.45563 | O194: 0.33915 | P194: 0.42466 | Q194: 0.60148 | R194: 8.4073 | S194: 7.0648 | T194: 8.2859 | U194: 9.9424 | V194: 0.45563 | W194: 0.33915 | X194: 0.42466 | Y194: 0.60148 | Z194: 10.619 | AA194: 8.9091 | AB194: 10.51 | AC194: 12.532
A195: 15.4167 | B195: 7.6764 | C195: 6.3637 | D195: 7.5673 | E195: 9.0602 | F195: 0.45532 | G195: 0.34004 | H195: 0.42651 | I195: 0.59904 | J195: 9.6695 | K195: 8.1007 | L195: 9.5287 | M195: 11.477 | N195: 0.45532 | O195: 0.34004 | P195: 0.42651 | Q195: 0.59904 | R195: 8.5754 | S195: 7.2039 | T195: 8.4549 | U195: 10.16 | V195: 0.45532 | W195: 0.34004 | X195: 0.42651 | Y195: 0.59904 | Z195: 10.619 | AA195: 8.9084 | AB195: 10.521 | AC195: 12.517
A196: 15.5 | B196: 8.0442 | C196: 6.7051 | D196: 7.9651 | E196: 9.4481 | F196: 0.4554 | G196: 0.33932 | H196: 0.42937 | I196: 0.59793 | J196: 8.927 | K196: 7.4859 | L196: 8.799 | M196: 10.532 | N196: 0.4554 | O196: 0.33932 | P196: 0.42937 | Q196: 0.59793 | R196: 8.6864 | S196: 7.2865 | T196: 8.5629 | U196: 10.33 | V196: 0.4554 | W196: 0.33932 | X196: 0.42937 | Y196: 0.59793 | Z196: 10.62 | AA196: 8.9104 | AB196: 10.512 | AC196: 12.518
A197: 15.5833 | B197: 8.2402 | C197: 6.8762 | D197: 8.1508 | E197: 9.6894 | F197: 0.45586 | G197: 0.33942 | H197: 0.42725 | I197: 0.60086 | J197: 8.8502 | K197: 7.2698 | L197: 8.7401 | M197: 10.444 | N197: 0.45586 | O197: 0.33942 | P197: 0.42725 | Q197: 0.60086 | R197: 8.554 | S197: 7.1315 | T197: 8.416 | U197: 10.144 | V197: 0.45586 | W197: 0.33942 | X197: 0.42725 | Y197: 0.60086 | Z197: 10.621 | AA197: 8.9019 | AB197: 10.506 | AC197: 12.529
A198: 15.6667 | B198: 8.4223 | C198: 7.0351 | D198: 8.3246 | E198: 9.9121 | F198: 0.45672 | G198: 0.33837 | H198: 0.42903 | I198: 0.59946 | J198: 9.1404 | K198: 7.5793 | L198: 9.015 | M198: 10.732 | N198: 0.45672 | O198: 0.33837 | P198: 0.42903 | Q198: 0.59946 | R198: 8.1993 | S198: 6.893 | T198: 8.0853 | U198: 9.6654 | V198: 0.45672 | W198: 0.33837 | X198: 0.42903 | Y198: 0.59946 | Z198: 10.621 | AA198: 8.9037 | AB198: 10.511 | AC198: 12.546
A199: 15.75 | B199: 8.5912 | C199: 7.1732 | D199: 8.492 | E199: 10.123 | F199: 0.45798 | G199: 0.3374 | H199: 0.42857 | I199: 0.60745 | J199: 9.256 | K199: 7.6814 | L199: 9.1236 | M199: 10.873 | N199: 0.45798 | O199: 0.3374 | P199: 0.42857 | Q199: 0.60745 | R199: 7.9747 | S199: 6.7077 | T199: 7.8666 | U199: 9.3858 | V199: 0.45798 | W199: 0.3374 | X199: 0.42857 | Y199: 0.60745 | Z199: 10.622 | AA199: 8.9039 | AB199: 10.519 | AC199: 12.55
A200: 15.8333 | B200: 8.7449 | C200: 7.2905 | D200: 8.6336 | E200: 10.303 | F200: 0.4597 | G200: 0.33441 | H200: 0.42589 | I200: 0.60924 | J200: 9.3629 | K200: 7.769 | L200: 9.2389 | M200: 11.023 | N200: 0.4597 | O200: 0.33441 | P200: 0.42589 | Q200: 0.60924 | R200: 7.7728 | S200: 6.5581 | T200: 7.6761 | U200: 9.1436 | V200: 0.4597 | W200: 0.33441 | X200: 0.42589 | Y200: 0.60924 | Z200: 10.623 | AA200: 8.8966 | AB200: 10.525 | AC200: 12.559
... 2210 more rows
